Workbook

Sheet CD_vs_CG_R1min
A1: Accession | B1: GeneName | C1: Location | D1: Composition | E1: Cofactors | F1: Essential? | G1: Copy Number | H1: Molecular Weight | I1: Amount (fg) | J1: Num Subunits | K1: Unique Subunits | L1: pI | M1: Folds | N1: Domain Ranges | O1: Num Domains | P1: Unique Domains | Q1: SigPeptides1 | R1: TotPeptides1 | S1: AonPeptides1 | T1: AllSigPeptides1 | U1: SigPeptides2 | V1: TotPeptides2 | W1: AonPeptides2 | X1: AllSigPeptides2 | Y1: Hartl class | Z1: Teguchi subclass | AA1: DnaK_Enrichment | AB1: Picotti Tm | AC1: GroEL_fastidious | AD1: DnaK_fastidious | AE1: Refoldable | AF1: Chaperone Non-Refolder | AN1: OverallTotal | AO1: =SUM(AO5:AR5) -> 796
A2: P0A8P1 | B2: aat | C2: ['cytosol'] | D2: Monomer | E2: None | F2: N | G2: 151 | H2: 26.618 | I2: 0.006674234 | J2: 1 | K2: 1 | L2: 6.887 | M2: ['Acyl-CoA N-acyltransferases (Nat)'] | N2: ['2-228'] | O2: 1 | P2: 1 | Q2: 0 | R2: 1 | S2: 0 | T2: 0 | U2: 0 | V2: 0 | W2: 0 | X2: 0 | Y2: No Info Available | Z2: No Info Available | AA2: No Info Available | AB2: No Info Available | AC2: =IF(OR(AND(T2>2,R2>1,X2=0,V2>1),AND(T2>2,R2>1,X2=1,V2>1),AND(T2=2,R2>1,X2=0,V2>1)),1,0) -> 0 | AD2: =IF(OR(AND(T2=0,R2>1,X2>2,V2>1),AND(T2=0,R2>1,X2=2,V2>1),AND(T2=1,R2>1,X2>2,V2>1)),1,0) -> 0 | AE2: =IF(AND(T2<2,R2>1,X2<2,V2>1),1,0) -> 0 | AF2: =IF(AND(T2>1,R2>1,X2>1,V2>1),1,0) -> 0 | AI2: 0 | AJ2: 1 | AK2: 2 | AL2: >2
A3: P77357 | B3: abgA | C3: ['cytosol'] | D3: ['AbgB.2', 'AbgA.2'] | E3: ['Mn2+'] | F3: N | G3: 9 | H3: 46.588 | I3: 0.000696251 | J3: 4 | K3: 2 | L3: 5.583 | M3: ['Phosphorylase/hydrolase-like', 'Ferredoxin-like'] | N3: ['2-54+94-242+341-430', '228-335'] | O3: 2 | P3: 2 | Q3: 0 | R3: 1 | S3: 0 | T3: 0 | U3: 0 | V3: 1 | W3: 0 | X3: 0 | Y3: No Info Available | Z3: No Info Available | AA3: No Info Available | AB3: No Info Available | AC3: =IF(OR(AND(T3>2,R3>1,X3=0,V3>1),AND(T3>2,R3>1,X3=1,V3>1),AND(T3=2,R3>1,X3=0,V3>1)),1,0) -> 0 | AD3: =IF(OR(AND(T3=0,R3>1,X3>2,V3>1),AND(T3=0,R3>1,X3=2,V3>1),AND(T3=1,R3>1,X3>2,V3>1)),1,0) -> 0 | AE3: =IF(AND(T3<2,R3>1,X3<2,V3>1),1,0) -> 0 | AF3: =IF(AND(T3>1,R3>1,X3>1,V3>1),1,0) -> 0 | AH3: 0 | AI3: =COUNTIFS(T:T,"0",R:R,">1",X:X,"0",V:V,">1") -> 282 | AJ3: =COUNTIFS(T:T,"0",R:R,">1",X:X,"1",V:V,">1") -> 86 | AK3: =COUNTIFS(T:T,"0",R:R,">1",X:X,"2",V:V,">1") -> 32 | AL3: =COUNTIFS(T:T,"0",R:R,">1",X:X,">2",V:V,">1") -> 14 | AO3: Refoldable | AP3: GroEL_fastidious | AQ3: DnaK_fastidious | AR3: Chaperone Non-Refolder
A4: P46133 | B4: abgT | C4: ['inner membrane'] | D4: Monomer | E4: None | F4: N | G4: ? | H4: 54.886 | I4: ? | J4: 1 | K4: 1 | L4: 9.329 | M4: Unknown | O4: 0 | P4: 0 | Q4: 0 | R4: 0 | S4: 0 | T4: 0 | U4: 0 | V4: 1 | W4: 0 | X4: 0 | Y4: No Info Available | Z4: No Info Available | AA4: No Info Available | AB4: No Info Available | AC4: 0 | AD4: 0 | AE4: 0 | AF4: 0 | AH4: 1 | AI4: =COUNTIFS(T:T,"1",R:R,">1",X:X,"0",V:V,">1") -> 96 | AJ4: =COUNTIFS(T:T,"1",R:R,">1",X:X,"1",V:V,">1") -> 57 | AK4: =COUNTIFS(T:T,"1",R:R,">1",X:X,"2",V:V,">1") -> 29 | AL4: =COUNTIFS(T:T,"1",R:R,">1",X:X,">2",V:V,">1") -> 23 | AN4: Overall
A5: P0ABD5 | B5: accA | C5: ['cytosol'] | D5: ['AccA.2', 'AccD.2'] | E5: None | F5: Y | G5: 10155 | H5: 35.242 | I5: 0.59427788 | J5: 4 | K5: 2 | L5: 5.768 | M5: ['ClpP/crotonase'] | N5: ['5-318'] | O5: 1 | P5: 1 | Q5: 0 | R5: 17 | S5: 1 | T5: 1 | U5: 1 | V5: 14 | W5: 0 | X5: 1 | Y5: II | Z5: No Info Available | AA5: 6.72 | AB5: No Info Available | AC5: 0 | AD5: 0 | AE5: 1 | AF5: 0 | AH5: 2 | AI5: =COUNTIFS(T:T,"2",R:R,">1",X:X,"0",V:V,">1") -> 20 | AJ5: =COUNTIFS(T:T,"2",R:R,">1",X:X,"1",V:V,">1") -> 26 | AK5: =COUNTIFS(T:T,"2",R:R,">1",X:X,"2",V:V,">1") -> 13 | AL5: =COUNTIFS(T:T,"2",R:R,">1",X:X,">2",V:V,">1") -> 29 | AM5: Total | AO5: =COUNTIFS(AE:AE,"1") -> 521 | AP5: =COUNTIFS(AC:AC,"1") -> 56 | AQ5: =COUNTIFS(AD:AD,"1") -> 69 | AR5: =COUNTIFS(AF:AF,"1") -> 150
A6: P0ABD8 | B6: accB | C6: ['cytosol'] | D6: Monomer | E6: None | F6: Y | G6: 34495 | H6: 16.687 | I6: 0.955836269 | J6: 1 | K6: 1 | L6: 4.474 | M6: ['Barrel-sandwich hybrid'] | N6: ['81-156'] | O6: 1 | P6: 1 | Q6: 3 | R6: 16 | S6: 1 | T6: 4 | U6: 1 | V6: 16 | W6: 0 | X6: 1 | Y6: No Info Available | Z6: No Info Available | AA6: 10.06 | AB6: No Info Available | AC6: 1 | AD6: 0 | AE6: 0 | AF6: 0 | AH6: >2 | AI6: =COUNTIFS(T:T,">2",R:R,">1",X:X,"0",V:V,">1") -> 18 | AJ6: =COUNTIFS(T:T,">2",R:R,">1",X:X,"1",V:V,">1") -> 18 | AK6: =COUNTIFS(T:T,">2",R:R,">1",X:X,"2",V:V,">1") -> 27 | AL6: =COUNTIFS(T:T,">2",R:R,">1",X:X,">2",V:V,">1") -> 81 | AM6: Percent | AO6: =AO5/$AO$1 -> 0.6545226131 | AP6: =AP5/$AO$1 -> 0.07035175879 | AQ6: =AQ5/$AO$1 -> 0.08668341709 | AR6: =AR5/$AO$1 -> 0.1884422111
A7: P24182 | B7: accC | C7: ['cytosol'] | D7: ['AccA.2', 'AccD.2.', 'AccC.2.'] | E7: None | F7: Y | G7: 13890 | H7: 49.321 | I7: 1.137583305 | J7: 8 | K7: 3 | L7: 6.784 | M7: ['PreATP-grasp domain', 'Barrel-sandwich hybrid', 'ATP-grasp'] | N7: ['1-114', '331-443', '83-347'] | O7: 3 | P7: 3 | Q7: 1 | R7: 22 | S7: 0 | T7: 1 | U7: 0 | V7: 20 | W7: 0 | X7: 0 | Y7: II | Z7: No Info Available | AA7: No Info Available | AB7: 45.90384771 | AC7: 0 | AD7: 0 | AE7: 1 | AF7: 0
A8: P0A9Q5 | B8: accD | C8: ['cytosol'] | D8: ['AccA.2', 'AccD.2'] | E8: None | F8: Y | G8: 8774 | H8: 33.322 | I8: 0.485487196 | J8: 4 | K8: 2 | L8: 7.481 | M8: ['ClpP/crotonase'] | N8: ['23-284'] | O8: 1 | P8: 1 | Q8: 0 | R8: 11 | S8: 1 | T8: 1 | U8: 0 | V8: 16 | W8: 0 | X8: 0 | Y8: No Info Available | Z8: No Info Available | AA8: 5.53 | AB8: No Info Available | AC8: 0 | AD8: 0 | AE8: =IF(AND(T8<2,R8>1,X8<2,V8>1),1,0) -> 1 | AF8: 0 | AM8: Total | AN8: Composition by Subunits | AT8: Expected Couunts | AY8: Chi-Sq
A9: P0A9G6 | B9: aceA | C9: Unknown | D9: ['AceA.4'] | E9: ['Mg2+'] | F9: N | G9: 1483 | H9: 47.522 | I9: 0.117026698 | J9: 4 | K9: 1 | L9: 5.054 | M9: ['TIM beta/alpha-barrel'] | N9: ['4-417'] | O9: 1 | P9: 1 | Q9: 0 | R9: 3 | S9: 0 | T9: 0 | U9: 0 | V9: 7 | W9: 0 | X9: 0 | Y9: No Info Available | Z9: No Info Available | AA9: No Info Available | AB9: 46.98637598 | AC9: 0 | AD9: 0 | AE9: 1 | AF9: 0 | AN9: 1 subunit | AO9: =COUNTIFS(AE:AE,"1",$J:$J,"=1") -> 260 | AP9: =COUNTIFS(AC:AC,"1",$J:$J,"=1") -> 24 | AQ9: =COUNTIFS(AD:AD,"1",$J:$J,"=1") -> 20 | AR9: =COUNTIFS(AF:AF,"1",$J:$J,"=1") -> 41 | AT9: =SUM(AO9:AR9)*AO$6 -> 225.8103015 | AU9: =SUM(AO9:AR9)*AP$6 -> 24.27135678 | AV9: =SUM(AO9:AR9)*AQ$6 -> 29.90577889 | AW9: =SUM(AO9:AR9)*AR$6 -> 65.01256281 | AY9: =_xlfn.CHISQ.TEST(AO9:AR9,AT9:AW9) -> 0.0006044823976
A10: P08997 | B10: aceB | C10: ['cytosol'] | D10: Monomer | E10: ['Mg2+'] | F10: N | G10: 591 | H10: 60.274 | I10: 0.059151612 | J10: 1 | K10: 1 | L10: 5.328 | M10: ['TIM beta/alpha-barrel'] | N10: ['9-532'] | O10: 1 | P10: 1 | Q10: 0 | R10: 3 | S10: 0 | T10: 0 | U10: 0 | V10: 3 | W10: 0 | X10: 0 | Y10: No Info Available | Z10: No Info Available | AA10: No Info Available | AB10: 54.57089578 | AC10: 0 | AD10: =IF(OR(AND(T10=0,R10>1,X10>2,V10>1),AND(T10=0,R10>1,X10=2,V10>1),AND(T10=1,R10>1,X10>2,V10>1)),1,0) -> 0 | AE10: 1 | AF10: 0 | AN10: 2 subunits | AO10: =COUNTIFS(AE:AE,"1",$J:$J,"=2") -> 109 | AP10: =COUNTIFS(AC:AC,"1",$J:$J,"=2") -> 7 | AQ10: =COUNTIFS(AD:AD,"1",$J:$J,"=2") -> 12 | AR10: =COUNTIFS(AF:AF,"1",$J:$J,"=2") -> 54 | AT10: =SUM(AO10:AR10)*AO$6 -> 119.1231156 | AU10: =SUM(AO10:AR10)*AP$6 -> 12.8040201 | AV10: =SUM(AO10:AR10)*AQ$6 -> 15.77638191 | AW10: =SUM(AO10:AR10)*AR$6 -> 34.29648241 | AY10: =_xlfn.CHISQ.TEST(AO10:AR10,AT10:AW10) -> 0.001297244851
A11: P0AFG8 | B11: aceE | C11: ['cytosol'] | D11: ['AceE.2.12', 'AceF.24', 'Lpd.2.6'] | E11: ['thiamine diphosphate', 'FAD', 'Mg2+'] | F11: N | G11: 66813 | H11: 99.668 | I11: 11.05772555 | J11: 60 | K11: 3 | L11: 5.429 | M11: ['Thiamin diphosphate-binding fold (THDP-binding)', 'Thiamin diphosphate-binding fold (THDP-binding)', 'TK C-terminal domain-like'] | N11: ['58-469', '474-701', '702-885'] | O11: 3 | P11: 2 | Q11: 2 | R11: 51 | S11: 1 | T11: 3 | U11: 0 | V11: 69 | W11: 0 | X11: 0 | Y11: I | Z11: No Info Available | AA11: 6.33 | AB11: 43.51088266 | AC11: 1 | AD11: 0 | AE11: 0 | AF11: 0 | AN11: 3 subunits | AO11: =COUNTIFS(AE:AE,"1",$J:$J,"=3") -> 14 | AP11: =COUNTIFS(AC:AC,"1",$J:$J,"=3") -> 1 | AQ11: =COUNTIFS(AD:AD,"1",$J:$J,"=3") -> 1 | AR11: =COUNTIFS(AF:AF,"1",$J:$J,"=3") -> 8 | AT11: 15.70854271 | AU11: 1.688442211 | AV11: 2.08040201 | AW11: 4.522613065 | AY11: 0.295572795
A12: P06959 | B12: aceF | C12: ['cytosol'] | D12: ['AceE.2.12', 'AceF.24', 'Lpd.2.6'] | E12: ['thiamine diphosphate', 'FAD', 'Mg2+'] | F12: N | G12: 60155 | H12: 66.096 | I12: 6.602311328 | J12: 60 | K12: 3 | L12: 4.96 | M12: ['CoA-dependent acyltransferases', 'Barrel-sandwich hybrid', 'Barrel-sandwich hybrid', 'Barrel-sandwich hybrid', 'Peripheral subunit-binding domain of 2-oxo acid dehydrogenase complex'] | N12: ['388-629', '105-197', '206-298', '1-93', '321-366'] | O12: 5 | P12: 3 | Q12: 3 | R12: 30 | S12: 1 | T12: 4 | U12: 1 | V12: 49 | W12: 1 | X12: 2 | Y12: I | Z12: No Info Available | AA12: 3.29 | AB12: 58.43919164 | AC12: 0 | AD12: 0 | AE12: 0 | AF12: 1 | AN12: 4 subunits | AO12: =COUNTIFS(AE:AE,"1",$J:$J,"=4") -> 53 | AP12: =COUNTIFS(AC:AC,"1",$J:$J,"=4") -> 5 | AQ12: =COUNTIFS(AD:AD,"1",$J:$J,"=4") -> 13 | AR12: =COUNTIFS(AF:AF,"1",$J:$J,"=4") -> 17 | AT12: 57.59798995 | AU12: 6.190954774 | AV12: 7.628140704 | AW12: 16.58291457 | AY12: 0.2223519222
A13: P0A6A3 | B13: ackA | C13: ['cytosol'] | D13: Monomer | E13: ['Mg2+'] | F13: N | G13: 35607 | H13: 43.29 | I13: 2.559599761 | J13: 1 | K13: 1 | L13: 5.973 | M13: ['Ribonuclease H-like motif', 'Ribonuclease H-like motif'] | N13: ['160-398', '4-199'] | O13: 2 | P13: 1 | Q13: 0 | R13: 21 | S13: 2 | T13: 2 | U13: 5 | V13: 31 | W13: 4 | X13: 9 | Y13: I | Z13: No Info Available | AA13: No Info Available | AB13: 41.60227949 | AC13: 0 | AD13: 0 | AE13: 0 | AF13: 1 | AN13: 5 subunits | AO13: =COUNTIFS(AE:AE,"1",$J:$J,"=5") -> 19 | AP13: =COUNTIFS(AC:AC,"1",$J:$J,"=5") -> 6 | AQ13: =COUNTIFS(AD:AD,"1",$J:$J,"=5") -> 1 | AR13: =COUNTIFS(AF:AF,"1",$J:$J,"=5") -> 7 | AT13: 21.59924623 | AU13: 2.32160804 | AV13: 2.860552764 | AW13: 6.218592965 | AY13: 0.05887770389
A14: P25516 | B14: acnA | C14: ['cytosol'] | D14: ['AcnA.2'] | E14: ['a [4Fe-4S] iron-sulfur cluster'] | F14: N | G14: 238 | H14: 97.677 | I14: 0.03860276 | J14: 2 | K14: 1 | L14: 5.602 | M14: ['Aconitase iron-sulfur domain', 'The "swivelling" beta/beta/alpha domain'] | N14: ['10-625', '630-890'] | O14: 2 | P14: 2 | Q14: 0 | R14: 2 | S14: 0 | T14: 0 | U14: 0 | V14: 10 | W14: 0 | X14: 0 | Y14: No Info Available | Z14: No Info Available | AA14: No Info Available | AB14: 49.0188317 | AC14: 0 | AD14: 0 | AE14: 1 | AF14: 0 | AN14: 6 subunits | AO14: =COUNTIFS(AE:AE,"1",$J:$J,"=6") -> 17 | AP14: =COUNTIFS(AC:AC,"1",$J:$J,"=6") -> 1 | AQ14: =COUNTIFS(AD:AD,"1",$J:$J,"=6") -> 4 | AR14: =COUNTIFS(AF:AF,"1",$J:$J,"=6") -> 8 | AT14: 19.63567839 | AU14: 2.110552764 | AV14: 2.600502513 | AW14: 5.653266332 | AY14: 0.4461286741
A15: P36683 | B15: acnB | C15: ['cytosol'] | D15: ['AcnB.2'] | E15: ['a [4Fe-4S] iron-sulfur cluster'] | F15: N | G15: 7764 | H15: 93.498 | I15: 1.205415963 | J15: 2 | K15: 1 | L15: 5.138 | M15: ['Aconitase iron-sulfur domain', 'The "swivelling" beta/beta/alpha domain', 'alpha-alpha superhelix'] | N15: ['380-859', '163-371', '1-160'] | O15: 3 | P15: 3 | Q15: 1 | R15: 62 | S15: 2 | T15: 3 | U15: 10 | V15: 67 | W15: 2 | X15: 12 | Y15: No Info Available | Z15: No Info Available | AA15: 7.26 | AB15: 45.79895276 | AC15: 0 | AD15: 0 | AE15: 0 | AF15: 1 | AN15: >6 subunits | AO15: =COUNTIFS(AE:AE,"1",$J:$J,">6") -> 49 | AP15: =COUNTIFS(AC:AC,"1",$J:$J,">6") -> 12 | AQ15: =COUNTIFS(AD:AD,"1",$J:$J,">6") -> 18 | AR15: =COUNTIFS(AF:AF,"1",$J:$J,">6") -> 15 | AT15: 61.52512563 | AU15: 6.613065327 | AV15: 8.148241206 | AW15: 17.71356784 | AY15: 0.0002409724969
A16: P21515 | B16: acpH | C16: ['cytosol'] | D16: Monomer | E16: ['Zn2+', 'Fe2+', 'Co2+', 'Mg2+', 'Mn2+'] | F16: N | G16: 190 | H16: 22.961 | I16: 0.007244251 | J16: 1 | K16: 1 | L16: 6.034 | M16: Unknown | O16: 0 | P16: 0 | Q16: 0 | R16: 1 | S16: 0 | T16: 0 | U16: 0 | V16: 1 | W16: 0 | X16: 0 | Y16: III | Z16: IV | AA16: No Info Available | AB16: No Info Available | AC16: 0 | AD16: 0 | AE16: 0 | AF16: 0 | AM16: Percent | AN16: 1 subunit | AO16: =AO9/(AO9+AP9+AQ9+AR9) -> 0.7536231884 | AP16: =AP9/(AO9+AP9+AQ9+AR9) -> 0.06956521739 | AQ16: =AQ9/(AO9+AP9+AQ9+AR9) -> 0.05797101449 | AR16: =AR9/(AO9+AP9+AQ9+AR9) -> 0.1188405797
A17: P0A6A8 | B17: acpP | C17: ['cytosol'] | D17: Monomer | E17: None | F17: Y | G17: 357865 | H17: 8.64 | I17: 5.134309664 | J17: 1 | K17: 1 | L17: 3.822 | M17: ['Acyl carrier protein-like'] | N17: ['3-74'] | O17: 1 | P17: 1 | Q17: 3 | R17: 23 | S17: 0 | T17: 3 | U17: 0 | V17: 23 | W17: 0 | X17: 0 | Y17: No Info Available | Z17: No Info Available | AA17: 12.82 | AB17: 43.18424023 | AC17: 1 | AD17: 0 | AE17: 0 | AF17: 0 | AN17: 2 subunits | AO17: =AO10/(AO10+AP10+AQ10+AR10) -> 0.5989010989 | AP17: =AP10/(AO10+AP10+AQ10+AR10) -> 0.03846153846 | AQ17: =AQ10/(AO10+AP10+AQ10+AR10) -> 0.06593406593 | AR17: =AR10/(AO10+AP10+AQ10+AR10) -> 0.2967032967
A18: P37623 | B18: acpT | C18: ['cytosol'] | D18: Monomer | E18: None | F18: N | G18: 474 | H18: 21.768 | I18: 0.017133495 | J18: 1 | K18: 1 | L18: 5.492 | M18: ["4'-phosphopantetheinyl transferase", "4'-phosphopantetheinyl transferase"] | N18: ['87-180', '29-79'] | O18: 2 | P18: 1 | Q18: 0 | R18: 1 | S18: 0 | T18: 0 | U18: 0 | V18: 1 | W18: 0 | X18: 0 | Y18: No Info Available | Z18: No Info Available | AA18: 7.38 | AB18: No Info Available | AC18: 0 | AD18: 0 | AE18: 0 | AF18: 0 | AN18: 3 subunits | AO18: 0.5833333333 | AP18: 0.04166666667 | AQ18: 0.04166666667 | AR18: 0.3333333333
A19: P0AE06 | B19: acrA | C19: ['inner membrane', 'periplasmic space'] | D19: ['TolC.3.', 'AcrD.3', 'AcrA.6'] | E19: None | F19: N | G19: 3861 | H19: 42.197 | I19: 0.270539366 | J19: 12 | K19: 3 | L19: 7.983 | M19: ['HlyD-like secretion proteins'] | N19: ['52-300'] | O19: 1 | P19: 1 | Q19: 0 | R19: 2 | S19: 0 | T19: 0 | U19: 0 | V19: 4 | W19: 0 | X19: 0 | Y19: No Info Available | Z19: No Info Available | AA19: No Info Available | AB19: 45.73072698 | AC19: 0 | AD19: 0 | AE19: 1 | AF19: 0 | AN19: 4 subunits | AO19: 0.6022727273 | AP19: 0.05681818182 | AQ19: 0.1477272727 | AR19: 0.1931818182
A20: P24177 | B20: acrD | C20: ['periplasmic space', 'inner membrane'] | D20: ['TolC.3.', 'AcrD.3', 'AcrA.6'] | E20: None | F20: N | G20: 56 | H20: 113.05 | I20: 0.010512541 | J20: 12 | K20: 3 | L20: 5.587 | M20: ['Multidrug efflux transporter AcrB transmembrane domain', 'Multidrug efflux transporter AcrB transmembrane domain', 'Ferredoxin-like', 'Ferredoxin-like', 'Ferredoxin-like', 'Multidrug efflux transporter AcrB TolC docking domain; DN and DC subdomains', 'Multidrug efflux transporter AcrB TolC docking domain; DN and DC subdomains'] | N20: ['296-497', '807-1030', '566-672', '39-132', '138-182+274-330', '723-809', '182-272'] | O20: 7 | P20: 3 | Q20: 0 | R20: 1 | S20: 0 | T20: 0 | U20: 0 | V20: 1 | W20: 0 | X20: 0 | Y20: No Info Available | Z20: No Info Available | AA20: No Info Available | AB20: No Info Available | AC20: 0 | AD20: 0 | AE20: 0 | AF20: 0 | AN20: 5 subunits | AO20: 0.5757575758 | AP20: 0.1818181818 | AQ20: 0.0303030303 | AR20: 0.2121212121
A21: P0ACS9 | B21: acrR | C21: ['cytosol'] | D21: Monomer | E21: None | F21: N | G21: 240 | H21: 24.767 | I21: 0.009870377 | J21: 1 | K21: 1 | L21: 5.633 | M21: ['DNA/RNA-binding 3-helical bundle', 'Tetracyclin repressor-like, C-terminal domain'] | N21: ['11-63', '84-200'] | O21: 2 | P21: 2 | Q21: 0 | R21: 1 | S21: 0 | T21: 0 | U21: 0 | V21: 0 | W21: 0 | X21: 0 | Y21: No Info Available | Z21: No Info Available | AA21: No Info Available | AB21: No Info Available | AC21: 0 | AD21: 0 | AE21: 0 | AF21: 0 | AN21: 6 subunits | AO21: 0.5666666667 | AP21: 0.03333333333 | AQ21: 0.1333333333 | AR21: 0.2666666667
A22: P27550 | B22: acs | C22: ['cytosol'] | D22: Monomer | E22: ['Mg2+'] | F22: N | G22: 150 | H22: 72.094 | I22: 0.017957235 | J22: 1 | K22: 1 | L22: 5.513 | M22: ['Acetyl-CoA synthetase-like'] | N22: ['11-643'] | O22: 1 | P22: 1 | Q22: 0 | R22: 5 | S22: 0 | T22: 0 | U22: 0 | V22: 15 | W22: 1 | X22: 1 | Y22: No Info Available | Z22: No Info Available | AA22: No Info Available | AB22: 48.47614913 | AC22: 0 | AD22: 0 | AE22: 1 | AF22: 0 | AN22: >6 subunits | AO22: 0.5212765957 | AP22: 0.1276595745 | AQ22: 0.1914893617 | AR22: 0.1595744681
A23: P26646 | B23: acuI | C23: ['cytosol'] | D23: ['YhdH.2'] | E23: None | F23: N | G23: 756 | H23: 34.724 | I23: 0.043591382 | J23: 2 | K23: 1 | L23: ? | M23: ['GroES-like', 'NAD(P)-binding Rossmann-fold domains'] | N23: ['1-144', '116-284'] | O23: 2 | P23: 2 | Q23: 0 | R23: 2 | S23: 0 | T23: 0 | U23: 0 | V23: 3 | W23: 1 | X23: 1 | Y23: No Info Available | Z23: No Info Available | AA23: No Info Available | AB23: 47.00948137 | AC23: 0 | AD23: 0 | AE23: 1 | AF23: 0
A24: P06134 | B24: ada | C24: ['cytosol'] | D24: Monomer | E24: None | F24: N | G24: 21 | H24: 39.324 | I24: 0.00137128 | J24: 1 | K24: 1 | L24: 8.549 | M24: ['Ada DNA repair protein, N-terminal domain (N-Ada 10)', 'DNA/RNA-binding 3-helical bundle', 'Ribonuclease H-like motif', 'DNA/RNA-binding 3-helical bundle'] | N24: ['2-92', '268-348', '187-267', '85-133'] | O24: 4 | P24: 3 | Q24: 0 | R24: 1 | S24: 0 | T24: 0 | U24: 0 | V24: 0 | W24: 0 | X24: 0 | Y24: No Info Available | Z24: No Info Available | AA24: No Info Available | AB24: No Info Available | AC24: 0 | AD24: 0 | AE24: 0 | AF24: 0 | AM24: Total | AN24: Composition by Unique Subunits
A25: P22333 | B25: add | C25: ['cytosol'] | D25: Monomer | E25: None | F25: N | G25: 724 | H25: 36.397 | I25: 0.043757575 | J25: 1 | K25: 1 | L25: 5.351 | M25: ['TIM beta/alpha-barrel'] | N25: ['5-326'] | O25: 1 | P25: 1 | Q25: 0 | R25: 4 | S25: 1 | T25: 1 | U25: 0 | V25: 7 | W25: 0 | X25: 0 | Y25: III | Z25: IV | AA25: No Info Available | AB25: No Info Available | AC25: 0 | AD25: 0 | AE25: 1 | AF25: 0 | AN25: 1 US | AO25: =COUNTIFS(AE:AE,"1",$K:$K,"=1") -> 414 | AP25: =COUNTIFS(AC:AC,"1",$K:$K,"=1") -> 39 | AQ25: =COUNTIFS(AD:AD,"1",$K:$K,"=1") -> 43 | AR25: =COUNTIFS(AF:AF,"1",$K:$K,"=1") -> 121 | AT25: =SUM(AO25:AR25)*AO$6 -> 403.8404523 | AU25: =SUM(AO25:AR25)*AP$6 -> 43.40703518 | AV25: =SUM(AO25:AR25)*AQ$6 -> 53.48366834 | AW25: =SUM(AO25:AR25)*AR$6 -> 116.2688442 | AY25: =_xlfn.CHISQ.TEST(AO25:AR25,AT25:AW25) -> 0.3993182841
A26: P31441 | B26: ade | C26: ['cytosol'] | D26: ['PurE.8'] | E26: None | F26: N | G26: 1068 | H26: 17.78 | I26: 0.031532042 | J26: 8 | K26: 1 | L26: 6.223 | M26: ['Flavodoxin-like'] | N26: ['9-162'] | O26: 1 | P26: 1 | Q26: 0 | R26: 1 | S26: 0 | T26: 0 | U26: 0 | V26: 0 | W26: 0 | X26: 0 | Y26: No Info Available | Z26: No Info Available | AA26: No Info Available | AB26: No Info Available | AC26: 0 | AD26: 0 | AE26: 0 | AF26: 0 | AN26: 2 US | AO26: =COUNTIFS(AE:AE,"1",$K:$K,"=2") -> 34 | AP26: =COUNTIFS(AC:AC,"1",$K:$K,"=2") -> 3 | AQ26: =COUNTIFS(AD:AD,"1",$K:$K,"=2") -> 10 | AR26: =COUNTIFS(AF:AF,"1",$K:$K,"=2") -> 11 | AT26: =SUM(AO26:AR26)*AO$6 -> 37.96231156 | AU26: =SUM(AO26:AR26)*AP$6 -> 4.08040201 | AV26: =SUM(AO26:AR26)*AQ$6 -> 5.027638191 | AW26: =SUM(AO26:AR26)*AR$6 -> 10.92964824 | AY26: =_xlfn.CHISQ.TEST(AO26:AR26,AT26:AW26) -> 0.1317614134
A27: P0A9Q7 | B27: adhE | C27: ['cytosol'] | D27: ['AdhE.40'] | E27: ['Fe2+'] | F27: N | G27: 3485 | H27: 96.127 | I27: 0.556284888 | J27: 40 | K27: 1 | L27: 6.462 | M27: ['Dehydroquinate synthase-like', 'ALDH-like'] | N27: ['449-867', '6-453'] | O27: 2 | P27: 2 | Q27: 0 | R27: 11 | S27: 0 | T27: 0 | U27: 0 | V27: 16 | W27: 0 | X27: 0 | Y27: II | Z27: No Info Available | AA27: 5.3 | AB27: 65.49693936 | AC27: 0 | AD27: 0 | AE27: 1 | AF27: 0 | AN27: 3 US | AO27: =COUNTIFS(AE:AE,"1",$K:$K,"=3") -> 25 | AP27: =COUNTIFS(AC:AC,"1",$K:$K,"=3") -> 2 | AQ27: =COUNTIFS(AD:AD,"1",$K:$K,"=3") -> 0 | AR27: =COUNTIFS(AF:AF,"1",$K:$K,"=3") -> 7 | AT27: 22.25376884 | AU27: 2.391959799 | AV27: 2.947236181 | AW27: 6.407035176 | AY27: 0.333261397
A28: P39451 | B28: adhP | C28: ['cytosol'] | D28: ['AdhP.4'] | E28: None | F28: N | G28: 20 | H28: 35.38 | I28: 0.001174997 | J28: 4 | K28: 1 | L28: 6.054 | M28: ['GroES-like', 'NAD(P)-binding Rossmann-fold domains'] | N28: ['1-169', '135-302'] | O28: 2 | P28: 2 | Q28: 0 | R28: 1 | S28: 0 | T28: 0 | U28: 0 | V28: 0 | W28: 0 | X28: 0 | Y28: No Info Available | Z28: No Info Available | AA28: No Info Available | AB28: No Info Available | AC28: 0 | AD28: 0 | AE28: 0 | AF28: 0 | AN28: 4 US | AO28: =COUNTIFS(AE:AE,"1",$K:$K,"=4") -> 13 | AP28: =COUNTIFS(AC:AC,"1",$K:$K,"=4") -> 1 | AQ28: =COUNTIFS(AD:AD,"1",$K:$K,"=4") -> 2 | AR28: =COUNTIFS(AF:AF,"1",$K:$K,"=4") -> 3 | AT28: 12.43592965 | AU28: 1.336683417 | AV28: 1.646984925 | AW28: 3.58040201 | AY28: 0.9637192065
A29: P28629 | B29: adiA | C29: ['cytosol'] | D29: ['AdiA.10'] | E29: ["pyridoxal 5'-phosphate"] | F29: N | G29: ? | H29: 84.425 | I29: ? | J29: 10 | K29: 1 | L29: 5.031 | M29: ['PLP-dependent transferase-like', 'Ornithine decarboxylase C-terminal domain'] | N29: ['140-607', '610-754'] | O29: 2 | P29: 2 | Q29: 0 | R29: 1 | S29: 0 | T29: 0 | U29: 0 | V29: 5 | W29: 0 | X29: 0 | Y29: No Info Available | Z29: No Info Available | AA29: No Info Available | AB29: No Info Available | AC29: 0 | AD29: 0 | AE29: 0 | AF29: 0 | AN29: 5 US | AO29: =COUNTIFS(AE:AE,"1",$K:$K,"=5") -> 8 | AP29: =COUNTIFS(AC:AC,"1",$K:$K,"=5") -> 3 | AQ29: =COUNTIFS(AD:AD,"1",$K:$K,"=5") -> 3 | AR29: =COUNTIFS(AF:AF,"1",$K:$K,"=5") -> 3 | AT29: 11.12688442 | AU29: 1.195979899 | AV29: 1.47361809 | AW29: 3.203517588 | AY29: 0.1581389274
A30: P69441 | B30: adk | C30: ['cytosol'] | D30: Monomer | E30: ['Mg2+'] | F30: Y | G30: 20646 | H30: 23.586 | I30: 0.808610372 | J30: 1 | K30: 1 | L30: 5.494 | M30: ['P-loop containing nucleoside triphosphate hydrolases'] | N30: ['1-213'] | O30: 1 | P30: 1 | Q30: 4 | R30: 23 | S30: 0 | T30: 4 | U30: 2 | V30: 21 | W30: 0 | X30: 2 | Y30: No Info Available | Z30: No Info Available | AA30: 7.8 | AB30: 42.55206883 | AC30: 0 | AD30: 0 | AE30: 0 | AF30: 1 | AN30: 6 US | AO30: =COUNTIFS(AE:AE,"1",$K:$K,"=6") -> 5 | AP30: =COUNTIFS(AC:AC,"1",$K:$K,"=6") -> 0 | AQ30: =COUNTIFS(AD:AD,"1",$K:$K,"=6") -> 0 | AR30: =COUNTIFS(AF:AF,"1",$K:$K,"=6") -> 1 | AT30: 3.927135678 | AU30: 0.4221105528 | AV30: 0.5201005025 | AW30: 1.130653266 | AY30: 0.740941642
A31: P42906 | B31: agaA | C31: Unknown | D31: Monomer | E31: None | F31: N | G31: ? | H31: ? | I31: ? | J31: 1 | K31: 1 | L31: 6.691 | M31: Unknown | O31: 0 | P31: 0 | Q31: 0 | R31: 1 | S31: 0 | T31: 0 | U31: 0 | V31: 0 | W31: 0 | X31: 0 | Y31: No Info Available | Z31: No Info Available | AA31: No Info Available | AB31: No Info Available | AC31: 0 | AD31: 0 | AE31: 0 | AF31: 0 | AN31: >6 US | AO31: =COUNTIFS(AE:AE,"1",$K:$K,">6") -> 22 | AP31: =COUNTIFS(AC:AC,"1",$K:$K,">6") -> 8 | AQ31: =COUNTIFS(AD:AD,"1",$K:$K,">6") -> 11 | AR31: =COUNTIFS(AF:AF,"1",$K:$K,">6") -> 4 | AT31: 29.45351759 | AU31: 3.165829146 | AV31: 3.900753769 | AW31: 8.479899497 | AY31: 1.91281386e-05
A32: P0ACK2 | B32: agaR | C32: ['cytosol'] | D32: Monomer | E32: None | F32: N | G32: 629 | H32: 29.572 | I32: 0.030887335 | J32: 1 | K32: 1 | L32: 5.275 | M32: ['NagB/RpiA/CoA transferase-like', 'DNA/RNA-binding 3-helical bundle'] | N32: ['89-249', '16-71'] | O32: 2 | P32: 2 | Q32: 0 | R32: 1 | S32: 0 | T32: 0 | U32: 0 | V32: 1 | W32: 0 | X32: 0 | Y32: No Info Available | Z32: No Info Available | AA32: 5.97 | AB32: 61.65016556 | AC32: 0 | AD32: 0 | AE32: 0 | AF32: 0 | AM32: Percent | AN32: 1 US | AO32: =AO25/(AO25+AP25+AQ25+AR25) -> 0.6709886548 | AP32: =AP25/(AO25+AP25+AQ25+AR25) -> 0.06320907618 | AQ32: =AQ25/(AO25+AP25+AQ25+AR25) -> 0.06969205835 | AR32: =AR25/(AO25+AP25+AQ25+AR25) -> 0.1961102107
A33: P19926 | B33: agp | C33: ['periplasmic space'] | D33: ['Agp.2'] | E33: None | F33: N | G33: 86 | H33: 45.683 | I33: 0.006523823 | J33: 2 | K33: 1 | L33: 5.449 | M33: ['Phosphoglycerate mutase-like'] | N33: ['24-411'] | O33: 1 | P33: 1 | Q33: 0 | R33: 0 | S33: 0 | T33: 0 | U33: 0 | V33: 2 | W33: 0 | X33: 0 | Y33: No Info Available | Z33: No Info Available | AA33: No Info Available | AB33: 58.40204835 | AC33: 0 | AD33: 0 | AE33: 0 | AF33: 0 | AN33: 2 US | AO33: =AO26/(AO26+AP26+AQ26+AR26) -> 0.5862068966 | AP33: =AP26/(AO26+AP26+AQ26+AR26) -> 0.05172413793 | AQ33: =AQ26/(AO26+AP26+AQ26+AR26) -> 0.1724137931 | AR33: =AR26/(AO26+AP26+AQ26+AR26) -> 0.1896551724
A34: P0AE08 | B34: ahpC | C34: ['cytosol'] | D34: ['AhpC.10', 'AhpF.2'] | E34: ['FAD'] | F34: N | G34: 92449 | H34: 20.761 | I34: 3.187128522 | J34: 12 | K34: 2 | L34: 4.909 | M34: ['Thioredoxin fold'] | N34: ['4-180'] | O34: 1 | P34: 1 | Q34: 10 | R34: 58 | S34: 2 | T34: 12 | U34: 8 | V34: 58 | W34: 7 | X34: 15 | Y34: No Info Available | Z34: No Info Available | AA34: 7.64 | AB34: 62.76054247 | AC34: 0 | AD34: 0 | AE34: 0 | AF34: 1 | AN34: 3 US | AO34: 0.7352941176 | AP34: 0.05882352941 | AQ34: 0 | AR34: 0.2058823529
A35: P35340 | B35: ahpF | C35: ['cytosol'] | D35: ['AhpC.10', 'AhpF.2'] | E35: ['FAD'] | F35: N | G35: 5698 | H35: 56.177 | I35: 0.531532811 | J35: 12 | K35: 2 | L35: 5.422 | M35: ['FAD/NAD(P)-binding domain', 'Thioredoxin fold', 'Thioredoxin fold'] | N35: ['207-514', '1-101', '106-197'] | O35: 3 | P35: 2 | Q35: 1 | R35: 47 | S35: 0 | T35: 1 | U35: 7 | V35: 43 | W35: 1 | X35: 8 | Y35: No Info Available | Z35: No Info Available | AA35: 10.27 | AB35: 60.41023258 | AC35: 0 | AD35: 1 | AE35: 0 | AF35: 0 | AN35: 4 US | AO35: 0.6842105263 | AP35: 0.05263157895 | AQ35: 0.1052631579 | AR35: 0.1578947368
A36: P33224 | B36: aidB | C36: ['cytosol'] | D36: ['AidB.4'] | E36: None | F36: N | G36: 19 | H36: 60.59 | I36: 0.001911629 | J36: 4 | K36: 1 | L36: 7.636 | M36: ['Bromodomain-like', 'Acyl-CoA dehydrogenase NM domain-like', ''] | N36: ['291-442', '60-282', '278-516'] | O36: 3 | P36: 3 | Q36: 0 | R36: 1 | S36: 0 | T36: 0 | U36: 0 | V36: 0 | W36: 0 | X36: 0 | Y36: No Info Available | Z36: No Info Available | AA36: No Info Available | AB36: 47.07658702 | AC36: 0 | AD36: 0 | AE36: 0 | AF36: 0 | AN36: 5 US | AO36: 0.4705882353 | AP36: 0.1764705882 | AQ36: 0.1764705882 | AR36: 0.1764705882
A37: P45565 | B37: ais | C37: ['periplasmic space'] | D37: Monomer | E37: None | F37: N | G37: 112 | H37: 22.257 | I37: 0.004139365 | J37: 1 | K37: 1 | L37: 9.171 | M37: ['Phosphoglycerate mutase-like'] | N37: ['56-180'] | O37: 1 | P37: 1 | Q37: 1 | R37: 10 | S37: 0 | T37: 1 | U37: 1 | V37: 8 | W37: 0 | X37: 1 | Y37: No Info Available | Z37: No Info Available | AA37: No Info Available | AB37: No Info Available | AC37: 0 | AD37: 0 | AE37: 1 | AF37: 0 | AN37: 6 US | AO37: 0.8333333333 | AP37: 0 | AQ37: 0 | AR37: 0.1666666667
A38: P0A959 | B38: alaA | C38: ['cytosol'] | D38: ['AlaA.2'] | E38: None | F38: N | G38: 2267 | H38: 45.517 | I38: 0.171346107 | J38: 2 | K38: 1 | L38: 5.951 | M38: ['PLP-dependent transferase-like'] | N38: ['7-401'] | O38: 1 | P38: 1 | Q38: 1 | R38: 11 | S38: 0 | T38: 1 | U38: 1 | V38: 18 | W38: 1 | X38: 2 | Y38: III | Z38: IV | AA38: No Info Available | AB38: No Info Available | AC38: 0 | AD38: 0 | AE38: 0 | AF38: 0 | AN38: >6 US | AO38: 0.4888888889 | AP38: 0.1777777778 | AQ38: 0.2444444444 | AR38: 0.08888888889
A39: P77434 | B39: alaC | C39: ['cytosol'] | D39: ['AlaC.2'] | E39: None | F39: N | G39: 1203 | H39: 46.216 | I39: 0.092322397 | J39: 2 | K39: 1 | L39: 7.691 | M39: ['PLP-dependent transferase-like'] | N39: ['10-394'] | O39: 1 | P39: 1 | Q39: 0 | R39: 1 | S39: 0 | T39: 0 | U39: 0 | V39: 1 | W39: 0 | X39: 0 | Y39: No Info Available | Z39: No Info Available | AA39: No Info Available | AB39: No Info Available | AC39: 0 | AD39: 0 | AE39: 0 | AF39: 0
A40: P64550 | B40: alaE | C40: ['inner membrane'] | D40: Monomer | E40: None | F40: N | G40: 80 | H40: 16.949 | I40: 0.002251558 | J40: 1 | K40: 1 | L40: 9.411 | M40: Unknown | O40: 0 | P40: 0 | Q40: 0 | R40: 0 | S40: 0 | T40: 0 | U40: 0 | V40: 1 | W40: 0 | X40: 0 | Y40: No Info Available | Z40: No Info Available | AA40: No Info Available | AB40: No Info Available | AC40: 0 | AD40: 0 | AE40: 0 | AF40: 0 | AM40: Total | AN40: Domains
A41: P00957 | B41: alaS | C41: ['cytosol'] | D41: Monomer | E41: ['Zn2+'] | F41: Y | G41: 8493 | H41: 96.032 | I41: 1.354335269 | J41: 1 | K41: 1 | L41: 5.529 | M41: ['Class II aaRS and biotin synthetases', 'Putative anticodon-binding domain of alanyl-tRNA synthetase (AlaRS)', 'RRF/tRNA synthetase additional domain-like', 'Reductase/isomerase/elongation factor common domain'] | N41: ['4-255', '256-465', '552-708', '455-551'] | O41: 4 | P41: 4 | Q41: 9 | R41: 61 | S41: 0 | T41: 9 | U41: 7 | V41: 56 | W41: 1 | X41: 8 | Y41: No Info Available | Z41: No Info Available | AA41: 2.51 | AB41: 56.82230124 | AC41: 0 | AD41: 0 | AE41: 0 | AF41: 1 | AN41: 0 domains | AO41: =COUNTIFS(AE:AE,"1",$O:$O,"=0") -> 47 | AP41: =COUNTIFS(AC:AC,"1",$O:$O,"=0") -> 2 | AQ41: =COUNTIFS(AD:AD,"1",$O:$O,"=0") -> 2 | AR41: =COUNTIFS(AF:AF,"1",$O:$O,"=0") -> 1 | AT41: =SUM(AO41:AR41)*AO$6 -> 34.03517588 | AU41: =SUM(AO41:AR41)*AP$6 -> 3.658291457 | AV41: =SUM(AO41:AR41)*AQ$6 -> 4.507537688 | AW41: =SUM(AO41:AR41)*AR$6 -> 9.798994975 | AY41: =_xlfn.CHISQ.TEST(AO41:AR41,AT41:AW41) -> 0.001828393671
A42: P25553 | B42: aldA | C42: ['cytosol'] | D42: ['AldA.4'] | E42: None | F42: N | G42: 555 | H42: 52.273 | I42: 0.048174753 | J42: 4 | K42: 1 | L42: 4.94 | M42: ['ALDH-like'] | N42: ['7-476'] | O42: 1 | P42: 1 | Q42: 0 | R42: 7 | S42: 0 | T42: 0 | U42: 0 | V42: 25 | W42: 0 | X42: 0 | Y42: No Info Available | Z42: No Info Available | AA42: No Info Available | AB42: 60.58434167 | AC42: 0 | AD42: 0 | AE42: 1 | AF42: 0 | AN42: 1 domain | AO42: =COUNTIFS(AE:AE,"1",$O:$O,"=1") -> 296 | AP42: =COUNTIFS(AC:AC,"1",$O:$O,"=1") -> 35 | AQ42: =COUNTIFS(AD:AD,"1",$O:$O,"=1") -> 47 | AR42: =COUNTIFS(AF:AF,"1",$O:$O,"=1") -> 79 | AT42: =SUM(AO42:AR42)*AO$6 -> 299.1168342 | AU42: =SUM(AO42:AR42)*AP$6 -> 32.15075377 | AV42: =SUM(AO42:AR42)*AQ$6 -> 39.61432161 | AW42: =SUM(AO42:AR42)*AR$6 -> 86.11809045 | AY42: =_xlfn.CHISQ.TEST(AO42:AR42,AT42:AW42) -> 0.5221068114
A43: P37685 | B43: aldB | C43: ['cytosol'] | D43: ['AldB.4'] | E43: ['Mg2+'] | F43: N | G43: ? | H43: 56.306 | I43: ? | J43: 4 | K43: 1 | L43: 5.393 | M43: ['ALDH-like'] | N43: ['21-505'] | O43: 1 | P43: 1 | Q43: 1 | R43: 2 | S43: 0 | T43: 1 | U43: 0 | V43: 1 | W43: 0 | X43: 0 | Y43: III | Z43: IV | AA43: No Info Available | AB43: No Info Available | AC43: 0 | AD43: 0 | AE43: 0 | AF43: 0 | AN43: 2 domains | AO43: =COUNTIFS(AE:AE,"1",$O:$O,"=2") -> 126 | AP43: =COUNTIFS(AC:AC,"1",$O:$O,"=2") -> 11 | AQ43: =COUNTIFS(AD:AD,"1",$O:$O,"=2") -> 13 | AR43: =COUNTIFS(AF:AF,"1",$O:$O,"=2") -> 32 | AT43: 119.1231156 | AU43: 12.8040201 | AV43: 15.77638191 | AW43: 34.29648241 | AY43: 0.7306668584
A44: P77671 | B44: allB | C44: ['cytosol'] | D44: ['AllB.4'] | E44: ['Zn2+', 'Co2+'] | F44: N | G44: ? | H44: 49.602 | I44: ? | J44: 4 | K44: 1 | L44: 5.128 | M44: ['TIM beta/alpha-barrel', 'Composite domain of metallo-dependent hydrolases'] | N44: ['54-379', '3-53+378-448'] | O44: 2 | P44: 2 | Q44: 0 | R44: 0 | S44: 0 | T44: 0 | U44: 0 | V44: 1 | W44: 0 | X44: 0 | Y44: No Info Available | Z44: No Info Available | AA44: No Info Available | AB44: No Info Available | AC44: 0 | AD44: 0 | AE44: 0 | AF44: 0 | AN44: 3 domains | AO44: =COUNTIFS(AE:AE,"1",$O:$O,"=3") -> 37 | AP44: =COUNTIFS(AC:AC,"1",$O:$O,"=3") -> 6 | AQ44: =COUNTIFS(AD:AD,"1",$O:$O,"=3") -> 5 | AR44: =COUNTIFS(AF:AF,"1",$O:$O,"=3") -> 21 | AT44: 45.1620603 | AU44: 4.854271357 | AV44: 5.981155779 | AW44: 13.00251256 | AY44: 0.07767195871
A45: P0ACN4 | B45: allR | C45: ['cytosol'] | D45: Monomer | E45: None | F45: N | G45: 1771 | H45: 29.27 | I45: 0.086077645 | J45: 1 | K45: 1 | L45: 5.847 | M45: ['Profilin-like', 'DNA/RNA-binding 3-helical bundle'] | N45: ['86-266', '22-94'] | O45: 2 | P45: 2 | Q45: 0 | R45: 2 | S45: 0 | T45: 0 | U45: 0 | V45: 2 | W45: 0 | X45: 0 | Y45: No Info Available | Z45: No Info Available | AA45: No Info Available | AB45: No Info Available | AC45: 0 | AD45: 0 | AE45: 1 | AF45: 0 | AN45: 4 domains | AO45: =COUNTIFS(AE:AE,"1",$O:$O,"=4") -> 7 | AP45: =COUNTIFS(AC:AC,"1",$O:$O,"=4") -> 1 | AQ45: =COUNTIFS(AD:AD,"1",$O:$O,"=4") -> 0 | AR45: =COUNTIFS(AF:AF,"1",$O:$O,"=4") -> 10 | AT45: 11.78140704 | AU45: 1.266331658 | AV45: 1.560301508 | AW45: 3.391959799 | AY45: 0.0009254098676
A46: P0A6B4 | B46: alr | C46: ['cytosol'] | D46: ['Alr.2'] | E46: ["pyridoxal 5'-phosphate"] | F46: N | G46: 586 | H46: 39.153 | I46: 0.03809884 | J46: 2 | K46: 1 | L46: 6.711 | M46: ['TIM beta/alpha-barrel', 'Domain of alpha and beta subunits of F1 ATP synthase-like'] | N46: ['8-235', '228-358'] | O46: 2 | P46: 2 | Q46: 1 | R46: 6 | S46: 0 | T46: 1 | U46: 0 | V46: 9 | W46: 0 | X46: 0 | Y46: No Info Available | Z46: No Info Available | AA46: No Info Available | AB46: No Info Available | AC46: 0 | AD46: 0 | AE46: 1 | AF46: 0 | AN46: 5 domains | AO46: =COUNTIFS(AE:AE,"1",$O:$O,"=5") -> 6 | AP46: =COUNTIFS(AC:AC,"1",$O:$O,"=5") -> 0 | AQ46: =COUNTIFS(AD:AD,"1",$O:$O,"=5") -> 0 | AR46: =COUNTIFS(AF:AF,"1",$O:$O,"=5") -> 2 | AT46: 5.236180905 | AU46: 0.5628140704 | AV46: 0.6934673367 | AW46: 1.507537688 | AY46: 0.675691512
A47: P32721 | B47: alsA | C47: ['inner membrane', 'cytosol'] | D47: ['AlsA.', 'AlsC.2', 'AlsB.'] | E47: None | F47: N | G47: ? | H47: 56.745 | I47: ? | J47: 4 | K47: 3 | L47: 7.123 | M47: ['P-loop containing nucleoside triphosphate hydrolases', 'P-loop containing nucleoside triphosphate hydrolases'] | N47: ['4-235', '259-504'] | O47: 2 | P47: 1 | Q47: 0 | R47: 1 | S47: 0 | T47: 0 | U47: 0 | V47: 0 | W47: 0 | X47: 0 | Y47: No Info Available | Z47: No Info Available | AA47: No Info Available | AB47: No Info Available | AC47: 0 | AD47: 0 | AE47: 0 | AF47: 0 | AN47: >5 domains | AO47: =COUNTIFS(AE:AE,"1",$O:$O,">5") -> 2 | AP47: =COUNTIFS(AC:AC,"1",$O:$O,">5") -> 1 | AQ47: =COUNTIFS(AD:AD,"1",$O:$O,">5") -> 2 | AR47: =COUNTIFS(AF:AF,"1",$O:$O,">5") -> 5 | AT47: 6.545226131 | AU47: 0.7035175879 | AV47: 0.8668341709 | AW47: 1.884422111 | AY47: 0.01931396238
A48: P39265 | B48: alsB | C48: ['periplasmic space'] | D48: ['AlsA.', 'AlsC.2', 'AlsB.'] | E48: None | F48: N | G48: 81 | H48: 32.91 | I48: 0.004426516 | J48: 4 | K48: 3 | L48: 6.672 | M48: ['Periplasmic binding protein-like I'] | N48: ['28-310'] | O48: 1 | P48: 1 | Q48: 0 | R48: 0 | S48: 0 | T48: 0 | U48: 0 | V48: 3 | W48: 0 | X48: 0 | Y48: No Info Available | Z48: No Info Available | AA48: No Info Available | AB48: No Info Available | AC48: 0 | AD48: 0 | AE48: 0 | AF48: 0 | AM48: Percent | AN48: 0 domains | AO48: =AO41/(AO41+AP41+AQ41+AR41) -> 0.9038461538 | AP48: =AP41/(AO41+AP41+AQ41+AR41) -> 0.03846153846 | AQ48: =AQ41/(AO41+AP41+AQ41+AR41) -> 0.03846153846 | AR48: =AR41/(AO41+AP41+AQ41+AR41) -> 0.01923076923
A49: P26365 | B49: amiB | C49: ['periplasmic space'] | D49: Monomer | E49: None | F49: N | G49: 343 | H49: 47.985 | I49: 0.027330571 | J49: 1 | K49: 1 | L49: 9.475 | M49: ['Phosphorylase/hydrolase-like'] | N49: ['192-288+340-416'] | O49: 1 | P49: 1 | Q49: 0 | R49: 1 | S49: 0 | T49: 0 | U49: 1 | V49: 1 | W49: 0 | X49: 1 | Y49: No Info Available | Z49: No Info Available | AA49: No Info Available | AB49: No Info Available | AC49: 0 | AD49: 0 | AE49: 0 | AF49: 0 | AN49: 1 domain | AO49: =AO42/(AO42+AP42+AQ42+AR42) -> 0.647702407 | AP49: =AP42/(AO42+AP42+AQ42+AR42) -> 0.07658643326 | AQ49: =AQ42/(AO42+AP42+AQ42+AR42) -> 0.1028446389 | AR49: =AR42/(AO42+AP42+AQ42+AR42) -> 0.1728665208
A50: P0AD70 | B50: ampH | C50: ['periplasmic space', 'inner membrane'] | D50: Monomer | E50: None | F50: N | G50: 460 | H50: 41.849 | I50: 0.031966273 | J50: 1 | K50: 1 | L50: 9.616 | M50: ['beta-lactamase/transpeptidase-like'] | N50: ['33-361'] | O50: 1 | P50: 1 | Q50: 0 | R50: 0 | S50: 0 | T50: 0 | U50: 0 | V50: 1 | W50: 0 | X50: 0 | Y50: No Info Available | Z50: No Info Available | AA50: 2.52 | AB50: No Info Available | AC50: 0 | AD50: 0 | AE50: 0 | AF50: 0 | AN50: 2 domains | AO50: 0.6923076923 | AP50: 0.06043956044 | AQ50: 0.07142857143 | AR50: 0.1758241758
A51: P26612 | B51: amyA | C51: ['cytosol'] | D51: Monomer | E51: None | F51: N | G51: 16 | H51: 56.639 | I51: 0.00150482 | J51: 1 | K51: 1 | L51: 4.355 | M51: ['TIM beta/alpha-barrel', 'Glycosyl hydrolase domain'] | N51: ['7-404', '405-491'] | O51: 2 | P51: 2 | Q51: 0 | R51: 2 | S51: 0 | T51: 0 | U51: 0 | V51: 1 | W51: 0 | X51: 0 | Y51: No Info Available | Z51: No Info Available | AA51: 7.27 | AB51: 55.2003972 | AC51: 0 | AD51: 0 | AE51: 0 | AF51: 0 | AN51: 3 domains | AO51: 0.5362318841 | AP51: 0.08695652174 | AQ51: 0.07246376812 | AR51: 0.3043478261
A52: P0A962 | B52: ansA | C52: ['cytosol'] | D52: ['AnsA.4'] | E52: None | F52: N | G52: 1699 | H52: 37.127 | I52: 0.104744765 | J52: 4 | K52: 1 | L52: 5.567 | M52: ['Glutaminase/Asparaginase'] | N52: ['3-335'] | O52: 1 | P52: 1 | Q52: 1 | R52: 3 | S52: 1 | T52: 2 | U52: 0 | V52: 4 | W52: 0 | X52: 0 | Y52: No Info Available | Z52: No Info Available | AA52: No Info Available | AB52: No Info Available | AC52: 1 | AD52: 0 | AE52: 0 | AF52: 0 | AN52: 4 domains | AO52: 0.3888888889 | AP52: 0.05555555556 | AQ52: 0 | AR52: 0.5555555556
A53: P00805 | B53: ansB | C53: ['periplasmic space'] | D53: ['AnsB.4'] | E53: None | F53: N | G53: 75 | H53: 36.851 | I53: 0.004589439 | J53: 4 | K53: 1 | L53: 6.052 | M53: ['Glutaminase/Asparaginase'] | N53: ['23-347'] | O53: 1 | P53: 1 | Q53: 0 | R53: 1 | S53: 0 | T53: 0 | U53: 0 | V53: 1 | W53: 0 | X53: 0 | Y53: No Info Available | Z53: No Info Available | AA53: No Info Available | AB53: 59.06899042 | AC53: 0 | AD53: 0 | AE53: 0 | AF53: 0 | AN53: 5 domains | AO53: 0.75 | AP53: 0 | AQ53: 0 | AR53: 0.25
A54: P62672 | B54: apaG | C54: ['periplasmic space'] | D54: Monomer | E54: None | F54: N | G54: 113 | H54: 13.867 | I54: 0.002602017 | J54: 1 | K54: 1 | L54: 4.578 | M54: ['Immunoglobulin-like beta-sandwich'] | N54: ['5-125'] | O54: 1 | P54: 1 | Q54: 0 | R54: 1 | S54: 0 | T54: 0 | U54: 0 | V54: 0 | W54: 0 | X54: 0 | Y54: No Info Available | Z54: No Info Available | AA54: 15.04 | AB54: No Info Available | AC54: 0 | AD54: 0 | AE54: 0 | AF54: 0 | AN54: >5 domains | AO54: 0.2 | AP54: 0.1 | AQ54: 0.2 | AR54: 0.5
A55: P07102 | B55: appA | C55: ['periplasmic space'] | D55: ['AppA.2'] | E55: None | F55: N | G55: 16 | H55: 47.057 | I55: 0.00125024 | J55: 2 | K55: 1 | L55: 6.39 | M55: ['Phosphoglycerate mutase-like'] | N55: ['26-429'] | O55: 1 | P55: 1 | Q55: 0 | R55: 0 | S55: 0 | T55: 0 | U55: 0 | V55: 2 | W55: 0 | X55: 0 | Y55: No Info Available | Z55: No Info Available | AA55: No Info Available | AB55: 55.57078663 | AC55: 0 | AD55: 0 | AE55: 0 | AF55: 0
A56: P69503 | B56: apt | C56: ['cytosol'] | D56: ['Apt.2'] | E56: ['Mg2+'] | F56: N | G56: 15434 | H56: 19.859 | I56: 0.508961536 | J56: 2 | K56: 1 | L56: 5.139 | M56: ['PRTase-like'] | N56: ['12-180'] | O56: 1 | P56: 1 | Q56: 1 | R56: 17 | S56: 2 | T56: 3 | U56: 2 | V56: 18 | W56: 3 | X56: 5 | Y56: No Info Available | Z56: No Info Available | AA56: No Info Available | AB56: 55.45127001 | AC56: 0 | AD56: 0 | AE56: 0 | AF56: 1 | AM56: Total | AN56: Unique Domains
A57: P08202 | B57: araA | C57: ['cytosol'] | D57: ['AraA.6'] | E57: ['Mn2+'] | F57: ? | G57: 19 | H57: 56.074 | I57: 0.001769148 | J57: 6 | K57: 1 | L57: 6.24 | M57: ['FucI/AraA N-terminal and middle domains', 'Reductase/isomerase/elongation factor common domain'] | N57: ['1-326', '329-497'] | O57: 2 | P57: 2 | Q57: 0 | R57: 1 | S57: 0 | T57: 0 | U57: 0 | V57: 0 | W57: 0 | X57: 0 | Y57: III | Z57: IV | AA57: No Info Available | AB57: No Info Available | AC57: 0 | AD57: 0 | AE57: 0 | AF57: 0 | AN57: 0 UD | AO57: =COUNTIFS(AE:AE,"1",$P:$P,"=0") -> 47 | AP57: =COUNTIFS(AC:AC,"1",$P:$P,"=0") -> 2 | AQ57: =COUNTIFS(AD:AD,"1",$P:$P,"=0") -> 2 | AR57: =COUNTIFS(AF:AF,"1",$P:$P,"=0") -> 1 | AT57: =SUM(AO57:AR57)*AO$6 -> 34.03517588 | AU57: =SUM(AO57:AR57)*AP$6 -> 3.658291457 | AV57: =SUM(AO57:AR57)*AQ$6 -> 4.507537688 | AW57: =SUM(AO57:AR57)*AR$6 -> 9.798994975 | AY57: =_xlfn.CHISQ.TEST(AO57:AR57,AT57:AW57) -> 0.001828393671
A58: P08203 | B58: araD | C58: ['cytosol'] | D58: ['AraD.4'] | E58: ['Zn2+'] | F58: ? | G58: ? | H58: 25.519 | I58: ? | J58: 4 | K58: 1 | L58: 5.862 | M58: ['AraD/HMP-PK domain-like'] | N58: ['1-223'] | O58: 1 | P58: 1 | Q58: 0 | R58: 1 | S58: 0 | T58: 0 | U58: 0 | V58: 1 | W58: 0 | X58: 0 | Y58: II | Z58: No Info Available | AA58: No Info Available | AB58: No Info Available | AC58: 0 | AD58: 0 | AE58: 0 | AF58: 0 | AN58: 1 UD | AO58: =COUNTIFS(AE:AE,"1",$P:$P,"=1") -> 317 | AP58: =COUNTIFS(AC:AC,"1",$P:$P,"=1") -> 38 | AQ58: =COUNTIFS(AD:AD,"1",$P:$P,"=1") -> 48 | AR58: =COUNTIFS(AF:AF,"1",$P:$P,"=1") -> 86 | AT58: =SUM(AO58:AR58)*AO$6 -> 320.0615578 | AU58: =SUM(AO58:AR58)*AP$6 -> 34.40201005 | AV58: =SUM(AO58:AR58)*AQ$6 -> 42.38819095 | AW58: =SUM(AO58:AR58)*AR$6 -> 92.14824121 | AY58: =_xlfn.CHISQ.TEST(AO58:AR58,AT58:AW58) -> 0.6687770542
A59: P0AAF3 | B59: araG | C59: ['inner membrane', 'cytosol'] | D59: ['AraG.2', 'AraH.2', 'AraF.'] | E59: None | F59: N | G59: ? | H59: 55.018 | I59: ? | J59: 5 | K59: 3 | L59: 6.077 | M59: ['P-loop containing nucleoside triphosphate hydrolases', 'P-loop containing nucleoside triphosphate hydrolases'] | N59: ['6-230', '274-484'] | O59: 2 | P59: 1 | Q59: 0 | R59: 1 | S59: 0 | T59: 0 | U59: 0 | V59: 0 | W59: 0 | X59: 0 | Y59: No Info Available | Z59: No Info Available | AA59: No Info Available | AB59: No Info Available | AC59: 0 | AD59: 0 | AE59: 0 | AF59: 0 | AN59: 2 UD | AO59: =COUNTIFS(AE:AE,"1",$P:$P,"=2") -> 119 | AP59: =COUNTIFS(AC:AC,"1",$P:$P,"=2") -> 10 | AQ59: =COUNTIFS(AD:AD,"1",$P:$P,"=2") -> 13 | AR59: =COUNTIFS(AF:AF,"1",$P:$P,"=2") -> 32 | AT59: 113.8869347 | AU59: 12.24120603 | AV59: 15.08291457 | AW59: 32.78894472 | AY59: 0.8141892861
A60: P0A9Q1 | B60: arcA | C60: ['cytosol'] | D60: Monomer | E60: None | F60: N | G60: 8000 | H60: 27.292 | I60: 0.362555452 | J60: 1 | K60: 1 | L60: 5.088 | M60: ['Flavodoxin-like', 'DNA/RNA-binding 3-helical bundle'] | N60: ['2-126', '136-234'] | O60: 2 | P60: 2 | Q60: 0 | R60: 10 | S60: 0 | T60: 0 | U60: 0 | V60: 9 | W60: 0 | X60: 0 | Y60: No Info Available | Z60: No Info Available | AA60: 6.99 | AB60: 58.26194072 | AC60: 0 | AD60: 0 | AE60: 1 | AF60: 0 | AN60: 3 UD | AO60: =COUNTIFS(AE:AE,"1",$P:$P,"=3") -> 29 | AP60: =COUNTIFS(AC:AC,"1",$P:$P,"=3") -> 5 | AQ60: =COUNTIFS(AD:AD,"1",$P:$P,"=3") -> 4 | AR60: =COUNTIFS(AF:AF,"1",$P:$P,"=3") -> 21 | AT60: 38.61683417 | AU60: 4.150753769 | AV60: 5.114321608 | AW60: 11.11809045 | AY60: 0.008909032062
A61: P37306 | B61: arcC | C61: ['cytosol'] | D61: Monomer | E61: None | F61: N | G61: ? | H61: 31.644 | I61: ? | J61: 1 | K61: 1 | L61: ? | M61: ['Carbamate kinase-like'] | N61: ['1-295'] | O61: 1 | P61: 1 | Q61: 0 | R61: 2 | S61: 1 | T61: 1 | U61: 0 | V61: 2 | W61: 0 | X61: 0 | Y61: No Info Available | Z61: No Info Available | AA61: No Info Available | AB61: No Info Available | AC61: 0 | AD61: 0 | AE61: 1 | AF61: 0 | AN61: 4 UD | AO61: =COUNTIFS(AE:AE,"1",$P:$P,"=4") -> 8 | AP61: =COUNTIFS(AC:AC,"1",$P:$P,"=4") -> 0 | AQ61: =COUNTIFS(AD:AD,"1",$P:$P,"=4") -> 1 | AR61: =COUNTIFS(AF:AF,"1",$P:$P,"=4") -> 8 | AT61: 11.12688442 | AU61: 1.195979899 | AV61: 1.47361809 | AW61: 3.203517588 | AY61: 0.02432522466
A62: P0A6C5 | B62: argA | C62: ['cytosol'] | D62: ['ArgA.6'] | E62: None | F62: N | G62: 28 | H62: 49.195 | I62: 0.002287326 | J62: 6 | K62: 1 | L62: 6.226 | M62: ['Carbamate kinase-like', 'Acyl-CoA N-acyltransferases (Nat)'] | N62: ['5-291', '256-418'] | O62: 2 | P62: 2 | Q62: 0 | R62: 1 | S62: 0 | T62: 0 | U62: 0 | V62: 1 | W62: 0 | X62: 0 | Y62: No Info Available | Z62: No Info Available | AA62: No Info Available | AB62: No Info Available | AC62: 0 | AD62: 0 | AE62: 0 | AF62: 0 | AN62: 5 UD | AO62: =COUNTIFS(AE:AE,"1",$P:$P,"=5") -> 1 | AP62: =COUNTIFS(AC:AC,"1",$P:$P,"=5") -> 1 | AQ62: =COUNTIFS(AD:AD,"1",$P:$P,"=5") -> 1 | AR62: =COUNTIFS(AF:AF,"1",$P:$P,"=5") -> 2 | AT62: 3.272613065 | AU62: 0.351758794 | AV62: 0.4334170854 | AW62: 0.9422110553 | AY62: 0.1950468518
A63: P0A6C8 | B63: argB | C63: ['cytosol'] | D63: ['ArgB.2'] | E63: ['Mg2+'] | F63: N | G63: 125 | H63: 27.159 | I63: 0.005637322 | J63: 2 | K63: 1 | L63: 5.339 | M63: ['Carbamate kinase-like'] | N63: ['6-256'] | O63: 1 | P63: 1 | Q63: 0 | R63: 0 | S63: 0 | T63: 0 | U63: 0 | V63: 2 | W63: 0 | X63: 0 | Y63: No Info Available | Z63: No Info Available | AA63: 4.85 | AB63: No Info Available | AC63: 0 | AD63: 0 | AE63: 0 | AF63: 0 | AM63: Percent | AN63: 0 UD | AO63: =AO57/(AO57+AP57+AQ57+AR57) -> 0.9038461538 | AP63: =AP57/(AO57+AP57+AQ57+AR57) -> 0.03846153846 | AQ63: =AQ57/(AO57+AP57+AQ57+AR57) -> 0.03846153846 | AR63: =AR57/(AO57+AP57+AQ57+AR57) -> 0.01923076923 | AT63: 0.6545226131 | AU63: 0.07035175879 | AV63: 0.08668341709 | AW63: 0.1884422111 | AY63: 0.9622326021
A64: P11446 | B64: argC | C64: ['cytosol'] | D64: Monomer | E64: None | F64: N | G64: 57 | H64: 35.952 | I64: 0.003402883 | J64: 1 | K64: 1 | L64: 5.676 | M64: ['FwdE/GAPDH domain-like', 'NAD(P)-binding Rossmann-fold domains'] | N64: ['154-308', '1-170'] | O64: 2 | P64: 2 | Q64: 0 | R64: 0 | S64: 0 | T64: 0 | U64: 0 | V64: 1 | W64: 0 | X64: 0 | Y64: No Info Available | Z64: No Info Available | AA64: No Info Available | AB64: No Info Available | AC64: 0 | AD64: 0 | AE64: 0 | AF64: 0 | AN64: 1 UD | AO64: =AO58/(AO58+AP58+AQ58+AR58) -> 0.6482617587 | AP64: =AP58/(AO58+AP58+AQ58+AR58) -> 0.07770961145 | AQ64: =AQ58/(AO58+AP58+AQ58+AR58) -> 0.0981595092 | AR64: =AR58/(AO58+AP58+AQ58+AR58) -> 0.1758691207
A65: P18335 | B65: argD | C65: ['cytosol'] | D65: ['ArgD.2'] | E65: ["pyridoxal 5'-phosphate"] | F65: N | G65: 637 | H65: 43.767 | I65: 0.046295129 | J65: 2 | K65: 1 | L65: 5.922 | M65: ['PLP-dependent transferase-like'] | N65: ['20-401'] | O65: 1 | P65: 1 | Q65: 0 | R65: 0 | S65: 0 | T65: 0 | U65: 0 | V65: 2 | W65: 0 | X65: 0 | Y65: No Info Available | Z65: No Info Available | AA65: 5.69 | AB65: 46.61447666 | AC65: 0 | AD65: 0 | AE65: 0 | AF65: 0 | AN65: 2 UD | AO65: 0.683908046 | AP65: 0.05747126437 | AQ65: 0.07471264368 | AR65: 0.183908046
A66: P23908 | B66: argE | C66: ['cytosol'] | D66: ['ArgE.2'] | E66: ['Zn2+'] | F66: N | G66: 372 | H66: 42.347 | I66: 0.026158611 | J66: 2 | K66: 1 | L66: 5.605 | M66: ['Phosphorylase/hydrolase-like', 'Ferredoxin-like'] | N66: ['5-180+305-381', '181-295'] | O66: 2 | P66: 2 | Q66: 0 | R66: 1 | S66: 0 | T66: 0 | U66: 0 | V66: 2 | W66: 0 | X66: 0 | Y66: III | Z66: IV | AA66: 3.01 | AB66: 45.85208015 | AC66: 0 | AD66: 0 | AE66: 0 | AF66: 0 | AN66: 3 UD | AO66: 0.4915254237 | AP66: 0.08474576271 | AQ66: 0.06779661017 | AR66: 0.3559322034
A67: P0A6E4 | B67: argG | C67: ['cytosol'] | D67: ['ArgG.4'] | E67: None | F67: N | G67: 1296 | H67: 49.898 | I67: 0.10738342 | J67: 4 | K67: 1 | L67: 5.136 | M67: ['Argininosuccinate synthetase, C-terminal domain', 'Adenine nucleotide alpha hydrolase-like'] | N67: ['190-444', '3-186'] | O67: 2 | P67: 2 | Q67: 0 | R67: 2 | S67: 0 | T67: 0 | U67: 1 | V67: 3 | W67: 0 | X67: 1 | Y67: No Info Available | Z67: No Info Available | AA67: 5.87 | AB67: 44.17487445 | AC67: =IF(OR(AND(T67>2,R67>1,X67=0,V67>1),AND(T67>2,R67>1,X67=1,V67>1),AND(T67=2,R67>1,X67=0,V67>1)),1,0) -> 0 | AD67: =IF(OR(AND(T67=0,R67>1,X67>2,V67>1),AND(T67=0,R67>1,X67=2,V67>1),AND(T67=1,R67>1,X67>2,V67>1)),1,0) -> 0 | AE67: =IF(AND(T67<2,R67>1,X67<2,V67>1),1,0) -> 1 | AF67: =IF(AND(T67>1,R67>1,X67>1,V67>1),1,0) -> 0 | AN67: 4 UD | AO67: 0.4705882353 | AP67: 0 | AQ67: 0.05882352941 | AR67: 0.4705882353
A68: P11447 | B68: argH | C68: ['cytosol'] | D68: Monomer | E68: None | F68: N | G68: 337 | H68: 50.318 | I68: 0.028158036 | J68: 1 | K68: 1 | L68: 4.994 | M68: ['L-aspartase-like'] | N68: ['13-452'] | O68: 1 | P68: 1 | Q68: 0 | R68: 2 | S68: 0 | T68: 0 | U68: 0 | V68: 1 | W68: 0 | X68: 0 | Y68: No Info Available | Z68: No Info Available | AA68: No Info Available | AB68: 59.09272788 | AC68: 0 | AD68: 0 | AE68: 0 | AF68: 0 | AN68: 5 UD | AO68: 0.2 | AP68: 0.2 | AQ68: 0.2 | AR68: 0.4
A69: P0A8S1 | B69: argP | C69: ['cytosol'] | D69: Monomer | E69: None | F69: N | G69: 789 | H69: 33.472 | I69: 0.043853853 | J69: 1 | K69: 1 | L69: 6.532 | M69: ['Periplasmic binding protein-like II', 'DNA/RNA-binding 3-helical bundle'] | N69: ['92-289', '4-110'] | O69: 2 | P69: 2 | Q69: 0 | R69: 3 | S69: 0 | T69: 0 | U69: 0 | V69: 1 | W69: 0 | X69: 0 | Y69: III | Z69: IV | AA69: No Info Available | AB69: No Info Available | AC69: 0 | AD69: 0 | AE69: 0 | AF69: 0
A70: P0A6D0 | B70: argR | C70: ['cytosol'] | D70: Monomer | E70: None | F70: N | G70: 3610 | H70: 16.994 | I70: 0.101871314 | J70: 1 | K70: 1 | L70: 4.79 | M70: ['DNA/RNA-binding 3-helical bundle', 'DCoH-like'] | N70: ['3-77', '82-151'] | O70: 2 | P70: 2 | Q70: 0 | R70: 1 | S70: 0 | T70: 0 | U70: 0 | V70: 0 | W70: 0 | X70: 0 | Y70: No Info Available | Z70: No Info Available | AA70: No Info Available | AB70: No Info Available | AC70: 0 | AD70: 0 | AE70: 0 | AF70: 0 | AN70: Essential
A71: P11875 | B71: argS | C71: ['cytosol'] | D71: Monomer | E71: ['Mg2+'] | F71: Y | G71: 4901 | H71: 64.683 | I71: 0.526409778 | J71: 1 | K71: 1 | L71: 5.244 | M71: ['Adenine nucleotide alpha hydrolase-like', 'Anticodon-binding domain of a subclass of class I aminoacyl-tRNA synthetases', 'RRF/tRNA synthetase additional domain-like'] | N71: ['110-454', '454-577', '1-100'] | O71: 3 | P71: 3 | Q71: 0 | R71: 14 | S71: 1 | T71: 1 | U71: 0 | V71: 20 | W71: 0 | X71: 0 | Y71: No Info Available | Z71: No Info Available | AA71: No Info Available | AB71: 48.15682131 | AC71: 0 | AD71: 0 | AE71: 1 | AF71: 0 | AM71: Total | AN71: Essential | AO71: =COUNTIFS(AE:AE,"1",$F:$F,"=Y") -> 81 | AP71: =COUNTIFS(AC:AC,"1",$F:$F,"=Y") -> 22 | AQ71: =COUNTIFS(AD:AD,"1",$F:$F,"=Y") -> 18 | AR71: =COUNTIFS(AF:AF,"1",$F:$F,"=Y") -> 53 | AT71: =SUM(AO71:AR71)*AO$6 -> 113.8869347 | AU71: =SUM(AO71:AR71)*AP$6 -> 12.24120603 | AV71: =SUM(AO71:AR71)*AQ$6 -> 15.08291457 | AW71: =SUM(AO71:AR71)*AR$6 -> 32.78894472 | AY71: =_xlfn.CHISQ.TEST(AO71:AR71,AT71:AW71) -> 1.194122631e-06
A72: P09551 | B72: argT | C72: ['periplasmic space'] | D72: ['HisQ.', 'HisP.2', 'HisM.', 'ArgT.'] | E72: None | F72: N | G72: 427 | H72: 27.992 | I72: 0.019847732 | J72: 5 | K72: 4 | L72: 5.481 | M72: ['Periplasmic binding protein-like II'] | N72: ['26-257'] | O72: 1 | P72: 1 | Q72: 0 | R72: 2 | S72: 0 | T72: 0 | U72: 1 | V72: 3 | W72: 0 | X72: 1 | Y72: No Info Available | Z72: No Info Available | AA72: No Info Available | AB72: 53.34050382 | AC72: 0 | AD72: 0 | AE72: 1 | AF72: 0 | AN72: Non-essential | AO72: =COUNTIFS(AE:AE,"1",$F:$F,"=N") -> 431 | AP72: =COUNTIFS(AC:AC,"1",$F:$F,"=N") -> 34 | AQ72: =COUNTIFS(AD:AD,"1",$F:$F,"=N") -> 48 | AR72: =COUNTIFS(AF:AF,"1",$F:$F,"=N") -> 96 | AT72: =SUM(AO72:AR72)*AO$6 -> 398.6042714 | AU72: =SUM(AO72:AR72)*AP$6 -> 42.84422111 | AV72: =SUM(AO72:AR72)*AQ$6 -> 52.79020101 | AW72: =SUM(AO72:AR72)*AR$6 -> 114.7613065 | AY72: =_xlfn.CHISQ.TEST(AO72:AR72,AT72:AW72) -> 0.0468379099
A73: P77398 | B73: arnA | C73: ['cytosol'] | D73: ['ArnA.6'] | E73: None | F73: N | G73: 74 | H73: 74.289 | I73: 0.009128624 | J73: 6 | K73: 1 | L73: 6.538 | M73: ['NAD(P)-binding Rossmann-fold domains', 'Formyltransferase', 'FMT C-terminal domain-like'] | N73: ['317-652', '1-202', '205-304'] | O73: 3 | P73: 3 | Q73: 2 | R73: 12 | S73: 2 | T73: 4 | U73: 2 | V73: 7 | W73: 0 | X73: 2 | Y73: No Info Available | Z73: No Info Available | AA73: No Info Available | AB73: No Info Available | AC73: 0 | AD73: 0 | AE73: 0 | AF73: 1 | AN73: Unknown | AO73: =COUNTIFS(AE:AE,"1",$F:$F,"~?") -> 9 | AP73: =COUNTIFS(AC:AC,"1",$F:$F,"~?") -> 0 | AQ73: =COUNTIFS(AD:AD,"1",$F:$F,"~?") -> 3 | AR73: =COUNTIFS(AF:AF,"1",$F:$F,"~?") -> 1 | AT73: 8.50879397 | AU73: 0.9145728643 | AV73: 1.126884422 | AW73: 2.449748744 | AY73: 0.1781743274
A74: P77690 | B74: arnB | C74: ['cytosol'] | D74: Monomer | E74: ["pyridoxal 5'-phosphate"] | F74: N | G74: 105 | H74: 42.238 | I74: 0.007364474 | J74: 1 | K74: 1 | L74: 6.561 | M74: ['PLP-dependent transferase-like'] | N74: ['4-376'] | O74: 1 | P74: 1 | Q74: 0 | R74: 10 | S74: 0 | T74: 0 | U74: 0 | V74: 12 | W74: 0 | X74: 0 | Y74: No Info Available | Z74: No Info Available | AA74: No Info Available | AB74: 49.23539805 | AC74: 0 | AD74: 0 | AE74: 1 | AF74: 0 | AM74: Percent | AN74: Essential | AO74: =AO71/(AO71+AP71+AQ71+AR71) -> 0.4655172414 | AP74: =AP71/(AO71+AP71+AQ71+AR71) -> 0.1264367816 | AQ74: =AQ71/(AO71+AP71+AQ71+AR71) -> 0.1034482759 | AR74: =AR71/(AO71+AP71+AQ71+AR71) -> 0.3045977011
A75: P76472 | B75: arnD | C75: ['cytosol'] | D75: Monomer | E75: None | F75: N | G75: ? | H75: 33.112 | I75: ? | J75: 1 | K75: 1 | L75: 7.32 | M75: ['7-stranded beta/alpha barrel'] | N75: ['14-41+85-267'] | O75: 1 | P75: 1 | Q75: 0 | R75: 0 | S75: 0 | T75: 0 | U75: 0 | V75: 8 | W75: 0 | X75: 0 | Y75: No Info Available | Z75: No Info Available | AA75: No Info Available | AB75: No Info Available | AC75: 0 | AD75: 0 | AE75: 0 | AF75: 0 | AN75: Non-essential | AO75: =AO72/(AO72+AP72+AQ72+AR72) -> 0.7077175698 | AP75: =AP72/(AO72+AP72+AQ72+AR72) -> 0.05582922824 | AQ75: =AQ72/(AO72+AP72+AQ72+AR72) -> 0.07881773399 | AR75: =AR72/(AO72+AP72+AQ72+AR72) -> 0.157635468
A76: P0A6D3 | B76: aroA | C76: ['cytosol'] | D76: Monomer | E76: None | F76: N | G76: 1248 | H76: 46.096 | I76: 0.095527171 | J76: 1 | K76: 1 | L76: 5.303 | M76: ['IF3-like'] | N76: ['7-422'] | O76: 1 | P76: 1 | Q76: 0 | R76: 5 | S76: 0 | T76: 0 | U76: 0 | V76: 7 | W76: 0 | X76: 0 | Y76: No Info Available | Z76: No Info Available | AA76: 2.54 | AB76: 51.81851284 | AC76: 0 | AD76: 0 | AE76: 1 | AF76: 0 | AN76: Unknown | AO76: 0.6923076923 | AP76: 0 | AQ76: 0.2307692308 | AR76: 0.07692307692
A77: P07639 | B77: aroB | C77: ['cytosol'] | D77: Monomer | E77: ['Zn2+', 'NAD+', 'Co2+'] | F77: N | G77: 770 | H77: 38.881 | I77: 0.049713832 | J77: 1 | K77: 1 | L77: 5.773 | M77: ['Dehydroquinate synthase-like'] | N77: ['4-356'] | O77: 1 | P77: 1 | Q77: 0 | R77: 1 | S77: 0 | T77: 0 | U77: 0 | V77: 8 | W77: 0 | X77: 0 | Y77: No Info Available | Z77: No Info Available | AA77: No Info Available | AB77: No Info Available | AC77: 0 | AD77: 0 | AE77: 0 | AF77: 0
A78: P12008 | B78: aroC | C78: ['cytosol'] | D78: ['AroC.4'] | E78: ['FMNH2'] | F78: N | G78: 1258 | H78: 39.137 | I78: 0.081755554 | J78: 4 | K78: 1 | L78: 5.9 | M78: ['Chorismate synthase, AroC'] | N78: ['4-353'] | O78: 1 | P78: 1 | Q78: 1 | R78: 4 | S78: 1 | T78: 2 | U78: 1 | V78: 10 | W78: 0 | X78: 1 | Y78: No Info Available | Z78: No Info Available | AA78: No Info Available | AB78: No Info Available | AC78: 0 | AD78: 0 | AE78: 0 | AF78: 0 | AN78: Location
A79: P05194 | B79: aroD | C79: ['cytosol'] | D79: ['AroD.2'] | E79: None | F79: ? | G79: 572 | H79: 27.467 | I79: 0.026088935 | J79: 2 | K79: 1 | L79: 5.095 | M79: ['TIM beta/alpha-barrel'] | N79: ['1-251'] | O79: 1 | P79: 1 | Q79: 1 | R79: 4 | S79: 0 | T79: 1 | U79: 1 | V79: 2 | W79: 1 | X79: 2 | Y79: No Info Available | Z79: No Info Available | AA79: No Info Available | AB79: 55.88567819 | AC79: 0 | AD79: 0 | AE79: 0 | AF79: 0 | AM79: Total | AN79: Cytosol | AO79: =COUNTIFS(AE:AE,"1",$C:$C,"['cytosol']") -> 375 | AP79: =COUNTIFS(AC:AC,"1",$C:$C,"['cytosol']") -> 36 | AQ79: =COUNTIFS(AD:AD,"1",$C:$C,"['cytosol']") -> 51 | AR79: =COUNTIFS(AF:AF,"1",$C:$C,"['cytosol']") -> 117 | AT79: =SUM(AO79:AR79)*AO$6 -> 378.968593 | AU79: =SUM(AO79:AR79)*AP$6 -> 40.73366834 | AV79: =SUM(AO79:AR79)*AQ$6 -> 50.18969849 | AW79: =SUM(AO79:AR79)*AR$6 -> 109.1080402 | AY79: =_xlfn.CHISQ.TEST(AO79:AR79,AT79:AW79) -> 0.7588669138
A80: P15770 | B80: aroE | C80: ['cytosol'] | D80: Monomer | E80: None | F80: N | G80: 1144 | H80: 29.414 | I80: 0.055876501 | J80: 1 | K80: 1 | L80: 5.318 | M80: ['NAD(P)-binding Rossmann-fold domains', 'Aminoacid dehydrogenase-like, N-terminal domain'] | N80: ['102-268', '2-101'] | O80: 2 | P80: 2 | Q80: 0 | R80: 1 | S80: 0 | T80: 0 | U80: 0 | V80: 4 | W80: 0 | X80: 0 | Y80: No Info Available | Z80: No Info Available | AA80: No Info Available | AB80: No Info Available | AC80: 0 | AD80: 0 | AE80: 0 | AF80: 0 | AN80: Ribosome | AO80: =COUNTIFS(AE:AE,"1",$C:$C,"*ribosome*") -> 21 | AP80: =COUNTIFS(AC:AC,"1",$C:$C,"*ribosome*") -> 11 | AQ80: =COUNTIFS(AD:AD,"1",$C:$C,"*ribosome*") -> 11 | AR80: =COUNTIFS(AF:AF,"1",$C:$C,"*ribosome*") -> 6 | AT80: =SUM(AO80:AR80)*AO$6 -> 32.07160804 | AU80: =SUM(AO80:AR80)*AP$6 -> 3.447236181 | AV80: =SUM(AO80:AR80)*AQ$6 -> 4.247487437 | AW80: =SUM(AO80:AR80)*AR$6 -> 9.233668342 | AY80: =_xlfn.CHISQ.TEST(AO80:AR80,AT80:AW80) -> 4.664228419e-07
A81: P0AB91 | B81: aroG | C81: ['cytosol'] | D81: ['AroG.4'] | E81: ['Fe2+'] | F81: N | G81: 4959 | H81: 38.009 | I81: 0.312989409 | J81: 4 | K81: 1 | L81: 6.278 | M81: ['TIM beta/alpha-barrel', ''] | N81: ['10-349', '4-220'] | O81: 2 | P81: 2 | Q81: 1 | R81: 16 | S81: 1 | T81: 2 | U81: 1 | V81: 15 | W81: 1 | X81: 2 | Y81: No Info Available | Z81: No Info Available | AA81: No Info Available | AB81: 41.65769806 | AC81: 0 | AD81: 0 | AE81: 0 | AF81: 1 | AN81: Inner Membrane | AO81: =COUNTIFS(AE:AE,"1",$C:$C,"['inner membrane']") -> 22 | AP81: =COUNTIFS(AC:AC,"1",$C:$C,"['inner membrane']") -> 0 | AQ81: =COUNTIFS(AD:AD,"1",$C:$C,"['inner membrane']") -> 1 | AR81: =COUNTIFS(AF:AF,"1",$C:$C,"['inner membrane']") -> 0 | AT81: 15.0540201 | AU81: 1.618090452 | AV81: 1.993718593 | AW81: 4.334170854 | AY81: 0.02176359319
A82: P00887 | B82: aroH | C82: ['cytosol'] | D82: ['AroH.2'] | E82: None | F82: N | G82: 1341 | H82: 38.735 | I82: 0.086254434 | J82: 2 | K82: 1 | L82: 6.566 | M82: ['TIM beta/alpha-barrel'] | N82: ['7-347'] | O82: 1 | P82: 1 | Q82: 0 | R82: 3 | S82: 0 | T82: 0 | U82: 0 | V82: 2 | W82: 1 | X82: 1 | Y82: No Info Available | Z82: No Info Available | AA82: No Info Available | AB82: No Info Available | AC82: 0 | AD82: 0 | AE82: 1 | AF82: 0 | AN82: Outer Membrane | AO82: =COUNTIFS(Y:Y,"<=1",Z:Z,">1",$C:$C,"['outer membrane']") -> 0 | AP82: =COUNTIFS(AC:AC,"1",$C:$C,"['outer membrane']") -> 1 | AQ82: =COUNTIFS(AD:AD,"1",$C:$C,"['outer membrane']") -> 0 | AR82: =COUNTIFS(AF:AF,"1",$C:$C,"['outer membrane']") -> 0 | AT82: 0.6545226131 | AU82: 0.07035175879 | AV82: 0.08668341709 | AW82: 0.1884422111 | AY82: 0.004195388475
A83: P0A6D7 | B83: aroK | C83: ['cytosol'] | D83: Monomer | E83: None | F83: N | G83: 12633 | H83: 19.538 | I83: 0.409860148 | J83: 1 | K83: 1 | L83: 5.145 | M83: ['P-loop containing nucleoside triphosphate hydrolases'] | N83: ['6-166'] | O83: 1 | P83: 1 | Q83: 0 | R83: 9 | S83: 1 | T83: 1 | U83: 1 | V83: 13 | W83: 0 | X83: 1 | Y83: II | Z83: No Info Available | AA83: 5.4 | AB83: No Info Available | AC83: 0 | AD83: 0 | AE83: 1 | AF83: 0 | AN83: Periplasmic Space | AO83: =COUNTIFS(AE:AE,"1",$C:$C,"*periplasmic space*") -> 43 | AP83: =COUNTIFS(AC:AC,"1",$C:$C,"*periplasmic space*") -> 5 | AQ83: =COUNTIFS(AD:AD,"1",$C:$C,"*periplasmic space*") -> 3 | AR83: =COUNTIFS(AF:AF,"1",$C:$C,"*periplasmic space*") -> 13 | AT83: 41.88944724 | AU83: 4.502512563 | AV83: 5.547738693 | AW83: 12.06030151 | AY83: 0.7225780554
A84: P0A6E1 | B84: aroL | C84: ['cytosol'] | D84: Monomer | E84: ['Mg2+'] | F84: N | G84: 386 | H84: 19.151 | I84: 0.01227518 | J84: 1 | K84: 1 | L84: 4.577 | M84: ['P-loop containing nucleoside triphosphate hydrolases'] | N84: ['4-170'] | O84: 1 | P84: 1 | Q84: 0 | R84: 1 | S84: 0 | T84: 0 | U84: 0 | V84: 3 | W84: 0 | X84: 0 | Y84: No Info Available | Z84: No Info Available | AA84: No Info Available | AB84: No Info Available | AC84: 0 | AD84: 0 | AE84: 0 | AF84: 0 | AM84: Percent | AN84: Cytosol | AO84: =AO79/(AO79+AP79+AQ79+AR79) -> 0.6476683938 | AP84: =AP79/(AO79+AP79+AQ79+AR79) -> 0.0621761658 | AQ84: =AQ79/(AO79+AP79+AQ79+AR79) -> 0.08808290155 | AR84: =AR79/(AO79+AP79+AQ79+AR79) -> 0.2020725389
A85: P30859 | B85: artI | C85: ['periplasmic space', 'membrane'] | D85: ['ArtI.', 'ArtM.', 'ArtQ.', 'ArtP.2'] | E85: None | F85: N | G85: 3323 | H85: 26.93 | I85: 0.148598965 | J85: 5 | K85: 4 | L85: 5.797 | M85: ['Periplasmic binding protein-like II'] | N85: ['1-242'] | O85: 1 | P85: 1 | Q85: 3 | R85: 12 | S85: 0 | T85: 3 | U85: 2 | V85: 12 | W85: 0 | X85: 2 | Y85: No Info Available | Z85: No Info Available | AA85: No Info Available | AB85: 60.2716144 | AC85: 0 | AD85: 0 | AE85: 0 | AF85: 1 | AN85: Ribosome | AO85: =AO80/(AO80+AP80+AQ80+AR80) -> 0.4285714286 | AP85: =AP80/(AO80+AP80+AQ80+AR80) -> 0.2244897959 | AQ85: =AQ80/(AO80+AP80+AQ80+AR80) -> 0.2244897959 | AR85: =AR80/(AO80+AP80+AQ80+AR80) -> 0.1224489796
A86: P30860 | B86: artJ | C86: ['periplasmic space', 'membrane'] | D86: ['ArtJ.', 'ArtQ.', 'ArtM.', 'ArtP.2'] | E86: None | F86: N | G86: 544 | H86: 26.829 | I86: 0.024235527 | J86: 5 | K86: 4 | L86: 7.113 | M86: ['Periplasmic binding protein-like II'] | N86: ['1-242'] | O86: 1 | P86: 1 | Q86: 0 | R86: 2 | S86: 0 | T86: 0 | U86: 0 | V86: 1 | W86: 0 | X86: 0 | Y86: No Info Available | Z86: No Info Available | AA86: No Info Available | AB86: 58.79675193 | AC86: 0 | AD86: 0 | AE86: 0 | AF86: 0 | AN86: Inner Membrane | AO86: 0.9565217391 | AP86: 0 | AQ86: 0.04347826087 | AR86: 0
A87: P0AAF6 | B87: artP | C87: ['inner membrane'] | D87: ['ArtI.', 'ArtM.', 'ArtQ.', 'ArtP.2'] | E87: None | F87: N | G87: 1392 | H87: 27.022 | I87: 0.062460552 | J87: 5 | K87: 4 | L87: 6.308 | M87: ['P-loop containing nucleoside triphosphate hydrolases'] | N87: ['3-232'] | O87: 1 | P87: 1 | Q87: 0 | R87: 0 | S87: 0 | T87: 0 | U87: 0 | V87: 1 | W87: 0 | X87: 0 | Y87: No Info Available | Z87: No Info Available | AA87: No Info Available | AB87: No Info Available | AC87: 0 | AD87: 0 | AE87: 0 | AF87: 0 | AN87: Outer Membrane | AO87: 0 | AP87: 1 | AQ87: 0 | AR87: 0
A88: P0A9Q9 | B88: asd | C88: ['cytosol'] | D88: ['Asd.2'] | E88: None | F88: Y | G88: 7060 | H88: 40.018 | I88: 0.469147246 | J88: 2 | K88: 1 | L88: 5.289 | M88: ['FwdE/GAPDH domain-like', 'NAD(P)-binding Rossmann-fold domains'] | N88: ['134-354', '1-147'] | O88: 2 | P88: 2 | Q88: 0 | R88: 22 | S88: 1 | T88: 1 | U88: 2 | V88: 31 | W88: 0 | X88: 2 | Y88: III | Z88: IV | AA88: 6.69 | AB88: 59.48352172 | AC88: 0 | AD88: 0 | AE88: 0 | AF88: 0 | AN88: Periplasmic Space | AO88: 0.671875 | AP88: 0.078125 | AQ88: 0.046875 | AR88: 0.203125
A89: P00963 | B89: asnA | C89: ['cytosol'] | D89: ['AsnA.2'] | E89: ['Mg2+'] | F89: N | G89: 5147 | H89: 36.651 | I89: 0.313248563 | J89: 2 | K89: 1 | L89: 5.472 | M89: ['Class II aaRS and biotin synthetases'] | N89: ['7-329'] | O89: 1 | P89: 1 | Q89: 0 | R89: 10 | S89: 0 | T89: 0 | U89: 1 | V89: 10 | W89: 1 | X89: 2 | Y89: No Info Available | Z89: No Info Available | AA89: 15.73 | AB89: No Info Available | AC89: 0 | AD89: 1 | AE89: 0 | AF89: 0
A90: P22106 | B90: asnB | C90: ['cytosol'] | D90: ['AsnB.2'] | E90: ['Mg2+'] | F90: N | G90: 1811 | H90: 62.659 | I90: 0.188430413 | J90: 2 | K90: 1 | L90: 5.584 | M90: ['Adenine nucleotide alpha hydrolase-like', 'Ntn hydrolase-like'] | N90: ['210-479', '1-196'] | O90: 2 | P90: 2 | Q90: 1 | R90: 9 | S90: 0 | T90: 1 | U90: 0 | V90: 13 | W90: 1 | X90: 1 | Y90: No Info Available | Z90: No Info Available | AA90: 6.92 | AB90: 46.65172119 | AC90: 0 | AD90: 0 | AE90: 1 | AF90: 0 | AN90: Cofactors
A91: P0A8M0 | B91: asnS | C91: ['cytosol'] | D91: ['AsnS.2'] | E91: None | F91: Y | G91: 17436 | H91: 52.57 | I91: 1.522067553 | J91: 2 | K91: 1 | L91: 5.059 | M91: ['Class II aaRS and biotin synthetases', 'OB-fold'] | N91: ['98-464', '16-101'] | O91: 2 | P91: 2 | Q91: 2 | R91: 34 | S91: 0 | T91: 2 | U91: 2 | V91: 32 | W91: 1 | X91: 3 | Y91: I | Z91: No Info Available | AA91: 4.68 | AB91: 58.03017656 | AC91: 0 | AD91: 0 | AE91: 0 | AF91: 1 | AM91: Total | AN91: None | AO91: =COUNTIFS(AE:AE,"1",$E:$E,"None") -> 370 | AP91: =COUNTIFS(AC:AC,"1",$E:$E,"None") -> 45 | AQ91: =COUNTIFS(AD:AD,"1",$E:$E,"None") -> 46 | AR91: =COUNTIFS(AF:AF,"1",$E:$E,"None") -> 90 | AT91: =SUM(AO91:AR91)*AO$6 -> 360.6419598 | AU91: =SUM(AO91:AR91)*AP$6 -> 38.7638191 | AV91: =SUM(AO91:AR91)*AQ$6 -> 47.76256281 | AW91: =SUM(AO91:AR91)*AR$6 -> 103.8316583 | AY91: =_xlfn.CHISQ.TEST(AO91:AR91,AT91:AW91) -> 0.3685337723
A92: P0AC38 | B92: aspA | C92: ['cytosol'] | D92: ['AspA.4'] | E92: ['Mg2+'] | F92: N | G92: 1119 | H92: 52.356 | I92: 0.097284945 | J92: 4 | K92: 1 | L92: 5.083 | M92: ['L-aspartase-like'] | N92: ['6-461'] | O92: 1 | P92: 1 | Q92: 0 | R92: 2 | S92: 0 | T92: 0 | U92: 0 | V92: 3 | W92: 1 | X92: 1 | Y92: No Info Available | Z92: No Info Available | AA92: No Info Available | AB92: 52.64828389 | AC92: 0 | AD92: 0 | AE92: 1 | AF92: 0 | AN92: 'a [4Fe-4S] iron-sulfur cluster' | AO92: =COUNTIFS(AE:AE,"1",$E:$E,"*[4Fe-4S]*") -> 15 | AP92: =COUNTIFS(AC:AC,"1",$E:$E,"*[4Fe-4S]*") -> 0 | AQ92: =COUNTIFS(AD:AD,"1",$E:$E,"*[4Fe-4S]*") -> 1 | AR92: =COUNTIFS(AF:AF,"1",$E:$E,"*[4Fe-4S]*") -> 3 | AT92: =SUM(AO92:AR92)*AO$6 -> 12.43592965 | AU92: =SUM(AO92:AR92)*AP$6 -> 1.336683417 | AV92: =SUM(AO92:AR92)*AQ$6 -> 1.646984925 | AW92: =SUM(AO92:AR92)*AR$6 -> 3.58040201 | AY92: =_xlfn.CHISQ.TEST(AO92:AR92,AT92:AW92) -> 0.5292763416
A93: P00509 | B93: aspC | C93: ['cytosol'] | D93: ['AspC.2'] | E93: ["pyridoxal 5'-phosphate"] | F93: N | G93: 4498 | H93: 43.573 | I93: 0.325451295 | J93: 2 | K93: 1 | L93: 5.507 | M93: ['PLP-dependent transferase-like'] | N93: ['1-396'] | O93: 1 | P93: 1 | Q93: 2 | R93: 24 | S93: 3 | T93: 5 | U93: 1 | V93: 21 | W93: 1 | X93: 2 | Y93: No Info Available | Z93: No Info Available | AA93: 4.19 | AB93: 62.26051808 | AC93: 0 | AD93: 0 | AE93: 0 | AF93: 1 | AN93: a [2Fe-2S] iron-sulfur cluster' | AO93: =COUNTIFS(AE:AE,"1",$E:$E,"*[2Fe-2S]*") -> 7 | AP93: =COUNTIFS(AC:AC,"1",$E:$E,"*[2Fe-2S]*") -> 0 | AQ93: =COUNTIFS(AD:AD,"1",$E:$E,"*[2Fe-2S]*") -> 0 | AR93: =COUNTIFS(AF:AF,"1",$E:$E,"*[2Fe-2S]*") -> 1 | AT93: 5.236180905 | AU93: 0.5628140704 | AV93: 0.6934673367 | AW93: 1.507537688 | AY93: 0.5679978517
A94: P21889 | B94: aspS | C94: ['cytosol'] | D94: ['AspS.2'] | E94: None | F94: Y | G94: 8307 | H94: 65.913 | I94: 0.909210369 | J94: 2 | K94: 1 | L94: 5.404 | M94: ['Class II aaRS and biotin synthetases', 'OB-fold', 'DCoH-like'] | N94: ['121-305+397-556', '2-105', '288-419'] | O94: 3 | P94: 3 | Q94: 1 | R94: 38 | S94: 2 | T94: 3 | U94: 4 | V94: 47 | W94: 1 | X94: 5 | Y94: No Info Available | Z94: No Info Available | AA94: 3.35 | AB94: 59.71713796 | AC94: 0 | AD94: 0 | AE94: 0 | AF94: 1 | AN94: 'thiamine diphosphate' | AO94: =COUNTIFS(AE:AE,"1",$E:$E,"*thiamine diphosphate*") -> 5 | AP94: =COUNTIFS(AC:AC,"1",$E:$E,"*thiamine diphosphate*") -> 1 | AQ94: =COUNTIFS(AD:AD,"1",$E:$E,"*thiamine diphosphate*") -> 0 | AR94: =COUNTIFS(AF:AF,"1",$E:$E,"*thiamine diphosphate*") -> 2 | AT94: 5.236180905 | AU94: 0.5628140704 | AV94: 0.6934673367 | AW94: 1.507537688 | AY94: 0.7519033602
A95: P36560 | B95: asr | C95: ['periplasmic space'] | D95: Monomer | E95: None | F95: N | G95: 62 | H95: 10.591 | I95: 0.00109038 | J95: 1 | K95: 1 | L95: 10.944 | M95: Unknown | O95: 0 | P95: 0 | Q95: 0 | R95: 6 | S95: 0 | T95: 0 | U95: 0 | V95: 6 | W95: 0 | X95: 0 | Y95: No Info Available | Z95: No Info Available | AA95: No Info Available | AB95: No Info Available | AC95: 0 | AD95: 0 | AE95: 1 | AF95: 0 | AN95: pyridoxal 5'-phosphate | AO95: =COUNTIFS(AE:AE,"1",$E:$E,"*pyridoxal 5'-phosphate*") -> 15 | AP95: =COUNTIFS(AC:AC,"1",$E:$E,"*pyridoxal 5'-phosphate*") -> 1 | AQ95: =COUNTIFS(AD:AD,"1",$E:$E,"*pyridoxal 5'-phosphate*") -> 0 | AR95: =COUNTIFS(AF:AF,"1",$E:$E,"*pyridoxal 5'-phosphate*") -> 5 | AT95: 13.74497487 | AU95: 1.477386935 | AV95: 1.820351759 | AW95: 3.957286432 | AY95: 0.5003806079
A96: P0AE37 | B96: astA | C96: ['cytosol'] | D96: Monomer | E96: None | F96: N | G96: ? | H96: 38.456 | I96: ? | J96: 1 | K96: 1 | L96: 6.144 | M96: ['Acyl-CoA N-acyltransferases (Nat)'] | N96: ['1-337'] | O96: 1 | P96: 1 | Q96: 1 | R96: 1 | S96: 0 | T96: 1 | U96: 0 | V96: 1 | W96: 0 | X96: 0 | Y96: No Info Available | Z96: No Info Available | AA96: No Info Available | AB96: No Info Available | AC96: 0 | AD96: 0 | AE96: 0 | AF96: 0 | AN96: FMN | AO96: =COUNTIFS(AE:AE,"1",$E:$E,"*FMN*") -> 8 | AP96: =COUNTIFS(AC:AC,"1",$E:$E,"*FMN*") -> 0 | AQ96: =COUNTIFS(AD:AD,"1",$E:$E,"*FMN*") -> 1 | AR96: =COUNTIFS(AF:AF,"1",$E:$E,"*FMN*") -> 2 | AT96: 7.199748744 | AU96: 0.7738693467 | AV96: 0.9535175879 | AW96: 2.072864322 | AY96: 0.8332280887
A97: P76216 | B97: astB | C97: ['cytosol'] | D97: ['AstB.2'] | E97: None | F97: N | G97: ? | H97: 49.299 | I97: ? | J97: 2 | K97: 1 | L97: 5.842 | M97: ['Pentein, beta/alpha-propeller'] | N97: ['3-441'] | O97: 1 | P97: 1 | Q97: 0 | R97: 1 | S97: 0 | T97: 0 | U97: 0 | V97: 4 | W97: 0 | X97: 0 | Y97: No Info Available | Z97: No Info Available | AA97: No Info Available | AB97: No Info Available | AC97: 0 | AD97: 0 | AE97: 0 | AF97: 0 | AN97: FAD | AO97: =COUNTIFS(AE:AE,"1",$E:$E,"*FAD*") -> 13 | AP97: =COUNTIFS(AC:AC,"1",$E:$E,"*FAD*") -> 2 | AQ97: =COUNTIFS(AD:AD,"1",$E:$E,"*FAD*") -> 1 | AR97: =COUNTIFS(AF:AF,"1",$E:$E,"*FAD*") -> 6 | AT97: 14.39949749 | AU97: 1.547738693 | AV97: 1.907035176 | AW97: 4.145728643 | AY97: 0.6756057181
A98: P77581 | B98: astC | C98: ['cytosol'] | D98: ['AstC.2'] | E98: ["pyridoxal 5'-phosphate"] | F98: N | G98: ? | H98: 43.665 | I98: ? | J98: 2 | K98: 1 | L98: 6.046 | M98: ['PLP-dependent transferase-like'] | N98: ['10-396'] | O98: 1 | P98: 1 | Q98: 0 | R98: 12 | S98: 0 | T98: 0 | U98: 1 | V98: 46 | W98: 0 | X98: 1 | Y98: II | Z98: No Info Available | AA98: No Info Available | AB98: 52.65155658 | AC98: 0 | AD98: 0 | AE98: 1 | AF98: 0 | AN98: Fe2+ | AO98: =COUNTIFS(AE:AE,"1",$E:$E,"*Fe2+*") -> 9 | AP98: =COUNTIFS(AC:AC,"1",$E:$E,"*Fe2+*") -> 0 | AQ98: =COUNTIFS(AD:AD,"1",$E:$E,"*Fe2+*") -> 1 | AR98: =COUNTIFS(AF:AF,"1",$E:$E,"*Fe2+*") -> 4 | AT98: 9.163316583 | AU98: 0.9849246231 | AV98: 1.213567839 | AW98: 2.638190955 | AY98: 0.6306444368
A99: Q06065 | B99: atoC | C99: ['cytosol'] | D99: Monomer | E99: None | F99: N | G99: 42 | H99: 52.176 | I99: 0.003638892 | J99: 1 | K99: 1 | L99: 6.131 | M99: ['P-loop containing nucleoside triphosphate hydrolases', 'Flavodoxin-like', 'DNA/RNA-binding 3-helical bundle'] | N99: ['145-388', '6-190', '358-457'] | O99: 3 | P99: 3 | Q99: 0 | R99: 1 | S99: 0 | T99: 0 | U99: 0 | V99: 1 | W99: 0 | X99: 0 | Y99: No Info Available | Z99: No Info Available | AA99: No Info Available | AB99: No Info Available | AC99: 0 | AD99: 0 | AE99: 0 | AF99: 0 | AN99: heme | AO99: =COUNTIFS(AE:AE,"1",$E:$E,"*heme*") -> 2 | AP99: =COUNTIFS(AC:AC,"1",$E:$E,"*heme*") -> 0 | AQ99: =COUNTIFS(AD:AD,"1",$E:$E,"*heme*") -> 2 | AR99: =COUNTIFS(AF:AF,"1",$E:$E,"*heme*") -> 0 | AT99: 2.618090452 | AU99: 0.2814070352 | AV99: 0.3467336683 | AW99: 0.7537688442 | AY99: 0.02845114928
A100: P0ABB0 | B100: atpA | C100: ['inner membrane'] | D100: ['AtpC.', 'AtpH.', 'AtpA.3.', 'AtpG.', 'AtpD.3.'] | E100: ['Mg2'] | F100: N | G100: 30696 | H100: 55.222 | I100: 2.814770614 | J100: 9 | K100: 5 | L100: 5.839 | M100: ['P-loop containing nucleoside triphosphate hydrolases', 'Left-handed superhelix', 'Domain of alpha and beta subunits of F1 ATP synthase-like'] | N100: ['96-376', '378-508', '24-94'] | O100: 3 | P100: 3 | Q100: 0 | R100: 22 | S100: 0 | T100: 0 | U100: 3 | V100: 29 | W100: 2 | X100: 5 | Y100: No Info Available | Z100: No Info Available | AA100: 4.83 | AB100: 64.78551266 | AC100: 0 | AD100: 1 | AE100: 0 | AF100: 0 | AN100: Mg | AO100: =COUNTIFS(AE:AE,"1",$E:$E,"*Mg*") -> 71 | AP100: =COUNTIFS(AC:AC,"1",$E:$E,"*Mg*") -> 8 | AQ100: =COUNTIFS(AD:AD,"1",$E:$E,"*Mg*") -> 13 | AR100: =COUNTIFS(AF:AF,"1",$E:$E,"*Mg*") -> 28 | AT100: 78.54271357 | AU100: 8.442211055 | AV100: 10.40201005 | AW100: 22.61306533 | AY100: 0.4436928205
A101: P0A6E6 | B101: atpC | C101: ['inner membrane'] | D101: ['AtpC.', 'AtpH.', 'AtpA.3.', 'AtpG.', 'AtpD.3.'] | E101: ['Mg2'] | F101: N | G101: 12695 | H101: 15.068 | I101: 0.317641624 | J101: 9 | K101: 5 | L101: 5.478 | M101: ['Epsilon subunit of F1F0-ATP synthase N-terminal domain', 'Long alpha-hairpin'] | N101: ['8-82', '88-137'] | O101: 2 | P101: 2 | Q101: 0 | R101: 4 | S101: 0 | T101: 0 | U101: 0 | V101: 5 | W101: 0 | X101: 0 | Y101: No Info Available | Z101: No Info Available | AA101: 17.49 | AB101: 61.25961467 | AC101: 0 | AD101: 0 | AE101: 1 | AF101: 0 | AN101: Mn | AO101: =COUNTIFS(AE:AE,"1",$E:$E,"*Mn*") -> 22 | AP101: =COUNTIFS(AC:AC,"1",$E:$E,"*Mn*") -> 1 | AQ101: =COUNTIFS(AD:AD,"1",$E:$E,"*Mn*") -> 3 | AR101: =COUNTIFS(AF:AF,"1",$E:$E,"*Mn*") -> 9 | AT101: 22.90829146 | AU101: 2.462311558 | AV101: 3.033919598 | AW101: 6.595477387 | AY101: 0.6189807173
A102: P0ABB4 | B102: atpD | C102: ['inner membrane'] | D102: ['AtpC.', 'AtpH.', 'AtpA.3.', 'AtpG.', 'AtpD.3.'] | E102: ['Mg2'] | F102: N | G102: 30603 | H102: 50.325 | I102: 2.557389492 | J102: 9 | K102: 5 | L102: 4.77 | M102: ['P-loop containing nucleoside triphosphate hydrolases', 'Left-handed superhelix', 'Domain of alpha and beta subunits of F1 ATP synthase-like'] | N102: ['77-348', '345-459', '3-75'] | O102: 3 | P102: 3 | Q102: 2 | R102: 32 | S102: 0 | T102: 2 | U102: 1 | V102: 51 | W102: 0 | X102: 1 | Y102: No Info Available | Z102: No Info Available | AA102: 7.02 | AB102: 62.99244439 | AC102: 0 | AD102: 0 | AE102: 0 | AF102: 0 | AN102: Zn | AO102: =COUNTIFS(AE:AE,"1",$E:$E,"*Zn*") -> 17 | AP102: =COUNTIFS(AC:AC,"1",$E:$E,"*Zn*") -> 1 | AQ102: =COUNTIFS(AD:AD,"1",$E:$E,"*Zn*") -> 4 | AR102: =COUNTIFS(AF:AF,"1",$E:$E,"*Zn*") -> 7 | AT102: 18.98115578 | AU102: 2.040201005 | AV102: 2.513819095 | AW102: 5.464824121 | AY102: 0.5627032027
A103: P0ABA0 | B103: atpF | C103: ['inner membrane'] | D103: ['AtpE.10.', 'AtpF.2.', 'AtpB.'] | E103: ['Mg2'] | F103: N | G103: 17866 | H103: 17.264 | I103: 0.512174377 | J103: 13 | K103: 3 | L103: 6.001 | M103: ['Single transmembrane helix'] | N103: ['63-121'] | O103: 1 | P103: 1 | Q103: 0 | R103: 1 | S103: 0 | T103: 0 | U103: 0 | V103: 3 | W103: 0 | X103: 0 | Y103: No Info Available | Z103: No Info Available | AA103: 4.27 | AB103: 62.53379499 | AC103: 0 | AD103: 0 | AE103: 0 | AF103: 0 | AM103: Percent | AN103: None | AO103: =AO91/(AO91+AP91+AQ91+AR91) -> 0.6715063521 | AP103: =AP91/(AO91+AP91+AQ91+AR91) -> 0.08166969147 | AQ103: =AQ91/(AO91+AP91+AQ91+AR91) -> 0.0834845735 | AR103: =AR91/(AO91+AP91+AQ91+AR91) -> 0.1633393829
A104: P0ABA6 | B104: atpG | C104: ['inner membrane'] | D104: ['AtpC.', 'AtpH.', 'AtpA.3.', 'AtpG.', 'AtpD.3.'] | E104: ['Mg2'] | F104: N | G104: 9832 | H104: 31.577 | I104: 0.515539359 | J104: 9 | K104: 5 | L104: 8.907 | M104: ['Pyruvate kinase C-terminal domain-like'] | N104: ['2-287'] | O104: 1 | P104: 1 | Q104: 0 | R104: 3 | S104: 0 | T104: 0 | U104: 0 | V104: 5 | W104: 0 | X104: 0 | Y104: No Info Available | Z104: No Info Available | AA104: 7.26 | AB104: 64.4695075 | AC104: 0 | AD104: 0 | AE104: 1 | AF104: 0 | AN104: 'a [4Fe-4S] iron-sulfur cluster' | AO104: =AO92/(AO92+AP92+AQ92+AR92) -> 0.7894736842 | AP104: =AP92/(AO92+AP92+AQ92+AR92) -> 0 | AQ104: =AQ92/(AO92+AP92+AQ92+AR92) -> 0.05263157895 | AR104: =AR92/(AO92+AP92+AQ92+AR92) -> 0.1578947368
A105: P0ABA4 | B105: atpH | C105: ['inner membrane'] | D105: ['AtpC.', 'AtpH.', 'AtpA.3.', 'AtpG.', 'AtpD.3.'] | E105: ['Mg2'] | F105: N | G105: 9335 | H105: 19.332 | I105: 0.299667883 | J105: 9 | K105: 5 | L105: 4.81 | M105: ['ATPD N-terminal domain-like'] | N105: ['3-102'] | O105: 1 | P105: 1 | Q105: 2 | R105: 11 | S105: 0 | T105: 2 | U105: 1 | V105: 14 | W105: 0 | X105: 1 | Y105: No Info Available | Z105: No Info Available | AA105: No Info Available | AB105: No Info Available | AC105: 0 | AD105: 0 | AE105: 0 | AF105: 0 | AN105: a [2Fe-2S] iron-sulfur cluster' | AO105: 0.875 | AP105: 0 | AQ105: 0 | AR105: 0.125
A106: P09053 | B106: avtA | C106: ['cytosol'] | D106: Monomer | E106: ["pyridoxal 5'-phosphateInhibitors (Unknown Mechanism)3-chloro-L-alanine"] | F106: N | G106: 1923 | H106: 46.711 | I106: 0.149158339 | J106: 1 | K106: 1 | L106: 5.686 | M106: ['PLP-dependent transferase-like'] | N106: ['26-411'] | O106: 1 | P106: 1 | Q106: 0 | R106: 2 | S106: 0 | T106: 0 | U106: 0 | V106: 3 | W106: 0 | X106: 0 | Y106: II | Z106: No Info Available | AA106: 4.45 | AB106: No Info Available | AC106: 0 | AD106: 0 | AE106: 1 | AF106: 0 | AN106: 'thiamine diphosphate' | AO106: 0.625 | AP106: 0.125 | AQ106: 0 | AR106: 0.25
A107: P41407 | B107: azoR | C107: ['cytosol'] | D107: ['AzoR.2'] | E107: ['FMN'] | F107: N | G107: 1521 | H107: 21.658 | I107: 0.054701175 | J107: 2 | K107: 1 | L107: 4.941 | M107: ['Flavodoxin-like'] | N107: ['1-199'] | O107: 1 | P107: 1 | Q107: 0 | R107: 1 | S107: 0 | T107: 0 | U107: 0 | V107: 2 | W107: 0 | X107: 0 | Y107: No Info Available | Z107: No Info Available | AA107: No Info Available | AB107: No Info Available | AC107: 0 | AD107: 0 | AE107: 0 | AF107: 0 | AN107: pyridoxal 5'-phosphate | AO107: 0.7142857143 | AP107: 0.04761904762 | AQ107: 0 | AR107: 0.2380952381
A108: C1P605 | B108: azuC | C108: ['inner membrane'] | D108: Monomer | E108: None | F108: ? | G108: 7848 | H108: 3.408 | I108: 0.044412751 | J108: 1 | K108: 1 | L108: 10.635 | M108: Unknown | O108: 0 | P108: 0 | Q108: 0 | R108: 1 | S108: 0 | T108: 0 | U108: 0 | V108: 0 | W108: 0 | X108: 0 | Y108: No Info Available | Z108: No Info Available | AA108: No Info Available | AB108: No Info Available | AC108: 0 | AD108: 0 | AE108: 0 | AF108: 0 | AN108: FMN | AO108: 0.7272727273 | AP108: 0 | AQ108: 0.09090909091 | AR108: 0.1818181818
A109: P69228 | B109: baeR | C109: ['cytosol'] | D109: Monomer | E109: None | F109: N | G109: 555 | H109: 27.656 | I109: 0.025487747 | J109: 1 | K109: 1 | L109: 5.469 | M109: ['Flavodoxin-like', 'DNA/RNA-binding 3-helical bundle'] | N109: ['6-138', '142-234'] | O109: 2 | P109: 2 | Q109: 0 | R109: 1 | S109: 0 | T109: 0 | U109: 0 | V109: 0 | W109: 0 | X109: 0 | Y109: No Info Available | Z109: No Info Available | AA109: No Info Available | AB109: No Info Available | AC109: 0 | AD109: 0 | AE109: 0 | AF109: 0 | AN109: FAD | AO109: 0.5909090909 | AP109: 0.09090909091 | AQ109: 0.04545454545 | AR109: 0.2727272727
A110: P30847 | B110: baeS | C110: ['inner membrane'] | D110: Monomer | E110: None | F110: N | G110: 26 | H110: 51.991 | I110: 0.00224466 | J110: 1 | K110: 1 | L110: 7.44 | M110: ['ATPase domain of HSP90 chaperone/DNA topoisomerase II/histidine kinase', 'ROP-like', 'HAMP domain-like'] | N110: ['293-459', '223-304', '188-236'] | O110: 3 | P110: 3 | Q110: 0 | R110: 1 | S110: 0 | T110: 0 | U110: 0 | V110: 1 | W110: 0 | X110: 0 | Y110: No Info Available | Z110: No Info Available | AA110: No Info Available | AB110: No Info Available | AC110: 0 | AD110: 0 | AE110: 0 | AF110: 0 | AN110: Fe2+ | AO110: 0.6428571429 | AP110: 0 | AQ110: 0.07142857143 | AR110: 0.2857142857
A111: P0A940 | B111: bamA | C111: ['outer membrane'] | D111: ['BamE.', 'BamC.', 'BamD.', 'BamA.', 'BamB.'] | E111: None | F111: Y | G111: 3904 | H111: 90.553 | I111: 0.587031955 | J111: 5 | K111: 5 | L111: 4.791 | M111: Unknown | O111: 0 | P111: 0 | Q111: 2 | R111: 14 | S111: 0 | T111: 2 | U111: 0 | V111: 12 | W111: 0 | X111: 0 | Y111: No Info Available | Z111: No Info Available | AA111: 5.24 | AB111: No Info Available | AC111: 1 | AD111: 0 | AE111: 0 | AF111: 0 | AN111: heme | AO111: 0.5 | AP111: 0 | AQ111: 0.5 | AR111: 0
A112: P0A903 | B112: bamC | C112: ['outer membrane'] | D112: ['BamE.', 'BamC.', 'BamD.', 'BamA.', 'BamB.'] | E112: None | F112: N | G112: 2653 | H112: 36.842 | I112: 0.162304118 | J112: 5 | K112: 5 | L112: 5.224 | M112: Unknown | O112: 0 | P112: 0 | Q112: 0 | R112: 3 | S112: 0 | T112: 0 | U112: 0 | V112: 2 | W112: 0 | X112: 0 | Y112: No Info Available | Z112: No Info Available | AA112: No Info Available | AB112: No Info Available | AC112: 0 | AD112: 0 | AE112: 1 | AF112: 0 | AN112: Mg | AO112: 0.5916666667 | AP112: 0.06666666667 | AQ112: 0.1083333333 | AR112: 0.2333333333
A113: P0AC02 | B113: bamD | C113: ['outer membrane'] | D113: ['BamE.', 'BamC.', 'BamD.', 'BamA.', 'BamB.'] | E113: None | F113: Y | G113: 6620 | H113: 27.829 | I113: 0.305917753 | J113: 5 | K113: 5 | L113: 6.293 | M113: ['alpha-alpha superhelix'] | N113: ['27-121'] | O113: 1 | P113: 1 | Q113: 0 | R113: 0 | S113: 0 | T113: 0 | U113: 0 | V113: 1 | W113: 0 | X113: 0 | Y113: No Info Available | Z113: No Info Available | AA113: 7.1 | AB113: No Info Available | AC113: 0 | AD113: 0 | AE113: 0 | AF113: 0 | AN113: Mn | AO113: 0.6285714286 | AP113: 0.02857142857 | AQ113: 0.08571428571 | AR113: 0.2571428571
A114: P0AEC5 | B114: barA | C114: ['inner membrane'] | D114: ['BarA.2'] | E114: None | F114: N | G114: 141 | H114: 102.45 | I114: 0.023987234 | J114: 2 | K114: 1 | L114: 5.379 | M114: ['ATPase domain of HSP90 chaperone/DNA topoisomerase II/histidine kinase', 'Flavodoxin-like', 'ROP-like', 'Four-helical up-and-down bundle', 'HAMP domain-like'] | N114: ['346-516', '668-785', '277-358', '764-777+808-909', '200-249'] | O114: 5 | P114: 5 | Q114: 0 | R114: 1 | S114: 0 | T114: 0 | U114: 0 | V114: 1 | W114: 0 | X114: 0 | Y114: No Info Available | Z114: No Info Available | AA114: No Info Available | AB114: No Info Available | AC114: 0 | AD114: 0 | AE114: 0 | AF114: 0 | AN114: Zn | AO114: 0.5862068966 | AP114: 0.03448275862 | AQ114: 0.1379310345 | AR114: 0.2413793103
A115: P30843 | B115: basR | C115: ['cytosol'] | D115: Monomer | E115: None | F115: N | G115: 663 | H115: 25.031 | I115: 0.027557564 | J115: 1 | K115: 1 | L115: 5.735 | M115: ['Flavodoxin-like', 'DNA/RNA-binding 3-helical bundle'] | N115: ['1-118', '118-218'] | O115: 2 | P115: 2 | Q115: 0 | R115: 2 | S115: 1 | T115: 1 | U115: 0 | V115: 2 | W115: 0 | X115: 0 | Y115: No Info Available | Z115: No Info Available | AA115: No Info Available | AB115: No Info Available | AC115: 0 | AD115: 0 | AE115: 1 | AF115: 0
A116: P0AE52 | B116: bcp | C116: ['cytosol'] | D116: Monomer | E116: None | F116: N | G116: 9932 | H116: 17.634 | I116: 0.290828282 | J116: 1 | K116: 1 | L116: 4.924 | M116: ['Thioredoxin fold'] | N116: ['3-154'] | O116: 1 | P116: 1 | Q116: 0 | R116: 10 | S116: 0 | T116: 0 | U116: 1 | V116: 12 | W116: 0 | X116: 1 | Y116: No Info Available | Z116: No Info Available | AA116: No Info Available | AB116: No Info Available | AC116: 0 | AD116: 0 | AE116: 1 | AF116: 0
A117: P37650 | B117: bcsC | C117: ['outer membrane'] | D117: Monomer | E117: None | F117: N | G117: 39 | H117: 127.72 | I117: 0.008271278 | J117: 1 | K117: 1 | L117: 5.931 | M117: ['alpha-alpha superhelix', 'alpha-alpha superhelix', 'alpha-alpha superhelix', 'alpha-alpha superhelix'] | N117: ['272-432', '466-545+609-660', '55-85+126-205', '580-737'] | O117: 4 | P117: 1 | Q117: 0 | R117: 2 | S117: 0 | T117: 0 | U117: 0 | V117: 0 | W117: 0 | X117: 0 | Y117: No Info Available | Z117: No Info Available | AA117: No Info Available | AB117: No Info Available | AC117: 0 | AD117: 0 | AE117: 0 | AF117: 0 | AN117: pI
A118: P37659 | B118: bcsG | C118: ['inner membrane'] | D118: Monomer | E118: None | F118: N | G118: 290 | H118: 62.032 | I118: 0.029871902 | J118: 1 | K118: 1 | L118: 6.273 | M118: Unknown | O118: 0 | P118: 0 | Q118: 0 | R118: 0 | S118: 0 | T118: 0 | U118: 0 | V118: 1 | W118: 0 | X118: 0 | Y118: No Info Available | Z118: No Info Available | AA118: No Info Available | AB118: No Info Available | AC118: 0 | AD118: 0 | AE118: 0 | AF118: 0 | AM118: Total | AN118: <5 | AO118: =COUNTIFS(AE:AE,"1",$L:$L,"<5") -> 100 | AP118: =COUNTIFS(AC:AC,"1",$L:$L,"<5") -> 18 | AQ118: =COUNTIFS(AD:AD,"1",$L:$L,"<5") -> 13 | AR118: =COUNTIFS(AF:AF,"1",$L:$L,"<5") -> 35 | AT118: =SUM(AO118:AR118)*AO$6 -> 108.6507538 | AU118: =SUM(AO118:AR118)*AP$6 -> 11.67839196 | AV118: =SUM(AO118:AR118)*AQ$6 -> 14.38944724 | AW118: =SUM(AO118:AR118)*AR$6 -> 31.28140704 | AY118: =_xlfn.CHISQ.TEST(AO118:AR118,AT118:AW118) -> 0.1962109145
A119: P39334 | B119: bdcR | C119: ['cytosol'] | D119: Monomer | E119: None | F119: N | G119: 544 | H119: 21.501 | I119: 0.019422568 | J119: 1 | K119: 1 | L119: 6.731 | M119: ['Tetracyclin repressor-like, C-terminal domain', 'DNA/RNA-binding 3-helical bundle'] | N119: ['89-191', '9-89'] | O119: 2 | P119: 2 | Q119: 0 | R119: 0 | S119: 0 | T119: 0 | U119: 0 | V119: 1 | W119: 0 | X119: 0 | Y119: No Info Available | Z119: No Info Available | AA119: No Info Available | AB119: No Info Available | AC119: 0 | AD119: 0 | AE119: 0 | AF119: 0 | AN119: 5to6 | AO119: =COUNTIFS(AE:AE,"1",$L:$L,">5",$L:$L,"<6") -> 198 | AP119: =COUNTIFS(AC:AC,"1",$L:$L,">5",$L:$L,"<6") -> 17 | AQ119: =COUNTIFS(AD:AD,"1",$L:$L,">5",$L:$L,"<6") -> 28 | AR119: =COUNTIFS(AF:AF,"1",$L:$L,">5",$L:$L,"<6") -> 79 | AT119: =SUM(AO119:AR119)*AO$6 -> 210.7562814 | AU119: =SUM(AO119:AR119)*AP$6 -> 22.65326633 | AV119: =SUM(AO119:AR119)*AQ$6 -> 27.9120603 | AW119: =SUM(AO119:AR119)*AR$6 -> 60.67839196 | AY119: =_xlfn.CHISQ.TEST(AO119:AR119,AT119:AW119) -> 0.05227670188
A120: P17444 | B120: betA | C120: ['cytosol', 'inner membrane'] | D120: Monomer | E120: None | F120: N | G120: 131 | H120: 61.878 | I120: 0.013460359 | J120: 1 | K120: 1 | L120: 5.436 | M120: ['FAD/NAD(P)-binding domain', 'FAD-linked reductases, C-terminal domain'] | N120: ['1-293+476-535', '295-477'] | O120: 2 | P120: 2 | Q120: 0 | R120: 2 | S120: 0 | T120: 0 | U120: 0 | V120: 1 | W120: 0 | X120: 0 | Y120: No Info Available | Z120: No Info Available | AA120: No Info Available | AB120: No Info Available | AC120: 0 | AD120: 0 | AE120: 0 | AF120: 0 | AN120: 6to7 | AO120: =COUNTIFS(AE:AE,"1",$L:$L,">6",$L:$L,"<7") -> 107 | AP120: =COUNTIFS(AC:AC,"1",$L:$L,">6",$L:$L,"<7") -> 7 | AQ120: =COUNTIFS(AD:AD,"1",$L:$L,">6",$L:$L,"<7") -> 7 | AR120: =COUNTIFS(AF:AF,"1",$L:$L,">6",$L:$L,"<7") -> 21 | AT120: 92.94221106 | AU120: 9.989949749 | AV120: 12.30904523 | AW120: 26.75879397 | AY120: 0.08769678534
A121: P17445 | B121: betB | C121: ['cytosol'] | D121: ['BetB.4'] | E121: None | F121: N | G121: 335 | H121: 52.911 | I121: 0.029433362 | J121: 4 | K121: 1 | L121: 5.074 | M121: ['ALDH-like'] | N121: ['4-482'] | O121: 1 | P121: 1 | Q121: 0 | R121: 0 | S121: 0 | T121: 0 | U121: 0 | V121: 2 | W121: 0 | X121: 0 | Y121: No Info Available | Z121: No Info Available | AA121: No Info Available | AB121: No Info Available | AC121: 0 | AD121: 0 | AE121: 0 | AF121: 0 | AN121: 7to8 | AO121: =COUNTIFS(AE:AE,"1",$L:$L,">7",$L:$L,"<8") -> 26 | AP121: =COUNTIFS(AC:AC,"1",$L:$L,">7",$L:$L,"<8") -> 1 | AQ121: =COUNTIFS(AD:AD,"1",$L:$L,">7",$L:$L,"<8") -> 4 | AR121: =COUNTIFS(AF:AF,"1",$L:$L,">7",$L:$L,"<8") -> 4 | AT121: 22.90829146 | AU121: 2.462311558 | AV121: 3.033919598 | AW121: 6.595477387 | AY121: 0.4549183625
A122: P0ABD3 | B122: bfr | C122: ['cytosol'] | D122: ['Bfr.24'] | E122: None | F122: N | G122: 192 | H122: 18.495 | I122: 0.005896641 | J122: 24 | K122: 1 | L122: 4.552 | M122: ['Ferritin-like'] | N122: ['5-150'] | O122: 1 | P122: 1 | Q122: 1 | R122: 3 | S122: 0 | T122: 1 | U122: 0 | V122: 5 | W122: 0 | X122: 0 | Y122: No Info Available | Z122: No Info Available | AA122: No Info Available | AB122: 53.56153518 | AC122: 0 | AD122: 0 | AE122: 1 | AF122: 0 | AN122: 8to9 | AO122: =COUNTIFS(AE:AE,"1",$L:$L,">8",$L:$L,"<9") -> 18 | AP122: =COUNTIFS(AC:AC,"1",$L:$L,">8",$L:$L,"<9") -> 2 | AQ122: =COUNTIFS(AD:AD,"1",$L:$L,">8",$L:$L,"<9") -> 1 | AR122: =COUNTIFS(AF:AF,"1",$L:$L,">8",$L:$L,"<9") -> 3 | AT122: 15.70854271 | AU122: 1.688442211 | AV122: 2.08040201 | AW122: 4.522613065 | AY122: 0.6902685555
A123: Q46829 | B123: bglA | C123: ['cytosol'] | D123: Monomer | E123: None | F123: N | G123: 2950 | H123: 55.361 | I123: 0.27119085 | J123: 1 | K123: 1 | L123: 5.581 | M123: ['TIM beta/alpha-barrel'] | N123: ['8-476'] | O123: 1 | P123: 1 | Q123: 0 | R123: 2 | S123: 0 | T123: 0 | U123: 0 | V123: 3 | W123: 0 | X123: 0 | Y123: No Info Available | Z123: No Info Available | AA123: No Info Available | AB123: 53.80227182 | AC123: 0 | AD123: 0 | AE123: 1 | AF123: 0 | AN123: 9to10 | AO123: =COUNTIFS(AE:AE,"1",$L:$L,">9",$L:$L,"<10") -> 25 | AP123: =COUNTIFS(AC:AC,"1",$L:$L,">9",$L:$L,"<10") -> 3 | AQ123: =COUNTIFS(AD:AD,"1",$L:$L,">9",$L:$L,"<10") -> 3 | AR123: =COUNTIFS(AF:AF,"1",$L:$L,">9",$L:$L,"<10") -> 2 | AT123: 21.59924623 | AU123: 2.32160804 | AV123: 2.860552764 | AW123: 6.218592965 | AY123: 0.3077350469
A124: P26218 | B124: bglH | C124: ['outer membrane'] | D124: Monomer | E124: None | F124: N | G124: ? | H124: 60.657 | I124: ? | J124: 1 | K124: 1 | L124: 5.107 | M124: ['Transmembrane beta-barrels'] | N124: ['125-538'] | O124: 1 | P124: 1 | Q124: 0 | R124: 1 | S124: 0 | T124: 0 | U124: 0 | V124: 1 | W124: 0 | X124: 0 | Y124: No Info Available | Z124: No Info Available | AA124: No Info Available | AB124: No Info Available | AC124: 0 | AD124: 0 | AE124: 0 | AF124: 0 | AN124: >10 | AO124: =COUNTIFS(AE:AE,"1",$L:$L,">10") -> 20 | AP124: =COUNTIFS(AC:AC,"1",$L:$L,">10") -> 7 | AQ124: =COUNTIFS(AD:AD,"1",$L:$L,">10") -> 11 | AR124: =COUNTIFS(AF:AF,"1",$L:$L,">10") -> 2 | AT124: 26.18090452 | AU124: 2.814070352 | AV124: 3.467336683 | AW124: 7.537688442 | AY124: 3.429726219e-06
A125: P33363 | B125: bglX | C125: ['periplasmic space'] | D125: Monomer | E125: None | F125: N | G125: 769 | H125: 83.46 | I125: 0.106574624 | J125: 1 | K125: 1 | L125: 5.922 | M125: ['TIM beta/alpha-barrel', 'Flavodoxin-like'] | N125: ['34-394', '395-464+495-651'] | O125: 2 | P125: 2 | Q125: 1 | R125: 7 | S125: 0 | T125: 1 | U125: 0 | V125: 10 | W125: 0 | X125: 0 | Y125: No Info Available | Z125: No Info Available | AA125: No Info Available | AB125: 58.4996645 | AC125: 0 | AD125: 0 | AE125: 1 | AF125: 0 | AM125: Percent | AN125: <5 | AO125: =AO118/(AO118+AP118+AQ118+AR118) -> 0.6024096386 | AP125: =AP118/(AO118+AP118+AQ118+AR118) -> 0.1084337349 | AQ125: =AQ118/(AO118+AP118+AQ118+AR118) -> 0.07831325301 | AR125: =AR118/(AO118+AP118+AQ118+AR118) -> 0.2108433735
A126: P0AB40 | B126: bhsA | C126: ['outer membrane'] | D126: Monomer | E126: None | F126: N | G126: 2282 | H126: 8.815 | I126: 0.033403121 | J126: 1 | K126: 1 | L126: 8.84 | M126: ['Dodecin subunit-like'] | N126: ['3-85'] | O126: 1 | P126: 1 | Q126: 0 | R126: 1 | S126: 0 | T126: 0 | U126: 0 | V126: 0 | W126: 0 | X126: 0 | Y126: No Info Available | Z126: No Info Available | AA126: No Info Available | AB126: No Info Available | AC126: 0 | AD126: 0 | AE126: 0 | AF126: 0 | AN126: 5to6 | AO126: =AO119/(AO119+AP119+AQ119+AR119) -> 0.6149068323 | AP126: =AP119/(AO119+AP119+AQ119+AR119) -> 0.05279503106 | AQ126: =AQ119/(AO119+AP119+AQ119+AR119) -> 0.08695652174 | AR126: =AR119/(AO119+AP119+AQ119+AR119) -> 0.2453416149
A127: P12996 | B127: bioB | C127: Unknown | D127: ['BioB.2'] | E127: ['a [2Fe-2S] iron-sulfur cluster', 'a [4Fe-4S] iron-sulfur cluster'] | F127: N | G127: 4948 | H127: 38.648 | I127: 0.317545386 | J127: 2 | K127: 1 | L127: 5.227 | M127: ['TIM beta/alpha-barrel'] | N127: ['6-313'] | O127: 1 | P127: 1 | Q127: 1 | R127: 11 | S127: 0 | T127: 1 | U127: 1 | V127: 7 | W127: 0 | X127: 1 | Y127: No Info Available | Z127: No Info Available | AA127: 4.62 | AB127: 46.52221702 | AC127: 0 | AD127: 0 | AE127: 1 | AF127: 0 | AN127: 6to7 | AO127: 0.7535211268 | AP127: 0.04929577465 | AQ127: 0.04929577465 | AR127: 0.1478873239
A128: P12999 | B128: bioC | C128: ['cytosol'] | D128: Monomer | E128: None | F128: N | G128: 551 | H128: 28.276 | I128: 0.025871324 | J128: 1 | K128: 1 | L128: 8 | M128: ['S-adenosyl-L-methionine-dependent methyltransferases'] | N128: ['10-244'] | O128: 1 | P128: 1 | Q128: 0 | R128: 1 | S128: 0 | T128: 0 | U128: 0 | V128: 0 | W128: 0 | X128: 0 | Y128: No Info Available | Z128: No Info Available | AA128: 3.74 | AB128: No Info Available | AC128: 0 | AD128: 0 | AE128: 0 | AF128: 0 | AN128: 7to8 | AO128: 0.7428571429 | AP128: 0.02857142857 | AQ128: 0.1142857143 | AR128: 0.1142857143
A129: P13000 | B129: bioD1 | C129: ['cytosol'] | D129: ['BioD.2'] | E129: ['Mg2+'] | F129: N | G129: 2362 | H129: 24.14 | I129: 0.094681744 | J129: 2 | K129: 1 | L129: ? | M129: ['P-loop containing nucleoside triphosphate hydrolases'] | N129: ['1-211'] | O129: 1 | P129: 1 | Q129: 0 | R129: 1 | S129: 0 | T129: 0 | U129: 0 | V129: 0 | W129: 0 | X129: 0 | Y129: No Info Available | Z129: No Info Available | AA129: No Info Available | AB129: No Info Available | AC129: 0 | AD129: 0 | AE129: 0 | AF129: 0 | AN129: 8to9 | AO129: 0.75 | AP129: 0.08333333333 | AQ129: 0.04166666667 | AR129: 0.125
A130: P0A6E9 | B130: bioD2 | C130: ['cytosol'] | D130: Monomer | E130: None | F130: N | G130: 42 | H130: 24.981 | I130: 0.001742241 | J130: 1 | K130: 1 | L130: ? | M130: ['P-loop containing nucleoside triphosphate hydrolases'] | N130: ['1-213'] | O130: 1 | P130: 1 | Q130: 0 | R130: 0 | S130: 0 | T130: 0 | U130: 0 | V130: 1 | W130: 0 | X130: 0 | Y130: No Info Available | Z130: No Info Available | AA130: No Info Available | AB130: No Info Available | AC130: 0 | AD130: 0 | AE130: 0 | AF130: 0 | AN130: 9to10 | AO130: 0.7575757576 | AP130: 0.09090909091 | AQ130: 0.09090909091 | AR130: 0.06060606061
A131: P06709 | B131: birA | C131: ['cytosol'] | D131: Monomer | E131: ['Mg2+'] | F131: Y | G131: 515 | H131: 35.312 | I131: 0.030198032 | J131: 1 | K131: 1 | L131: 8.094 | M131: ['Class II aaRS and biotin synthetases', 'DNA/RNA-binding 3-helical bundle', 'SH3-like barrel'] | N131: ['69-268', '3-60', '271-317'] | O131: 3 | P131: 3 | Q131: 0 | R131: 1 | S131: 0 | T131: 0 | U131: 0 | V131: 0 | W131: 0 | X131: 0 | Y131: No Info Available | Z131: No Info Available | AA131: No Info Available | AB131: No Info Available | AC131: =IF(OR(AND(T131>2,R131>1,X131=0,V131>1),AND(T131>2,R131>1,X131=1,V131>1),AND(T131=2,R131>1,X131=0,V131>1)),1,0) -> 0 | AD131: =IF(OR(AND(T131=0,R131>1,X131>2,V131>1),AND(T131=0,R131>1,X131=2,V131>1),AND(T131=1,R131>1,X131>2,V131>1)),1,0) -> 0 | AE131: =IF(AND(T131<2,R131>1,X131<2,V131>1),1,0) -> 0 | AF131: =IF(AND(T131>1,R131>1,X131>1,V131>1),1,0) -> 0 | AN131: >10 | AO131: 0.5 | AP131: 0.175 | AQ131: 0.275 | AR131: 0.05
A132: P0ABE2 | B132: bolA | C132: ['cytosol'] | D132: ['BolA.', 'GrxD.'] | E132: None | F132: N | G132: 1945 | H132: 11.994 | I132: 0.038737603 | J132: 2 | K132: 2 | L132: 6.374 | M132: ['Alpha-lytic protease prodomain-like'] | N132: ['1-89'] | O132: 1 | P132: 1 | Q132: 0 | R132: 2 | S132: 0 | T132: 0 | U132: 0 | V132: 1 | W132: 0 | X132: 0 | Y132: No Info Available | Z132: No Info Available | AA132: 4.92 | AB132: 61.14551934 | AC132: 0 | AD132: 0 | AE132: 0 | AF132: 0
A133: P06611 | B133: btuD | C133: ['inner membrane'] | D133: ['BtuD.2', 'BtuC.2', 'BtuF.'] | E133: None | F133: N | G133: 112 | H133: 27.081 | I133: 0.005036534 | J133: 5 | K133: 3 | L133: 9.326 | M133: ['P-loop containing nucleoside triphosphate hydrolases'] | N133: ['14-226'] | O133: 1 | P133: 1 | Q133: 0 | R133: 1 | S133: 0 | T133: 0 | U133: 0 | V133: 2 | W133: 0 | X133: 0 | Y133: No Info Available | Z133: No Info Available | AA133: 3.44 | AB133: No Info Available | AC133: 0 | AD133: 0 | AE133: 0 | AF133: 0 | AN133: Molecular Weight
A134: P06610 | B134: btuE | C134: ['periplasmic space'] | D134: Monomer | E134: None | F134: N | G134: 383 | H134: 20.47 | I134: 0.013018643 | J134: 1 | K134: 1 | L134: 4.673 | M134: ['Thioredoxin fold'] | N134: ['6-182'] | O134: 1 | P134: 1 | Q134: 0 | R134: 1 | S134: 0 | T134: 0 | U134: 0 | V134: 1 | W134: 0 | X134: 0 | Y134: No Info Available | Z134: No Info Available | AA134: No Info Available | AB134: No Info Available | AC134: 0 | AD134: 0 | AE134: 0 | AF134: 0 | AM134: Total | AN134: <20 | AO134: =COUNTIFS(AE:AE,"1",$H:$H,"<20") -> 130 | AP134: =COUNTIFS(AC:AC,"1",$H:$H,"<20") -> 20 | AQ134: =COUNTIFS(AD:AD,"1",$H:$H,"<20") -> 26 | AR134: =COUNTIFS(AF:AF,"1",$H:$H,"<20") -> 24 | AT134: =SUM(AO134:AR134)*AO$6 -> 130.9045226 | AU134: =SUM(AO134:AR134)*AP$6 -> 14.07035176 | AV134: =SUM(AO134:AR134)*AQ$6 -> 17.33668342 | AW134: =SUM(AO134:AR134)*AR$6 -> 37.68844221 | AY134: =_xlfn.CHISQ.TEST(AO134:AR134,AT134:AW134) -> 0.008078287625
A135: P0A9H3 | B135: cadA | C135: ['cytosol'] | D135: ['CadA.10'] | E135: ["pyridoxal 5'-phosphate"] | F135: N | G135: ? | H135: 81.26 | I135: ? | J135: 10 | K135: 1 | L135: 6.047 | M135: ['PLP-dependent transferase-like', 'Ornithine decarboxylase C-terminal domain'] | N135: ['130-561', '567-708'] | O135: 2 | P135: 2 | Q135: 0 | R135: 1 | S135: 0 | T135: 0 | U135: 0 | V135: 0 | W135: 0 | X135: 0 | Y135: No Info Available | Z135: No Info Available | AA135: No Info Available | AB135: No Info Available | AC135: 0 | AD135: 0 | AE135: 0 | AF135: 0 | AN135: 20-30 | AO135: =COUNTIFS(AE:AE,"1",$H:$H,">20",$H:$H,"<30") -> 119 | AP135: =COUNTIFS(AC:AC,"1",$H:$H,">20",$H:$H,"<30") -> 11 | AQ135: =COUNTIFS(AD:AD,"1",$H:$H,">20",$H:$H,"<30") -> 13 | AR135: =COUNTIFS(AF:AF,"1",$H:$H,">20",$H:$H,"<30") -> 30 | AT135: =SUM(AO135:AR135)*AO$6 -> 113.2324121 | AU135: =SUM(AO135:AR135)*AP$6 -> 12.17085427 | AV135: =SUM(AO135:AR135)*AQ$6 -> 14.99623116 | AW135: =SUM(AO135:AR135)*AR$6 -> 32.60050251 | AY135: =_xlfn.CHISQ.TEST(AO135:AR135,AT135:AW135) -> 0.8303518619
A136: P61517 | B136: can | C136: ['cytosol'] | D136: ['Can.4'] | E136: ['Zn2+'] | F136: Y | G136: 8138 | H136: 25.097 | I136: 0.339147474 | J136: 4 | K136: 1 | L136: 6.327 | M136: ['Resolvase-like'] | N136: ['5-207'] | O136: 1 | P136: 1 | Q136: 0 | R136: 7 | S136: 0 | T136: 0 | U136: 1 | V136: 4 | W136: 0 | X136: 1 | Y136: II | Z136: No Info Available | AA136: 11.71 | AB136: 55.32796056 | AC136: 0 | AD136: 0 | AE136: 1 | AF136: 0 | AN136: 30-40 | AO136: =COUNTIFS(AE:AE,"1",$H:$H,">30",$H:$H,"<40") -> 102 | AP136: =COUNTIFS(AC:AC,"1",$H:$H,">30",$H:$H,"<40") -> 12 | AQ136: =COUNTIFS(AD:AD,"1",$H:$H,">30",$H:$H,"<40") -> 13 | AR136: =COUNTIFS(AF:AF,"1",$H:$H,">30",$H:$H,"<40") -> 24 | AT136: 98.83291457 | AU136: 10.62311558 | AV136: 13.08919598 | AW136: 28.45477387 | AY136: 0.8065798484
A137: P0A6F1 | B137: carA | C137: ['cytosol'] | D137: ['CarB.2', 'CarA.2'] | E137: ['Mg2+'] | F137: N | G137: 456 | H137: 41.431 | I137: 0.031371794 | J137: 4 | K137: 2 | L137: 6.061 | M137: ['Flavodoxin-like', 'The "swivelling" beta/beta/alpha domain'] | N137: ['153-378', '3-143'] | O137: 2 | P137: 2 | Q137: 1 | R137: 5 | S137: 0 | T137: 1 | U137: 0 | V137: 2 | W137: 0 | X137: 0 | Y137: No Info Available | Z137: No Info Available | AA137: 3.05 | AB137: 56.65124104 | AC137: 0 | AD137: 0 | AE137: 1 | AF137: 0 | AN137: 40-50 | AO137: =COUNTIFS(AE:AE,"1",$H:$H,">40",$H:$H,"<50") -> 77 | AP137: =COUNTIFS(AC:AC,"1",$H:$H,">40",$H:$H,"<50") -> 3 | AQ137: =COUNTIFS(AD:AD,"1",$H:$H,">40",$H:$H,"<50") -> 6 | AR137: =COUNTIFS(AF:AF,"1",$H:$H,">40",$H:$H,"<50") -> 25 | AT137: 72.65201005 | AU137: 7.809045226 | AV137: 9.621859296 | AW137: 20.91708543 | AY137: 0.145864558
A138: P00968 | B138: carB | C138: ['cytosol'] | D138: ['CarB.2', 'CarA.2'] | E138: ['Mg2+'] | F138: N | G138: 530 | H138: 117.84 | I138: 0.103709298 | J138: 4 | K138: 2 | L138: 5.105 | M138: ['ATP-grasp', 'ATP-grasp', 'Carbamoyl phosphate synthetase, large subunit connection domain', 'PreATP-grasp domain', 'PreATP-grasp domain', 'Methylglyoxal synthase-like'] | N138: ['128-339', '674-876', '396-554', '1-127', '557-676', '938-1071'] | O138: 6 | P138: 4 | Q138: 0 | R138: 9 | S138: 0 | T138: 0 | U138: 2 | V138: 14 | W138: 0 | X138: 2 | Y138: No Info Available | Z138: No Info Available | AA138: No Info Available | AB138: 56.97805525 | AC138: 0 | AD138: 1 | AE138: 0 | AF138: 0 | AN138: 50-60 | AO138: =COUNTIFS(AE:AE,"1",$H:$H,">50",$H:$H,"<60") -> 32 | AP138: =COUNTIFS(AC:AC,"1",$H:$H,">50",$H:$H,"<60") -> 3 | AQ138: =COUNTIFS(AD:AD,"1",$H:$H,">50",$H:$H,"<60") -> 5 | AR138: =COUNTIFS(AF:AF,"1",$H:$H,">50",$H:$H,"<60") -> 13 | AT138: 34.68969849 | AU138: 3.728643216 | AV138: 4.594221106 | AW138: 9.987437186 | AY138: 0.7302083079
A139: P36659 | B139: cbpA | C139: ['bacterial nucleoid', 'cytosol'] | D139: Monomer | E139: None | F139: N | G139: 508 | H139: 34.455 | I139: 0.029064647 | J139: 1 | K139: 1 | L139: 6.52 | M139: ['Long alpha-hairpin', 'HSP40/DnaJ peptide-binding domain', 'HSP40/DnaJ peptide-binding domain'] | N139: ['1-93', '204-284', '115-210'] | O139: 3 | P139: 2 | Q139: 0 | R139: 1 | S139: 0 | T139: 0 | U139: 0 | V139: 1 | W139: 0 | X139: 0 | Y139: No Info Available | Z139: No Info Available | AA139: 6.18 | AB139: No Info Available | AC139: 0 | AD139: 0 | AE139: 0 | AF139: 0 | AN139: 60-80 | AO139: =COUNTIFS(AE:AE,"1",$H:$H,">60",$H:$H,"<80") -> 26 | AP139: =COUNTIFS(AC:AC,"1",$H:$H,">60",$H:$H,"<80") -> 3 | AQ139: =COUNTIFS(AD:AD,"1",$H:$H,">60",$H:$H,"<80") -> 3 | AR139: =COUNTIFS(AF:AF,"1",$H:$H,">60",$H:$H,"<80") -> 21 | AT139: 34.68969849 | AU139: 3.728643216 | AV139: 4.594221106 | AW139: 9.987437186 | AY139: 0.001803659405
A140: P37047 | B140: cdaR | C140: Unknown | D140: Monomer | E140: None | F140: N | G140: ? | H140: 43.687 | I140: ? | J140: 1 | K140: 1 | L140: 6.445 | M140: Unknown | O140: 0 | P140: 0 | Q140: 1 | R140: 2 | S140: 0 | T140: 1 | U140: 0 | V140: 1 | W140: 0 | X140: 0 | Y140: No Info Available | Z140: No Info Available | AA140: No Info Available | AB140: No Info Available | AC140: 0 | AD140: 0 | AE140: 0 | AF140: 0 | AN140: 80-100 | AO140: =COUNTIFS(AE:AE,"1",$H:$H,">80",$H:$H,"<100") -> 16 | AP140: =COUNTIFS(AC:AC,"1",$H:$H,">80",$H:$H,"<100") -> 2 | AQ140: =COUNTIFS(AD:AD,"1",$H:$H,">80",$H:$H,"<100") -> 2 | AR140: =COUNTIFS(AF:AF,"1",$H:$H,">80",$H:$H,"<100") -> 7 | AT140: 17.67211055 | AU140: 1.899497487 | AV140: 2.340452261 | AW140: 5.087939698 | AY140: 0.8177934143
A141: P0ABF6 | B141: cdd | C141: ['cytosol'] | D141: ['Cdd.2'] | E141: ['Zn2+'] | F141: N | G141: 313 | H141: 31.54 | I141: 0.016392875 | J141: 2 | K141: 1 | L141: 5.435 | M141: ['Cytidine deaminase-like', 'Cytidine deaminase-like'] | N141: ['152-293', '60-166'] | O141: 2 | P141: 1 | Q141: 0 | R141: 1 | S141: 0 | T141: 0 | U141: 0 | V141: 2 | W141: 0 | X141: 0 | Y141: No Info Available | Z141: No Info Available | AA141: 3.84 | AB141: 55.60451501 | AC141: 0 | AD141: 0 | AE141: 0 | AF141: 0 | AN141: >100 | AO141: =COUNTIFS(AE:AE,"1",$H:$H,">100") -> 16 | AP141: =COUNTIFS(AC:AC,"1",$H:$H,">100") -> 2 | AQ141: =COUNTIFS(AD:AD,"1",$H:$H,">100") -> 1 | AR141: =COUNTIFS(AF:AF,"1",$H:$H,">100") -> 6 | AT141: 16.36306533 | AU141: 1.75879397 | AV141: 2.167085427 | AW141: 4.711055276 | AY141: 0.7958500873
A142: P0AE60 | B142: cedA | C142: ['cytosol'] | D142: Monomer | E142: None | F142: N | G142: 663 | H142: 9.377 | I142: 0.01032349 | J142: 1 | K142: 1 | L142: 9.919 | M142: Unknown | O142: 0 | P142: 0 | Q142: 0 | R142: 2 | S142: 0 | T142: 0 | U142: 0 | V142: 1 | W142: 0 | X142: 0 | Y142: No Info Available | Z142: No Info Available | AA142: No Info Available | AB142: No Info Available | AC142: 0 | AD142: 0 | AE142: 0 | AF142: 0 | AM142: Percent | AN142: <20 | AO142: =AO134/(AO134+AP134+AQ134+AR134) -> 0.65 | AP142: =AP134/(AO134+AP134+AQ134+AR134) -> 0.1 | AQ142: =AQ134/(AO134+AP134+AQ134+AR134) -> 0.13 | AR142: =AR134/(AO134+AP134+AQ134+AR134) -> 0.12
A143: P0A9H7 | B143: cfa | C143: ['inner membrane', 'cytosol'] | D143: ['Cfa.2'] | E143: ['hydrogencarbonate'] | F143: N | G143: 1049 | H143: 43.909 | I143: 0.076485327 | J143: 2 | K143: 1 | L143: 5.737 | M143: ['S-adenosyl-L-methionine-dependent methyltransferases'] | N143: ['117-373'] | O143: 1 | P143: 1 | Q143: 1 | R143: 7 | S143: 0 | T143: 1 | U143: 0 | V143: 8 | W143: 0 | X143: 0 | Y143: No Info Available | Z143: No Info Available | AA143: 5.61 | AB143: No Info Available | AC143: 0 | AD143: 0 | AE143: 1 | AF143: 0 | AN143: 20-30 | AO143: =AO135/(AO135+AP135+AQ135+AR135) -> 0.6878612717 | AP143: =AP135/(AO135+AP135+AQ135+AR135) -> 0.06358381503 | AQ143: =AQ135/(AO135+AP135+AQ135+AR135) -> 0.07514450867 | AR143: =AR135/(AO135+AP135+AQ135+AR135) -> 0.1734104046
A144: P07330 | B144: cheB | C144: ['inner membrane', 'cytosol'] | D144: Monomer | E144: None | F144: N | G144: ? | H144: 37.468 | I144: ? | J144: 1 | K144: 1 | L144: 8.222 | M144: ['Methylesterase CheB, C-terminal domain', 'Flavodoxin-like'] | N144: ['156-342', '1-108'] | O144: 2 | P144: 2 | Q144: 0 | R144: 1 | S144: 0 | T144: 0 | U144: 0 | V144: 1 | W144: 0 | X144: 0 | Y144: No Info Available | Z144: No Info Available | AA144: No Info Available | AB144: No Info Available | AC144: 0 | AD144: 0 | AE144: 0 | AF144: 0 | AN144: 30-40 | AO144: 0.6754966887 | AP144: 0.07947019868 | AQ144: 0.08609271523 | AR144: 0.1589403974
A145: P13656 | B145: chiA | C145: ['extracellular space', 'periplasmic space'] | D145: Monomer | E145: None | F145: N | G145: 97 | H145: 97.057 | I145: 0.015633193 | J145: 1 | K145: 1 | L145: 5.373 | M145: ['TIM beta/alpha-barrel', 'WW domain-like'] | N145: ['606-877', '456-513'] | O145: 2 | P145: 2 | Q145: 0 | R145: 0 | S145: 0 | T145: 0 | U145: 0 | V145: 1 | W145: 0 | X145: 0 | Y145: No Info Available | Z145: No Info Available | AA145: No Info Available | AB145: No Info Available | AC145: 0 | AD145: 0 | AE145: 0 | AF145: 0 | AN145: 40-50 | AO145: 0.6936936937 | AP145: 0.02702702703 | AQ145: 0.05405405405 | AR145: 0.2252252252
A146: P75733 | B146: chiP | C146: ['outer membrane'] | D146: Monomer | E146: None | F146: N | G146: ? | H146: 52.78 | I146: ? | J146: 1 | K146: 1 | L146: 4.699 | M146: Unknown | O146: 0 | P146: 0 | Q146: 0 | R146: 1 | S146: 0 | T146: 0 | U146: 0 | V146: 0 | W146: 0 | X146: 0 | Y146: No Info Available | Z146: No Info Available | AA146: No Info Available | AB146: No Info Available | AC146: 0 | AD146: 0 | AE146: 0 | AF146: 0 | AN146: 50-60 | AO146: 0.6037735849 | AP146: 0.05660377358 | AQ146: 0.09433962264 | AR146: 0.2452830189
A147: P0AGE6 | B147: chrR | C147: ['cytosol'] | D147: ['YieF.2'] | E147: ['FMN'] | F147: N | G147: 702 | H147: 20.376 | I147: 0.023752271 | J147: 2 | K147: 1 | L147: ? | M147: ['Flavodoxin-like'] | N147: ['7-178'] | O147: 1 | P147: 1 | Q147: 1 | R147: 2 | S147: 0 | T147: 1 | U147: 0 | V147: 1 | W147: 0 | X147: 0 | Y147: No Info Available | Z147: No Info Available | AA147: No Info Available | AB147: 59.95565433 | AC147: 0 | AD147: 0 | AE147: 0 | AF147: 0 | AN147: 60-80 | AO147: 0.4905660377 | AP147: 0.05660377358 | AQ147: 0.05660377358 | AR147: 0.3962264151
A148: P0AE74 | B148: citT | C148: ['inner membrane'] | D148: Monomer | E148: None | F148: N | G148: ? | H148: 53.093 | I148: ? | J148: 1 | K148: 1 | L148: 8.597 | M148: Unknown | O148: 0 | P148: 0 | Q148: 0 | R148: 2 | S148: 0 | T148: 0 | U148: 0 | V148: 1 | W148: 0 | X148: 0 | Y148: No Info Available | Z148: No Info Available | AA148: No Info Available | AB148: No Info Available | AC148: 0 | AD148: 0 | AE148: 0 | AF148: 0 | AN148: 80-100 | AO148: 0.5925925926 | AP148: 0.07407407407 | AQ148: 0.07407407407 | AR148: 0.2592592593
A149: P0ABH9 | B149: clpA | C149: ['cytosol'] | D149: ['ClpP.14.', 'ClpA.6.', 'ClpX.6.'] | E149: None | F149: N | G149: 989 | H149: 84.207 | I149: 0.138290892 | J149: 26 | K149: 3 | L149: 6.023 | M149: ['P-loop containing nucleoside triphosphate hydrolases', 'P-loop containing nucleoside triphosphate hydrolases', 'Double Clp-N motif'] | N149: ['437-748', '169-426', '1-141'] | O149: 3 | P149: 2 | Q149: 0 | R149: 2 | S149: 0 | T149: 0 | U149: 0 | V149: 4 | W149: 0 | X149: 0 | Y149: No Info Available | Z149: No Info Available | AA149: 3.01 | AB149: No Info Available | AC149: 0 | AD149: 0 | AE149: 1 | AF149: 0 | AN149: >100 | AO149: 0.64 | AP149: 0.08 | AQ149: 0.04 | AR149: 0.24
A150: P63284 | B150: clpB | C150: Unknown | D150: Monomer | E150: None | F150: N | G150: ? | H150: 79.838 | I150: ? | J150: 1 | K150: 1 | L150: 5.341 | M150: ['P-loop containing nucleoside triphosphate hydrolases', 'P-loop containing nucleoside triphosphate hydrolases', 'Double Clp-N motif'] | N150: ['159-545', '546-853', '4-156'] | O150: 3 | P150: 2 | Q150: 1 | R150: 52 | S150: 2 | T150: 3 | U150: 2 | V150: 58 | W150: 0 | X150: 2 | Y150: No Info Available | Z150: No Info Available | AA150: 3.1 | AB150: 47.30156722 | AC150: 0 | AD150: 0 | AE150: 0 | AF150: 1
A151: P0A6G7 | B151: clpP | C151: ['cytosol'] | D151: ['ClpP.14.', 'ClpA.6.', 'ClpX.6.'] | E151: None | F151: N | G151: 6334 | H151: 23.187 | I151: 0.243877487 | J151: 26 | K151: 3 | L151: 5.538 | M151: ['ClpP/crotonase'] | N151: ['17-204'] | O151: 1 | P151: 1 | Q151: 2 | R151: 10 | S151: 0 | T151: 2 | U151: 1 | V151: 14 | W151: 1 | X151: 2 | Y151: No Info Available | Z151: No Info Available | AA151: 7.08 | AB151: 58.10443705 | AC151: 0 | AD151: 0 | AE151: 0 | AF151: 1 | AN151: Chaperonin Class
A152: P0A6H1 | B152: clpX | C152: ['cytosol'] | D152: ['ClpP.14.', 'ClpA.6.', 'ClpX.6.'] | E152: None | F152: N | G152: 5857 | H152: 46.356 | I152: 0.450848126 | J152: 26 | K152: 3 | L152: 5.107 | M152: ['P-loop containing nucleoside triphosphate hydrolases', 'Glucocorticoid receptor-like (DNA-binding domain)'] | N152: ['64-403', '13-48'] | O152: 2 | P152: 2 | Q152: 0 | R152: 18 | S152: 0 | T152: 0 | U152: 1 | V152: 14 | W152: 0 | X152: 1 | Y152: No Info Available | Z152: No Info Available | AA152: 3.78 | AB152: No Info Available | AC152: 0 | AD152: 0 | AE152: 1 | AF152: 0 | AN152: I | AO152: =COUNTIFS(AE:AE,"1",$Y:$Y,AN152) -> 1 | AP152: =COUNTIFS(AC:AC,"1",$Y:$Y,AN152) -> 1 | AQ152: =COUNTIFS(AD:AD,"1",$Y:$Y,AN152) -> 5 | AR152: =COUNTIFS(AF:AF,"1",$Y:$Y,AN152) -> 22 | AT152: =SUM(AO152:AR152)*AO$6 -> 18.98115578 | AU152: =SUM(AO152:AR152)*AP$6 -> 2.040201005 | AV152: =SUM(AO152:AR152)*AQ$6 -> 2.513819095 | AW152: =SUM(AO152:AR152)*AR$6 -> 5.464824121 | AY152: =_xlfn.CHISQ.TEST(AO152:AR152,AT152:AW152) -> 4.155585138e-15
A153: P0AA84 | B153: clsB | C153: ['cytosol', 'inner membrane'] | D153: Monomer | E153: None | F153: N | G153: ? | H153: 47.634 | I153: ? | J153: 1 | K153: 1 | L153: 8.35 | M153: ['Phospholipase D/nuclease', 'Phospholipase D/nuclease'] | N153: ['4-163', '188-358'] | O153: 2 | P153: 1 | Q153: 0 | R153: 1 | S153: 0 | T153: 0 | U153: 0 | V153: 0 | W153: 0 | X153: 0 | Y153: No Info Available | Z153: No Info Available | AA153: No Info Available | AB153: No Info Available | AC153: 0 | AD153: 0 | AE153: 0 | AF153: 0 | AN153: II | AO153: =COUNTIFS(AE:AE,"1",$Y:$Y,AN153) -> 45 | AP153: =COUNTIFS(AC:AC,"1",$Y:$Y,AN153) -> 8 | AQ153: =COUNTIFS(AD:AD,"1",$Y:$Y,AN153) -> 4 | AR153: =COUNTIFS(AF:AF,"1",$Y:$Y,AN153) -> 9 | AT153: =SUM(AO153:AR153)*AO$6 -> 43.19849246 | AU153: =SUM(AO153:AR153)*AP$6 -> 4.64321608 | AV153: =SUM(AO153:AR153)*AQ$6 -> 5.721105528 | AW153: =SUM(AO153:AR153)*AR$6 -> 12.43718593 | AY153: =_xlfn.CHISQ.TEST(AO153:AR153,AT153:AW153) -> 0.2647682589
A154: P0A6I0 | B154: cmk | C154: ['cytosol'] | D154: Monomer | E154: ['Mg2'] | F154: N | G154: 1997 | H154: 24.746 | I154: 0.082060123 | J154: 1 | K154: 1 | L154: 5.575 | M154: ['P-loop containing nucleoside triphosphate hydrolases'] | N154: ['7-219'] | O154: 1 | P154: 1 | Q154: 0 | R154: 8 | S154: 0 | T154: 0 | U154: 0 | V154: 8 | W154: 1 | X154: 1 | Y154: No Info Available | Z154: No Info Available | AA154: No Info Available | AB154: No Info Available | AC154: 0 | AD154: 0 | AE154: 1 | AF154: 0 | AN154: I or II | AO154: =COUNTIFS(AE:AE,"1",$Y:$Y,AN154) -> 0 | AP154: =COUNTIFS(AC:AC,"1",$Y:$Y,AN154) -> 0 | AQ154: =COUNTIFS(AD:AD,"1",$Y:$Y,AN154) -> 0 | AR154: =COUNTIFS(AF:AF,"1",$Y:$Y,AN154) -> 2 | AT154: 1.309045226 | AU154: 0.1407035176 | AV154: 0.1733668342 | AW154: 0.3768844221 | AY154: 0.03489908141
A155: P76290 | B155: cmoA | C155: ['cytosol'] | D155: ['CmoA.2'] | E155: None | F155: N | G155: 1571 | H155: 27.777 | I155: 0.07246205 | J155: 2 | K155: 1 | L155: 5.329 | M155: ['S-adenosyl-L-methionine-dependent methyltransferases'] | N155: ['20-242'] | O155: 1 | P155: 1 | Q155: 0 | R155: 3 | S155: 0 | T155: 0 | U155: 2 | V155: 8 | W155: 1 | X155: 3 | Y155: No Info Available | Z155: No Info Available | AA155: No Info Available | AB155: 68.81211642 | AC155: 0 | AD155: 1 | AE155: 0 | AF155: 0 | AN155: III- | AO155: =COUNTIFS(AE:AE,"1",$Z:$Z,AN155) -> 10 | AP155: =COUNTIFS(AC:AC,"1",$Z:$Z,AN155) -> 0 | AQ155: =COUNTIFS(AD:AD,"1",$Z:$Z,AN155) -> 2 | AR155: =COUNTIFS(AF:AF,"1",$Z:$Z,AN155) -> 2 | AT155: 9.163316583 | AU155: 0.9849246231 | AV155: 1.213567839 | AW155: 2.638190955 | AY155: 0.6313157971
A156: P69826 | B156: cmtA | C156: ['inner membrane'] | D156: ['CmtB.', 'CmtA.'] | E156: None | F156: N | G156: ? | H156: 48.971 | I156: ? | J156: 2 | K156: 2 | L156: 8.942 | M156: ['Phosphotyrosine protein phosphatases I-like'] | N156: ['369-459'] | O156: 1 | P156: 1 | Q156: 0 | R156: 1 | S156: 0 | T156: 0 | U156: 0 | V156: 1 | W156: 0 | X156: 0 | Y156: No Info Available | Z156: No Info Available | AA156: No Info Available | AB156: No Info Available | AC156: 0 | AD156: 0 | AE156: 0 | AF156: 0 | AN156: IV | AO156: =COUNTIFS(AE:AE,"1",$Z:$Z,AN156) -> 14 | AP156: =COUNTIFS(AC:AC,"1",$Z:$Z,AN156) -> 2 | AQ156: =COUNTIFS(AD:AD,"1",$Z:$Z,AN156) -> 3 | AR156: =COUNTIFS(AF:AF,"1",$Z:$Z,AN156) -> 3 | AT156: 14.39949749 | AU156: 1.547738693 | AV156: 1.907035176 | AW156: 4.145728643 | AY156: 0.7803875286
A157: P77395 | B157: cnoX | C157: ['cytosol'] | D157: Monomer | E157: None | F157: N | G157: 5221 | H157: 31.791 | I157: 0.275617617 | J157: 1 | K157: 1 | L157: ? | M157: ['Thioredoxin fold', 'alpha-alpha superhelix'] | N157: ['3-112', '118-241'] | O157: 2 | P157: 2 | Q157: 1 | R157: 18 | S157: 1 | T157: 2 | U157: 0 | V157: 35 | W157: 0 | X157: 0 | Y157: II | Z157: No Info Available | AA157: No Info Available | AB157: 53.55709943 | AC157: 1 | AD157: 0 | AE157: 0 | AF157: 0 | AN157: I | AO157: =AO152/(AO152+AP152+AQ152+AR152) -> 0.03448275862 | AP157: =AP152/(AO152+AP152+AQ152+AR152) -> 0.03448275862 | AQ157: =AQ152/(AO152+AP152+AQ152+AR152) -> 0.1724137931 | AR157: =AR152/(AO152+AP152+AQ152+AR152) -> 0.7586206897
A158: P64467 | B158: cnu | C158: ['cytosol'] | D158: Monomer | E158: None | F158: N | G158: 1001 | H158: 8.417 | I158: 0.013990734 | J158: 1 | K158: 1 | L158: 6.481 | M158: ['Open three-helical up-and-down bundle'] | N158: ['4-70'] | O158: 1 | P158: 1 | Q158: 0 | R158: 0 | S158: 0 | T158: 0 | U158: 0 | V158: 2 | W158: 0 | X158: 0 | Y158: No Info Available | Z158: No Info Available | AA158: No Info Available | AB158: No Info Available | AC158: 0 | AD158: 0 | AE158: 0 | AF158: 0 | AN158: II | AO158: =AO153/(AO153+AP153+AQ153+AR153) -> 0.6818181818 | AP158: =AP153/(AO153+AP153+AQ153+AR153) -> 0.1212121212 | AQ158: =AQ153/(AO153+AP153+AQ153+AR153) -> 0.06060606061 | AR158: =AR153/(AO153+AP153+AQ153+AR153) -> 0.1363636364
A159: P0A6I3 | B159: coaA | C159: ['cytosol'] | D159: ['CoaA.2'] | E159: ['Mg2+'] | F159: Y | G159: 1020 | H159: 36.36 | I159: 0.061584744 | J159: 2 | K159: 1 | L159: 6.519 | M159: ['P-loop containing nucleoside triphosphate hydrolases'] | N159: ['10-315'] | O159: 1 | P159: 1 | Q159: 0 | R159: 0 | S159: 0 | T159: 0 | U159: 0 | V159: 2 | W159: 0 | X159: 0 | Y159: No Info Available | Z159: No Info Available | AA159: No Info Available | AB159: No Info Available | AC159: 0 | AD159: 0 | AE159: 0 | AF159: 0 | AN159: I or II | AO159: 0 | AP159: 0 | AQ159: 0 | AR159: 1
A160: P0ABQ0 | B160: coaBC | C160: ['cytosol'] | D160: ['Dfp.12'] | E160: ['Mg2+'] | F160: Y | G160: 1126 | H160: 43.438 | I160: 0.081218937 | J160: 12 | K160: 1 | L160: ? | M160: ['Ribokinase-like', 'Homo-oligomeric flavin-containing Cys decarboxylases, HFCD'] | N160: ['184-401', '3-180'] | O160: 2 | P160: 2 | Q160: 0 | R160: 3 | S160: 0 | T160: 0 | U160: 1 | V160: 2 | W160: 0 | X160: 1 | Y160: No Info Available | Z160: No Info Available | AA160: No Info Available | AB160: 46.0209647 | AC160: 0 | AD160: 0 | AE160: 1 | AF160: 0 | AN160: III- | AO160: 0.7142857143 | AP160: 0 | AQ160: 0.1428571429 | AR160: 0.1428571429
A161: P0A6I6 | B161: coaD | C161: ['cytosol'] | D161: ['CoaD.6'] | E161: ['Mg2+'] | F161: Y | G161: 1201 | H161: 17.837 | I161: 0.035572461 | J161: 6 | K161: 1 | L161: 6.724 | M161: ['Adenine nucleotide alpha hydrolase-like'] | N161: ['3-157'] | O161: 1 | P161: 1 | Q161: 0 | R161: 1 | S161: 0 | T161: 0 | U161: 0 | V161: 1 | W161: 0 | X161: 0 | Y161: No Info Available | Z161: No Info Available | AA161: No Info Available | AB161: 58.38077518 | AC161: 0 | AD161: 0 | AE161: 0 | AF161: 0 | AN161: IV | AO161: 0.6363636364 | AP161: 0.09090909091 | AQ161: 0.1363636364 | AR161: 0.1363636364
A162: P75960 | B162: cobB | C162: ['cytosol'] | D162: Monomer | E162: None | F162: N | G162: 827 | H162: 31.464 | I162: 0.043208435 | J162: 1 | K162: 1 | L162: 5.444 | M162: ['DHS-like NAD/FAD-binding domain'] | N162: ['4-233'] | O162: 1 | P162: 1 | Q162: 0 | R162: 3 | S162: 0 | T162: 0 | U162: 1 | V162: 3 | W162: 0 | X162: 1 | Y162: No Info Available | Z162: No Info Available | AA162: 3.46 | AB162: No Info Available | AC162: 0 | AD162: 0 | AE162: 1 | AF162: 0
A163: P52086 | B163: cobC | C163: ['cytosol'] | D163: Monomer | E163: None | F163: N | G163: 45 | H163: 23.308 | I163: 0.001741673 | J163: 1 | K163: 1 | L163: 5.995 | M163: ['Phosphoglycerate mutase-like'] | N163: ['1-195'] | O163: 1 | P163: 1 | Q163: 0 | R163: 0 | S163: 0 | T163: 0 | U163: 0 | V163: 1 | W163: 0 | X163: 0 | Y163: No Info Available | Z163: No Info Available | AA163: No Info Available | AB163: No Info Available | AC163: 0 | AD163: 0 | AE163: 0 | AF163: 0 | AN163: DnaK enrichment level
A164: P25524 | B164: codA | C164: ['cytosol'] | D164: ['CodA.6'] | E164: ['Fe2+'] | F164: N | G164: 1426 | H164: 47.591 | I164: 0.112692093 | J164: 6 | K164: 1 | L164: 5.852 | M164: ['TIM beta/alpha-barrel', 'Composite domain of metallo-dependent hydrolases'] | N164: ['57-376', '6-65'] | O164: 2 | P164: 2 | Q164: 0 | R164: 3 | S164: 1 | T164: 1 | U164: 0 | V164: 3 | W164: 0 | X164: 0 | Y164: No Info Available | Z164: No Info Available | AA164: No Info Available | AB164: No Info Available | AC164: 0 | AD164: 0 | AE164: 1 | AF164: 0 | AN164: 2to3 | AO164: =COUNTIFS(AE:AE,"1",$AA:$AA,">2",$AA:$AA,"<3") -> 16 | AP164: =COUNTIFS(AC:AC,"1",$AA:$AA,">2",$AA:$AA,"<3") -> 1 | AQ164: =COUNTIFS(AD:AD,"1",$AA:$AA,">2",$AA:$AA,"<3") -> 6 | AR164: =COUNTIFS(AF:AF,"1",$AA:$AA,">2",$AA:$AA,"<3") -> 8 | AT164: =SUM(AO164:AR164)*AO$6 -> 20.29020101 | AU164: =SUM(AO164:AR164)*AP$6 -> 2.180904523 | AV164: =SUM(AO164:AR164)*AQ$6 -> 2.68718593 | AW164: =SUM(AO164:AR164)*AR$6 -> 5.841708543 | AY164: =_xlfn.CHISQ.TEST(AO164:AR164,AT164:AW164) -> 0.09254296439
A165: P46891 | B165: cof | C165: ['cytosol'] | D165: Monomer | E165: ['Mg2+'] | F165: N | G165: 48 | H165: 30.371 | I165: 0.002420747 | J165: 1 | K165: 1 | L165: 5.707 | M165: ['HAD-like'] | N165: ['1-262'] | O165: 1 | P165: 1 | Q165: 0 | R165: 0 | S165: 0 | T165: 0 | U165: 0 | V165: 1 | W165: 0 | X165: 0 | Y165: No Info Available | Z165: No Info Available | AA165: No Info Available | AB165: No Info Available | AC165: 0 | AD165: 0 | AE165: 0 | AF165: 0 | AN165: 3to5 | AO165: =COUNTIFS(AE:AE,"1",$AA:$AA,">3",$AA:$AA,"<5") -> 60 | AP165: =COUNTIFS(AC:AC,"1",$AA:$AA,">3",$AA:$AA,"<5") -> 6 | AQ165: =COUNTIFS(AD:AD,"1",$AA:$AA,">3",$AA:$AA,"<5") -> 17 | AR165: =COUNTIFS(AF:AF,"1",$AA:$AA,">3",$AA:$AA,"<5") -> 35 | AT165: =SUM(AO165:AR165)*AO$6 -> 77.23366834 | AU165: =SUM(AO165:AR165)*AP$6 -> 8.301507538 | AV165: =SUM(AO165:AR165)*AQ$6 -> 10.22864322 | AW165: =SUM(AO165:AR165)*AR$6 -> 22.2361809 | AY165: =_xlfn.CHISQ.TEST(AO165:AR165,AT165:AW165) -> 0.0009875526677
A166: P75952 | B166: comR | C166: ['cytosol'] | D166: Monomer | E166: None | F166: N | G166: 227 | H166: 23.362 | I166: 0.008806127 | J166: 1 | K166: 1 | L166: 6.639 | M166: ['Tetracyclin repressor-like, C-terminal domain', 'DNA/RNA-binding 3-helical bundle'] | N166: ['92-206', '11-83'] | O166: 2 | P166: 2 | Q166: 0 | R166: 2 | S166: 1 | T166: 1 | U166: 0 | V166: 1 | W166: 0 | X166: 0 | Y166: No Info Available | Z166: No Info Available | AA166: No Info Available | AB166: No Info Available | AC166: 0 | AD166: 0 | AE166: 0 | AF166: 0 | AN166: 5to10 | AO166: =COUNTIFS(AE:AE,"1",$AA:$AA,">5",$AA:$AA,"<10") -> 94 | AP166: =COUNTIFS(AC:AC,"1",$AA:$AA,">5",$AA:$AA,"<10") -> 14 | AQ166: =COUNTIFS(AD:AD,"1",$AA:$AA,">5",$AA:$AA,"<10") -> 12 | AR166: =COUNTIFS(AF:AF,"1",$AA:$AA,">5",$AA:$AA,"<10") -> 40 | AT166: 104.7236181 | AU166: 11.25628141 | AV166: 13.86934673 | AW166: 30.15075377 | AY166: 0.1552930977
A167: Q59385 | B167: copA | C167: Unknown | D167: Monomer | E167: None | F167: N | G167: 117 | H167: 7.481 | I167: 0.001453432 | J167: 1 | K167: 1 | L167: 5.289 | M167: ['HAD-like', 'Double-stranded beta-helix', 'Ferredoxin-like', 'Ferredoxin-like', 'Calcium ATPase, transmembrane domain M'] | N167: ['519-539+576-824', '322-419', '101-166', '2-67', '286-323+420-515+767-786'] | O167: 5 | P167: 4 | Q167: 0 | R167: 7 | S167: 0 | T167: 0 | U167: 1 | V167: 7 | W167: 0 | X167: 1 | Y167: No Info Available | Z167: No Info Available | AA167: No Info Available | AB167: 55.81601774 | AC167: 0 | AD167: 0 | AE167: 1 | AF167: 0 | AN167: >10 | AO167: =COUNTIFS(AE:AE,"1",$AA:$AA,">10") -> 19 | AP167: =COUNTIFS(AC:AC,"1",$AA:$AA,">10") -> 5 | AQ167: =COUNTIFS(AD:AD,"1",$AA:$AA,">10") -> 4 | AR167: =COUNTIFS(AF:AF,"1",$AA:$AA,">10") -> 8 | AT167: 23.56281407 | AU167: 2.532663317 | AV167: 3.120603015 | AW167: 6.783919598 | AY167: 0.2893921893
A168: P0AE78 | B168: corC | C168: ['inner membrane', 'cytosol'] | D168: Monomer | E168: None | F168: N | G168: 1280 | H168: 33.298 | I168: 0.070774565 | J168: 1 | K168: 1 | L168: ? | M168: ['FAD-binding/transporter-associated domain-like', 'CBS-domain pair'] | N168: ['205-279', '66-202'] | O168: 2 | P168: 2 | Q168: 0 | R168: 2 | S168: 0 | T168: 0 | U168: 0 | V168: 2 | W168: 0 | X168: 0 | Y168: No Info Available | Z168: No Info Available | AA168: No Info Available | AB168: No Info Available | AC168: 0 | AD168: 0 | AE168: 1 | AF168: 0 | AN168: No Info | AO168: =COUNTIFS(AE:AE,"1",$AA:$AA,"No Info Available") -> 329 | AP168: =COUNTIFS(AC:AC,"1",$AA:$AA,"No Info Available") -> 30 | AQ168: =COUNTIFS(AD:AD,"1",$AA:$AA,"No Info Available") -> 29 | AR168: =COUNTIFS(AF:AF,"1",$AA:$AA,"No Info Available") -> 59 | AT168: 292.571608 | AU168: 31.44723618 | AV168: 38.74748744 | AW168: 84.23366834 | AY168: 0.002178429395
A169: P0AEW4 | B169: cpdA | C169: ['cytosol'] | D169: Monomer | E169: ['Fe2+'] | F169: N | G169: 394 | H169: 30.938 | I169: 0.02024126 | J169: 1 | K169: 1 | L169: 5.651 | M169: ['Metallo-dependent phosphatases'] | N169: ['16-269'] | O169: 1 | P169: 1 | Q169: 0 | R169: 0 | S169: 0 | T169: 0 | U169: 0 | V169: 1 | W169: 0 | X169: 0 | Y169: No Info Available | Z169: No Info Available | AA169: No Info Available | AB169: No Info Available | AC169: 0 | AD169: 0 | AE169: 0 | AF169: 0 | AN169: 2to3 | AO169: =AO164/(AO164+AP164+AQ164+AR164) -> 0.5161290323 | AP169: =AP164/(AO164+AP164+AQ164+AR164) -> 0.03225806452 | AQ169: =AQ164/(AO164+AP164+AQ164+AR164) -> 0.1935483871 | AR169: =AR164/(AO164+AP164+AQ164+AR164) -> 0.2580645161
A170: P08331 | B170: cpdB | C170: ['periplasmic space'] | D170: Monomer | E170: None | F170: N | G170: 479 | H170: 70.832 | I170: 0.056339645 | J170: 1 | K170: 1 | L170: 5.406 | M170: ['Metallo-dependent phosphatases', "5'-nucleotidase (syn. UDP-sugar hydrolase), C-terminal domain"] | N170: ['19-353', '355-597'] | O170: 2 | P170: 2 | Q170: 0 | R170: 1 | S170: 0 | T170: 0 | U170: 0 | V170: 1 | W170: 0 | X170: 0 | Y170: No Info Available | Z170: No Info Available | AA170: No Info Available | AB170: 58.67628229 | AC170: 0 | AD170: 0 | AE170: 0 | AF170: 0 | AN170: 3to5 | AO170: =AO165/(AO165+AP165+AQ165+AR165) -> 0.5084745763 | AP170: =AP165/(AO165+AP165+AQ165+AR165) -> 0.05084745763 | AQ170: =AQ165/(AO165+AP165+AQ165+AR165) -> 0.1440677966 | AR170: =AR165/(AO165+AP165+AQ165+AR165) -> 0.2966101695
A171: P45955 | B171: cpoB | C171: ['periplasmic space'] | D171: Monomer | E171: None | F171: N | G171: 5262 | H171: 28.231 | I171: 0.246675602 | J171: 1 | K171: 1 | L171: ? | M171: ['alpha-alpha superhelix'] | N171: ['139-254'] | O171: 1 | P171: 1 | Q171: 0 | R171: 18 | S171: 0 | T171: 0 | U171: 1 | V171: 14 | W171: 0 | X171: 1 | Y171: No Info Available | Z171: No Info Available | AA171: No Info Available | AB171: 57.03783741 | AC171: 0 | AD171: 0 | AE171: 1 | AF171: 0 | AN171: 5to10 | AO171: 0.5875 | AP171: 0.0875 | AQ171: 0.075 | AR171: 0.25
A172: P0AE88 | B172: cpxR | C172: ['cytosol'] | D172: Monomer | E172: None | F172: N | G172: 2893 | H172: 26.312 | I172: 0.126401255 | J172: 1 | K172: 1 | L172: 5.36 | M172: ['Flavodoxin-like'] | N172: ['2-188'] | O172: 1 | P172: 1 | Q172: 0 | R172: 3 | S172: 0 | T172: 0 | U172: 1 | V172: 3 | W172: 0 | X172: 1 | Y172: II | Z172: No Info Available | AA172: No Info Available | AB172: No Info Available | AC172: 0 | AD172: 0 | AE172: 1 | AF172: 0 | AN172: >10 | AO172: 0.5277777778 | AP172: 0.1388888889 | AQ172: 0.1111111111 | AR172: 0.2222222222
A173: P0ACP1 | B173: cra | C173: ['cytosol'] | D173: Monomer | E173: None | F173: N | G173: 987 | H173: 37.999 | I173: 0.062278538 | J173: 1 | K173: 1 | L173: 6.638 | M173: ['Periplasmic binding protein-like I', 'lambda repressor-like DNA-binding domains'] | N173: ['60-314', '2-58'] | O173: 2 | P173: 2 | Q173: 0 | R173: 4 | S173: 0 | T173: 0 | U173: 0 | V173: 16 | W173: 0 | X173: 0 | Y173: No Info Available | Z173: No Info Available | AA173: No Info Available | AB173: No Info Available | AC173: 0 | AD173: 0 | AE173: 1 | AF173: 0 | AN173: No Info | AO173: 0.7360178971 | AP173: 0.06711409396 | AQ173: 0.06487695749 | AR173: 0.1319910515
A174: P0AE91 | B174: creA | C174: ['cytosol'] | D174: Monomer | E174: None | F174: N | G174: 1423 | H174: 17.108 | I174: 0.040425298 | J174: 1 | K174: 1 | L174: 9.133 | M174: Unknown | O174: 0 | P174: 0 | Q174: 0 | R174: 3 | S174: 0 | T174: 0 | U174: 0 | V174: 1 | W174: 0 | X174: 0 | Y174: No Info Available | Z174: No Info Available | AA174: No Info Available | AB174: No Info Available | AC174: 0 | AD174: 0 | AE174: 0 | AF174: 0
A175: P24251 | B175: crl | C175: Unknown | D175: Monomer | E175: None | F175: N | G175: 8827 | H175: ? | I175: ? | J175: 1 | K175: 1 | L175: 6.466 | M175: Unknown | O175: 0 | P175: 0 | Q175: 1 | R175: 6 | S175: 0 | T175: 1 | U175: 0 | V175: 2 | W175: 0 | X175: 0 | Y175: No Info Available | Z175: No Info Available | AA175: 8.48 | AB175: No Info Available | AC175: 0 | AD175: 0 | AE175: 1 | AF175: 0
A176: P0ACJ8 | B176: crp | C176: ['cytosol'] | D176: ['Sxy.', 'Crp.'] | E176: None | F176: ? | G176: 9767 | H176: 23.64 | I176: 0.383404981 | J176: 2 | K176: 2 | L176: 8.2 | M176: ['Double-stranded beta-helix', 'DNA/RNA-binding 3-helical bundle'] | N176: ['8-136', '142-206'] | O176: 2 | P176: 2 | Q176: 0 | R176: 2 | S176: 0 | T176: 0 | U176: 0 | V176: 1 | W176: 0 | X176: 0 | Y176: III | Z176: III- | AA176: 6.72 | AB176: No Info Available | AC176: 0 | AD176: 0 | AE176: 0 | AF176: 0
A177: P69783 | B177: crr | C177: ['cytosol', 'inner membrane'] | D177: ['PtsG.2', 'Crr.'] | E177: None | F177: N | G177: 32738 | H177: 18.251 | I177: 0.992174132 | J177: 3 | K177: 2 | L177: 4.593 | M177: ['Barrel-sandwich hybrid'] | N177: ['12-167'] | O177: 1 | P177: 1 | Q177: 3 | R177: 21 | S177: 0 | T177: 3 | U177: 6 | V177: 26 | W177: 0 | X177: 6 | Y177: I | Z177: No Info Available | AA177: 13.94 | AB177: 68.82257703 | AC177: 0 | AD177: 0 | AE177: 0 | AF177: 1
A178: P0AGF2 | B178: csdE | C178: ['cytosol'] | D178: ['CsdE.2'] | E178: None | F178: N | G178: 813 | H178: 15.94 | I178: 0.021519291 | J178: 2 | K178: 1 | L178: 6.264 | M178: ['SufE/NifU'] | N178: ['3-145'] | O178: 1 | P178: 1 | Q178: 1 | R178: 5 | S178: 0 | T178: 1 | U178: 1 | V178: 6 | W178: 0 | X178: 1 | Y178: No Info Available | Z178: No Info Available | AA178: No Info Available | AB178: No Info Available | AC178: 0 | AD178: 0 | AE178: 1 | AF178: 0
A179: P54901 | B179: csiE | C179: ['cytosol'] | D179: Monomer | E179: None | F179: N | G179: 25 | H179: 49.04 | I179: 0.002035821 | J179: 1 | K179: 1 | L179: 7.536 | M179: ['PTS-regulatory domain, PRD'] | N179: ['231-333'] | O179: 1 | P179: 1 | Q179: 0 | R179: 0 | S179: 0 | T179: 0 | U179: 0 | V179: 1 | W179: 0 | X179: 0 | Y179: No Info Available | Z179: No Info Available | AA179: No Info Available | AB179: No Info Available | AC179: 0 | AD179: 0 | AE179: 0 | AF179: 0
A180: P0A9X9 | B180: cspA | C180: ['cytosol'] | D180: Monomer | E180: None | F180: N | G180: 43957 | H180: 7.403 | I180: 0.540362105 | J180: 1 | K180: 1 | L180: 5.612 | M180: ['OB-fold'] | N180: ['4-68'] | O180: 1 | P180: 1 | Q180: 0 | R180: 14 | S180: 1 | T180: 1 | U180: 2 | V180: 19 | W180: 0 | X180: 2 | Y180: No Info Available | Z180: No Info Available | AA180: No Info Available | AB180: No Info Available | AC180: 0 | AD180: 0 | AE180: 0 | AF180: 0
A181: P36995 | B181: cspB | C181: ['cytosol'] | D181: Monomer | E181: None | F181: N | G181: 119 | H181: 7.717 | I181: 0.001524911 | J181: 1 | K181: 1 | L181: 7.14 | M181: ['OB-fold'] | N181: ['3-69'] | O181: 1 | P181: 1 | Q181: 0 | R181: 4 | S181: 0 | T181: 0 | U181: 0 | V181: 3 | W181: 0 | X181: 0 | Y181: No Info Available | Z181: No Info Available | AA181: No Info Available | AB181: No Info Available | AC181: 0 | AD181: 0 | AE181: 1 | AF181: 0
A182: P0A9Y6 | B182: cspC | C182: ['cytosol'] | D182: Monomer | E182: None | F182: N | G182: 106172 | H182: 7.402 | I182: 1.304992963 | J182: 1 | K182: 1 | L182: 7.221 | M182: ['OB-fold'] | N182: ['3-68'] | O182: 1 | P182: 1 | Q182: 0 | R182: 11 | S182: 0 | T182: 0 | U182: 3 | V182: 16 | W182: 1 | X182: 4 | Y182: No Info Available | Z182: No Info Available | AA182: No Info Available | AB182: No Info Available | AC182: 0 | AD182: 1 | AE182: 0 | AF182: 0
A183: P0A968 | B183: cspD | C183: ['cytosol'] | D183: ['CspD.2'] | E183: None | F183: N | G183: 743 | H183: 7.969 | I183: 0.009831997 | J183: 2 | K183: 1 | L183: 5.958 | M183: ['OB-fold'] | N183: ['1-66'] | O183: 1 | P183: 1 | Q183: 0 | R183: 1 | S183: 0 | T183: 0 | U183: 0 | V183: 1 | W183: 0 | X183: 0 | Y183: No Info Available | Z183: No Info Available | AA183: No Info Available | AB183: No Info Available | AC183: 0 | AD183: 0 | AE183: 0 | AF183: 0
A184: P0A972 | B184: cspE | C184: ['cytosol'] | D184: ['CspE.2'] | E184: None | F184: N | G184: 186416 | H184: 7.463 | I184: 2.310179455 | J184: 2 | K184: 1 | L184: 8.853 | M184: ['OB-fold'] | N184: ['3-68'] | O184: 1 | P184: 1 | Q184: 0 | R184: 3 | S184: 0 | T184: 0 | U184: 0 | V184: 3 | W184: 0 | X184: 0 | Y184: No Info Available | Z184: No Info Available | AA184: 2.63 | AB184: No Info Available | AC184: 0 | AD184: 0 | AE184: 1 | AF184: 0
A185: P0A978 | B185: cspG | C185: ['cytosol'] | D185: Monomer | E185: None | F185: N | G185: 162 | H185: 7.781 | I185: 0.002093146 | J185: 1 | K185: 1 | L185: 5.672 | M185: ['OB-fold'] | N185: ['3-69'] | O185: 1 | P185: 1 | Q185: 0 | R185: 0 | S185: 0 | T185: 0 | U185: 0 | V185: 1 | W185: 0 | X185: 0 | Y185: No Info Available | Z185: No Info Available | AA185: No Info Available | AB185: No Info Available | AC185: 0 | AD185: 0 | AE185: 0 | AF185: 0
A186: P32144 | B186: csqR | C186: ['cytosol'] | D186: Monomer | E186: None | F186: N | G186: 522 | H186: 28.507 | I186: 0.024709907 | J186: 1 | K186: 1 | L186: ? | M186: ['NagB/RpiA/CoA transferase-like', 'DNA/RNA-binding 3-helical bundle'] | N186: ['79-239', '9-80'] | O186: 2 | P186: 2 | Q186: 1 | R186: 1 | S186: 0 | T186: 1 | U186: 0 | V186: 0 | W186: 0 | X186: 0 | Y186: No Info Available | Z186: No Info Available | AA186: No Info Available | AB186: No Info Available | AC186: 0 | AD186: 0 | AE186: 0 | AF186: 0
A187: P69913 | B187: csrA | C187: ['cytosol'] | D187: ['CsrC.', 'CsrA.9'] | E187: None | F187: Y | G187: 18982 | H187: 6.856 | I187: 0.216103534 | J187: 10 | K187: 2 | L187: 8.864 | M187: ['CsrA-like'] | N187: ['1-57'] | O187: 1 | P187: 1 | Q187: 1 | R187: 2 | S187: 1 | T187: 2 | U187: 0 | V187: 2 | W187: 0 | X187: 0 | Y187: No Info Available | Z187: No Info Available | AA187: 7.02 | AB187: 65.71420822 | AC187: 1 | AD187: 0 | AE187: 0 | AF187: 0
A188: P13518 | B188: csrD | C188: ['inner membrane'] | D188: ['CsrD.4'] | E188: None | F188: N | G188: 71 | H188: 73.339 | I188: 0.008646541 | J188: 4 | K188: 1 | L188: 8.584 | M188: ['TIM beta/alpha-barrel', 'Ferredoxin-like'] | N188: ['403-642', '230-387'] | O188: 2 | P188: 2 | Q188: 0 | R188: 1 | S188: 0 | T188: 0 | U188: 0 | V188: 0 | W188: 0 | X188: 0 | Y188: No Info Available | Z188: No Info Available | AA188: No Info Available | AB188: No Info Available | AC188: 0 | AD188: 0 | AE188: 0 | AF188: 0
A189: P36649 | B189: cueO | C189: ['periplasmic space'] | D189: Monomer | E189: ['Cu2+'] | F189: N | G189: 610 | H189: 56.556 | I189: 0.057287202 | J189: 1 | K189: 1 | L189: 6.46 | M189: ['Cupredoxin-like', 'Cupredoxin-like', 'Cupredoxin-like'] | N189: ['172-288+374-396', '32-167', '348-516'] | O189: 3 | P189: 1 | Q189: 0 | R189: 2 | S189: 0 | T189: 0 | U189: 0 | V189: 2 | W189: 0 | X189: 0 | Y189: No Info Available | Z189: No Info Available | AA189: No Info Available | AB189: No Info Available | AC189: 0 | AD189: 0 | AE189: 1 | AF189: 0
A190: P76113 | B190: curA | C190: ['cytosol'] | D190: ['CurA.2'] | E190: None | F190: N | G190: 77 | H190: 37.61 | I190: 0.004808871 | J190: 2 | K190: 1 | L190: 5.523 | M190: ['GroES-like', 'NAD(P)-binding Rossmann-fold domains', 'GroES-like'] | N190: ['7-146', '127-306', '299-340'] | O190: 3 | P190: 2 | Q190: 0 | R190: 1 | S190: 0 | T190: 0 | U190: 0 | V190: 1 | W190: 0 | X190: 0 | Y190: No Info Available | Z190: No Info Available | AA190: No Info Available | AB190: 56.59573164 | AC190: 0 | AD190: 0 | AE190: 0 | AF190: 0
A191: P77214 | B191: cusF | C191: ['periplasmic space'] | D191: ['CusC.3', 'CusB.6', 'CusF.', 'CusA.3'] | E191: None | F191: N | G191: 48 | H191: 12.251 | I191: 0.000976477 | J191: 13 | K191: 4 | L191: 7.576 | M191: Unknown | O191: 0 | P191: 0 | Q191: 0 | R191: 3 | S191: 0 | T191: 0 | U191: 0 | V191: 2 | W191: 0 | X191: 0 | Y191: No Info Available | Z191: No Info Available | AA191: No Info Available | AB191: 56.27955535 | AC191: 0 | AD191: 0 | AE191: 1 | AF191: 0
A192: P77485 | B192: cusS | C192: ['inner membrane', 'cytosol', 'periplasmic space'] | D192: ['CusS.2'] | E192: None | F192: N | G192: 62 | H192: 53.738 | I192: 0.005532511 | J192: 2 | K192: 1 | L192: 6.182 | M192: ['ATPase domain of HSP90 chaperone/DNA topoisomerase II/histidine kinase', 'ROP-like'] | N192: ['316-479', '244-328'] | O192: 2 | P192: 2 | Q192: 0 | R192: 0 | S192: 0 | T192: 0 | U192: 1 | V192: 1 | W192: 0 | X192: 1 | Y192: No Info Available | Z192: No Info Available | AA192: No Info Available | AB192: No Info Available | AC192: 0 | AD192: 0 | AE192: 0 | AF192: 0
A193: P27838 | B193: cyaY | C193: ['cytosol'] | D193: Monomer | E193: None | F193: N | G193: 4479 | H193: 12.231 | I193: 0.090968727 | J193: 1 | K193: 1 | L193: 4.087 | M193: ['N domain of copper amine oxidase-like'] | N193: ['1-105'] | O193: 1 | P193: 1 | Q193: 0 | R193: 6 | S193: 0 | T193: 0 | U193: 1 | V193: 6 | W193: 1 | X193: 2 | Y193: No Info Available | Z193: No Info Available | AA193: No Info Available | AB193: No Info Available | AC193: 0 | AD193: 1 | AE193: 0 | AF193: 0
A194: P0ABJ1 | B194: cyoA | C194: ['inner membrane'] | D194: ['CyoD.', 'CyoA.', 'CyoB.', 'CyoC.'] | E194: ['heme b', 'heme o', 'Cu2+'] | F194: N | G194: 15769 | H194: 34.911 | I194: 0.914145936 | J194: 4 | K194: 4 | L194: 6.985 | M194: ['Cupredoxin-like', 'Transmembrane helix hairpin'] | N194: ['120-282', '29-116'] | O194: 2 | P194: 2 | Q194: 0 | R194: 0 | S194: 0 | T194: 0 | U194: 0 | V194: 1 | W194: 0 | X194: 0 | Y194: No Info Available | Z194: No Info Available | AA194: 3.6 | AB194: No Info Available | AC194: 0 | AD194: 0 | AE194: 0 | AF194: 0
A195: P21156 | B195: cysD | C195: ['cytosol'] | D195: ['CysD.4', 'CysN.4'] | E195: None | F195: N | G195: ? | H195: 35.188 | I195: ? | J195: 8 | K195: 2 | L195: 7.906 | M195: ['Adenine nucleotide alpha hydrolase-like'] | N195: ['5-209'] | O195: 1 | P195: 1 | Q195: 0 | R195: 1 | S195: 0 | T195: 0 | U195: 0 | V195: 2 | W195: 1 | X195: 1 | Y195: No Info Available | Z195: No Info Available | AA195: No Info Available | AB195: 46.33672331 | AC195: =IF(OR(AND(T195>2,R195>1,X195=0,V195>1),AND(T195>2,R195>1,X195=1,V195>1),AND(T195=2,R195>1,X195=0,V195>1)),1,0) -> 0 | AD195: =IF(OR(AND(T195=0,R195>1,X195>2,V195>1),AND(T195=0,R195>1,X195=2,V195>1),AND(T195=1,R195>1,X195>2,V195>1)),1,0) -> 0 | AE195: =IF(AND(T195<2,R195>1,X195<2,V195>1),1,0) -> 0 | AF195: =IF(AND(T195>1,R195>1,X195>1,V195>1),1,0) -> 0
A196: P0A9D4 | B196: cysE | C196: ['cytosol'] | D196: ['CysE.6.', 'CysK.2.'] | E196: None | F196: N | G196: 817 | H196: 29.317 | I196: 0.039773213 | J196: 8 | K196: 2 | L196: 6.211 | M196: ['Single-stranded left-handed beta-helix'] | N196: ['5-260'] | O196: 1 | P196: 1 | Q196: 0 | R196: 2 | S196: 0 | T196: 0 | U196: 0 | V196: 4 | W196: 0 | X196: 0 | Y196: II | Z196: No Info Available | AA196: No Info Available | AB196: No Info Available | AC196: 0 | AD196: 0 | AE196: 1 | AF196: 0
A197: P0AEA8 | B197: cysG | C197: ['cytosol'] | D197: ['CysG.2'] | E197: None | F197: N | G197: 429 | H197: 49.951 | I197: 0.035583656 | J197: 2 | K197: 1 | L197: 5.91 | M197: ['Tetrapyrrole methylase', 'NAD(P)-binding Rossmann-fold domains', 'Siroheme synthase middle domains-like'] | N197: ['215-456', '1-112', '114-207'] | O197: 3 | P197: 3 | Q197: 0 | R197: 0 | S197: 0 | T197: 0 | U197: 0 | V197: 1 | W197: 0 | X197: 0 | Y197: No Info Available | Z197: No Info Available | AA197: No Info Available | AB197: 47.14415397 | AC197: 0 | AD197: 0 | AE197: 0 | AF197: 0
A198: P17854 | B198: cysH | C198: ['cytosol'] | D198: ['CysH.2'] | E198: None | F198: N | G198: 29 | H198: 27.976 | I198: 0.001347202 | J198: 2 | K198: 1 | L198: 5.469 | M198: ['Adenine nucleotide alpha hydrolase-like'] | N198: ['21-208'] | O198: 1 | P198: 1 | Q198: 0 | R198: 2 | S198: 0 | T198: 0 | U198: 0 | V198: 3 | W198: 0 | X198: 0 | Y198: No Info Available | Z198: No Info Available | AA198: No Info Available | AB198: 47.39022447 | AC198: 0 | AD198: 0 | AE198: 1 | AF198: 0
A199: P17846 | B199: cysI | C199: Unknown | D199: ['CysJ.8.', 'CysI.4'] | E199: ['a [4Fe-4S] iron-sulfur cluster', 'FAD', 'FMN', 'siroheme'] | F199: N | G199: 43 | H199: 63.998 | I199: 0.004569661 | J199: 12 | K199: 2 | L199: 7.368 | M199: ['Nitrite and sulphite reductase 4Fe-4S domain-like', 'Nitrite and sulphite reductase 4Fe-4S domain-like', 'Ferredoxin-like', 'Ferredoxin-like'] | N199: ['150-344', '430-557', '13-142', '342-414'] | O199: 4 | P199: 2 | Q199: 0 | R199: 0 | S199: 0 | T199: 0 | U199: 0 | V199: 1 | W199: 0 | X199: 0 | Y199: No Info Available | Z199: No Info Available | AA199: No Info Available | AB199: 44.469377 | AC199: 0 | AD199: 0 | AE199: 0 | AF199: 0
A200: P38038 | B200: cysJ | C200: ['cytosol'] | D200: ['CysJ.8.', 'CysI.4'] | E200: ['FAD', 'FMN'] | F200: N | G200: 34 | H200: 66.27 | I200: 0.003741493 | J200: 12 | K200: 2 | L200: 4.789 | M200: ['Reductase/isomerase/elongation factor common domain', 'Ferredoxin reductase-like, C-terminal NADP-linked domain', 'Flavodoxin-like'] | N200: ['227-446', '444-599', '60-208'] | O200: 3 | P200: 3 | Q200: 1 | R200: 3 | S200: 0 | T200: 1 | U200: 0 | V200: 4 | W200: 0 | X200: 0 | Y200: No Info Available | Z200: No Info Available | AA200: No Info Available | AB200: 50.84698987 | AC200: 0 | AD200: 0 | AE200: 1 | AF200: 0
... 1461 more rows

Sheet CD_vs_CG_R5min_LFQ
A1: Accession | B1: GeneName | C1: Location | D1: Composition | E1: Cofactors | F1: Essential? | G1: Copy Number | H1: Molecular Weight | I1: Amount (fg) | J1: Num Subunits | K1: Unique Subunits | L1: pI | M1: Folds | N1: Domain Ranges | O1: Num Domains | P1: Unique Domains | Q1: SigPeptides1 | R1: TotPeptides1 | S1: AonPeptides1 | T1: AllSigPeptides1 | U1: SigPeptides2 | V1: TotPeptides2 | W1: AonPeptides2 | X1: AllSigPeptides2 | Y1: Hartl class | Z1: Teguchi subclass | AA1: DnaK_Enrichment | AB1: Picotti Tm | AC1: GroEL_fastidious | AD1: DnaK_fastidious | AE1: Refoldable | AF1: Chaperone Non-Refolder | AG1: GroL status | AH1: DnaK status | AO1: OverallTotal | AP1: =SUM(AP5:AS5) -> 786
A2: P36683 | B2: acnB | C2: ['cytosol'] | D2: ['AcnB.2'] | E2: ['a [4Fe-4S] iron-sulfur cluster'] | F2: N | G2: 7764 | H2: 93.498 | I2: 1.205415963 | J2: 2 | K2: 1 | L2: 5.138 | M2: ['Aconitase iron-sulfur domain', 'The "swivelling" beta/beta/alpha domain', 'alpha-alpha superhelix'] | N2: ['380-859', '163-371', '1-160'] | O2: 3 | P2: 3 | Q2: 2 | R2: 59 | S2: 2 | T2: 4 | U2: 2 | V2: 67 | W2: 0 | X2: 2 | Y2: No Info Available | Z2: No Info Available | AA2: 7.26 | AB2: 45.79895276 | AC2: =IF(OR(AND(T2>2,R2>1,X2=0,V2>1),AND(T2>2,R2>1,X2=1,V2>1),AND(T2=2,R2>1,X2=0,V2>1)),1,0) -> 0 | AD2: =IF(OR(AND(T2=0,R2>1,X2>2,V2>1),AND(T2=0,R2>1,X2=2,V2>1),AND(T2=1,R2>1,X2>2,V2>1)),1,0) -> 0 | AE2: =IF(AND(T2<2,R2>1,X2<2,V2>1),1,0) -> 0 | AF2: =IF(AND(T2>1,R2>1,X2>1,V2>1),1,0) -> 1 | AJ2: 0 | AK2: 1 | AL2: 2 | AM2: >2
A3: P35340 | B3: ahpF | C3: ['cytosol'] | D3: ['AhpC.10', 'AhpF.2'] | E3: ['FAD'] | F3: N | G3: 5698 | H3: 56.177 | I3: 0.531532811 | J3: 12 | K3: 2 | L3: 5.422 | M3: ['FAD/NAD(P)-binding domain', 'Thioredoxin fold', 'Thioredoxin fold'] | N3: ['207-514', '1-101', '106-197'] | O3: 3 | P3: 2 | Q3: 1 | R3: 43 | S3: 1 | T3: 2 | U3: 5 | V3: 39 | W3: 0 | X3: 5 | Y3: No Info Available | Z3: No Info Available | AA3: 10.27 | AB3: 60.41023258 | AC3: =IF(OR(AND(T3>2,R3>1,X3=0,V3>1),AND(T3>2,R3>1,X3=1,V3>1),AND(T3=2,R3>1,X3=0,V3>1)),1,0) -> 0 | AD3: 0 | AE3: 0 | AF3: 1 | AI3: 0 | AJ3: =COUNTIFS(T:T,"0",R:R,">1",X:X,"0",V:V,">1") -> 343 | AK3: =COUNTIFS(T:T,"0",R:R,">1",X:X,"1",V:V,">1") -> 79 | AL3: =COUNTIFS(T:T,"0",R:R,">1",X:X,"2",V:V,">1") -> 15 | AM3: =COUNTIFS(T:T,"0",R:R,">1",X:X,">2",V:V,">1") -> 10 | AP3: Refoldable | AQ3: GroEL_fastidious | AR3: DnaK_fastidious | AS3: Chaperone Non-Refolder
A4: P0AE08 | B4: ahpC | C4: ['cytosol'] | D4: ['AhpC.10', 'AhpF.2'] | E4: ['FAD'] | F4: N | G4: 92449 | H4: 20.761 | I4: 3.187128522 | J4: 12 | K4: 2 | L4: 4.909 | M4: ['Thioredoxin fold'] | N4: ['4-180'] | O4: 1 | P4: 1 | Q4: 12 | R4: 61 | S4: 4 | T4: 16 | U4: 7 | V4: 57 | W4: 4 | X4: 11 | Y4: No Info Available | Z4: No Info Available | AA4: 7.64 | AB4: 62.76054247 | AC4: 0 | AD4: 0 | AE4: 0 | AF4: 1 | AI4: 1 | AJ4: =COUNTIFS(T:T,"1",R:R,">1",X:X,"0",V:V,">1") -> 114 | AK4: =COUNTIFS(T:T,"1",R:R,">1",X:X,"1",V:V,">1") -> 48 | AL4: =COUNTIFS(T:T,"1",R:R,">1",X:X,"2",V:V,">1") -> 21 | AM4: =COUNTIFS(T:T,"1",R:R,">1",X:X,">2",V:V,">1") -> 12 | AO4: Overall
A5: P00509 | B5: aspC | C5: ['cytosol'] | D5: ['AspC.2'] | E5: ["pyridoxal 5'-phosphate"] | F5: N | G5: 4498 | H5: 43.573 | I5: 0.325451295 | J5: 2 | K5: 1 | L5: 5.507 | M5: ['PLP-dependent transferase-like'] | N5: ['1-396'] | O5: 1 | P5: 1 | Q5: 0 | R5: 18 | S5: 2 | T5: 2 | U5: 0 | V5: 25 | W5: 3 | X5: 3 | Y5: No Info Available | Z5: No Info Available | AA5: 4.19 | AB5: 62.26051808 | AC5: 0 | AD5: 0 | AE5: 0 | AF5: 1 | AI5: 2 | AJ5: =COUNTIFS(T:T,"2",R:R,">1",X:X,"0",V:V,">1") -> 29 | AK5: =COUNTIFS(T:T,"2",R:R,">1",X:X,"1",V:V,">1") -> 23 | AL5: =COUNTIFS(T:T,"2",R:R,">1",X:X,"2",V:V,">1") -> 18 | AM5: =COUNTIFS(T:T,"2",R:R,">1",X:X,">2",V:V,">1") -> 14 | AN5: Total | AP5: =COUNTIFS(AE:AE,"1") -> 584 | AQ5: =COUNTIFS(AC:AC,"1") -> 60 | AR5: =COUNTIFS(AD:AD,"1") -> 37 | AS5: =COUNTIFS(AF:AF,"1") -> 105
A6: P21889 | B6: aspS | C6: ['cytosol'] | D6: ['AspS.2'] | E6: None | F6: Y | G6: 8307 | H6: 65.913 | I6: 0.909210369 | J6: 2 | K6: 1 | L6: 5.404 | M6: ['Class II aaRS and biotin synthetases', 'OB-fold', 'DCoH-like'] | N6: ['121-305+397-556', '2-105', '288-419'] | O6: 3 | P6: 3 | Q6: 1 | R6: 37 | S6: 3 | T6: 4 | U6: 6 | V6: 48 | W6: 0 | X6: 6 | Y6: No Info Available | Z6: No Info Available | AA6: 3.35 | AB6: 59.71713796 | AC6: 0 | AD6: 0 | AE6: 0 | AF6: 1 | AI6: >2 | AJ6: =COUNTIFS(T:T,">2",R:R,">1",X:X,"0",V:V,">1") -> 13 | AK6: =COUNTIFS(T:T,">2",R:R,">1",X:X,"1",V:V,">1") -> 18 | AL6: =COUNTIFS(T:T,">2",R:R,">1",X:X,"2",V:V,">1") -> 18 | AM6: =COUNTIFS(T:T,">2",R:R,">1",X:X,">2",V:V,">1") -> 55 | AN6: Percent | AP6: =AP5/$AP$1 -> 0.7430025445 | AQ6: =AQ5/$AP$1 -> 0.07633587786 | AR6: =AR5/$AP$1 -> 0.04707379135 | AS6: =AS5/$AP$1 -> 0.1335877863
A7: P0ABK5 | B7: cysK | C7: ['cytosol'] | D7: ['CysE.6.', 'CysK.2.'] | E7: ["pyridoxal 5'-phosphate"] | F7: N | G7: 2486 | H7: 34.49 | I7: 0.142378171 | J7: 8 | K7: 2 | L7: 5.834 | M7: ['Tryptophan synthase beta subunit-like PLP-dependent enzymes'] | N7: ['3-317'] | O7: 1 | P7: 1 | Q7: 2 | R7: 34 | S7: 1 | T7: 3 | U7: 10 | V7: 36 | W7: 3 | X7: 13 | Y7: No Info Available | Z7: No Info Available | AA7: 4.52 | AB7: No Info Available | AC7: 0 | AD7: 0 | AE7: 0 | AF7: 1
A8: P0ABP8 | B8: deoD | C8: ['cytosol'] | D8: ['DeoD.6'] | E8: None | F8: N | G8: 13272 | H8: 25.95 | I8: 0.571903594 | J8: 6 | K8: 1 | L8: 5.346 | M8: ['Phosphorylase/hydrolase-like'] | N8: ['5-222'] | O8: 1 | P8: 1 | Q8: 0 | R8: 15 | S8: 2 | T8: 2 | U8: 3 | V8: 43 | W8: 1 | X8: 4 | Y8: I | Z8: No Info Available | AA8: 3.7 | AB8: 65.00979418 | AC8: 0 | AD8: 0 | AE8: 0 | AF8: 1 | AN8: Total | AO8: Composition by Subunits | AU8: Expected Couunts | AZ8: Chi-Sq
A9: P08622 | B9: dnaJ | C9: ['cytosol', 'membrane'] | D9: ['DnaJ.2'] | E9: None | F9: N | G9: 5688 | H9: 41.1 | I9: 0.388195503 | J9: 2 | K9: 1 | L9: 7.663 | M9: ['Long alpha-hairpin', 'DnaJ/Hsp40 cysteine-rich domain', 'HSP40/DnaJ peptide-binding domain', 'HSP40/DnaJ peptide-binding domain'] | N9: ['1-106', '131-207', '256-341', '111-166+210-256'] | O9: 4 | P9: 3 | Q9: 8 | R9: 209 | S9: 1 | T9: 9 | U9: 2 | V9: 66 | W9: 1 | X9: 3 | Y9: III | Z9: III- | AA9: 7.53 | AB9: No Info Available | AC9: 0 | AD9: 0 | AE9: 0 | AF9: 1 | AO9: 1 subunit | AP9: =COUNTIFS(AE:AE,"1",$J:$J,"=1") -> 274 | AQ9: =COUNTIFS(AC:AC,"1",$J:$J,"=1") -> 24 | AR9: =COUNTIFS(AD:AD,"1",$J:$J,"=1") -> 12 | AS9: =COUNTIFS(AF:AF,"1",$J:$J,"=1") -> 25 | AU9: =SUM(AP9:AS9)*AP$6 -> 248.9058524 | AV9: =SUM(AP9:AS9)*AQ$6 -> 25.57251908 | AW9: =SUM(AP9:AS9)*AR$6 -> 15.7697201 | AX9: =SUM(AP9:AS9)*AS$6 -> 44.7519084 | AZ9: =_xlfn.CHISQ.TEST(AP9:AS9,AU9:AX9) -> 0.006587572615
A10: P23847 | B10: dppA | C10: ['inner membrane', 'periplasmic space'] | D10: ['DppD.', 'DppF.', 'DppB.', 'DppC.', 'DppA.'] | E10: None | F10: N | G10: 2460 | H10: 60.294 | I10: 0.246296531 | J10: 5 | K10: 5 | L10: 6.329 | M10: ['Periplasmic binding protein-like II'] | N10: ['29-534'] | O10: 1 | P10: 1 | Q10: 17 | R10: 111 | S10: 3 | T10: 20 | U10: 40 | V10: 125 | W10: 8 | X10: 48 | Y10: No Info Available | Z10: No Info Available | AA10: 9.2 | AB10: 69.62495778 | AC10: 0 | AD10: 0 | AE10: 0 | AF10: 1 | AO10: 2 subunits | AP10: =COUNTIFS(AE:AE,"1",$J:$J,"=2") -> 129 | AQ10: =COUNTIFS(AC:AC,"1",$J:$J,"=2") -> 10 | AR10: =COUNTIFS(AD:AD,"1",$J:$J,"=2") -> 10 | AS10: =COUNTIFS(AF:AF,"1",$J:$J,"=2") -> 40 | AU10: =SUM(AP10:AS10)*AP$6 -> 140.4274809 | AV10: =SUM(AP10:AS10)*AQ$6 -> 14.42748092 | AW10: =SUM(AP10:AS10)*AR$6 -> 8.896946565 | AX10: =SUM(AP10:AS10)*AS$6 -> 25.2480916 | AZ10: =_xlfn.CHISQ.TEST(AP10:AS10,AU10:AX10) -> 0.01148713188
A11: P0A955 | B11: eda | C11: ['cytosol'] | D11: ['Eda.3'] | E11: None | F11: N | G11: 11006 | H11: 22.284 | I11: 0.407259992 | J11: 3 | K11: 1 | L11: 5.471 | M11: ['TIM beta/alpha-barrel'] | N11: ['11-208'] | O11: 1 | P11: 1 | Q11: 4 | R11: 24 | S11: 3 | T11: 7 | U11: 5 | V11: 23 | W11: 3 | X11: 8 | Y11: No Info Available | Z11: No Info Available | AA11: No Info Available | AB11: No Info Available | AC11: 0 | AD11: 0 | AE11: 0 | AF11: 1 | AO11: 3 subunits | AP11: =COUNTIFS(AE:AE,"1",$J:$J,"=3") -> 14 | AQ11: =COUNTIFS(AC:AC,"1",$J:$J,"=3") -> 2 | AR11: =COUNTIFS(AD:AD,"1",$J:$J,"=3") -> 1 | AS11: =COUNTIFS(AF:AF,"1",$J:$J,"=3") -> 3 | AU11: 14.86005089 | AV11: 1.526717557 | AW11: 0.941475827 | AX11: 2.671755725 | AZ11: 0.9708076579
A12: P0A953 | B12: fabB | C12: ['cytosol'] | D12: ['FabB.2'] | E12: None | F12: Y | G12: 18626 | H12: 42.613 | I12: 1.317986007 | J12: 2 | K12: 1 | L12: 5.278 | M12: ['Thiolase-like', 'Thiolase-like'] | N12: ['1-253', '215-403'] | O12: 2 | P12: 1 | Q12: 2 | R12: 31 | S12: 0 | T12: 2 | U12: 7 | V12: 29 | W12: 0 | X12: 7 | Y12: I | Z12: No Info Available | AA12: 6.07 | AB12: 47.43532206 | AC12: 0 | AD12: 0 | AE12: 0 | AF12: 1 | AO12: 4 subunits | AP12: =COUNTIFS(AE:AE,"1",$J:$J,"=4") -> 60 | AQ12: =COUNTIFS(AC:AC,"1",$J:$J,"=4") -> 8 | AR12: =COUNTIFS(AD:AD,"1",$J:$J,"=4") -> 6 | AS12: =COUNTIFS(AF:AF,"1",$J:$J,"=4") -> 13 | AU12: 64.64122137 | AV12: 6.641221374 | AW12: 4.095419847 | AX12: 11.6221374 | AZ12: 0.645791009
A13: P0AAI5 | B13: fabF | C13: ['cytosol'] | D13: ['FabF.2'] | E13: None | F13: N | G13: 15814 | H13: 43.046 | I13: 1.130377818 | J13: 2 | K13: 1 | L13: 5.803 | M13: ['Thiolase-like', 'Thiolase-like'] | N13: ['3-252', '215-412'] | O13: 2 | P13: 1 | Q13: 1 | R13: 29 | S13: 1 | T13: 2 | U13: 2 | V13: 27 | W13: 0 | X13: 2 | Y13: III | Z13: IV | AA13: 3.03 | AB13: 65.45085137 | AC13: 0 | AD13: 0 | AE13: 0 | AF13: 1 | AO13: 5 subunits | AP13: =COUNTIFS(AE:AE,"1",$J:$J,"=5") -> 20 | AQ13: =COUNTIFS(AC:AC,"1",$J:$J,"=5") -> 4 | AR13: =COUNTIFS(AD:AD,"1",$J:$J,"=5") -> 1 | AS13: =COUNTIFS(AF:AF,"1",$J:$J,"=5") -> 6 | AU13: 23.03307888 | AV13: 2.366412214 | AW13: 1.459287532 | AX13: 4.141221374 | AZ13: 0.4742128347
A14: P0AEK2 | B14: fabG | C14: ['cytosol'] | D14: ['FabG.4'] | E14: None | F14: Y | G14: 21408 | H14: 25.56 | I14: 0.908627834 | J14: 4 | K14: 1 | L14: 7.357 | M14: ['NAD(P)-binding Rossmann-fold domains'] | N14: ['3-241'] | O14: 1 | P14: 1 | Q14: 1 | R14: 20 | S14: 1 | T14: 2 | U14: 4 | V14: 21 | W14: 1 | X14: 5 | Y14: II | Z14: No Info Available | AA14: 3.68 | AB14: No Info Available | AC14: 0 | AD14: 0 | AE14: 0 | AF14: 1 | AO14: 6 subunits | AP14: =COUNTIFS(AE:AE,"1",$J:$J,"=6") -> 23 | AQ14: =COUNTIFS(AC:AC,"1",$J:$J,"=6") -> 2 | AR14: =COUNTIFS(AD:AD,"1",$J:$J,"=6") -> 1 | AS14: =COUNTIFS(AF:AF,"1",$J:$J,"=6") -> 5 | AU14: 23.03307888 | AV14: 2.366412214 | AW14: 1.459287532 | AX14: 4.141221374 | AZ14: 0.9444595419
A15: P0A6R0 | B15: fabH | C15: ['cytosol'] | D15: ['FabH.2'] | E15: None | F15: N | G15: 7355 | H15: 33.515 | I15: 0.409327564 | J15: 2 | K15: 1 | L15: 4.975 | M15: ['Thiolase-like', 'Thiolase-like'] | N15: ['4-166', '155-316'] | O15: 2 | P15: 1 | Q15: 0 | R15: 15 | S15: 2 | T15: 2 | U15: 0 | V15: 20 | W15: 2 | X15: 2 | Y15: No Info Available | Z15: No Info Available | AA15: 9.83 | AB15: 45.11573692 | AC15: 0 | AD15: 0 | AE15: 0 | AF15: 1 | AO15: >6 subunits | AP15: =COUNTIFS(AE:AE,"1",$J:$J,">6") -> 64 | AQ15: =COUNTIFS(AC:AC,"1",$J:$J,">6") -> 10 | AR15: =COUNTIFS(AD:AD,"1",$J:$J,">6") -> 6 | AS15: =COUNTIFS(AF:AF,"1",$J:$J,">6") -> 13 | AU15: 69.09923664 | AV15: 7.099236641 | AW15: 4.377862595 | AX15: 12.42366412 | AZ15: 0.5340490402
A16: P0AEK4 | B16: fabI | C16: ['cytosol'] | D16: ['FabI.4'] | E16: None | F16: Y | G16: 41315 | H16: 27.864 | I16: 1.91161447 | J16: 4 | K16: 1 | L16: 5.585 | M16: ['NAD(P)-binding Rossmann-fold domains'] | N16: ['6-253'] | O16: 1 | P16: 1 | Q16: 3 | R16: 27 | S16: 1 | T16: 4 | U16: 3 | V16: 32 | W16: 1 | X16: 4 | Y16: No Info Available | Z16: No Info Available | AA16: 2.56 | AB16: 45.31869324 | AC16: 0 | AD16: 0 | AE16: 0 | AF16: 1 | AN16: Percent | AO16: 1 subunit | AP16: =AP9/(AP9+AQ9+AR9+AS9) -> 0.8179104478 | AQ16: =AQ9/(AP9+AQ9+AR9+AS9) -> 0.07164179104 | AR16: =AR9/(AP9+AQ9+AR9+AS9) -> 0.03582089552 | AS16: =AS9/(AP9+AQ9+AR9+AS9) -> 0.07462686567
A17: P0A6Q6 | B17: fabZ | C17: ['cytosol'] | D17: ['FabZ.6'] | E17: None | F17: Y | G17: 19275 | H17: 17.033 | I17: 0.545173357 | J17: 6 | K17: 1 | L17: 7.147 | M17: ['Thioesterase/thiol ester dehydrase-isomerase'] | N17: ['10-149'] | O17: 1 | P17: 1 | Q17: 3 | R17: 6 | S17: 0 | T17: 3 | U17: 1 | V17: 6 | W17: 1 | X17: 2 | Y17: No Info Available | Z17: No Info Available | AA17: 3.94 | AB17: No Info Available | AC17: 0 | AD17: 0 | AE17: 0 | AF17: 1 | AO17: 2 subunits | AP17: =AP10/(AP10+AQ10+AR10+AS10) -> 0.6825396825 | AQ17: =AQ10/(AP10+AQ10+AR10+AS10) -> 0.05291005291 | AR17: =AR10/(AP10+AQ10+AR10+AS10) -> 0.05291005291 | AS17: =AS10/(AP10+AQ10+AR10+AS10) -> 0.2116402116
A18: P0AB71 | B18: fbaA | C18: ['cell wall', 'inner membrane', 'cytosol'] | D18: ['FbaA.2'] | E18: ['Zn2+'] | F18: Y | G18: 26609 | H18: 39.147 | I18: 1.729721286 | J18: 2 | K18: 1 | L18: 5.576 | M18: ['TIM beta/alpha-barrel'] | N18: ['4-357'] | O18: 1 | P18: 1 | Q18: 10 | R18: 51 | S18: 0 | T18: 10 | U18: 3 | V18: 51 | W18: 0 | X18: 3 | Y18: II | Z18: No Info Available | AA18: 7.24 | AB18: 49.6777831 | AC18: 0 | AD18: 0 | AE18: 0 | AF18: 1 | AO18: 3 subunits | AP18: 0.7 | AQ18: 0.1 | AR18: 0.05 | AS18: 0.15
A19: P0A9B2 | B19: gapA | C19: ['cytosol'] | D19: ['GapA.4'] | E19: None | F19: Y | G19: 105852 | H19: 35.532 | I19: 6.245508621 | J19: 4 | K19: 1 | L19: 6.792 | M19: ['FwdE/GAPDH domain-like', 'NAD(P)-binding Rossmann-fold domains'] | N19: ['149-312', '3-166'] | O19: 2 | P19: 2 | Q19: 10 | R19: 63 | S19: 5 | T19: 15 | U19: 14 | V19: 68 | W19: 6 | X19: 20 | Y19: I | Z19: No Info Available | AA19: 10.18 | AB19: 60.00015692 | AC19: 0 | AD19: 0 | AE19: 0 | AF19: 1 | AO19: 4 subunits | AP19: 0.6896551724 | AQ19: 0.09195402299 | AR19: 0.06896551724 | AS19: 0.1494252874
A20: P0A9Z1 | B20: glnB | C20: ['cytosol'] | D20: ['GlnB.3'] | E20: None | F20: N | G20: 5206 | H20: 12.425 | I20: 0.107411221 | J20: 3 | K20: 1 | L20: 5.04 | M20: ['Ferredoxin-like'] | N20: ['1-112'] | O20: 1 | P20: 1 | Q20: 2 | R20: 5 | S20: 1 | T20: 3 | U20: 2 | V20: 7 | W20: 0 | X20: 2 | Y20: No Info Available | Z20: No Info Available | AA20: No Info Available | AB20: No Info Available | AC20: 0 | AD20: 0 | AE20: 0 | AF20: 1 | AO20: 5 subunits | AP20: 0.6451612903 | AQ20: 0.1290322581 | AR20: 0.03225806452 | AS20: 0.1935483871
A21: P37902 | B21: gltI | C21: ['periplasmic space'] | D21: ['GltI.', 'GltK.', 'GltJ.', 'GltL.2'] | E21: None | F21: N | G21: 1254 | H21: 33.42 | I21: 0.069590999 | J21: 5 | K21: 4 | L21: 8.674 | M21: ['Periplasmic binding protein-like II'] | N21: ['8-274'] | O21: 1 | P21: 1 | Q21: 2 | R21: 16 | S21: 2 | T21: 4 | U21: 2 | V21: 13 | W21: 0 | X21: 2 | Y21: No Info Available | Z21: No Info Available | AA21: No Info Available | AB21: 60.61993872 | AC21: 0 | AD21: 0 | AE21: 0 | AF21: 1 | AO21: 6 subunits | AP21: 0.7419354839 | AQ21: 0.06451612903 | AR21: 0.03225806452 | AS21: 0.1612903226
A22: P0A825 | B22: glyA | C22: ['cytosol'] | D22: ['GlyA.2'] | E22: ["pyridoxal 5'-phosphate"] | F22: N | G22: 13787 | H22: 45.317 | I22: 1.03748068 | J22: 2 | K22: 1 | L22: 6.176 | M22: ['PLP-dependent transferase-like'] | N22: ['7-415'] | O22: 1 | P22: 1 | Q22: 3 | R22: 23 | S22: 3 | T22: 6 | U22: 2 | V22: 29 | W22: 2 | X22: 4 | Y22: I | Z22: No Info Available | AA22: 5.18 | AB22: 64.62261973 | AC22: 0 | AD22: 0 | AE22: 0 | AF22: 1 | AO22: >6 subunits | AP22: 0.688172043 | AQ22: 0.1075268817 | AR22: 0.06451612903 | AS22: 0.1397849462
A23: P00961 | B23: glyS | C23: ['cytosol'] | D23: ['GlyS.2', 'GlyQ.2'] | E23: None | F23: Y | G23: 12974 | H23: 76.813 | I23: 1.654846483 | J23: 4 | K23: 2 | L23: 5.184 | M23: ['HD-domain/PDEase-like'] | N23: ['339-511'] | O23: 1 | P23: 1 | Q23: 2 | R23: 42 | S23: 0 | T23: 2 | U23: 2 | V23: 43 | W23: 0 | X23: 2 | Y23: No Info Available | Z23: No Info Available | AA23: No Info Available | AB23: 46.18483288 | AC23: 0 | AD23: 0 | AE23: 0 | AF23: 1
A24: P60546 | B24: gmk | C24: ['cytosol'] | D24: ['Gmk.2'] | E24: ['Mg2+'] | F24: Y | G24: 4423 | H24: 23.593 | I24: 0.173280303 | J24: 2 | K24: 1 | L24: 6.227 | M24: ['P-loop containing nucleoside triphosphate hydrolases'] | N24: ['4-198'] | O24: 1 | P24: 1 | Q24: 1 | R24: 8 | S24: 1 | T24: 2 | U24: 2 | V24: 8 | W24: 0 | X24: 2 | Y24: No Info Available | Z24: No Info Available | AA24: No Info Available | AB24: 45.95219698 | AC24: 0 | AD24: 0 | AE24: 0 | AF24: 1 | AO24: 1 subunit | AP24: =COUNTIFS(AE:AE,"1",$J:$J,"=1",$D:$D,"*,*") -> 0 | AQ24: =COUNTIFS(AC:AC,"1",$J:$J,"=1",$D:$D,"*,*") -> 0 | AR24: =COUNTIFS(AD:AD,"1",$J:$J,"=1",$D:$D,"*,*") -> 0 | AS24: =COUNTIFS(AF:AF,"1",$J:$J,"=1",$D:$D,"*,*") -> 0
A25: P00350 | B25: gnd | C25: ['cytosol'] | D25: ['Gnd.2'] | E25: None | F25: N | G25: 27814 | H25: 51.481 | I25: 2.377713454 | J25: 2 | K25: 1 | L25: 4.909 | M25: ['6-phosphogluconate dehydrogenase C-terminal domain-like', 'NAD(P)-binding Rossmann-fold domains'] | N25: ['177-467', '4-173'] | O25: 2 | P25: 2 | Q25: 0 | R25: 50 | S25: 3 | T25: 3 | U25: 5 | V25: 66 | W25: 0 | X25: 5 | Y25: I | Z25: No Info Available | AA25: 6.01 | AB25: 57.82613507 | AC25: 0 | AD25: 0 | AE25: 0 | AF25: 1 | AO25: 2 subunits | AP25: =COUNTIFS(AE:AE,"1",$J:$J,"=2",$D:$D,"*,*") -> 22 | AQ25: =COUNTIFS(AC:AC,"1",$J:$J,"=2",$D:$D,"*,*") -> 0 | AR25: =COUNTIFS(AD:AD,"1",$J:$J,"=2",$D:$D,"*,*") -> 0 | AS25: =COUNTIFS(AF:AF,"1",$J:$J,"=2",$D:$D,"*,*") -> 2
A26: P62707 | B26: gpmA | C26: ['cytosol'] | D26: ['GpmA.2'] | E26: ['2,3-diphospho-D-glycerate'] | F26: N | G26: 29287 | H26: 28.556 | I26: 1.3887413 | J26: 2 | K26: 1 | L26: 5.925 | M26: ['Phosphoglycerate mutase-like'] | N26: ['4-247'] | O26: 1 | P26: 1 | Q26: 1 | R26: 20 | S26: 1 | T26: 2 | U26: 0 | V26: 21 | W26: 3 | X26: 3 | Y26: I | Z26: No Info Available | AA26: 6.35 | AB26: 49.03411989 | AC26: 0 | AD26: 0 | AE26: 0 | AF26: 1 | AO26: 3 subunits | AP26: =COUNTIFS(AE:AE,"1",$J:$J,"=3",$D:$D,"*,*") -> 4 | AQ26: =COUNTIFS(AC:AC,"1",$J:$J,"=3",$D:$D,"*,*") -> 1 | AR26: =COUNTIFS(AD:AD,"1",$J:$J,"=3",$D:$D,"*,*") -> 0 | AS26: =COUNTIFS(AF:AF,"1",$J:$J,"=3",$D:$D,"*,*") -> 0
A27: P0A6F9 | B27: groS | C27: ['cytosol'] | D27: ['GroL.14', 'GroS.14'] | E27: None | F27: Y | G27: 59001 | H27: 10.387 | I27: 1.01765037 | J27: 28 | K27: 2 | L27: 5.02 | M27: ['GroES-like'] | N27: ['2-93'] | O27: 1 | P27: 1 | Q27: 2 | R27: 38 | S27: 1 | T27: 3 | U27: 6 | V27: 93 | W27: 0 | X27: 6 | Y27: No Info Available | Z27: No Info Available | AA27: 6.02 | AB27: 49.66768808 | AC27: 0 | AD27: 0 | AE27: 0 | AF27: 1 | AO27: 4 subunits | AP27: =COUNTIFS(AE:AE,"1",$J:$J,"=4",$D:$D,"*,*") -> 25 | AQ27: =COUNTIFS(AC:AC,"1",$J:$J,"=4",$D:$D,"*,*") -> 1 | AR27: =COUNTIFS(AD:AD,"1",$J:$J,"=4",$D:$D,"*,*") -> 4 | AS27: =COUNTIFS(AF:AF,"1",$J:$J,"=4",$D:$D,"*,*") -> 5
A28: P0A6F5 | B28: groL | C28: ['cytosol'] | D28: ['GroL.14', 'GroS.14'] | E28: None | F28: Y | G28: 52165 | H28: 57.329 | I28: 4.96595373 | J28: 28 | K28: 2 | L28: 4.703 | M28: ['The "swivelling" beta/beta/alpha domain', 'GroEL equatorial domain-like', 'GroEL-intermediate domain like', ''] | N28: ['191-376', '7-134+406-521', '137-203', '3-92+331-547'] | O28: 4 | P28: 4 | Q28: 9 | R28: 216 | S28: 5 | T28: 14 | U28: 40 | V28: 570 | W28: 5 | X28: 45 | Y28: No Info Available | Z28: No Info Available | AA28: 4.14 | AB28: 58.4176572 | AC28: 0 | AD28: 0 | AE28: 0 | AF28: 1 | AO28: 5 subunits | AP28: =COUNTIFS(AE:AE,"1",$J:$J,"=5",$D:$D,"*,*") -> 20 | AQ28: =COUNTIFS(AC:AC,"1",$J:$J,"=5",$D:$D,"*,*") -> 4 | AR28: =COUNTIFS(AD:AD,"1",$J:$J,"=5",$D:$D,"*,*") -> 1 | AS28: =COUNTIFS(AF:AF,"1",$J:$J,"=5",$D:$D,"*,*") -> 4
A29: P04425 | B29: gshB | C29: ['cytosol'] | D29: ['GshB.4'] | E29: ['Mg2+'] | F29: N | G29: 2739 | H29: 35.561 | I29: 0.161739125 | J29: 4 | K29: 1 | L29: 4.983 | M29: ['ATP-grasp', 'PreATP-grasp domain'] | N29: ['123-312', '2-122'] | O29: 2 | P29: 2 | Q29: 2 | R29: 10 | S29: 0 | T29: 2 | U29: 2 | V29: 13 | W29: 0 | X29: 2 | Y29: No Info Available | Z29: No Info Available | AA29: No Info Available | AB29: 46.75427713 | AC29: 0 | AD29: 0 | AE29: 0 | AF29: 1 | AO29: 6 subunits | AP29: =COUNTIFS(AE:AE,"1",$J:$J,"=6",$D:$D,"*,*") -> 9 | AQ29: =COUNTIFS(AC:AC,"1",$J:$J,"=6",$D:$D,"*,*") -> 0 | AR29: =COUNTIFS(AD:AD,"1",$J:$J,"=6",$D:$D,"*,*") -> 0 | AS29: =COUNTIFS(AF:AF,"1",$J:$J,"=6",$D:$D,"*,*") -> 0
A30: P0ADG7 | B30: guaB | C30: ['cytosol'] | D30: ['GuaB.4'] | E30: None | F30: N | G30: 25233 | H30: 52.022 | I30: 2.179741652 | J30: 4 | K30: 1 | L30: 6.124 | M30: ['TIM beta/alpha-barrel', 'CBS-domain pair'] | N30: ['1-90+217-477', '94-203'] | O30: 2 | P30: 2 | Q30: 8 | R30: 39 | S30: 2 | T30: 10 | U30: 13 | V30: 42 | W30: 3 | X30: 16 | Y30: No Info Available | Z30: No Info Available | AA30: 7.96 | AB30: No Info Available | AC30: 0 | AD30: 0 | AE30: 0 | AF30: 1 | AO30: >6 subunits | AP30: =COUNTIFS(AE:AE,"1",$J:$J,">6",$D:$D,"*,*") -> 53 | AQ30: =COUNTIFS(AC:AC,"1",$J:$J,">6",$D:$D,"*,*") -> 8 | AR30: =COUNTIFS(AD:AD,"1",$J:$J,">6",$D:$D,"*,*") -> 3 | AS30: =COUNTIFS(AF:AF,"1",$J:$J,">6",$D:$D,"*,*") -> 12
A31: P0AES9 | B31: hdeA | C31: ['periplasmic space'] | D31: ['HdeA.2'] | E31: None | F31: N | G31: 714 | H31: 11.858 | I31: 0.01405914 | J31: 2 | K31: 1 | L31: 4.91 | M31: ['Protein HNS-dependent expression A; HdeA'] | N31: ['30-108'] | O31: 1 | P31: 1 | Q31: 3 | R31: 19 | S31: 0 | T31: 3 | U31: 3 | V31: 21 | W31: 0 | X31: 3 | Y31: No Info Available | Z31: No Info Available | AA31: 10.55 | AB31: 56.37663407 | AC31: 0 | AD31: 0 | AE31: 0 | AF31: 1 | AO31: 1 subunit | AP31: =AP24/(AP24+AQ24+AR24+AS24) ->  | AQ31: =AQ24/(AP24+AQ24+AR24+AS24) ->  | AR31: =AR24/(AP24+AQ24+AR24+AS24) ->  | AS31: =AS24/(AP24+AQ24+AR24+AS24) -> 
A32: P0A6X3 | B32: hfq | C32: ['cytosol'] | D32: ['Hfq.6'] | E32: None | F32: N | G32: 27919 | H32: 11.166 | I32: 0.517662342 | J32: 6 | K32: 1 | L32: 7.556 | M32: ['Sm-like fold'] | N32: ['5-69'] | O32: 1 | P32: 1 | Q32: 1 | R32: 9 | S32: 7 | T32: 8 | U32: 1 | V32: 10 | W32: 5 | X32: 6 | Y32: No Info Available | Z32: No Info Available | AA32: No Info Available | AB32: No Info Available | AC32: 0 | AD32: 0 | AE32: 0 | AF32: 1 | AO32: 2 subunits | AP32: =AP25/(AP25+AQ25+AR25+AS25) -> 0.9166666667 | AQ32: =AQ25/(AP25+AQ25+AR25+AS25) -> 0 | AR32: =AR25/(AP25+AQ25+AR25+AS25) -> 0 | AS32: =AS25/(AP25+AQ25+AR25+AS25) -> 0.08333333333
A33: P0A6Z3 | B33: htpG | C33: ['cytosol', 'inner membrane'] | D33: ['HtpG.2'] | E33: None | F33: N | G33: 12381 | H33: 71.422 | I33: 1.468374459 | J33: 2 | K33: 1 | L33: 4.968 | M33: ['Ribosomal protein S5 domain 2-like', 'ATPase domain of HSP90 chaperone/DNA topoisomerase II/histidine kinase', 'HSP90 C-terminal domain'] | N33: ['231-485', '5-208', '510-623'] | O33: 3 | P33: 3 | Q33: 0 | R33: 43 | S33: 2 | T33: 2 | U33: 2 | V33: 32 | W33: 3 | X33: 5 | Y33: No Info Available | Z33: No Info Available | AA33: 4.57 | AB33: 59.3593771 | AC33: 0 | AD33: 0 | AE33: 0 | AF33: 1 | AO33: 3 subunits | AP33: 0.8 | AQ33: 0.2 | AR33: 0 | AS33: 0
A34: P08200 | B34: icd | C34: ['cytosol'] | D34: ['Icd.2'] | E34: ['Mn2'] | F34: N | G34: 29482 | H34: 45.757 | I34: 2.240080241 | J34: 2 | K34: 1 | L34: 5.03 | M34: ['Isocitrate/Isopropylmalate dehydrogenase-like'] | N34: ['29-416'] | O34: 1 | P34: 1 | Q34: 4 | R34: 50 | S34: 4 | T34: 8 | U34: 8 | V34: 59 | W34: 2 | X34: 10 | Y34: No Info Available | Z34: No Info Available | AA34: 4.99 | AB34: 50.85999236 | AC34: 0 | AD34: 0 | AE34: 0 | AF34: 1 | AO34: 4 subunits | AP34: 0.7142857143 | AQ34: 0.02857142857 | AR34: 0.1142857143 | AS34: 0.1428571429
A35: P0A6B7 | B35: iscS | C35: ['cytosol'] | D35: ['IscS.2'] | E35: ["pyridoxal 5'-phosphate"] | F35: N | G35: 13340 | H35: 45.089 | I35: 0.998793078 | J35: 2 | K35: 1 | L35: 6.07 | M35: ['PLP-dependent transferase-like'] | N35: ['4-391'] | O35: 1 | P35: 1 | Q35: 1 | R35: 25 | S35: 3 | T35: 4 | U35: 3 | V35: 27 | W35: 0 | X35: 3 | Y35: II | Z35: No Info Available | AA35: 3.94 | AB35: 48.63454029 | AC35: 0 | AD35: 0 | AE35: 0 | AF35: 1 | AO35: 5 subunits | AP35: 0.6896551724 | AQ35: 0.1379310345 | AR35: 0.03448275862 | AS35: 0.1379310345
A36: P0AD57 | B36: ispB | C36: ['cytosol'] | D36: ['IspB.2'] | E36: ['Mg2+'] | F36: Y | G36: 2699 | H36: 35.217 | I36: 0.15783537 | J36: 2 | K36: 1 | L36: 4.557 | M36: ['Terpenoid synthases'] | N36: ['6-322'] | O36: 1 | P36: 1 | Q36: 3 | R36: 6 | S36: 0 | T36: 3 | U36: 1 | V36: 8 | W36: 1 | X36: 2 | Y36: No Info Available | Z36: No Info Available | AA36: No Info Available | AB36: No Info Available | AC36: 0 | AD36: 0 | AE36: 0 | AF36: 1 | AO36: 6 subunits | AP36: 1 | AQ36: 0 | AR36: 0 | AS36: 0
A37: Q46893 | B37: ispD | C37: ['cytosol'] | D37: ['IspD.2'] | E37: ['Mg2+'] | F37: Y | G37: 485 | H37: 25.737 | I37: 0.020727587 | J37: 2 | K37: 1 | L37: 6.324 | M37: ['Nucleotide-diphospho-sugar transferases'] | N37: ['10-231'] | O37: 1 | P37: 1 | Q37: 1 | R37: 6 | S37: 1 | T37: 2 | U37: 2 | V37: 7 | W37: 0 | X37: 2 | Y37: No Info Available | Z37: No Info Available | AA37: No Info Available | AB37: No Info Available | AC37: 0 | AD37: 0 | AE37: 0 | AF37: 1 | AO37: >6 subunits | AP37: 0.6973684211 | AQ37: 0.1052631579 | AR37: 0.03947368421 | AS37: 0.1578947368
A38: P61889 | B38: mdh | C38: ['cytosol', 'membrane'] | D38: ['Mdh.2'] | E38: None | F38: N | G38: 9529 | H38: 32.337 | I38: 0.511677293 | J38: 2 | K38: 1 | L38: 5.534 | M38: ['LDH C-terminal domain-like', 'NAD(P)-binding Rossmann-fold domains'] | N38: ['147-303', '2-134'] | O38: 2 | P38: 2 | Q38: 3 | R38: 28 | S38: 1 | T38: 4 | U38: 3 | V38: 30 | W38: 2 | X38: 5 | Y38: No Info Available | Z38: No Info Available | AA38: 3.43 | AB38: 54.98773398 | AC38: 0 | AD38: 0 | AE38: 0 | AF38: 1
A39: P77608 | B39: mhpD | C39: ['cytosol'] | D39: ['MhpD.5'] | E39: ['Mn2+'] | F39: N | G39: ? | H39: 28.89 | I39: ? | J39: 5 | K39: 1 | L39: 5.068 | M39: ['FAH'] | N39: ['1-259'] | O39: 1 | P39: 1 | Q39: 2 | R39: 29 | S39: 2 | T39: 4 | U39: 4 | V39: 31 | W39: 2 | X39: 6 | Y39: No Info Available | Z39: No Info Available | AA39: No Info Available | AB39: No Info Available | AC39: 0 | AD39: 0 | AE39: 0 | AF39: 1 | AN39: Total | AO39: Composition by Unique Subunits
A40: P0AF12 | B40: mtnN | C40: ['cytosol'] | D40: ['Mtn.2'] | E40: None | F40: N | G40: 6313 | H40: 24.354 | I40: 0.255302567 | J40: 2 | K40: 1 | L40: ? | M40: ['Phosphorylase/hydrolase-like'] | N40: ['1-229'] | O40: 1 | P40: 1 | Q40: 2 | R40: 16 | S40: 2 | T40: 4 | U40: 1 | V40: 16 | W40: 1 | X40: 2 | Y40: No Info Available | Z40: No Info Available | AA40: No Info Available | AB40: 56.75927605 | AC40: 0 | AD40: 0 | AE40: 0 | AF40: 1 | AO40: 1 US | AP40: =COUNTIFS(AE:AE,"1",$K:$K,"=1") -> 451 | AQ40: =COUNTIFS(AC:AC,"1",$K:$K,"=1") -> 46 | AR40: =COUNTIFS(AD:AD,"1",$K:$K,"=1") -> 29 | AS40: =COUNTIFS(AF:AF,"1",$K:$K,"=1") -> 82 | AU40: =SUM(AP40:AS40)*AP$6 -> 451.7455471 | AV40: =SUM(AP40:AS40)*AQ$6 -> 46.41221374 | AW40: =SUM(AP40:AS40)*AR$6 -> 28.62086514 | AX40: =SUM(AP40:AS40)*AS$6 -> 81.22137405 | AZ40: =_xlfn.CHISQ.TEST(AP40:AS40,AU40:AX40) -> 0.9993938775
A41: P0A763 | B41: ndk | C41: ['cytosol'] | D41: ['Ndk.4'] | E41: ['Mg2+'] | F41: N | G41: 44876 | H41: 15.463 | I41: 1.152277246 | J41: 4 | K41: 1 | L41: 5.56 | M41: ['Ferredoxin-like'] | N41: ['1-141'] | O41: 1 | P41: 1 | Q41: 1 | R41: 20 | S41: 1 | T41: 2 | U41: 1 | V41: 16 | W41: 1 | X41: 2 | Y41: No Info Available | Z41: No Info Available | AA41: No Info Available | AB41: No Info Available | AC41: 0 | AD41: 0 | AE41: 0 | AF41: 1 | AO41: 2 US | AP41: =COUNTIFS(AE:AE,"1",$K:$K,"=2") -> 46 | AQ41: =COUNTIFS(AC:AC,"1",$K:$K,"=2") -> 4 | AR41: =COUNTIFS(AD:AD,"1",$K:$K,"=2") -> 3 | AS41: =COUNTIFS(AF:AF,"1",$K:$K,"=2") -> 9 | AU41: 46.06615776 | AV41: 4.732824427 | AW41: 2.918575064 | AX41: 8.282442748 | AZ41: =_xlfn.CHISQ.TEST(AP41:AS41,AU41:AX41) -> 0.9810597976
A42: P38489 | B42: nfsB | C42: ['cytosol'] | D42: ['NfsB.2'] | E42: ['FMN'] | F42: N | G42: 6231 | H42: 23.905 | I42: 0.247340702 | J42: 2 | K42: 1 | L42: 5.925 | M42: ['FMN-dependent nitroreductase-like'] | N42: ['1-216'] | O42: 1 | P42: 1 | Q42: 2 | R42: 28 | S42: 1 | T42: 3 | U42: 5 | V42: 24 | W42: 0 | X42: 5 | Y42: No Info Available | Z42: No Info Available | AA42: No Info Available | AB42: 46.93339841 | AC42: 0 | AD42: 0 | AE42: 0 | AF42: 1 | AO42: 3 US | AP42: =COUNTIFS(AE:AE,"1",$K:$K,"=3") -> 21 | AQ42: =COUNTIFS(AC:AC,"1",$K:$K,"=3") -> 4 | AR42: =COUNTIFS(AD:AD,"1",$K:$K,"=3") -> 1 | AS42: =COUNTIFS(AF:AF,"1",$K:$K,"=3") -> 3 | AU42: 21.54707379 | AV42: 2.213740458 | AW42: 1.365139949 | AX42: 3.874045802 | AZ42: 0.6258576788
A43: P63020 | B43: nfuA | C43: ['cytosol'] | D43: ['NfuA.2'] | E43: None | F43: N | G43: 15911 | H43: 20.998 | I43: 0.554784728 | J43: 2 | K43: 1 | L43: 4.381 | M43: ['Alpha-lytic protease prodomain-like', 'HesB-like domain'] | N43: ['95-184', '1-97'] | O43: 2 | P43: 2 | Q43: 1 | R43: 20 | S43: 2 | T43: 3 | U43: 1 | V43: 19 | W43: 2 | X43: 3 | Y43: I or II | Z43: No Info Available | AA43: 4.54 | AB43: No Info Available | AC43: 0 | AD43: 0 | AE43: 0 | AF43: 1 | AO43: 4 US | AP43: =COUNTIFS(AE:AE,"1",$K:$K,"=4") -> 16 | AQ43: =COUNTIFS(AC:AC,"1",$K:$K,"=4") -> 0 | AR43: =COUNTIFS(AD:AD,"1",$K:$K,"=4") -> 2 | AS43: =COUNTIFS(AF:AF,"1",$K:$K,"=4") -> 2 | AU43: 14.86005089 | AV43: 1.526717557 | AW43: 0.941475827 | AX43: 2.671755725 | AZ43: 0.3957774404
A44: P23843 | B44: oppA | C44: ['inner membrane', 'periplasmic space'] | D44: ['OppC.', 'OppD.', 'OppF.', 'OppB.', 'OppA.'] | E44: None | F44: N | G44: 21419 | H44: 60.899 | I44: 2.165999952 | J44: 5 | K44: 5 | L44: 6.186 | M44: ['Periplasmic binding protein-like II'] | N44: ['35-525'] | O44: 1 | P44: 1 | Q44: 15 | R44: 78 | S44: 11 | T44: 26 | U44: 17 | V44: 89 | W44: 6 | X44: 23 | Y44: I | Z44: No Info Available | AA44: 4.9 | AB44: 55.71399416 | AC44: 0 | AD44: 0 | AE44: 0 | AF44: 1 | AO44: 5 US | AP44: =COUNTIFS(AE:AE,"1",$K:$K,"=5") -> 12 | AQ44: =COUNTIFS(AC:AC,"1",$K:$K,"=5") -> 2 | AR44: =COUNTIFS(AD:AD,"1",$K:$K,"=5") -> 0 | AS44: =COUNTIFS(AF:AF,"1",$K:$K,"=5") -> 5 | AU44: 14.11704835 | AV44: 1.450381679 | AW44: 0.8944020356 | AX44: 2.538167939 | AZ44: 0.282962605
A45: P0A794 | B45: pdxJ | C45: ['cytosol'] | D45: ['PdxJ.8'] | E45: None | F45: N | G45: 1846 | H45: 26.384 | I45: 0.080876328 | J45: 8 | K45: 1 | L45: 5.669 | M45: ['TIM beta/alpha-barrel'] | N45: ['5-238'] | O45: 1 | P45: 1 | Q45: 1 | R45: 11 | S45: 1 | T45: 2 | U45: 2 | V45: 12 | W45: 0 | X45: 2 | Y45: No Info Available | Z45: No Info Available | AA45: No Info Available | AB45: 52.43114882 | AC45: 0 | AD45: 0 | AE45: 0 | AF45: 1 | AO45: 6 US | AP45: =COUNTIFS(AE:AE,"1",$K:$K,"=6") -> 5 | AQ45: =COUNTIFS(AC:AC,"1",$K:$K,"=6") -> 0 | AR45: =COUNTIFS(AD:AD,"1",$K:$K,"=6") -> 0 | AS45: =COUNTIFS(AF:AF,"1",$K:$K,"=6") -> 0 | AU45: 3.715012723 | AV45: 0.3816793893 | AW45: 0.2353689567 | AX45: 0.6679389313 | AZ45: 0.6304059027
A46: P15288 | B46: pepD | C46: ['cytosol'] | D46: ['PepD.2'] | E46: None | F46: N | G46: 7408 | H46: 52.915 | I46: 0.650921872 | J46: 2 | K46: 1 | L46: 5.126 | M46: ['Phosphorylase/hydrolase-like'] | N46: ['10-182+397-482'] | O46: 1 | P46: 1 | Q46: 5 | R46: 33 | S46: 0 | T46: 5 | U46: 3 | V46: 41 | W46: 1 | X46: 4 | Y46: No Info Available | Z46: No Info Available | AA46: No Info Available | AB46: 64.80478549 | AC46: 0 | AD46: 0 | AE46: 0 | AF46: 1 | AO46: >6 US | AP46: =COUNTIFS(AE:AE,"1",$K:$K,">6") -> 33 | AQ46: =COUNTIFS(AC:AC,"1",$K:$K,">6") -> 4 | AR46: =COUNTIFS(AD:AD,"1",$K:$K,">6") -> 2 | AS46: =COUNTIFS(AF:AF,"1",$K:$K,">6") -> 4 | AU46: 31.94910941 | AV46: 3.282442748 | AW46: 2.024173028 | AX46: 5.744274809 | AZ46: 0.8681655491
A47: P0A796 | B47: pfkA | C47: ['cytosol'] | D47: ['PfkA.4'] | E47: ['Mg2+'] | F47: N | G47: 4667 | H47: 34.842 | I47: 0.270016291 | J47: 4 | K47: 1 | L47: 5.435 | M47: ['Phosphofructokinase'] | N47: ['3-305'] | O47: 1 | P47: 1 | Q47: 1 | R47: 15 | S47: 2 | T47: 3 | U47: 2 | V47: 18 | W47: 2 | X47: 4 | Y47: No Info Available | Z47: No Info Available | AA47: 6.83 | AB47: 57.36423264 | AC47: 0 | AD47: 0 | AE47: 0 | AF47: 1 | AN47: Percent | AO47: 1 US | AP47: =AP40/(AP40+AQ40+AR40+AS40) -> 0.7417763158 | AQ47: =AQ40/(AP40+AQ40+AR40+AS40) -> 0.07565789474 | AR47: =AR40/(AP40+AQ40+AR40+AS40) -> 0.04769736842 | AS47: =AS40/(AP40+AQ40+AR40+AS40) -> 0.1348684211
A48: P09373 | B48: pflB | C48: ['cytosol'] | D48: ['PflB.2'] | E48: None | F48: N | G48: 10029 | H48: 85.357 | I48: 1.421496729 | J48: 2 | K48: 1 | L48: 5.722 | M48: ['PFL-like glycyl radical enzymes'] | N48: ['4-759'] | O48: 1 | P48: 1 | Q48: 8 | R48: 64 | S48: 3 | T48: 11 | U48: 2 | V48: 60 | W48: 0 | X48: 2 | Y48: No Info Available | Z48: No Info Available | AA48: 4.9 | AB48: 51.34938527 | AC48: 0 | AD48: 0 | AE48: 0 | AF48: 1 | AO48: 2 US | AP48: =AP41/(AP41+AQ41+AR41+AS41) -> 0.7419354839 | AQ48: =AQ41/(AP41+AQ41+AR41+AS41) -> 0.06451612903 | AR48: =AR41/(AP41+AQ41+AR41+AS41) -> 0.04838709677 | AS48: =AS41/(AP41+AQ41+AR41+AS41) -> 0.1451612903
A49: P07395 | B49: pheT | C49: ['cytosol'] | D49: ['PheS.2', 'PheT.2'] | E49: ['Mg2+'] | F49: Y | G49: 8573 | H49: 87.378 | I49: 1.243895837 | J49: 4 | K49: 2 | L49: 5.053 | M49: ['PheT/TilS domain', 'Class II aaRS and biotin synthetases', 'OB-fold', 'Ferredoxin-like', 'Putative DNA-binding domain', 'Putative DNA-binding domain'] | N49: ['197-393', '467-690', '45-147', '696-794', '403-475', '1-38+153-191'] | O49: 6 | P49: 5 | Q49: 2 | R49: 42 | S49: 5 | T49: 7 | U49: 4 | V49: 55 | W49: 2 | X49: 6 | Y49: No Info Available | Z49: No Info Available | AA49: 2.69 | AB49: 49.25070012 | AC49: 0 | AD49: 0 | AE49: 0 | AF49: 1 | AO49: 3 US | AP49: 0.724137931 | AQ49: 0.1379310345 | AR49: 0.03448275862 | AS49: 0.1034482759
A50: P0AFK9 | B50: potD | C50: ['periplasmic space'] | D50: ['PotA.2', 'PotB.', 'PotC.', 'PotD.'] | E50: None | F50: N | G50: 9151 | H50: 38.867 | I50: 0.590607104 | J50: 5 | K50: 4 | L50: 5.117 | M50: ['Periplasmic binding protein-like II'] | N50: ['27-345'] | O50: 1 | P50: 1 | Q50: 2 | R50: 20 | S50: 1 | T50: 3 | U50: 0 | V50: 19 | W50: 2 | X50: 2 | Y50: No Info Available | Z50: No Info Available | AA50: 6.42 | AB50: No Info Available | AC50: 0 | AD50: 0 | AE50: 0 | AF50: 1 | AO50: 4 US | AP50: 0.8 | AQ50: 0 | AR50: 0.1 | AS50: 0.1
A51: P0A7A9 | B51: ppa | C51: ['cytosol'] | D51: ['Ppa.6'] | E51: ['Mg2+'] | F51: Y | G51: 66605 | H51: 19.704 | I51: 2.179266396 | J51: 6 | K51: 1 | L51: 4.909 | M51: ['OB-fold'] | N51: ['6-174'] | O51: 1 | P51: 1 | Q51: 7 | R51: 30 | S51: 1 | T51: 8 | U51: 11 | V51: 41 | W51: 1 | X51: 12 | Y51: I | Z51: No Info Available | AA51: 2.49 | AB51: No Info Available | AC51: 0 | AD51: 0 | AE51: 0 | AF51: 1 | AO51: 5 US | AP51: 0.6315789474 | AQ51: 0.1052631579 | AR51: 0 | AS51: 0.2631578947
A52: P21513 | B52: rne | C52: ['cytosol', 'inner membrane'] | D52: ['Ppk.2.', 'Rne.4.', 'RhlB.2.', 'Pnp.3.', 'Eno.2.'] | E52: ['Mg2'] | F52: Y | G52: 2729 | H52: 118.2 | I52: 0.535636425 | J52: 13 | K52: 5 | L52: 5.413 | M52: ['OB-fold'] | N52: ['40-124'] | O52: 1 | P52: 1 | Q52: 2 | R52: 36 | S52: 0 | T52: 2 | U52: 3 | V52: 27 | W52: 0 | X52: 3 | Y52: No Info Available | Z52: No Info Available | AA52: 4.31 | AB52: No Info Available | AC52: 0 | AD52: 0 | AE52: 0 | AF52: 1 | AO52: 6 US | AP52: 1 | AQ52: 0 | AR52: 0 | AS52: 0
A53: P05055 | B53: pnp | C53: ['cytosol'] | D53: ['Ppk.2.', 'Rne.4.', 'RhlB.2.', 'Pnp.3.', 'Eno.2.'] | E53: ['Mg2+'] | F53: N | G53: 11905 | H53: 77.101 | I53: 1.524187871 | J53: 13 | K53: 5 | L53: 4.983 | M53: ['Ribosomal protein S5 domain 2-like', 'Ribosomal protein S5 domain 2-like', 'Ribonuclease PH domain 2-like', 'Ribonuclease PH domain 2-like', 'DNA/RNA-binding 3-helical bundle', 'OB-fold', 'Eukaryotic type KH-domain (KH-domain type I)'] | N53: ['3-144', '301-492', '145-235', '450-548', '226-325', '608-693', '554-622'] | O53: 7 | P53: 5 | Q53: 5 | R53: 38 | S53: 2 | T53: 7 | U53: 3 | V53: 38 | W53: 0 | X53: 3 | Y53: I | Z53: No Info Available | AA53: No Info Available | AB53: 58.67426395 | AC53: 0 | AD53: 0 | AE53: 0 | AF53: 1 | AO53: >6 US | AP53: 0.7674418605 | AQ53: 0.09302325581 | AR53: 0.04651162791 | AS53: 0.09302325581
A54: P0A6P9 | B54: eno | C54: ['cytosol', 'extracellular space', 'cytoskeleton'] | D54: ['Ppk.2.', 'Rne.4.', 'RhlB.2.', 'Pnp.3.', 'Eno.2.'] | E54: ['Mg2+'] | F54: Y | G54: 54222 | H54: 45.655 | I54: 4.110673378 | J54: 13 | K54: 5 | L54: 5.231 | M54: ['TIM beta/alpha-barrel', 'Enolase N-terminal domain-like'] | N54: ['146-426', '3-140'] | O54: 2 | P54: 2 | Q54: 5 | R54: 64 | S54: 1 | T54: 6 | U54: 5 | V54: 71 | W54: 3 | X54: 8 | Y54: I | Z54: No Info Available | AA54: 8.13 | AB54: 49.5955211 | AC54: 0 | AD54: 0 | AE54: 0 | AF54: 1
A55: P16659 | B55: proS | C55: ['cytosol'] | D55: ['ProS.2'] | E55: None | F55: Y | G55: 12156 | H55: 63.693 | I55: 1.285675852 | J55: 2 | K55: 1 | L55: 5.002 | M55: ['Class II aaRS and biotin synthetases', 'Anticodon-binding domain-like', 'YbaK/ProRS associated domain'] | N55: ['10-237+407-478', '463-571', '218-390'] | O55: 3 | P55: 3 | Q55: 5 | R55: 45 | S55: 3 | T55: 8 | U55: 5 | V55: 50 | W55: 0 | X55: 5 | Y55: No Info Available | Z55: No Info Available | AA55: 6.16 | AB55: 47.12437229 | AC55: 0 | AD55: 0 | AE55: 0 | AF55: 1 | AN55: Total | AO55: Domains
A56: P0A9M8 | B56: pta | C56: ['cytosol'] | D56: ['Pta.6'] | E56: None | F56: N | G56: 13861 | H56: 77.172 | I56: 1.776247214 | J56: 6 | K56: 1 | L56: 5.172 | M56: ['Isocitrate/Isopropylmalate dehydrogenase-like', 'P-loop containing nucleoside triphosphate hydrolases', 'MurF and HprK N-domain-like'] | N56: ['393-711', '1-241', '230-354'] | O56: 3 | P56: 3 | Q56: 6 | R56: 41 | S56: 1 | T56: 7 | U56: 3 | V56: 48 | W56: 4 | X56: 7 | Y56: No Info Available | Z56: No Info Available | AA56: 2.56 | AB56: 42.99885869 | AC56: 0 | AD56: 0 | AE56: 0 | AF56: 1 | AO56: 0 domains | AP56: =COUNTIFS(AE:AE,"1",$O:$O,"=0") -> 48 | AQ56: =COUNTIFS(AC:AC,"1",$O:$O,"=0") -> 1 | AR56: =COUNTIFS(AD:AD,"1",$O:$O,"=0") -> 2 | AS56: =COUNTIFS(AF:AF,"1",$O:$O,"=0") -> 0 | AU56: =SUM(AP56:AS56)*AP$6 -> 37.89312977 | AV56: =SUM(AP56:AS56)*AQ$6 -> 3.893129771 | AW56: =SUM(AP56:AS56)*AR$6 -> 2.400763359 | AX56: =SUM(AP56:AS56)*AS$6 -> 6.812977099 | AZ56: =_xlfn.CHISQ.TEST(AP56:AS56,AU56:AX56) -> 0.00838484561
A57: P08839 | B57: ptsI | C57: ['cytosol'] | D57: ['PtsI.2'] | E57: ['Mg2+'] | F57: N | G57: 15068 | H57: 63.562 | I57: 1.590384946 | J57: 2 | K57: 1 | L57: 4.638 | M57: ['TIM beta/alpha-barrel', 'The "swivelling" beta/beta/alpha domain', 'SAM domain-like'] | N57: ['256-535', '125-246', '23-143'] | O57: 3 | P57: 3 | Q57: 2 | R57: 58 | S57: 1 | T57: 3 | U57: 3 | V57: 67 | W57: 0 | X57: 3 | Y57: No Info Available | Z57: No Info Available | AA57: 6.29 | AB57: 47.95502824 | AC57: 0 | AD57: 0 | AE57: 0 | AF57: 1 | AO57: 1 domain | AP57: =COUNTIFS(AE:AE,"1",$O:$O,"=1") -> 329 | AQ57: =COUNTIFS(AC:AC,"1",$O:$O,"=1") -> 37 | AR57: =COUNTIFS(AD:AD,"1",$O:$O,"=1") -> 24 | AS57: =COUNTIFS(AF:AF,"1",$O:$O,"=1") -> 57 | AU57: 332.1221374 | AV57: 34.1221374 | AW57: 21.04198473 | AX57: 59.71374046 | AZ57: =_xlfn.CHISQ.TEST(AP57:AS57,AU57:AX57) -> 0.8467802026
A58: P0AD61 | B58: pykF | C58: ['cytosol'] | D58: ['PykF.4'] | E58: ['K+', 'Mg2+'] | F58: N | G58: 12968 | H58: 50.729 | I58: 1.092391705 | J58: 4 | K58: 1 | L58: 5.807 | M58: ['TIM beta/alpha-barrel', 'Pyruvate kinase C-terminal domain-like', 'PK beta-barrel domain-like'] | N58: ['1-74+156-340', '323-469', '70-166'] | O58: 3 | P58: 3 | Q58: 5 | R58: 53 | S58: 0 | T58: 5 | U58: 12 | V58: 56 | W58: 6 | X58: 18 | Y58: I | Z58: No Info Available | AA58: 7.59 | AB58: 60.91681101 | AC58: 0 | AD58: 0 | AE58: 0 | AF58: 1 | AO58: 2 domains | AP58: =COUNTIFS(AE:AE,"1",$O:$O,"=2") -> 147 | AQ58: =COUNTIFS(AC:AC,"1",$O:$O,"=2") -> 11 | AR58: =COUNTIFS(AD:AD,"1",$O:$O,"=2") -> 6 | AS58: =COUNTIFS(AF:AF,"1",$O:$O,"=2") -> 21 | AU58: 137.4554707 | AV58: 14.1221374 | AW58: 8.708651399 | AX58: 24.71374046 | AZ58: 0.4312073084
A59: P52061 | B59: rdgB | C59: ['cytosol'] | D59: ['RdgB.2'] | E59: ['Mg2+'] | F59: N | G59: 1397 | H59: 21.039 | I59: 0.048805705 | J59: 2 | K59: 1 | L59: 5.126 | M59: ['Anticodon-binding domain-like'] | N59: ['1-195'] | O59: 1 | P59: 1 | Q59: 2 | R59: 6 | S59: 1 | T59: 3 | U59: 1 | V59: 9 | W59: 1 | X59: 2 | Y59: No Info Available | Z59: No Info Available | AA59: No Info Available | AB59: 47.87917323 | AC59: 0 | AD59: 0 | AE59: 0 | AF59: 1 | AO59: 3 domains | AP59: =COUNTIFS(AE:AE,"1",$O:$O,"=3") -> 38 | AQ59: =COUNTIFS(AC:AC,"1",$O:$O,"=3") -> 6 | AR59: =COUNTIFS(AD:AD,"1",$O:$O,"=3") -> 4 | AS59: =COUNTIFS(AF:AF,"1",$O:$O,"=3") -> 15 | AU59: 46.80916031 | AV59: 4.809160305 | AW59: 2.965648855 | AX59: 8.416030534 | AZ59: 0.05848599114
A60: P67910 | B60: hldD | C60: ['cytosol'] | D60: ['RfaD.5'] | E60: ['NADP+'] | F60: N | G60: 8651 | H60: 34.893 | I60: 0.501249224 | J60: 5 | K60: 1 | L60: ? | M60: ['NAD(P)-binding Rossmann-fold domains'] | N60: ['1-306'] | O60: 1 | P60: 1 | Q60: 1 | R60: 25 | S60: 1 | T60: 2 | U60: 2 | V60: 24 | W60: 0 | X60: 2 | Y60: No Info Available | Z60: No Info Available | AA60: No Info Available | AB60: No Info Available | AC60: 0 | AD60: 0 | AE60: 0 | AF60: 1 | AO60: 4 domains | AP60: =COUNTIFS(AE:AE,"1",$O:$O,"=4") -> 11 | AQ60: =COUNTIFS(AC:AC,"1",$O:$O,"=4") -> 4 | AR60: =COUNTIFS(AD:AD,"1",$O:$O,"=4") -> 0 | AS60: =COUNTIFS(AF:AF,"1",$O:$O,"=4") -> 8 | AU60: 17.08905852 | AV60: 1.755725191 | AW60: 1.082697201 | AX60: 3.072519084 | AZ60: 0.002873458905
A61: P37759 | B61: rfbB | C61: ['cytosol'] | D61: ['RfbB.2'] | E61: ['NAD+'] | F61: N | G61: 5290 | H61: 40.558 | I61: 0.356271673 | J61: 2 | K61: 1 | L61: 5.49 | M61: ['NAD(P)-binding Rossmann-fold domains'] | N61: ['1-340'] | O61: 1 | P61: 1 | Q61: 0 | R61: 26 | S61: 2 | T61: 2 | U61: 2 | V61: 25 | W61: 1 | X61: 3 | Y61: No Info Available | Z61: No Info Available | AA61: 4.09 | AB61: 44.30247162 | AC61: 0 | AD61: 0 | AE61: 0 | AF61: 1 | AO61: 5 domains | AP61: =COUNTIFS(AE:AE,"1",$O:$O,"=5") -> 7 | AQ61: =COUNTIFS(AC:AC,"1",$O:$O,"=5") -> 0 | AR61: =COUNTIFS(AD:AD,"1",$O:$O,"=5") -> 0 | AS61: =COUNTIFS(AF:AF,"1",$O:$O,"=5") -> 1 | AU61: 5.944020356 | AV61: 0.6106870229 | AW61: 0.3765903308 | AX61: 1.06870229 | AZ61: 0.7579748561
A62: P0AF93 | B62: ridA | C62: ['cytosol'] | D62: ['RidA.3'] | E62: None | F62: N | G62: 18166 | H62: 13.612 | I62: 0.410610774 | J62: 3 | K62: 1 | L62: 5.256 | M62: ['Bacillus chorismate mutase-like'] | N62: ['3-126'] | O62: 1 | P62: 1 | Q62: 2 | R62: 16 | S62: 1 | T62: 3 | U62: 3 | V62: 20 | W62: 3 | X62: 6 | Y62: No Info Available | Z62: No Info Available | AA62: No Info Available | AB62: No Info Available | AC62: 0 | AD62: 0 | AE62: 0 | AF62: 1 | AO62: >5 domains | AP62: =COUNTIFS(AE:AE,"1",$O:$O,">5") -> 4 | AQ62: =COUNTIFS(AC:AC,"1",$O:$O,">5") -> 1 | AR62: =COUNTIFS(AD:AD,"1",$O:$O,">5") -> 1 | AS62: =COUNTIFS(AF:AF,"1",$O:$O,">5") -> 3 | AU62: 6.687022901 | AV62: 0.6870229008 | AW62: 0.4236641221 | AX62: 1.202290076 | AZ62: 0.1955982499
A63: P0A7Z4 | B63: rpoA | C63: ['cytosol'] | D63: ['RpoA.2', 'RpoC.', 'RpoB.'] | E63: None | F63: Y | G63: 47625 | H63: 36.512 | I63: 2.887484769 | J63: 4 | K63: 3 | L63: 4.838 | M63: ['Insert subdomain of RNA polymerase alpha subunit', 'SAM domain-like', 'DCoH-like'] | N63: ['53-178', '255-314', '6-53+179-231'] | O63: 3 | P63: 3 | Q63: 4 | R63: 53 | S63: 1 | T63: 5 | U63: 3 | V63: 61 | W63: 1 | X63: 4 | Y63: I | Z63: No Info Available | AA63: 18.46 | AB63: 58.51941653 | AC63: 0 | AD63: 0 | AE63: 0 | AF63: 1 | AN63: Percent | AO63: 0 domains | AP63: =AP56/(AP56+AQ56+AR56+AS56) -> 0.9411764706 | AQ63: =AQ56/(AP56+AQ56+AR56+AS56) -> 0.01960784314 | AR63: =AR56/(AP56+AQ56+AR56+AS56) -> 0.03921568627 | AS63: =AS56/(AP56+AQ56+AR56+AS56) -> 0
A64: P0A8T7 | B64: rpoC | C64: ['cytosol'] | D64: ['RpoA.2', 'RpoC.', 'RpoB.'] | E64: None | F64: Y | G64: 17553 | H64: 155.16 | I64: 4.522517066 | J64: 4 | K64: 3 | L64: 6.753 | M64: ['beta and beta-prime subunits of DNA dependent RNA-polymerase', ''] | N64: ['16-944+1133-1363', '993-1371'] | O64: 2 | P64: 2 | Q64: 4 | R64: 89 | S64: 5 | T64: 9 | U64: 3 | V64: 127 | W64: 2 | X64: 5 | Y64: II | Z64: No Info Available | AA64: 7.69 | AB64: 58.02596344 | AC64: 0 | AD64: 0 | AE64: 0 | AF64: 1 | AO64: 1 domain | AP64: =AP57/(AP57+AQ57+AR57+AS57) -> 0.7360178971 | AQ64: =AQ57/(AP57+AQ57+AR57+AS57) -> 0.08277404922 | AR64: =AR57/(AP57+AQ57+AR57+AS57) -> 0.05369127517 | AS64: =AS57/(AP57+AQ57+AR57+AS57) -> 0.1275167785
A65: P0A8V2 | B65: rpoB | C65: ['cytosol'] | D65: ['RpoA.2', 'RpoC.', 'RpoB.'] | E65: None | F65: Y | G65: 16156 | H65: 150.63 | I65: 4.041051742 | J65: 4 | K65: 3 | L65: 5.02 | M65: ['beta and beta-prime subunits of DNA dependent RNA-polymerase'] | N65: ['11-226+343-939+1039-1341'] | O65: 1 | P65: 1 | Q65: 4 | R65: 106 | S65: 8 | T65: 12 | U65: 4 | V65: 145 | W65: 6 | X65: 10 | Y65: II | Z65: No Info Available | AA65: 7.37 | AB65: 57.65920205 | AC65: 0 | AD65: 0 | AE65: 0 | AF65: 1 | AO65: 2 domains | AP65: 0.7945945946 | AQ65: 0.05945945946 | AR65: 0.03243243243 | AS65: 0.1135135135
A66: P0A7T7 | B66: rpsR | C66: ['cytosol', 'ribosome'] | D66: ['RpsR.', 'RpsF.'] | E66: None | F66: Y | G66: 153647 | H66: 8.986 | I66: 2.292659662 | J66: 2 | K66: 2 | L66: 10.83 | M66: ['DNA/RNA-binding 3-helical bundle'] | N66: ['3-74'] | O66: 1 | P66: 1 | Q66: 3 | R66: 11 | S66: 0 | T66: 3 | U66: 1 | V66: 12 | W66: 1 | X66: 2 | Y66: No Info Available | Z66: No Info Available | AA66: No Info Available | AB66: 66.96282405 | AC66: 0 | AD66: =IF(OR(AND(T66=0,R66>1,X66>2,V66>1),AND(T66=0,R66>1,X66=2,V66>1),AND(T66=1,R66>1,X66>2,V66>1)),1,0) -> 0 | AE66: =IF(AND(T66<2,R66>1,X66<2,V66>1),1,0) -> 0 | AF66: =IF(AND(T66>1,R66>1,X66>1,V66>1),1,0) -> 1 | AO66: 3 domains | AP66: 0.6031746032 | AQ66: 0.09523809524 | AR66: 0.06349206349 | AS66: 0.2380952381
A67: P02358 | B67: rpsF | C67: ['cytosol', 'ribosome'] | D67: ['RpsR.', 'RpsF.'] | E67: None | F67: ? | G67: 170065 | H67: 15.187 | I67: 4.288802299 | J67: 2 | K67: 2 | L67: 4.778 | M67: ['Ferredoxin-like'] | N67: ['1-103'] | O67: 1 | P67: 1 | Q67: 3 | R67: 23 | S67: 1 | T67: 4 | U67: 3 | V67: 20 | W67: 1 | X67: 4 | Y67: No Info Available | Z67: No Info Available | AA67: 4.58 | AB67: 64.19271108 | AC67: =IF(OR(AND(T67>2,R67>1,X67=0,V67>1),AND(T67>2,R67>1,X67=1,V67>1),AND(T67=2,R67>1,X67=0,V67>1)),1,0) -> 0 | AD67: 0 | AE67: 0 | AF67: 1 | AO67: 4 domains | AP67: 0.4782608696 | AQ67: 0.1739130435 | AR67: 0 | AS67: 0.347826087
A68: P62399 | B68: rplE | C68: ['cytosol', 'ribosome'] | D68: ['RrlA.', 'RrfA.', 'RplA.', 'RplB.', 'RplC.', 'RplD.', 'RplE.', 'RplF.', 'RplJ.', 'RplL.2.2.', 'RplI.', 'RplK.', 'RplM.', 'RplN.', 'RplO.', 'RplP.', 'RplQ.', 'RplR.', 'RplS.', 'RplT.', 'RplU.', 'RplV.', 'RplW.', 'RplX.', 'RplY.', 'RpmA.', 'RpmB.', 'RpmC.', 'RpmD.', 'RpmE.', 'RpmF.', 'RpmG.', 'RpmH.', 'RpmI.', 'RpmJ.'] | E68: None | F68: Y | G68: 111791 | H68: 20.302 | I68: 3.76872766 | J68: 38 | K68: 35 | L68: 9.71 | M68: ['RL5-like'] | N68: ['4-179'] | O68: 1 | P68: 1 | Q68: 0 | R68: 21 | S68: 2 | T68: 2 | U68: 0 | V68: 24 | W68: 2 | X68: 2 | Y68: No Info Available | Z68: No Info Available | AA68: 2.77 | AB68: 67.06980103 | AC68: 0 | AD68: 0 | AE68: 0 | AF68: 1 | AO68: 5 domains | AP68: 0.875 | AQ68: 0 | AR68: 0 | AS68: 0.125
A69: P60723 | B69: rplD | C69: ['ribosome', 'cytosol'] | D69: ['RrlA.', 'RrfA.', 'RplA.', 'RplB.', 'RplC.', 'RplD.', 'RplE.', 'RplF.', 'RplJ.', 'RplL.2.2.', 'RplI.', 'RplK.', 'RplM.', 'RplN.', 'RplO.', 'RplP.', 'RplQ.', 'RplR.', 'RplS.', 'RplT.', 'RplU.', 'RplV.', 'RplW.', 'RplX.', 'RplY.', 'RpmA.', 'RpmB.', 'RpmC.', 'RpmD.', 'RpmE.', 'RpmF.', 'RpmG.', 'RpmH.', 'RpmI.', 'RpmJ.'] | E69: None | F69: Y | G69: 131359 | H69: 22.086 | I69: 4.817547352 | J69: 38 | K69: 35 | L69: 10.037 | M69: ['Ribosomal protein L4'] | N69: ['10-200'] | O69: 1 | P69: 1 | Q69: 2 | R69: 30 | S69: 0 | T69: 2 | U69: 2 | V69: 33 | W69: 1 | X69: 3 | Y69: No Info Available | Z69: No Info Available | AA69: 5.75 | AB69: 66.10213781 | AC69: 0 | AD69: 0 | AE69: 0 | AF69: 1 | AO69: >5 domains | AP69: 0.4444444444 | AQ69: 0.1111111111 | AR69: 0.1111111111 | AS69: 0.3333333333
A70: P0A7R9 | B70: rpsK | C70: ['cytosol', 'ribosome'] | D70: ['RrsA.', 'RpsA.', 'RpsB.', 'RpsC.', 'RpsD.', 'RpsE.', 'RpsF.', 'RpsG.', 'RpsH.', 'RpsI.', 'RpsJ.', 'RpsK.', 'RpsL.', 'RpsM.', 'RpsN.', 'RpsO.', 'RpsP.', 'RpsQ.', 'RpsR.', 'RpsS.', 'RpsT.', 'RpsU.', 'Sra.'] | E70: None | F70: Y | G70: 136478 | H70: 13.845 | I70: 3.137651468 | J70: 23 | K70: 23 | L70: 11.541 | M70: ['Ribonuclease H-like motif'] | N70: ['14-129'] | O70: 1 | P70: 1 | Q70: 2 | R70: 17 | S70: 0 | T70: 2 | U70: 2 | V70: 16 | W70: 1 | X70: 3 | Y70: No Info Available | Z70: No Info Available | AA70: No Info Available | AB70: 61.12716052 | AC70: 0 | AD70: 0 | AE70: 0 | AF70: 1
A71: P0A7V3 | B71: rpsC | C71: ['cytosol', 'ribosome'] | D71: ['RrsA.', 'RpsA.', 'RpsB.', 'RpsC.', 'RpsD.', 'RpsE.', 'RpsF.', 'RpsG.', 'RpsH.', 'RpsI.', 'RpsJ.', 'RpsK.', 'RpsL.', 'RpsM.', 'RpsN.', 'RpsO.', 'RpsP.', 'RpsQ.', 'RpsR.', 'RpsS.', 'RpsT.', 'RpsU.', 'Sra.'] | E71: None | F71: Y | G71: 114735 | H71: 25.983 | I71: 4.950331744 | J71: 23 | K71: 23 | L71: 10.575 | M71: ['Ribosomal protein S3 C-terminal domain', 'Alpha-lytic protease prodomain-like', ''] | N71: ['108-206', '2-106', '112-227'] | O71: 3 | P71: 3 | Q71: 2 | R71: 22 | S71: 0 | T71: 2 | U71: 0 | V71: 27 | W71: 2 | X71: 2 | Y71: No Info Available | Z71: No Info Available | AA71: 3.18 | AB71: 61.00228617 | AC71: 0 | AD71: 0 | AE71: 0 | AF71: 1 | AN71: Total | AO71: Unique Domains
A72: P0A8L1 | B72: serS | C72: ['cytosol'] | D72: ['SerS.2'] | E72: ['Mg2+'] | F72: Y | G72: 11805 | H72: 48.414 | I72: 0.949043345 | J72: 2 | K72: 1 | L72: 5.261 | M72: ['Class II aaRS and biotin synthetases', 'Long alpha-hairpin'] | N72: ['116-424', '1-112'] | O72: 2 | P72: 2 | Q72: 2 | R72: 33 | S72: 3 | T72: 5 | U72: 4 | V72: 37 | W72: 0 | X72: 4 | Y72: No Info Available | Z72: No Info Available | AA72: 4.46 | AB72: 46.49882595 | AC72: 0 | AD72: 0 | AE72: 0 | AF72: 1 | AO72: 0 UD | AP72: =COUNTIFS(AE:AE,"1",$P:$P,"=0") -> 48 | AQ72: =COUNTIFS(AC:AC,"1",$P:$P,"=0") -> 1 | AR72: =COUNTIFS(AD:AD,"1",$P:$P,"=0") -> 2 | AS72: =COUNTIFS(AF:AF,"1",$P:$P,"=0") -> 0 | AU72: =SUM(AP72:AS72)*AP$6 -> 37.89312977 | AV72: =SUM(AP72:AS72)*AQ$6 -> 3.893129771 | AW72: =SUM(AP72:AS72)*AR$6 -> 2.400763359 | AX72: =SUM(AP72:AS72)*AS$6 -> 6.812977099 | AZ72: =_xlfn.CHISQ.TEST(AP72:AS72,AU72:AX72) -> 0.00838484561
A73: P0AGD3 | B73: sodB | C73: ['cytosol'] | D73: ['SodB.2'] | E73: ['Fe3+'] | F73: N | G73: 33494 | H73: 21.266 | I73: 1.1827744 | J73: 2 | K73: 1 | L73: 5.67 | M73: ['Fe,Mn superoxide dismutase (SOD), C-terminal domain', 'Long alpha-hairpin'] | N73: ['84-192', '1-84'] | O73: 2 | P73: 2 | Q73: 5 | R73: 22 | S73: 2 | T73: 7 | U73: 5 | V73: 28 | W73: 1 | X73: 6 | Y73: No Info Available | Z73: No Info Available | AA73: 4.88 | AB73: No Info Available | AC73: 0 | AD73: 0 | AE73: 0 | AF73: 1 | AO73: 1 UD | AP73: =COUNTIFS(AE:AE,"1",$P:$P,"=1") -> 353 | AQ73: =COUNTIFS(AC:AC,"1",$P:$P,"=1") -> 39 | AR73: =COUNTIFS(AD:AD,"1",$P:$P,"=1") -> 24 | AS73: =COUNTIFS(AF:AF,"1",$P:$P,"=1") -> 61 | AU73: 354.4122137 | AV73: 36.41221374 | AW73: 22.45419847 | AX73: 63.72137405 | AZ73: =_xlfn.CHISQ.TEST(AP73:AS73,AU73:AX73) -> 0.9377153522
A74: P0A8M3 | B74: thrS | C74: ['cytosol'] | D74: ['ThrS.2'] | E74: ['Zn2+'] | F74: Y | G74: 12096 | H74: 74.014 | I74: 1.48663634 | J74: 2 | K74: 1 | L74: 5.891 | M74: ['Class II aaRS and biotin synthetases', 'RRF/tRNA synthetase additional domain-like', 'Anticodon-binding domain-like', 'beta-Grasp (ubiquitin-like)'] | N74: ['241-531', '63-241', '533-628', '3-61'] | O74: 4 | P74: 4 | Q74: 2 | R74: 21 | S74: 0 | T74: 2 | U74: 2 | V74: 30 | W74: 1 | X74: 3 | Y74: II | Z74: No Info Available | AA74: 6.2 | AB74: 52.2711485 | AC74: 0 | AD74: 0 | AE74: 0 | AF74: 1 | AO74: 2 UD | AP74: =COUNTIFS(AE:AE,"1",$P:$P,"=2") -> 138 | AQ74: =COUNTIFS(AC:AC,"1",$P:$P,"=2") -> 12 | AR74: =COUNTIFS(AD:AD,"1",$P:$P,"=2") -> 6 | AS74: =COUNTIFS(AF:AF,"1",$P:$P,"=2") -> 22 | AU74: 132.2544529 | AV74: 13.58778626 | AW74: 8.37913486 | AX74: 23.77862595 | AZ74: 0.7425422911
A75: P27302 | B75: tktA | C75: ['cytosol'] | D75: ['TktA.2'] | E75: ['thiamine diphosphate', 'Mn2+'] | F75: N | G75: 13819 | H75: 72.212 | I75: 1.65704797 | J75: 2 | K75: 1 | L75: 5.404 | M75: ['Thiamin diphosphate-binding fold (THDP-binding)', 'Thiamin diphosphate-binding fold (THDP-binding)', 'TK C-terminal domain-like'] | N75: ['5-331', '336-526', '533-663'] | O75: 3 | P75: 2 | Q75: 1 | R75: 36 | S75: 5 | T75: 6 | U75: 4 | V75: 48 | W75: 1 | X75: 5 | Y75: No Info Available | Z75: No Info Available | AA75: 4.11 | AB75: 51.21514325 | AC75: 0 | AD75: 0 | AE75: 0 | AF75: 1 | AO75: 3 UD | AP75: =COUNTIFS(AE:AE,"1",$P:$P,"=3") -> 32 | AQ75: =COUNTIFS(AC:AC,"1",$P:$P,"=3") -> 4 | AR75: =COUNTIFS(AD:AD,"1",$P:$P,"=3") -> 5 | AS75: =COUNTIFS(AF:AF,"1",$P:$P,"=3") -> 15 | AU75: 41.60814249 | AV75: 4.27480916 | AW75: 2.636132316 | AX75: 7.480916031 | AZ75: 0.007685259851
A76: P0A858 | B76: tpiA | C76: ['cytosol'] | D76: ['TpiA.2'] | E76: None | F76: N | G76: 11959 | H76: 26.972 | I76: 0.535620398 | J76: 2 | K76: 1 | L76: 5.701 | M76: ['TIM beta/alpha-barrel'] | N76: ['1-248'] | O76: 1 | P76: 1 | Q76: 9 | R76: 28 | S76: 3 | T76: 12 | U76: 7 | V76: 30 | W76: 1 | X76: 8 | Y76: No Info Available | Z76: No Info Available | AA76: 7.25 | AB76: 52.51101078 | AC76: 0 | AD76: 0 | AE76: 0 | AF76: 1 | AO76: 4 UD | AP76: =COUNTIFS(AE:AE,"1",$P:$P,"=4") -> 11 | AQ76: =COUNTIFS(AC:AC,"1",$P:$P,"=4") -> 3 | AR76: =COUNTIFS(AD:AD,"1",$P:$P,"=4") -> 0 | AS76: =COUNTIFS(AF:AF,"1",$P:$P,"=4") -> 5 | AU76: 14.11704835 | AV76: 1.450381679 | AW76: 0.8944020356 | AX76: 2.538167939 | AZ76: 0.1312888959
A77: P0A862 | B77: tpx | C77: ['periplasmic space', 'cytosol'] | D77: ['Tpx.2'] | E77: None | F77: N | G77: 47473 | H77: 17.835 | I77: 1.405946781 | J77: 2 | K77: 1 | L77: 4.606 | M77: ['Thioredoxin fold'] | N77: ['4-164'] | O77: 1 | P77: 1 | Q77: 7 | R77: 35 | S77: 0 | T77: 7 | U77: 4 | V77: 33 | W77: 0 | X77: 4 | Y77: I | Z77: No Info Available | AA77: No Info Available | AB77: 54.10778322 | AC77: 0 | AD77: 0 | AE77: 0 | AF77: 1 | AO77: 5 UD | AP77: =COUNTIFS(AE:AE,"1",$P:$P,"=5") -> 2 | AQ77: =COUNTIFS(AC:AC,"1",$P:$P,"=5") -> 1 | AR77: =COUNTIFS(AD:AD,"1",$P:$P,"=5") -> 0 | AS77: =COUNTIFS(AF:AF,"1",$P:$P,"=5") -> 2 | AU77: 3.715012723 | AV77: 0.3816793893 | AW77: 0.2353689567 | AX77: 0.6679389313 | AZ77: 0.1963469406
A78: P0A9P4 | B78: trxB | C78: ['cytosol'] | D78: ['TrxB.2'] | E78: ['FAD'] | F78: N | G78: 8599 | H78: 34.623 | I78: 0.494380959 | J78: 2 | K78: 1 | L78: 5.241 | M78: ['FAD/NAD(P)-binding domain'] | N78: ['2-315'] | O78: 1 | P78: 1 | Q78: 8 | R78: 28 | S78: 1 | T78: 9 | U78: 8 | V78: 23 | W78: 2 | X78: 10 | Y78: No Info Available | Z78: No Info Available | AA78: No Info Available | AB78: No Info Available | AC78: 0 | AD78: 0 | AE78: 0 | AF78: 1 | AN78: Percent | AO78: 0 UD | AP78: =AP72/(AP72+AQ72+AR72+AS72) -> 0.9411764706 | AQ78: =AQ72/(AP72+AQ72+AR72+AS72) -> 0.01960784314 | AR78: =AR72/(AP72+AQ72+AR72+AS72) -> 0.03921568627 | AS78: =AS72/(AP72+AQ72+AR72+AS72) -> 0 | AU78: 0.7430025445 | AV78: 0.07633587786 | AW78: 0.04707379135 | AX78: 0.1335877863 | AZ78: 0.9726216456
A79: P0ABU2 | B79: ychF | C79: ['cytosol'] | D79: ['YchF.2'] | E79: None | F79: N | G79: 11634 | H79: 39.667 | I79: 0.766315317 | J79: 2 | K79: 1 | L79: 4.733 | M79: ['P-loop containing nucleoside triphosphate hydrolases', 'beta-Grasp (ubiquitin-like)'] | N79: ['3-301', '279-359'] | O79: 2 | P79: 2 | Q79: 3 | R79: 32 | S79: 0 | T79: 3 | U79: 2 | V79: 33 | W79: 1 | X79: 3 | Y79: No Info Available | Z79: No Info Available | AA79: 6.03 | AB79: 41.28881459 | AC79: 0 | AD79: 0 | AE79: 0 | AF79: 1 | AO79: 1 UD | AP79: =AP73/(AP73+AQ73+AR73+AS73) -> 0.7400419287 | AQ79: =AQ73/(AP73+AQ73+AR73+AS73) -> 0.08176100629 | AR79: =AR73/(AP73+AQ73+AR73+AS73) -> 0.05031446541 | AS79: =AS73/(AP73+AQ73+AR73+AS73) -> 0.1278825996
A80: P0ACX3 | B80: ydhR | C80: ['cytosol'] | D80: ['YdhR.2'] | E80: None | F80: N | G80: 2211 | H80: 11.288 | I80: 0.041443348 | J80: 2 | K80: 1 | L80: 4.976 | M80: ['Ferredoxin-like'] | N80: ['4-96'] | O80: 1 | P80: 1 | Q80: 1 | R80: 6 | S80: 1 | T80: 2 | U80: 1 | V80: 6 | W80: 1 | X80: 2 | Y80: No Info Available | Z80: No Info Available | AA80: No Info Available | AB80: 69.21627204 | AC80: 0 | AD80: 0 | AE80: 0 | AF80: 1 | AO80: 2 UD | AP80: 0.7752808989 | AQ80: 0.06741573034 | AR80: 0.03370786517 | AS80: 0.1235955056
A81: P0AEM0 | B81: fkpB | C81: ['cytosol'] | D81: Monomer | E81: None | F81: N | G81: 1155 | H81: 16.081 | I81: 0.030842113 | J81: 1 | K81: 1 | L81: 4.153 | M81: ['FKBP-like'] | N81: ['5-143'] | O81: 1 | P81: 1 | Q81: 1 | R81: 3 | S81: 2 | T81: 3 | U81: 2 | V81: 4 | W81: 0 | X81: 2 | Y81: No Info Available | Z81: No Info Available | AA81: No Info Available | AB81: No Info Available | AC81: 0 | AD81: 0 | AE81: 0 | AF81: 1 | AO81: 3 UD | AP81: 0.5714285714 | AQ81: 0.07142857143 | AR81: 0.08928571429 | AS81: 0.2678571429
A82: P51020 | B82: mhpE | C82: ['cytosol'] | D82: Monomer | E82: None | F82: N | G82: 15 | H82: 36.47 | I82: 0.000908398 | J82: 1 | K82: 1 | L82: 5.776 | M82: ['TIM beta/alpha-barrel', 'RuvA C-terminal domain-like'] | N82: ['3-276', '288-335'] | O82: 2 | P82: 2 | Q82: 1 | R82: 9 | S82: 1 | T82: 2 | U82: 3 | V82: 11 | W82: 0 | X82: 3 | Y82: No Info Available | Z82: No Info Available | AA82: No Info Available | AB82: No Info Available | AC82: 0 | AD82: 0 | AE82: 0 | AF82: 1 | AO82: 4 UD | AP82: 0.5789473684 | AQ82: 0.1578947368 | AR82: 0 | AS82: 0.2631578947
A83: P0A749 | B83: murA | C83: ['cytosol'] | D83: Monomer | E83: None | F83: Y | G83: 4855 | H83: 44.818 | I83: 0.361318998 | J83: 1 | K83: 1 | L83: 5.866 | M83: ['IF3-like'] | N83: ['1-416'] | O83: 1 | P83: 1 | Q83: 1 | R83: 11 | S83: 2 | T83: 3 | U83: 2 | V83: 17 | W83: 0 | X83: 2 | Y83: No Info Available | Z83: No Info Available | AA83: 7.58 | AB83: No Info Available | AC83: 0 | AD83: 0 | AE83: 0 | AF83: 1 | AO83: 5 UD | AP83: 0.4 | AQ83: 0.2 | AR83: 0 | AS83: 0.4
A84: P0A7F6 | B84: speD | C84: ['cytosol'] | D84: Monomer | E84: ['a pyruvoyl group', 'Mg2+'] | F84: N | G84: 6346 | H84: 30.385 | I84: 0.320190468 | J84: 1 | K84: 1 | L84: 5.122 | M84: ['S-adenosylmethionine decarboxylase'] | N84: ['41-84+112-173'] | O84: 1 | P84: 1 | Q84: 1 | R84: 12 | S84: 1 | T84: 2 | U84: 1 | V84: 9 | W84: 1 | X84: 2 | Y84: No Info Available | Z84: No Info Available | AA84: No Info Available | AB84: No Info Available | AC84: 0 | AD84: 0 | AE84: 0 | AF84: 1
A85: P0A8J4 | B85: ybeD | C85: ['cytosol'] | D85: Monomer | E85: None | F85: N | G85: 8919 | H85: 9.827 | I85: 0.145541287 | J85: 1 | K85: 1 | L85: 5.525 | M85: ['Ferredoxin-like'] | N85: ['1-87'] | O85: 1 | P85: 1 | Q85: 2 | R85: 12 | S85: 1 | T85: 3 | U85: 2 | V85: 10 | W85: 0 | X85: 2 | Y85: No Info Available | Z85: No Info Available | AA85: 9.96 | AB85: 48.65646297 | AC85: 0 | AD85: 0 | AE85: 0 | AF85: 1 | AO85: Essential
A86: P0A9R4 | B86: fdx | C86: ['cytosol'] | D86: Monomer | E86: None | F86: N | G86: 6027 | H86: 12.331 | I86: 0.123409496 | J86: 1 | K86: 1 | L86: 4.349 | M86: ['beta-Grasp (ubiquitin-like)'] | N86: ['14-108'] | O86: 1 | P86: 1 | Q86: 1 | R86: 12 | S86: 2 | T86: 3 | U86: 2 | V86: 13 | W86: 1 | X86: 3 | Y86: No Info Available | Z86: No Info Available | AA86: No Info Available | AB86: 46.50104454 | AC86: 0 | AD86: 0 | AE86: 0 | AF86: 1 | AN86: Total | AO86: Essential | AP86: =COUNTIFS(AE:AE,"1",$F:$F,"=Y") -> 102 | AQ86: =COUNTIFS(AC:AC,"1",$F:$F,"=Y") -> 23 | AR86: =COUNTIFS(AD:AD,"1",$F:$F,"=Y") -> 11 | AS86: =COUNTIFS(AF:AF,"1",$F:$F,"=Y") -> 40 | AU86: =SUM(AP86:AS86)*AP$6 -> 130.7684478 | AV86: =SUM(AP86:AS86)*AQ$6 -> 13.4351145 | AW86: =SUM(AP86:AS86)*AR$6 -> 8.284987277 | AX86: =SUM(AP86:AS86)*AS$6 -> 23.51145038 | AZ86: =_xlfn.CHISQ.TEST(AP86:AS86,AU86:AX86) -> 1.16122949e-05
A87: P31120 | B87: glmM | C87: ['cytosol'] | D87: Monomer | E87: ['glucosamine 1,6-diphosphate'] | F87: Y | G87: 5713 | H87: 47.544 | I87: 0.451033741 | J87: 1 | K87: 1 | L87: 5.753 | M87: ['Phosphoglucomutase, first 3 domains', 'Phosphoglucomutase, first 3 domains', 'Phosphoglucomutase, first 3 domains', 'TBP-like'] | N87: ['2-181', '258-365', '156-256', '357-444'] | O87: 4 | P87: 2 | Q87: 0 | R87: 14 | S87: 2 | T87: 2 | U87: 2 | V87: 13 | W87: 0 | X87: 2 | Y87: No Info Available | Z87: No Info Available | AA87: No Info Available | AB87: 57.2983118 | AC87: 0 | AD87: 0 | AE87: 0 | AF87: 1 | AO87: Non-essential | AP87: =COUNTIFS(AE:AE,"1",$F:$F,"=N") -> 468 | AQ87: =COUNTIFS(AC:AC,"1",$F:$F,"=N") -> 37 | AR87: =COUNTIFS(AD:AD,"1",$F:$F,"=N") -> 26 | AS87: =COUNTIFS(AF:AF,"1",$F:$F,"=N") -> 64 | AU87: =SUM(AP87:AS87)*AP$6 -> 442.086514 | AV87: =SUM(AP87:AS87)*AQ$6 -> 45.41984733 | AW87: =SUM(AP87:AS87)*AR$6 -> 28.00890585 | AX87: =SUM(AP87:AS87)*AS$6 -> 79.48473282 | AZ87: =_xlfn.CHISQ.TEST(AP87:AS87,AU87:AX87) -> 0.1004763338
A88: P61949 | B88: fldA | C88: ['cytosol'] | D88: Monomer | E88: None | F88: Y | G88: 14243 | H88: 19.737 | I88: 0.466800923 | J88: 1 | K88: 1 | L88: 4.062 | M88: ['Flavodoxin-like'] | N88: ['5-170'] | O88: 1 | P88: 1 | Q88: 1 | R88: 15 | S88: 1 | T88: 2 | U88: 2 | V88: 20 | W88: 0 | X88: 2 | Y88: No Info Available | Z88: No Info Available | AA88: 3.68 | AB88: 46.98600028 | AC88: 0 | AD88: 0 | AE88: 0 | AF88: 1 | AO88: Unknown | AP88: =COUNTIFS(AE:AE,"1",$F:$F,"~?") -> 14 | AQ88: =COUNTIFS(AC:AC,"1",$F:$F,"~?") -> 0 | AR88: =COUNTIFS(AD:AD,"1",$F:$F,"~?") -> 0 | AS88: =COUNTIFS(AF:AF,"1",$F:$F,"~?") -> 1 | AU88: =SUM(AP88:AS88)*AP$6 -> 11.14503817 | AV88: =SUM(AP88:AS88)*AQ$6 -> 1.145038168 | AW88: =SUM(AP88:AS88)*AR$6 -> 0.7061068702 | AX88: =SUM(AP88:AS88)*AS$6 -> 2.003816794 | AZ88: 0.3786523216
A89: P0A6J8 | B89: ddlA | C89: ['cytosol'] | D89: Monomer | E89: None | F89: N | G89: 4072 | H89: 39.316 | I89: 0.265843586 | J89: 1 | K89: 1 | L89: 4.905 | M89: ['ATP-grasp', 'PreATP-grasp domain'] | N89: ['140-354', '3-139'] | O89: 2 | P89: 2 | Q89: 2 | R89: 17 | S89: 0 | T89: 2 | U89: 2 | V89: 18 | W89: 0 | X89: 2 | Y89: No Info Available | Z89: No Info Available | AA89: No Info Available | AB89: 47.66505513 | AC89: 0 | AD89: 0 | AE89: 0 | AF89: 1 | AN89: Percent | AO89: Essential | AP89: =AP86/(AP86+AQ86+AR86+AS86) -> 0.5795454545 | AQ89: =AQ86/(AP86+AQ86+AR86+AS86) -> 0.1306818182 | AR89: =AR86/(AP86+AQ86+AR86+AS86) -> 0.0625 | AS89: =AS86/(AP86+AQ86+AR86+AS86) -> 0.2272727273
A90: P0ADF6 | B90: edd | C90: ['cytosol'] | D90: Monomer | E90: None | F90: N | G90: 148 | H90: 64.639 | I90: 0.015885666 | J90: 1 | K90: 1 | L90: 6.068 | M90: ['IlvD/EDD N-terminal domain-like', 'The "swivelling" beta/beta/alpha domain'] | N90: ['1-418', '419-600'] | O90: 2 | P90: 2 | Q90: 0 | R90: 22 | S90: 2 | T90: 2 | U90: 2 | V90: 22 | W90: 1 | X90: 3 | Y90: No Info Available | Z90: No Info Available | AA90: No Info Available | AB90: 50.66228441 | AC90: 0 | AD90: 0 | AE90: 0 | AF90: 1 | AO90: Non-essential | AP90: =AP87/(AP87+AQ87+AR87+AS87) -> 0.7865546218 | AQ90: =AQ87/(AP87+AQ87+AR87+AS87) -> 0.06218487395 | AR90: =AR87/(AP87+AQ87+AR87+AS87) -> 0.04369747899 | AS90: =AS87/(AP87+AQ87+AR87+AS87) -> 0.1075630252
A91: P00962 | B91: glnS | C91: ['cytosol'] | D91: Monomer | E91: None | F91: Y | G91: 8204 | H91: 63.478 | I91: 0.864764748 | J91: 1 | K91: 1 | L91: 5.976 | M91: ['Adenine nucleotide alpha hydrolase-like', 'Ribosomal protein L25-like', ''] | N91: ['28-337', '340-549', '15-134+176-342'] | O91: 3 | P91: 3 | Q91: 0 | R91: 22 | S91: 2 | T91: 2 | U91: 1 | V91: 29 | W91: 1 | X91: 2 | Y91: No Info Available | Z91: No Info Available | AA91: 2.74 | AB91: 46.97704864 | AC91: 0 | AD91: 0 | AE91: 0 | AF91: 1 | AO91: Unknown | AP91: 0.9333333333 | AQ91: 0 | AR91: 0 | AS91: 0.06666666667
A92: P0A6A3 | B92: ackA | C92: ['cytosol'] | D92: Monomer | E92: ['Mg2+'] | F92: N | G92: 35607 | H92: 43.29 | I92: 2.559599761 | J92: 1 | K92: 1 | L92: 5.973 | M92: ['Ribonuclease H-like motif', 'Ribonuclease H-like motif'] | N92: ['160-398', '4-199'] | O92: 2 | P92: 1 | Q92: 3 | R92: 22 | S92: 2 | T92: 5 | U92: 6 | V92: 30 | W92: 3 | X92: 9 | Y92: I | Z92: No Info Available | AA92: No Info Available | AB92: 41.60227949 | AC92: 0 | AD92: 0 | AE92: 0 | AF92: 1
A93: P23869 | B93: ppiB | C93: ['cytosol'] | D93: Monomer | E93: None | F93: N | G93: 25909 | H93: 18.153 | I93: 0.780994813 | J93: 1 | K93: 1 | L93: 5.491 | M93: ['Cyclophilin-like'] | N93: ['2-162'] | O93: 1 | P93: 1 | Q93: 5 | R93: 24 | S93: 2 | T93: 7 | U93: 2 | V93: 18 | W93: 0 | X93: 2 | Y93: II | Z93: No Info Available | AA93: No Info Available | AB93: 46.39630843 | AC93: 0 | AD93: 0 | AE93: 0 | AF93: 1 | AO93: Location
A94: P36938 | B94: pgm | C94: ['cytosol'] | D94: Monomer | E94: ['Mg2+'] | F94: N | G94: 3596 | H94: 58.361 | I94: 0.348490945 | J94: 1 | K94: 1 | L94: 5.417 | M94: ['Phosphoglucomutase, first 3 domains', 'Phosphoglucomutase, first 3 domains', 'TBP-like', 'Phosphoglucomutase, first 3 domains'] | N94: ['26-235', '305-446', '433-544', '209-317'] | O94: 4 | P94: 2 | Q94: 2 | R94: 26 | S94: 1 | T94: 3 | U94: 2 | V94: 28 | W94: 0 | X94: 2 | Y94: No Info Available | Z94: No Info Available | AA94: 6.71 | AB94: 58.52277686 | AC94: 0 | AD94: 0 | AE94: 0 | AF94: 1 | AN94: Total | AO94: Cytosol | AP94: =COUNTIFS(AE:AE,"1",$C:$C,"['cytosol']") -> 411 | AQ94: =COUNTIFS(AC:AC,"1",$C:$C,"['cytosol']") -> 45 | AR94: =COUNTIFS(AD:AD,"1",$C:$C,"['cytosol']") -> 28 | AS94: =COUNTIFS(AF:AF,"1",$C:$C,"['cytosol']") -> 84 | AU94: =SUM(AP94:AS94)*AP$6 -> 422.0254453 | AV94: =SUM(AP94:AS94)*AQ$6 -> 43.35877863 | AW94: =SUM(AP94:AS94)*AR$6 -> 26.73791349 | AX94: =SUM(AP94:AS94)*AS$6 -> 75.8778626 | AZ94: =_xlfn.CHISQ.TEST(AP94:AS94,AU94:AX94) -> 0.7340901313
A95: P04825 | B95: pepN | C95: ['cytosol', 'inner membrane'] | D95: Monomer | E95: None | F95: N | G95: 3051 | H95: 98.919 | I95: 0.501153786 | J95: 1 | K95: 1 | L95: 5.039 | M95: ['alpha-alpha superhelix', 'Zincin-like', 'Leukotriene A4 hydrolase N-terminal domain', ''] | N95: ['546-869', '198-442', '9-192', '5-570+678-757'] | O95: 4 | P95: 4 | Q95: 2 | R95: 26 | S95: 3 | T95: 5 | U95: 2 | V95: 62 | W95: 0 | X95: 2 | Y95: No Info Available | Z95: No Info Available | AA95: 4.52 | AB95: 51.57863022 | AC95: 0 | AD95: 0 | AE95: 0 | AF95: 1 | AO95: Ribosome | AP95: =COUNTIFS(AE:AE,"1",$C:$C,"*ribosome*") -> 33 | AQ95: =COUNTIFS(AC:AC,"1",$C:$C,"*ribosome*") -> 6 | AR95: =COUNTIFS(AD:AD,"1",$C:$C,"*ribosome*") -> 2 | AS95: =COUNTIFS(AF:AF,"1",$C:$C,"*ribosome*") -> 6 | AU95: =SUM(AP95:AS95)*AP$6 -> 34.92111959 | AV95: =SUM(AP95:AS95)*AQ$6 -> 3.58778626 | AW95: =SUM(AP95:AS95)*AR$6 -> 2.212468193 | AX95: =SUM(AP95:AS95)*AS$6 -> 6.278625954 | AZ95: =_xlfn.CHISQ.TEST(AP95:AS95,AU95:AX95) -> 0.6236154926
A96: P37689 | B96: gpmI | C96: ['cytosol'] | D96: Monomer | E96: ['Mn2+'] | F96: N | G96: 5931 | H96: 56.194 | I96: 0.553435434 | J96: 1 | K96: 1 | L96: ? | M96: ['2,3-Bisphosphoglycerate-independent phosphoglycerate mutase, substrate-binding domain', 'Alkaline phosphatase-like'] | N96: ['79-310', '5-79+311-510'] | O96: 2 | P96: 2 | Q96: 3 | R96: 28 | S96: 1 | T96: 4 | U96: 2 | V96: 29 | W96: 0 | X96: 2 | Y96: No Info Available | Z96: No Info Available | AA96: No Info Available | AB96: 58.52334932 | AC96: 0 | AD96: 0 | AE96: 0 | AF96: 1 | AO96: Inner Membrane | AP96: =COUNTIFS(AE:AE,"1",$C:$C,"['inner membrane']") -> 26 | AQ96: =COUNTIFS(AC:AC,"1",$C:$C,"['inner membrane']") -> 1 | AR96: =COUNTIFS(AD:AD,"1",$C:$C,"['inner membrane']") -> 0 | AS96: =COUNTIFS(AF:AF,"1",$C:$C,"['inner membrane']") -> 0 | AU96: =SUM(AP96:AS96)*AP$6 -> 20.0610687 | AV96: =SUM(AP96:AS96)*AQ$6 -> 2.061068702 | AW96: =SUM(AP96:AS96)*AR$6 -> 1.270992366 | AX96: =SUM(AP96:AS96)*AS$6 -> 3.606870229 | AZ96: 0.06630894247
A97: P0AAI9 | B97: fabD | C97: ['cytosol'] | D97: Monomer | E97: None | F97: Y | G97: 14340 | H97: 32.417 | I97: 0.771917813 | J97: 1 | K97: 1 | L97: 4.817 | M97: ['FabD/lysophospholipase-like', 'Ferredoxin-like'] | N97: ['4-122+190-308', '128-197'] | O97: 2 | P97: 2 | Q97: 7 | R97: 35 | S97: 2 | T97: 9 | U97: 8 | V97: 37 | W97: 4 | X97: 12 | Y97: No Info Available | Z97: No Info Available | AA97: No Info Available | AB97: 57.11721698 | AC97: 0 | AD97: 0 | AE97: 0 | AF97: 1 | AO97: Outer Membrane | AP97: =COUNTIFS(Y:Y,"<=1",Z:Z,">1",$C:$C,"['outer membrane']") -> 0 | AQ97: =COUNTIFS(AC:AC,"1",$C:$C,"['outer membrane']") -> 0 | AR97: =COUNTIFS(AD:AD,"1",$C:$C,"['outer membrane']") -> 0 | AS97: =COUNTIFS(AF:AF,"1",$C:$C,"['outer membrane']") -> 0 | AU97: =SUM(AP97:AS97)*AP$6 -> 0 | AV97: =SUM(AP97:AS97)*AQ$6 -> 0 | AW97: =SUM(AP97:AS97)*AR$6 -> 0 | AX97: =SUM(AP97:AS97)*AS$6 -> 0
A98: P07813 | B98: leuS | C98: ['cytosol'] | D98: Monomer | E98: None | F98: Y | G98: 8069 | H98: 97.234 | I98: 1.302827623 | J98: 1 | K98: 1 | L98: 5.041 | M98: ['Adenine nucleotide alpha hydrolase-like', 'ValRS/IleRS/LeuRS editing domain', 'Anticodon-binding domain of a subclass of class I aminoacyl-tRNA synthetases'] | N98: ['5-226+416-668', '226-415', '662-859'] | O98: 3 | P98: 3 | Q98: 3 | R98: 41 | S98: 2 | T98: 5 | U98: 1 | V98: 47 | W98: 1 | X98: 2 | Y98: No Info Available | Z98: No Info Available | AA98: 5.36 | AB98: 48.50669815 | AC98: 0 | AD98: 0 | AE98: 0 | AF98: 1 | AO98: Periplasmic Space | AP98: =COUNTIFS(AE:AE,"1",$C:$C,"*periplasmic space*") -> 48 | AQ98: =COUNTIFS(AC:AC,"1",$C:$C,"*periplasmic space*") -> 3 | AR98: =COUNTIFS(AD:AD,"1",$C:$C,"*periplasmic space*") -> 5 | AS98: =COUNTIFS(AF:AF,"1",$C:$C,"*periplasmic space*") -> 6 | AU98: =SUM(AP98:AS98)*AP$6 -> 46.06615776 | AV98: =SUM(AP98:AS98)*AQ$6 -> 4.732824427 | AW98: =SUM(AP98:AS98)*AR$6 -> 2.918575064 | AX98: =SUM(AP98:AS98)*AS$6 -> 8.282442748 | AZ98: 0.4187474288
A99: P0AFF6 | B99: nusA | C99: ['cytosol'] | D99: Monomer | E99: None | F99: Y | G99: 10864 | H99: 54.871 | I99: 0.989878115 | J99: 1 | K99: 1 | L99: 4.381 | M99: ['Transcription factor NusA, N-terminal domain', 'Alpha-lytic protease prodomain-like', 'OB-fold', 'SAM domain-like', 'SAM domain-like', 'Alpha-lytic protease prodomain-like'] | N99: ['1-126', '201-278', '132-199', '429-492', '355-414', '279-343'] | O99: 6 | P99: 4 | Q99: 5 | R99: 44 | S99: 0 | T99: 5 | U99: 4 | V99: 54 | W99: 1 | X99: 5 | Y99: No Info Available | Z99: No Info Available | AA99: No Info Available | AB99: 43.75966306 | AC99: 0 | AD99: 0 | AE99: 0 | AF99: 1 | AN99: Percent | AO99: Cytosol | AP99: =AP94/(AP94+AQ94+AR94+AS94) -> 0.7235915493 | AQ99: =AQ94/(AP94+AQ94+AR94+AS94) -> 0.07922535211 | AR99: =AR94/(AP94+AQ94+AR94+AS94) -> 0.04929577465 | AS99: =AS94/(AP94+AQ94+AR94+AS94) -> 0.1478873239
A100: P32132 | B100: typA | C100: ['cytosol'] | D100: Monomer | E100: None | F100: N | G100: 17233 | H100: 67.355 | I100: 1.927435347 | J100: 1 | K100: 1 | L100: ? | M100: ['P-loop containing nucleoside triphosphate hydrolases', 'Reductase/isomerase/elongation factor common domain', 'Ferredoxin-like', 'Ferredoxin-like'] | N100: ['2-207', '185-290', '398-512', '302-387'] | O100: 4 | P100: 3 | Q100: 3 | R100: 47 | S100: 0 | T100: 3 | U100: 7 | V100: 51 | W100: 2 | X100: 9 | Y100: No Info Available | Z100: No Info Available | AA100: 3.46 | AB100: 46.68001006 | AC100: 0 | AD100: 0 | AE100: 0 | AF100: 1 | AO100: Ribosome | AP100: =AP95/(AP95+AQ95+AR95+AS95) -> 0.7021276596 | AQ100: =AQ95/(AP95+AQ95+AR95+AS95) -> 0.1276595745 | AR100: =AR95/(AP95+AQ95+AR95+AS95) -> 0.04255319149 | AS100: =AS95/(AP95+AQ95+AR95+AS95) -> 0.1276595745
A101: P0A6P1 | B101: tsf | C101: ['cytosol'] | D101: Monomer | E101: None | F101: Y | G101: 95122 | H101: 30.423 | I101: 4.805428293 | J101: 1 | K101: 1 | L101: 5.098 | M101: ['EF-Ts domain-like', 'EF-Ts domain-like', 'RuvA C-terminal domain-like'] | N101: ['142-281', '56-139', '4-54'] | O101: 3 | P101: 2 | Q101: 4 | R101: 61 | S101: 2 | T101: 6 | U101: 9 | V101: 65 | W101: 0 | X101: 9 | Y101: I | Z101: No Info Available | AA101: 3.09 | AB101: 59.68508599 | AC101: 0 | AD101: 0 | AE101: 0 | AF101: 1 | AO101: Inner Membrane | AP101: 0.962962963 | AQ101: 0.03703703704 | AR101: 0 | AS101: 0
A102: P0A799 | B102: pgk | C102: ['cytosol'] | D102: Monomer | E102: ['Mg2+'] | F102: Y | G102: 25539 | H102: 41.118 | I102: 1.743752972 | J102: 1 | K102: 1 | L102: 4.949 | M102: ['Phosphoglycerate kinase'] | N102: ['6-383'] | O102: 1 | P102: 1 | Q102: 12 | R102: 62 | S102: 3 | T102: 15 | U102: 14 | V102: 64 | W102: 1 | X102: 15 | Y102: I | Z102: No Info Available | AA102: 6.21 | AB102: 58.01249338 | AC102: 0 | AD102: 0 | AE102: 0 | AF102: 1 | AO102: Outer Membrane
A103: P0A6M8 | B103: fusA | C103: ['cytosol'] | D103: Monomer | E103: None | F103: Y | G103: 84151 | H103: 77.581 | I103: 10.84086023 | J103: 1 | K103: 1 | L103: 5.137 | M103: ['P-loop containing nucleoside triphosphate hydrolases', 'Reductase/isomerase/elongation factor common domain', 'Ferredoxin-like', 'Ferredoxin-like', 'Ribosomal protein S5 domain 2-like'] | N103: ['6-288', '289-413', '412-486', '614-700', '486-610'] | O103: 5 | P103: 4 | Q103: 14 | R103: 102 | S103: 7 | T103: 21 | U103: 29 | V103: 116 | W103: 7 | X103: 36 | Y103: I | Z103: No Info Available | AA103: 5.39 | AB103: 58.57547491 | AC103: 0 | AD103: 0 | AE103: 0 | AF103: 1 | AO103: Periplasmic Space | AP103: 0.7741935484 | AQ103: 0.04838709677 | AR103: 0.08064516129 | AS103: 0.09677419355
A104: P0CE48 | B104: tufB | C104: ['cytosol', 'inner membrane'] | D104: Monomer | E104: None | F104: Y | G104: 90000 | H104: 43.284 | I104: 6.467806741 | J104: 1 | K104: 1 | L104: 5.217 | M104: ['Reductase/isomerase/elongation factor common domain', 'Elongation factor/aminomethyltransferase common domain', 'P-loop containing nucleoside triphosphate hydrolases'] | N104: ['203-301', '302-393', '6-219'] | O104: 3 | P104: 3 | Q104: 18 | R104: 132 | S104: 3 | T104: 21 | U104: 12 | V104: 141 | W104: 3 | X104: 15 | Y104: No Info Available | Z104: No Info Available | AA104: No Info Available | AB104: No Info Available | AC104: 0 | AD104: 0 | AE104: 0 | AF104: 1
A105: P0A6Y8 | B105: dnaK | C105: ['cytosol', 'inner membrane'] | D105: Monomer | E105: None | F105: N | G105: 44581 | H105: 69.115 | I105: 5.116479153 | J105: 1 | K105: 1 | L105: 4.692 | M105: ['Ribonuclease H-like motif', 'Ribonuclease H-like motif', 'Heat shock protein 70kD (HSP70), peptide-binding domain', 'immunoglobulin/albumin-binding domain-like'] | N105: ['187-382', '4-183', '384-539', '507-602'] | O105: 4 | P105: 3 | Q105: 21 | R105: 694 | S105: 5 | T105: 26 | U105: 15 | V105: 339 | W105: 12 | X105: 27 | Y105: II | Z105: No Info Available | AA105: No Info Available | AB105: 47.54121339 | AC105: 0 | AD105: 0 | AE105: 0 | AF105: 1 | AO105: Cofactors
A106: P0A9Q9 | B106: asd | C106: ['cytosol'] | D106: ['Asd.2'] | E106: None | F106: Y | G106: 7060 | H106: 40.018 | I106: 0.469147246 | J106: 2 | K106: 1 | L106: 5.289 | M106: ['FwdE/GAPDH domain-like', 'NAD(P)-binding Rossmann-fold domains'] | N106: ['134-354', '1-147'] | O106: 2 | P106: 2 | Q106: 1 | R106: 22 | S106: 1 | T106: 2 | U106: 1 | V106: 27 | W106: 0 | X106: 2 | Y106: III | Z106: IV | AA106: 6.69 | AB106: 59.48352172 | AC106: 0 | AD106: 0 | AE106: 0 | AF106: 1 | AN106: Total | AO106: None | AP106: =COUNTIFS(AE:AE,"1",$E:$E,"None") -> 413 | AQ106: =COUNTIFS(AC:AC,"1",$E:$E,"None") -> 38 | AR106: =COUNTIFS(AD:AD,"1",$E:$E,"None") -> 24 | AS106: =COUNTIFS(AF:AF,"1",$E:$E,"None") -> 66 | AU106: =SUM(AP106:AS106)*AP$6 -> 401.9643766 | AV106: =SUM(AP106:AS106)*AQ$6 -> 41.29770992 | AW106: =SUM(AP106:AS106)*AR$6 -> 25.46692112 | AX106: =SUM(AP106:AS106)*AS$6 -> 72.27099237 | AZ106: =_xlfn.CHISQ.TEST(AP106:AS106,AU106:AX106) -> 0.7542188265
A107: P0AFG8 | B107: aceE | C107: ['cytosol'] | D107: ['AceE.2.12', 'AceF.24', 'Lpd.2.6'] | E107: ['thiamine diphosphate', 'FAD', 'Mg2+'] | F107: N | G107: 66813 | H107: 99.668 | I107: 11.05772555 | J107: 60 | K107: 3 | L107: 5.429 | M107: ['Thiamin diphosphate-binding fold (THDP-binding)', 'Thiamin diphosphate-binding fold (THDP-binding)', 'TK C-terminal domain-like'] | N107: ['58-469', '474-701', '702-885'] | O107: 3 | P107: 2 | Q107: 3 | R107: 57 | S107: 2 | T107: 5 | U107: 1 | V107: 63 | W107: 0 | X107: 1 | Y107: I | Z107: No Info Available | AA107: 6.33 | AB107: 43.51088266 | AC107: 1 | AD107: 0 | AE107: 0 | AF107: 0 | AG107: fast | AO107: 'a [4Fe-4S] iron-sulfur cluster' | AP107: =COUNTIFS(AE:AE,"1",$E:$E,"*[4Fe-4S]*") -> 17 | AQ107: =COUNTIFS(AC:AC,"1",$E:$E,"*[4Fe-4S]*") -> 0 | AR107: =COUNTIFS(AD:AD,"1",$E:$E,"*[4Fe-4S]*") -> 0 | AS107: =COUNTIFS(AF:AF,"1",$E:$E,"*[4Fe-4S]*") -> 1 | AU107: 13.3740458 | AV107: 1.374045802 | AW107: 0.8473282443 | AX107: 2.404580153 | AZ107: =_xlfn.CHISQ.TEST(AP107:AS107,AU107:AX107) -> 0.2587888353
A108: P0A6L2 | B108: dapA | C108: ['cytosol'] | D108: ['DapA.4'] | E108: None | F108: Y | G108: 4514 | H108: 31.27 | I108: 0.234389702 | J108: 4 | K108: 1 | L108: 6.124 | M108: ['TIM beta/alpha-barrel'] | N108: ['2-291'] | O108: 1 | P108: 1 | Q108: 2 | R108: 15 | S108: 3 | T108: 5 | U108: 0 | V108: 10 | W108: 1 | X108: 1 | Y108: III | Z108: IV | AA108: 3.25 | AB108: 65.33536177 | AC108: 1 | AD108: 0 | AE108: 0 | AF108: 0 | AG108: fast | AO108: a [2Fe-2S] iron-sulfur cluster' | AP108: =COUNTIFS(AE:AE,"1",$E:$E,"*[2Fe-2S]*") -> 7 | AQ108: =COUNTIFS(AC:AC,"1",$E:$E,"*[2Fe-2S]*") -> 0 | AR108: =COUNTIFS(AD:AD,"1",$E:$E,"*[2Fe-2S]*") -> 0 | AS108: =COUNTIFS(AF:AF,"1",$E:$E,"*[2Fe-2S]*") -> 0 | AU108: 5.201017812 | AV108: 0.534351145 | AW108: 0.3295165394 | AX108: 0.9351145038 | AZ108: 0.4896943684
A109: P0A9M2 | B109: hpt | C109: ['cytosol'] | D109: ['Hpt.4'] | E109: ['Mg2+'] | F109: N | G109: 7860 | H109: 20.115 | I109: 0.262537698 | J109: 4 | K109: 1 | L109: 4.928 | M109: ['PRTase-like'] | N109: ['3-173'] | O109: 1 | P109: 1 | Q109: 2 | R109: 16 | S109: 1 | T109: 3 | U109: 0 | V109: 19 | W109: 0 | X109: 0 | Y109: No Info Available | Z109: No Info Available | AA109: No Info Available | AB109: 47.04577409 | AC109: 1 | AD109: 0 | AE109: 0 | AF109: 0 | AG109: fast | AO109: 'thiamine diphosphate' | AP109: =COUNTIFS(AE:AE,"1",$E:$E,"*thiamine diphosphate*") -> 5 | AQ109: =COUNTIFS(AC:AC,"1",$E:$E,"*thiamine diphosphate*") -> 1 | AR109: =COUNTIFS(AD:AD,"1",$E:$E,"*thiamine diphosphate*") -> 0 | AS109: =COUNTIFS(AF:AF,"1",$E:$E,"*thiamine diphosphate*") -> 1 | AU109: 5.201017812 | AV109: 0.534351145 | AW109: 0.3295165394 | AX109: 0.9351145038 | AZ109: 0.8619625009
A110: P0ABZ4 | B110: kdsC | C110: ['cytosol'] | D110: ['KdsC.4'] | E110: ['Mg2+'] | F110: N | G110: 997 | H110: 19.997 | I110: 0.033106182 | J110: 4 | K110: 1 | L110: 4.808 | M110: ['HAD-like'] | N110: ['22-181'] | O110: 1 | P110: 1 | Q110: 3 | R110: 8 | S110: 0 | T110: 3 | U110: 1 | V110: 9 | W110: 0 | X110: 1 | Y110: No Info Available | Z110: No Info Available | AA110: No Info Available | AB110: 56.72923344 | AC110: 1 | AD110: 0 | AE110: 0 | AF110: 0 | AG110: fast | AO110: pyridoxal 5'-phosphate | AP110: =COUNTIFS(AE:AE,"1",$E:$E,"*pyridoxal 5'-phosphate*") -> 12 | AQ110: =COUNTIFS(AC:AC,"1",$E:$E,"*pyridoxal 5'-phosphate*") -> 0 | AR110: =COUNTIFS(AD:AD,"1",$E:$E,"*pyridoxal 5'-phosphate*") -> 1 | AS110: =COUNTIFS(AF:AF,"1",$E:$E,"*pyridoxal 5'-phosphate*") -> 4 | AU110: 12.63104326 | AV110: 1.297709924 | AW110: 0.8002544529 | AX110: 2.270992366 | AZ110: 0.4409986605
A111: P0AD96 | B111: livJ | C111: ['periplasmic space'] | D111: ['LivF.', 'LivG.', 'LivH.', 'LivM.', 'LivJ.'] | E111: None | F111: N | G111: 1694 | H111: 39.076 | I111: 0.109918957 | J111: 5 | K111: 5 | L111: 5.487 | M111: ['Periplasmic binding protein-like I'] | N111: ['24-358'] | O111: 1 | P111: 1 | Q111: 3 | R111: 9 | S111: 0 | T111: 3 | U111: 0 | V111: 11 | W111: 1 | X111: 1 | Y111: No Info Available | Z111: No Info Available | AA111: 15.12 | AB111: 64.75387757 | AC111: 1 | AD111: 0 | AE111: 0 | AF111: 0 | AG111: fast | AO111: FMN | AP111: =COUNTIFS(AE:AE,"1",$E:$E,"*FMN*") -> 11 | AQ111: =COUNTIFS(AC:AC,"1",$E:$E,"*FMN*") -> 1 | AR111: =COUNTIFS(AD:AD,"1",$E:$E,"*FMN*") -> 0 | AS111: =COUNTIFS(AF:AF,"1",$E:$E,"*FMN*") -> 1 | AU111: 9.659033079 | AV111: 0.9923664122 | AW111: 0.6119592875 | AX111: 1.736641221 | AZ111: 0.7745036988
A112: P0A738 | B112: moaC | C112: ['cytosol'] | D112: ['MoaC.6'] | E112: None | F112: N | G112: 1266 | H112: 17.467 | I112: 0.036719868 | J112: 6 | K112: 1 | L112: 6.761 | M112: ['Ferredoxin-like'] | N112: ['4-155'] | O112: 1 | P112: 1 | Q112: 0 | R112: 6 | S112: 3 | T112: 3 | U112: 0 | V112: 5 | W112: 1 | X112: 1 | Y112: II | Z112: No Info Available | AA112: 6.67 | AB112: No Info Available | AC112: 1 | AD112: 0 | AE112: 0 | AF112: 0 | AG112: fast | AO112: FAD | AP112: =COUNTIFS(AE:AE,"1",$E:$E,"*FAD*") -> 17 | AQ112: =COUNTIFS(AC:AC,"1",$E:$E,"*FAD*") -> 3 | AR112: =COUNTIFS(AD:AD,"1",$E:$E,"*FAD*") -> 1 | AS112: =COUNTIFS(AF:AF,"1",$E:$E,"*FAD*") -> 3 | AU112: 17.83206107 | AV112: 1.832061069 | AW112: 1.129770992 | AX112: 3.20610687 | AZ112: 0.8467044682
A113: P0AG30 | B113: rho | C113: ['cytosol'] | D113: ['Rho.6'] | E113: None | F113: Y | G113: 17921 | H113: 47.004 | I113: 1.398769481 | J113: 6 | K113: 1 | L113: 6.97 | M113: ['P-loop containing nucleoside triphosphate hydrolases', 'OB-fold', 'LEM/SAP HeH motif'] | N113: ['90-371', '52-120', '1-46'] | O113: 3 | P113: 3 | Q113: 3 | R113: 29 | S113: 0 | T113: 3 | U113: 0 | V113: 34 | W113: 0 | X113: 0 | Y113: II | Z113: No Info Available | AA113: No Info Available | AB113: 45.66319763 | AC113: 1 | AD113: 0 | AE113: 0 | AF113: 0 | AG113: fast | AO113: Fe2+ | AP113: =COUNTIFS(AE:AE,"1",$E:$E,"*Fe2+*") -> 13 | AQ113: =COUNTIFS(AC:AC,"1",$E:$E,"*Fe2+*") -> 0 | AR113: =COUNTIFS(AD:AD,"1",$E:$E,"*Fe2+*") -> 0 | AS113: =COUNTIFS(AF:AF,"1",$E:$E,"*Fe2+*") -> 0 | AU113: 9.659033079 | AV113: 0.9923664122 | AW113: 0.6119592875 | AX113: 1.736641221 | AZ113: 0.2125959625
A114: P0A7J3 | B114: rplJ | C114: ['ribosome', 'cytosol'] | D114: ['RplJ.', 'RplL.2.2'] | E114: None | F114: Y | G114: 138126 | H114: 17.712 | I114: 4.062488358 | J114: 5 | K114: 2 | L114: 9.221 | M114: ['Ferredoxin-like'] | N114: ['4-160'] | O114: 1 | P114: 1 | Q114: 3 | R114: 17 | S114: 0 | T114: 3 | U114: 0 | V114: 18 | W114: 1 | X114: 1 | Y114: No Info Available | Z114: No Info Available | AA114: 2.7 | AB114: 58.47674465 | AC114: 1 | AD114: 0 | AE114: 0 | AF114: 0 | AG114: fast | AO114: heme | AP114: =COUNTIFS(AE:AE,"1",$E:$E,"*heme*") -> 5 | AQ114: =COUNTIFS(AC:AC,"1",$E:$E,"*heme*") -> 1 | AR114: =COUNTIFS(AD:AD,"1",$E:$E,"*heme*") -> 0 | AS114: =COUNTIFS(AF:AF,"1",$E:$E,"*heme*") -> 0 | AU114: 4.458015267 | AV114: 0.4580152672 | AW114: 0.2824427481 | AX114: 0.8015267176 | AZ114: 0.616849594
A115: P0A7L8 | B115: rpmA | C115: ['cytosol', 'ribosome'] | D115: ['RrlA.', 'RrfA.', 'RplA.', 'RplB.', 'RplC.', 'RplD.', 'RplE.', 'RplF.', 'RplJ.', 'RplL.2.2.', 'RplI.', 'RplK.', 'RplM.', 'RplN.', 'RplO.', 'RplP.', 'RplQ.', 'RplR.', 'RplS.', 'RplT.', 'RplU.', 'RplV.', 'RplW.', 'RplX.', 'RplY.', 'RpmA.', 'RpmB.', 'RpmC.', 'RpmD.', 'RpmE.', 'RpmF.', 'RpmG.', 'RpmH.', 'RpmI.', 'RpmJ.'] | E115: None | F115: Y | G115: 139118 | H115: 9.124 | I115: 2.10774318 | J115: 38 | K115: 35 | L115: 10.884 | M115: ['Barrel-sandwich hybrid'] | N115: ['2-81'] | O115: 1 | P115: 1 | Q115: 1 | R115: 13 | S115: 2 | T115: 3 | U115: 0 | V115: 6 | W115: 0 | X115: 0 | Y115: No Info Available | Z115: No Info Available | AA115: No Info Available | AB115: 68.71216572 | AC115: 1 | AD115: 0 | AE115: 0 | AF115: 0 | AG115: fast | AO115: Mg | AP115: =COUNTIFS(AE:AE,"1",$E:$E,"*Mg*") -> 84 | AQ115: =COUNTIFS(AC:AC,"1",$E:$E,"*Mg*") -> 14 | AR115: =COUNTIFS(AD:AD,"1",$E:$E,"*Mg*") -> 6 | AS115: =COUNTIFS(AF:AF,"1",$E:$E,"*Mg*") -> 19 | AU115: 91.38931298 | AV115: 9.389312977 | AW115: 5.790076336 | AX115: 16.43129771 | AZ115: 0.3517343739
A116: P02413 | B116: rplO | C116: ['ribosome'] | D116: ['RrlA.', 'RrfA.', 'RplA.', 'RplB.', 'RplC.', 'RplD.', 'RplE.', 'RplF.', 'RplJ.', 'RplL.2.2.', 'RplI.', 'RplK.', 'RplM.', 'RplN.', 'RplO.', 'RplP.', 'RplQ.', 'RplR.', 'RplS.', 'RplT.', 'RplU.', 'RplV.', 'RplW.', 'RplX.', 'RplY.', 'RpmA.', 'RpmB.', 'RpmC.', 'RpmD.', 'RpmE.', 'RpmF.', 'RpmG.', 'RpmH.', 'RpmI.', 'RpmJ.'] | E116: None | F116: Y | G116: 117266 | H116: 14.98 | I116: 2.916977071 | J116: 38 | K116: 35 | L116: 11.428 | M116: ['Ribosomal proteins L15p and L18e'] | N116: ['4-143'] | O116: 1 | P116: 1 | Q116: 3 | R116: 18 | S116: 0 | T116: 3 | U116: 0 | V116: 16 | W116: 0 | X116: 0 | Y116: No Info Available | Z116: No Info Available | AA116: 6.36 | AB116: 67.36700665 | AC116: 1 | AD116: 0 | AE116: 0 | AF116: 0 | AG116: fast | AO116: Mn | AP116: =COUNTIFS(AE:AE,"1",$E:$E,"*Mn*") -> 25 | AQ116: =COUNTIFS(AC:AC,"1",$E:$E,"*Mn*") -> 4 | AR116: =COUNTIFS(AD:AD,"1",$E:$E,"*Mn*") -> 1 | AS116: =COUNTIFS(AF:AF,"1",$E:$E,"*Mn*") -> 5 | AU116: 26.00508906 | AV116: 2.671755725 | AW116: 1.647582697 | AX116: 4.675572519 | AZ116: 0.8070063875
A117: P0A698 | B117: uvrA | C117: ['cytosol'] | D117: ['UvrB.', 'UvrC.', 'UvrA.'] | E117: None | F117: N | G117: 621 | H117: 103.87 | I117: 0.107110198 | J117: 3 | K117: 3 | L117: 6.319 | M117: ['P-loop containing nucleoside triphosphate hydrolases', 'P-loop containing nucleoside triphosphate hydrolases'] | N117: ['613-911', '4-204+433-569'] | O117: 2 | P117: 1 | Q117: 1 | R117: 7 | S117: 2 | T117: 3 | U117: 0 | V117: 7 | W117: 1 | X117: 1 | Y117: No Info Available | Z117: No Info Available | AA117: 4.65 | AB117: 53.52292286 | AC117: 1 | AD117: 0 | AE117: 0 | AF117: 0 | AG117: fast | AO117: Zn | AP117: =COUNTIFS(AE:AE,"1",$E:$E,"*Zn*") -> 22 | AQ117: =COUNTIFS(AC:AC,"1",$E:$E,"*Zn*") -> 3 | AR117: =COUNTIFS(AD:AD,"1",$E:$E,"*Zn*") -> 4 | AS117: =COUNTIFS(AF:AF,"1",$E:$E,"*Zn*") -> 2 | AU117: 23.03307888 | AV117: 2.366412214 | AW117: 1.459287532 | AX117: 4.141221374 | AZ117: 0.124609091
A118: P75838 | B118: ycaO | C118: ['cytosol'] | D118: Monomer | E118: None | F118: N | G118: 4641 | H118: 65.652 | I118: 0.505951188 | J118: 1 | K118: 1 | L118: 4.232 | M118: Unknown | O118: 0 | P118: 0 | Q118: 3 | R118: 10 | S118: 0 | T118: 3 | U118: 0 | V118: 10 | W118: 0 | X118: 0 | Y118: No Info Available | Z118: No Info Available | AA118: No Info Available | AB118: 43.95034061 | AC118: 1 | AD118: 0 | AE118: 0 | AF118: 0 | AG118: fast | AN118: Percent | AO118: None | AP118: =AP106/(AP106+AQ106+AR106+AS106) -> 0.7634011091 | AQ118: =AQ106/(AP106+AQ106+AR106+AS106) -> 0.07024029575 | AR118: =AR106/(AP106+AQ106+AR106+AS106) -> 0.04436229205 | AS118: =AS106/(AP106+AQ106+AR106+AS106) -> 0.1219963031
A119: P65556 | B119: yfcD | C119: ['cytosol'] | D119: Monomer | E119: None | F119: N | G119: 3558 | H119: 20.376 | I119: 0.120385441 | J119: 1 | K119: 1 | L119: 4.533 | M119: ['Nudix'] | N119: ['9-166'] | O119: 1 | P119: 1 | Q119: 2 | R119: 12 | S119: 1 | T119: 3 | U119: 0 | V119: 9 | W119: 0 | X119: 0 | Y119: No Info Available | Z119: No Info Available | AA119: 7.22 | AB119: 42.05662982 | AC119: 1 | AD119: 0 | AE119: 0 | AF119: 0 | AG119: fast | AO119: 'a [4Fe-4S] iron-sulfur cluster' | AP119: =AP107/(AP107+AQ107+AR107+AS107) -> 0.9444444444 | AQ119: =AQ107/(AP107+AQ107+AR107+AS107) -> 0 | AR119: =AR107/(AP107+AQ107+AR107+AS107) -> 0 | AS119: =AS107/(AP107+AQ107+AR107+AS107) -> 0.05555555556
A120: P45748 | B120: tsaC | C120: ['cytosol'] | D120: Monomer | E120: None | F120: Y | G120: 2394 | H120: 20.768 | I120: 0.082559663 | J120: 1 | K120: 1 | L120: 4.802 | M120: ['YrdC/RibB'] | N120: ['4-187'] | O120: 1 | P120: 1 | Q120: 2 | R120: 12 | S120: 1 | T120: 3 | U120: 0 | V120: 11 | W120: 0 | X120: 0 | Y120: No Info Available | Z120: No Info Available | AA120: No Info Available | AB120: 43.88679115 | AC120: 1 | AD120: 0 | AE120: 0 | AF120: 0 | AG120: fast | AO120: a [2Fe-2S] iron-sulfur cluster' | AP120: 1 | AQ120: 0 | AR120: 0 | AS120: 0
A121: P0ABD8 | B121: accB | C121: ['cytosol'] | D121: Monomer | E121: None | F121: Y | G121: 34495 | H121: 16.687 | I121: 0.955836269 | J121: 1 | K121: 1 | L121: 4.474 | M121: ['Barrel-sandwich hybrid'] | N121: ['81-156'] | O121: 1 | P121: 1 | Q121: 4 | R121: 16 | S121: 0 | T121: 4 | U121: 1 | V121: 15 | W121: 0 | X121: 1 | Y121: No Info Available | Z121: No Info Available | AA121: 10.06 | AB121: No Info Available | AC121: 1 | AD121: 0 | AE121: 0 | AF121: 0 | AG121: fast | AO121: 'thiamine diphosphate' | AP121: 0.7142857143 | AQ121: 0.1428571429 | AR121: 0 | AS121: 0.1428571429
A122: P12008 | B122: aroC | C122: ['cytosol'] | D122: ['AroC.4'] | E122: ['FMNH2'] | F122: N | G122: 1258 | H122: 39.137 | I122: 0.081755554 | J122: 4 | K122: 1 | L122: 5.9 | M122: ['Chorismate synthase, AroC'] | N122: ['4-353'] | O122: 1 | P122: 1 | Q122: 1 | R122: 5 | S122: 1 | T122: 2 | U122: 0 | V122: 9 | W122: 0 | X122: 0 | Y122: No Info Available | Z122: No Info Available | AA122: No Info Available | AB122: No Info Available | AC122: 1 | AD122: 0 | AE122: 0 | AF122: 0 | AG122: fast | AO122: pyridoxal 5'-phosphate | AP122: 0.7058823529 | AQ122: 0 | AR122: 0.05882352941 | AS122: 0.2352941176
A123: P0ABA4 | B123: atpH | C123: ['inner membrane'] | D123: ['AtpC.', 'AtpH.', 'AtpA.3.', 'AtpG.', 'AtpD.3.'] | E123: ['Mg2'] | F123: N | G123: 9335 | H123: 19.332 | I123: 0.299667883 | J123: 9 | K123: 5 | L123: 4.81 | M123: ['ATPD N-terminal domain-like'] | N123: ['3-102'] | O123: 1 | P123: 1 | Q123: 2 | R123: 13 | S123: 0 | T123: 2 | U123: 0 | V123: 11 | W123: 0 | X123: 0 | Y123: No Info Available | Z123: No Info Available | AA123: No Info Available | AB123: No Info Available | AC123: 1 | AD123: 0 | AE123: 0 | AF123: 0 | AG123: fast | AO123: FMN | AP123: 0.8461538462 | AQ123: 0.07692307692 | AR123: 0 | AS123: 0.07692307692
A124: P69913 | B124: csrA | C124: ['cytosol'] | D124: ['CsrC.', 'CsrA.9'] | E124: None | F124: Y | G124: 18982 | H124: 6.856 | I124: 0.216103534 | J124: 10 | K124: 2 | L124: 8.864 | M124: ['CsrA-like'] | N124: ['1-57'] | O124: 1 | P124: 1 | Q124: 1 | R124: 2 | S124: 1 | T124: 2 | U124: 0 | V124: 2 | W124: 0 | X124: 0 | Y124: No Info Available | Z124: No Info Available | AA124: 7.02 | AB124: 65.71420822 | AC124: 1 | AD124: 0 | AE124: 0 | AF124: 0 | AG124: fast | AO124: FAD | AP124: 0.7083333333 | AQ124: 0.125 | AR124: 0.04166666667 | AS124: 0.125
A125: P0A6J5 | B125: dadA | C125: ['cytosol', 'inner membrane'] | D125: ['DadA.2'] | E125: ['FADKinetic Parameters Substrate Km (ŒºM) Citations D-alanine 30000.0'] | F125: N | G125: 1586 | H125: 47.607 | I125: 0.125378505 | J125: 2 | K125: 1 | L125: 6.305 | M125: ['FAD/NAD(P)-binding domain', 'FAD-linked reductases, C-terminal domain'] | N125: ['1-54+107-271+359-417', '269-359'] | O125: 2 | P125: 2 | Q125: 0 | R125: 6 | S125: 2 | T125: 2 | U125: 0 | V125: 32 | W125: 0 | X125: 0 | Y125: III | Z125: IV | AA125: No Info Available | AB125: No Info Available | AC125: 1 | AD125: 0 | AE125: 0 | AF125: 0 | AG125: fast | AO125: Fe2+ | AP125: 1 | AQ125: 0 | AR125: 0 | AS125: 0
A126: P06968 | B126: dut | C126: ['cytosol'] | D126: ['Dut.3'] | E126: ['Mg2+'] | F126: Y | G126: 6571 | H126: 16.287 | I126: 0.177714005 | J126: 3 | K126: 1 | L126: 4.922 | M126: ['beta-clip'] | N126: ['1-150'] | O126: 1 | P126: 1 | Q126: 0 | R126: 5 | S126: 2 | T126: 2 | U126: 0 | V126: 7 | W126: 0 | X126: 0 | Y126: No Info Available | Z126: No Info Available | AA126: No Info Available | AB126: 68.85660882 | AC126: 1 | AD126: 0 | AE126: 0 | AF126: 0 | AG126: fast | AO126: heme | AP126: 0.8333333333 | AQ126: 0.1666666667 | AR126: 0 | AS126: 0
A127: P0A9C5 | B127: glnA | C127: ['cytosol', 'membrane'] | D127: ['GlnA.12'] | E127: ['Mn2+'] | F127: N | G127: 2480 | H127: 51.904 | I127: 0.213747774 | J127: 12 | K127: 1 | L127: 5.198 | M127: ['Glutamine synthetase/guanido kinase', 'beta-Grasp (ubiquitin-like)'] | N127: ['102-468', '3-99'] | O127: 2 | P127: 2 | Q127: 2 | R127: 13 | S127: 0 | T127: 2 | U127: 0 | V127: 30 | W127: 0 | X127: 0 | Y127: No Info Available | Z127: No Info Available | AA127: 4.72 | AB127: 57.67059639 | AC127: 1 | AD127: 0 | AE127: 0 | AF127: 0 | AG127: fast | AO127: Mg | AP127: 0.6829268293 | AQ127: 0.1138211382 | AR127: 0.0487804878 | AS127: 0.1544715447
A128: P0AEQ3 | B128: glnH | C128: ['periplasmic space', 'membrane'] | D128: ['GlnQ.2', 'GlnP.2', 'GlnH.'] | E128: None | F128: N | G128: 627 | H128: 27.19 | I128: 0.028309085 | J128: 5 | K128: 3 | L128: 8.749 | M128: ['Periplasmic binding protein-like II'] | N128: ['7-245'] | O128: 1 | P128: 1 | Q128: 1 | R128: 10 | S128: 1 | T128: 2 | U128: 0 | V128: 9 | W128: 0 | X128: 0 | Y128: No Info Available | Z128: No Info Available | AA128: 10.41 | AB128: 62.00816073 | AC128: 1 | AD128: 0 | AE128: 0 | AF128: 0 | AG128: fast | AO128: Mn | AP128: 0.7142857143 | AQ128: 0.1142857143 | AR128: 0.02857142857 | AS128: 0.1428571429
A129: P0A784 | B129: orn | C129: ['cytosol'] | D129: ['Orn.2'] | E129: ['Mn2+'] | F129: Y | G129: 3846 | H129: 20.816 | I129: 0.132939992 | J129: 2 | K129: 1 | L129: 4.84 | M129: ['Ribonuclease H-like motif'] | N129: ['3-180'] | O129: 1 | P129: 1 | Q129: 1 | R129: 7 | S129: 1 | T129: 2 | U129: 0 | V129: 7 | W129: 0 | X129: 0 | Y129: No Info Available | Z129: No Info Available | AA129: No Info Available | AB129: 51.02654481 | AC129: 1 | AD129: 0 | AE129: 0 | AF129: 0 | AG129: fast | AO129: Zn | AP129: 0.7096774194 | AQ129: 0.09677419355 | AR129: 0.1290322581 | AS129: 0.06451612903
A130: P0A7I7 | B130: ribA | C130: ['cytosol'] | D130: ['RibA.2'] | E130: ['Zn2+', 'Mg2+'] | F130: Y | G130: 2328 | H130: 21.836 | I130: 0.084412187 | J130: 2 | K130: 1 | L130: 5.664 | M130: ['RibA-like'] | N130: ['4-169'] | O130: 1 | P130: 1 | Q130: 1 | R130: 4 | S130: 1 | T130: 2 | U130: 0 | V130: 6 | W130: 0 | X130: 0 | Y130: No Info Available | Z130: No Info Available | AA130: 7.9 | AB130: 62.00260676 | AC130: 1 | AD130: =IF(OR(AND(T130=0,R130>1,X130>2,V130>1),AND(T130=0,R130>1,X130=2,V130>1),AND(T130=1,R130>1,X130>2,V130>1)),1,0) -> 0 | AE130: =IF(AND(T130<2,R130>1,X130<2,V130>1),1,0) -> 0 | AF130: =IF(AND(T130>1,R130>1,X130>1,V130>1),1,0) -> 0 | AG130: fast
A131: P0A7K2 | B131: rplL | C131: ['ribosome', 'cytosol'] | D131: ['RplJ.', 'RplL.2.2'] | E131: None | F131: Y | G131: 472965 | H131: 12.295 | I131: 9.656208337 | J131: 5 | K131: 2 | L131: 4.46 | M131: ['ClpS-like', 'Ribosomal protein L7/12, oligomerisation (N-terminal) domain'] | N131: ['50-121', '3-57'] | O131: 2 | P131: 2 | Q131: 1 | R131: 33 | S131: 1 | T131: 2 | U131: 0 | V131: 35 | W131: 0 | X131: 0 | Y131: No Info Available | Z131: No Info Available | AA131: 4.35 | AB131: 60.15949578 | AC131: =IF(OR(AND(T131>2,R131>1,X131=0,V131>1),AND(T131>2,R131>1,X131=1,V131>1),AND(T131=2,R131>1,X131=0,V131>1)),1,0) -> 1 | AD131: 0 | AE131: 0 | AF131: 0 | AG131: fast
A132: P0ADY3 | B132: rplN | C132: ['cytosol', 'ribosome'] | D132: ['RrlA.', 'RrfA.', 'RplA.', 'RplB.', 'RplC.', 'RplD.', 'RplE.', 'RplF.', 'RplJ.', 'RplL.2.2.', 'RplI.', 'RplK.', 'RplM.', 'RplN.', 'RplO.', 'RplP.', 'RplQ.', 'RplR.', 'RplS.', 'RplT.', 'RplU.', 'RplV.', 'RplW.', 'RplX.', 'RplY.', 'RpmA.', 'RpmB.', 'RpmC.', 'RpmD.', 'RpmE.', 'RpmF.', 'RpmG.', 'RpmH.', 'RpmI.', 'RpmJ.'] | E132: None | F132: Y | G132: 118153 | H132: 13.541 | I132: 2.656712639 | J132: 38 | K132: 35 | L132: 10.72 | M132: ['Ribosomal protein L14'] | N132: ['2-122'] | O132: 1 | P132: 1 | Q132: 0 | R132: 13 | S132: 2 | T132: 2 | U132: 0 | V132: 10 | W132: 0 | X132: 0 | Y132: No Info Available | Z132: No Info Available | AA132: No Info Available | AB132: 69.70591717 | AC132: 1 | AD132: 0 | AE132: 0 | AF132: 0 | AG132: fast | AO132: pI
A133: P27306 | B133: sthA | C133: ['cytosol'] | D133: ['SthA.8'] | E133: ['FAD'] | F133: N | G133: 845 | H133: 51.56 | I133: 0.072346697 | J133: 8 | K133: 1 | L133: 6.24 | M133: ['FAD/NAD(P)-binding domain', 'CO dehydrogenase flavoprotein C-domain-like'] | N133: ['2-335', '345-463'] | O133: 2 | P133: 2 | Q133: 1 | R133: 14 | S133: 1 | T133: 2 | U133: 0 | V133: 26 | W133: 0 | X133: 0 | Y133: II | Z133: No Info Available | AA133: No Info Available | AB133: No Info Available | AC133: 1 | AD133: 0 | AE133: 0 | AF133: 0 | AG133: fast | AN133: Total | AO133: <5 | AP133: =COUNTIFS(AE:AE,"1",$L:$L,"<5") -> 113 | AQ133: =COUNTIFS(AC:AC,"1",$L:$L,"<5") -> 18 | AR133: =COUNTIFS(AD:AD,"1",$L:$L,"<5") -> 10 | AS133: =COUNTIFS(AF:AF,"1",$L:$L,"<5") -> 25 | AU133: =SUM(AP133:AS133)*AP$6 -> 123.3384224 | AV133: =SUM(AP133:AS133)*AQ$6 -> 12.67175573 | AW133: =SUM(AP133:AS133)*AR$6 -> 7.814249364 | AX133: =SUM(AP133:AS133)*AS$6 -> 22.17557252 | AZ133: =_xlfn.CHISQ.TEST(AP133:AS133,AU133:AX133) -> 0.2531496299
A134: P76055 | B134: ttcA | C134: ['cytosol'] | D134: ['TtcA.2'] | E134: None | F134: N | G134: 4772 | H134: 35.561 | I134: 0.281788646 | J134: 2 | K134: 1 | L134: 6.028 | M134: ['Adenine nucleotide alpha hydrolase-like'] | N134: ['17-235'] | O134: 1 | P134: 1 | Q134: 1 | R134: 6 | S134: 1 | T134: 2 | U134: 0 | V134: 9 | W134: 0 | X134: 0 | Y134: No Info Available | Z134: No Info Available | AA134: 8.05 | AB134: No Info Available | AC134: 1 | AD134: 0 | AE134: 0 | AF134: 0 | AG134: fast | AO134: 5to6 | AP134: =COUNTIFS(AE:AE,"1",$L:$L,">5",$L:$L,"<6") -> 228 | AQ134: =COUNTIFS(AC:AC,"1",$L:$L,">5",$L:$L,"<6") -> 23 | AR134: =COUNTIFS(AD:AD,"1",$L:$L,">5",$L:$L,"<6") -> 15 | AS134: =COUNTIFS(AF:AF,"1",$L:$L,">5",$L:$L,"<6") -> 56 | AU134: 239.2468193 | AV134: 24.58015267 | AW134: 15.15776081 | AX134: 43.01526718 | AZ134: =_xlfn.CHISQ.TEST(AP134:AS134,AU134:AX134) -> 0.2077385879
A135: P0AB52 | B135: ychN | C135: ['cytosol'] | D135: Monomer | E135: None | F135: N | G135: 2551 | H135: 12.693 | I135: 0.053767993 | J135: 1 | K135: 1 | L135: 4.877 | M135: ['DsrEFH-like'] | N135: ['1-117'] | O135: 1 | P135: 1 | Q135: 2 | R135: 4 | S135: 0 | T135: 2 | U135: 0 | V135: 2 | W135: 0 | X135: 0 | Y135: No Info Available | Z135: No Info Available | AA135: No Info Available | AB135: No Info Available | AC135: 1 | AD135: 0 | AE135: 0 | AF135: 0 | AG135: fast | AO135: 6to7 | AP135: =COUNTIFS(AE:AE,"1",$L:$L,">6",$L:$L,"<7") -> 110 | AQ135: =COUNTIFS(AC:AC,"1",$L:$L,">6",$L:$L,"<7") -> 9 | AR135: =COUNTIFS(AD:AD,"1",$L:$L,">6",$L:$L,"<7") -> 8 | AS135: =COUNTIFS(AF:AF,"1",$L:$L,">6",$L:$L,"<7") -> 10 | AU135: 101.7913486 | AV135: 10.45801527 | AW135: 6.449109415 | AX135: 18.30152672 | AZ135: 0.1715231737
A136: P0ACI0 | B136: rob | C136: ['cytosol'] | D136: Monomer | E136: None | F136: N | G136: 1593 | H136: 33.145 | I136: 0.087676436 | J136: 1 | K136: 1 | L136: 6.854 | M136: ['Probable bacterial effector-binding domain', 'DNA/RNA-binding 3-helical bundle', 'DNA/RNA-binding 3-helical bundle'] | N136: ['122-288', '57-108', '6-55'] | O136: 3 | P136: 2 | Q136: 1 | R136: 4 | S136: 1 | T136: 2 | U136: 0 | V136: 5 | W136: 0 | X136: 0 | Y136: II | Z136: No Info Available | AA136: No Info Available | AB136: No Info Available | AC136: 1 | AD136: 0 | AE136: 0 | AF136: 0 | AG136: fast | AO136: 7to8 | AP136: =COUNTIFS(AE:AE,"1",$L:$L,">7",$L:$L,"<8") -> 22 | AQ136: =COUNTIFS(AC:AC,"1",$L:$L,">7",$L:$L,"<8") -> 1 | AR136: =COUNTIFS(AD:AD,"1",$L:$L,">7",$L:$L,"<8") -> 0 | AS136: =COUNTIFS(AF:AF,"1",$L:$L,">7",$L:$L,"<8") -> 4 | AU136: 20.0610687 | AV136: 2.061068702 | AW136: 1.270992366 | AX136: 3.606870229 | AZ136: 0.5626075156
A137: P0ABQ4 | B137: folA | C137: ['cytosol'] | D137: Monomer | E137: None | F137: Y | G137: 2515 | H137: 17.999 | I137: 0.075168426 | J137: 1 | K137: 1 | L137: 4.71 | M137: ['Dihydrofolate reductase-like'] | N137: ['1-158'] | O137: 1 | P137: 1 | Q137: 1 | R137: 5 | S137: 1 | T137: 2 | U137: 0 | V137: 6 | W137: 0 | X137: 0 | Y137: No Info Available | Z137: No Info Available | AA137: No Info Available | AB137: No Info Available | AC137: 1 | AD137: 0 | AE137: 0 | AF137: 0 | AG137: fast | AO137: 8to9 | AP137: =COUNTIFS(AE:AE,"1",$L:$L,">8",$L:$L,"<9") -> 22 | AQ137: =COUNTIFS(AC:AC,"1",$L:$L,">8",$L:$L,"<9") -> 2 | AR137: =COUNTIFS(AD:AD,"1",$L:$L,">8",$L:$L,"<9") -> 1 | AS137: =COUNTIFS(AF:AF,"1",$L:$L,">8",$L:$L,"<9") -> 1 | AU137: 19.31806616 | AV137: 1.984732824 | AW137: 1.223918575 | AX137: 3.473282443 | AZ137: 0.5369662779
A138: P15254 | B138: purL | C138: ['cytosol'] | D138: Monomer | E138: ['Mg2+'] | F138: N | G138: 1132 | H138: 141.4 | I138: 0.265793849 | J138: 1 | K138: 1 | L138: 5.153 | M138: ['Flavodoxin-like', 'Bacillus chorismate mutase-like', 'Bacillus chorismate mutase-like', 'PurM C-terminal domain-like', 'PurS-like', 'PurM C-terminal domain-like', 'RuvA C-terminal domain-like'] | N138: ['1035-1293', '618-816', '221-428', '818-1033', '1-152', '432-615', '155-220'] | O138: 7 | P138: 5 | Q138: 1 | R138: 7 | S138: 1 | T138: 2 | U138: 0 | V138: 10 | W138: 0 | X138: 0 | Y138: II | Z138: No Info Available | AA138: 6.85 | AB138: 46.34757725 | AC138: 1 | AD138: 0 | AE138: 0 | AF138: 0 | AG138: fast | AO138: 9to10 | AP138: =COUNTIFS(AE:AE,"1",$L:$L,">9",$L:$L,"<10") -> 31 | AQ138: =COUNTIFS(AC:AC,"1",$L:$L,">9",$L:$L,"<10") -> 2 | AR138: =COUNTIFS(AD:AD,"1",$L:$L,">9",$L:$L,"<10") -> 1 | AS138: =COUNTIFS(AF:AF,"1",$L:$L,">9",$L:$L,"<10") -> 1 | AU138: 26.00508906 | AV138: 2.671755725 | AW138: 1.647582697 | AX138: 4.675572519 | AZ138: 0.2335246217
A139: P0ACA3 | B139: sspA | C139: ['cytosol'] | D139: Monomer | E139: None | F139: N | G139: 12135 | H139: 24.305 | I139: 0.489761336 | J139: 1 | K139: 1 | L139: 5.115 | M139: ['GST C-terminal domain-like', 'Thioredoxin fold'] | N139: ['82-208', '7-90'] | O139: 2 | P139: 2 | Q139: 1 | R139: 8 | S139: 1 | T139: 2 | U139: 0 | V139: 12 | W139: 0 | X139: 0 | Y139: No Info Available | Z139: No Info Available | AA139: 4.21 | AB139: 47.76521771 | AC139: 1 | AD139: 0 | AE139: 0 | AF139: 0 | AG139: fast | AO139: >10 | AP139: =COUNTIFS(AE:AE,"1",$L:$L,">10") -> 31 | AQ139: =COUNTIFS(AC:AC,"1",$L:$L,">10") -> 4 | AR139: =COUNTIFS(AD:AD,"1",$L:$L,">10") -> 1 | AS139: =COUNTIFS(AF:AF,"1",$L:$L,">10") -> 4 | AU139: 29.72010178 | AV139: 3.053435115 | AW139: 1.882951654 | AX139: 5.34351145 | AZ139: 0.7769814049
A140: P0AFQ7 | B140: ycfH | C140: ['cytosol'] | D140: Monomer | E140: None | F140: N | G140: 1428 | H140: 29.809 | I140: 0.070684584 | J140: 1 | K140: 1 | L140: 5.116 | M140: ['TIM beta/alpha-barrel'] | N140: ['1-259'] | O140: 1 | P140: 1 | Q140: 2 | R140: 9 | S140: 0 | T140: 2 | U140: 0 | V140: 6 | W140: 0 | X140: 0 | Y140: III | Z140: IV | AA140: No Info Available | AB140: No Info Available | AC140: 1 | AD140: 0 | AE140: 0 | AF140: 0 | AG140: fast | AN140: Percent | AO140: <5 | AP140: =AP133/(AP133+AQ133+AR133+AS133) -> 0.6807228916 | AQ140: =AQ133/(AP133+AQ133+AR133+AS133) -> 0.1084337349 | AR140: =AR133/(AP133+AQ133+AR133+AS133) -> 0.06024096386 | AS140: =AS133/(AP133+AQ133+AR133+AS133) -> 0.1506024096
A141: P0A800 | B141: rpoZ | C141: ['cytosol'] | D141: Monomer | E141: None | F141: N | G141: 29488 | H141: 10.237 | I141: 0.501264688 | J141: 1 | K141: 1 | L141: 4.728 | M141: ['RPB6/omega subunit-like'] | N141: ['1-79'] | O141: 1 | P141: 1 | Q141: 2 | R141: 13 | S141: 0 | T141: 2 | U141: 0 | V141: 11 | W141: 0 | X141: 0 | Y141: No Info Available | Z141: No Info Available | AA141: 8.49 | AB141: No Info Available | AC141: 1 | AD141: 0 | AE141: 0 | AF141: 0 | AG141: fast | AO141: 5to6 | AP141: =AP134/(AP134+AQ134+AR134+AS134) -> 0.7080745342 | AQ141: =AQ134/(AP134+AQ134+AR134+AS134) -> 0.07142857143 | AR141: =AR134/(AP134+AQ134+AR134+AS134) -> 0.04658385093 | AS141: =AS134/(AP134+AQ134+AR134+AS134) -> 0.1739130435
A142: P10121 | B142: ftsY | C142: ['inner membrane', 'cytosol'] | D142: Monomer | E142: None | F142: Y | G142: 2069 | H142: 54.513 | I142: 0.187287876 | J142: 1 | K142: 1 | L142: 4.321 | M142: ['P-loop containing nucleoside triphosphate hydrolases', 'Four-helical up-and-down bundle'] | N142: ['286-493', '196-282'] | O142: 2 | P142: 2 | Q142: 0 | R142: 13 | S142: 2 | T142: 2 | U142: 0 | V142: 14 | W142: 0 | X142: 0 | Y142: No Info Available | Z142: No Info Available | AA142: No Info Available | AB142: No Info Available | AC142: 1 | AD142: 0 | AE142: 0 | AF142: 0 | AG142: fast | AO142: 6to7 | AP142: 0.802919708 | AQ142: 0.06569343066 | AR142: 0.05839416058 | AS142: 0.07299270073
A143: P0A805 | B143: frr | C143: ['cytosol'] | D143: Monomer | E143: None | F143: Y | G143: 23316 | H143: 20.639 | I143: 0.79908281 | J143: 1 | K143: 1 | L143: 6.676 | M143: ['RRF/tRNA synthetase additional domain-like'] | N143: ['4-184'] | O143: 1 | P143: 1 | Q143: 1 | R143: 15 | S143: 1 | T143: 2 | U143: 0 | V143: 17 | W143: 0 | X143: 0 | Y143: I | Z143: No Info Available | AA143: No Info Available | AB143: 44.35451027 | AC143: 1 | AD143: 0 | AE143: 0 | AF143: 0 | AG143: fast | AO143: 7to8 | AP143: 0.8148148148 | AQ143: 0.03703703704 | AR143: 0 | AS143: 0.1481481481
A144: P0A6Z1 | B144: hscA | C144: ['cytosol'] | D144: Monomer | E144: None | F144: N | G144: 2256 | H144: 65.652 | I144: 0.245943952 | J144: 1 | K144: 1 | L144: 4.859 | M144: ['Ribonuclease H-like motif', 'Ribonuclease H-like motif', 'Heat shock protein 70kD (HSP70), peptide-binding domain', 'immunoglobulin/albumin-binding domain-like'] | N144: ['200-377', '20-196', '384-535', '504-615'] | O144: 4 | P144: 3 | Q144: 0 | R144: 22 | S144: 2 | T144: 2 | U144: 0 | V144: 23 | W144: 0 | X144: 0 | Y144: No Info Available | Z144: No Info Available | AA144: 7.71 | AB144: No Info Available | AC144: 1 | AD144: 0 | AE144: 0 | AF144: 0 | AG144: fast | AO144: 8to9 | AP144: 0.8461538462 | AQ144: 0.07692307692 | AR144: 0.03846153846 | AS144: 0.03846153846
A145: P0A6K6 | B145: deoB | C145: ['cytosol'] | D145: Monomer | E145: ['Mn2+'] | F145: N | G145: 2087 | H145: 44.37 | I145: 0.153766231 | J145: 1 | K145: 1 | L145: 5.01 | M145: ['Alkaline phosphatase-like', 'DeoB insert domain-like'] | N145: ['1-114+236-406', '117-235'] | O145: 2 | P145: 2 | Q145: 1 | R145: 24 | S145: 1 | T145: 2 | U145: 0 | V145: 24 | W145: 0 | X145: 0 | Y145: No Info Available | Z145: No Info Available | AA145: 3.52 | AB145: 58.34057418 | AC145: 1 | AD145: 0 | AE145: 0 | AF145: 0 | AG145: fast | AO145: 9to10 | AP145: 0.8857142857 | AQ145: 0.05714285714 | AR145: 0.02857142857 | AS145: 0.02857142857
A146: P09372 | B146: grpE | C146: ['cytosol'] | D146: ['GrpE.2'] | E146: None | F146: Y | G146: 23174 | H146: 21.798 | I146: 0.838816069 | J146: 2 | K146: 1 | L146: 4.542 | M146: ['Parallel coiled-coil', 'Head domain of nucleotide exchange factor GrpE'] | N146: ['42-138', '139-195'] | O146: 2 | P146: 2 | Q146: 1 | R146: 122 | S146: 3 | T146: 4 | U146: 0 | V146: 46 | W146: 1 | X146: 1 | Y146: I | Z146: No Info Available | AA146: 10.64 | AB146: 43.9528781 | AC146: 1 | AD146: 0 | AE146: 0 | AF146: 0 | AG146: N/A | AO146: >10 | AP146: 0.775 | AQ146: 0.1 | AR146: 0.025 | AS146: 0.1
A147: P07004 | B147: proA | C147: ['cytosol'] | D147: ['ProA.4'] | E147: None | F147: N | G147: 2289 | H147: 44.63 | I147: 0.169637464 | J147: 4 | K147: 1 | L147: 5.353 | M147: ['ALDH-like'] | N147: ['3-416'] | O147: 1 | P147: 1 | Q147: 1 | R147: 17 | S147: 4 | T147: 5 | U147: 1 | V147: 12 | W147: 0 | X147: 1 | Y147: No Info Available | Z147: No Info Available | AA147: No Info Available | AB147: 63.84419085 | AC147: 1 | AD147: 0 | AE147: 0 | AF147: 0 | AG147: N/A
A148: P0A7N9 | B148: rpmG | C148: ['ribosome', 'cytosol'] | D148: ['RrlA.', 'RrfA.', 'RplA.', 'RplB.', 'RplC.', 'RplD.', 'RplE.', 'RplF.', 'RplJ.', 'RplL.2.2.', 'RplI.', 'RplK.', 'RplM.', 'RplN.', 'RplO.', 'RplP.', 'RplQ.', 'RplR.', 'RplS.', 'RplT.', 'RplU.', 'RplV.', 'RplW.', 'RplX.', 'RplY.', 'RpmA.', 'RpmB.', 'RpmC.', 'RpmD.', 'RpmE.', 'RpmF.', 'RpmG.', 'RpmH.', 'RpmI.', 'RpmJ.'] | E148: None | F148: N | G148: 153443 | H148: 6.372 | I148: 1.623573442 | J148: 38 | K148: 35 | L148: 10.576 | M148: ['Rubredoxin-like'] | N148: ['1-53'] | O148: 1 | P148: 1 | Q148: 2 | R148: 8 | S148: 0 | T148: 2 | U148: 0 | V148: 2 | W148: 0 | X148: 0 | Y148: No Info Available | Z148: No Info Available | AA148: 5.12 | AB148: 63.12685975 | AC148: 1 | AD148: 0 | AE148: 0 | AF148: 0 | AG148: N/A | AO148: Molecular Weight
A149: P04951 | B149: kdsB | C149: ['cytosol'] | D149: Monomer | E149: ['Mg2+'] | F149: Y | G149: 3374 | H149: 27.614 | I149: 0.154711818 | J149: 1 | K149: 1 | L149: 5.042 | M149: ['Nucleotide-diphospho-sugar transferases'] | N149: ['3-245'] | O149: 1 | P149: 1 | Q149: 1 | R149: 3 | S149: 1 | T149: 2 | U149: 0 | V149: 2 | W149: 0 | X149: 0 | Y149: No Info Available | Z149: No Info Available | AA149: No Info Available | AB149: 54.50560134 | AC149: 1 | AD149: 0 | AE149: 0 | AF149: 0 | AG149: N/A | AN149: Total | AO149: <20 | AP149: =COUNTIFS(AE:AE,"1",$H:$H,"<20") -> 161 | AQ149: =COUNTIFS(AC:AC,"1",$H:$H,"<20") -> 18 | AR149: =COUNTIFS(AD:AD,"1",$H:$H,"<20") -> 7 | AS149: =COUNTIFS(AF:AF,"1",$H:$H,"<20") -> 18 | AU149: =SUM(AP149:AS149)*AP$6 -> 151.5725191 | AV149: =SUM(AP149:AS149)*AQ$6 -> 15.57251908 | AW149: =SUM(AP149:AS149)*AR$6 -> 9.603053435 | AX149: =SUM(AP149:AS149)*AS$6 -> 27.2519084 | AZ149: =_xlfn.CHISQ.TEST(AP149:AS149,AU149:AX149) -> 0.1861437028
A150: P09996 | B150: yidB | C150: Unknown | D150: Monomer | E150: None | F150: N | G150: 916 | H150: 13.787 | I150: 0.020970768 | J150: 1 | K150: 1 | L150: 4.219 | M150: ['YidB-like'] | N150: ['3-130'] | O150: 1 | P150: 1 | Q150: 0 | R150: 3 | S150: 2 | T150: 2 | U150: 0 | V150: 2 | W150: 0 | X150: 0 | Y150: No Info Available | Z150: No Info Available | AA150: No Info Available | AB150: No Info Available | AC150: 1 | AD150: 0 | AE150: 0 | AF150: 0 | AG150: N/A | AO150: 20-30 | AP150: =COUNTIFS(AE:AE,"1",$H:$H,">20",$H:$H,"<30") -> 127 | AQ150: =COUNTIFS(AC:AC,"1",$H:$H,">20",$H:$H,"<30") -> 13 | AR150: =COUNTIFS(AD:AD,"1",$H:$H,">20",$H:$H,"<30") -> 8 | AS150: =COUNTIFS(AF:AF,"1",$H:$H,">20",$H:$H,"<30") -> 19 | AU150: 124.0814249 | AV150: 12.7480916 | AW150: 7.861323155 | AX150: 22.30916031 | AZ150: =_xlfn.CHISQ.TEST(AP150:AS150,AU150:AX150) -> 0.9039600722
A151: P11290 | B151: yibD | C151: ['cytosol', 'membrane'] | D151: Monomer | E151: None | F151: N | G151: ? | H151: 40.524 | I151: ? | J151: 1 | K151: 1 | L151: ? | M151: ['Nucleotide-diphospho-sugar transferases'] | N151: ['7-225'] | O151: 1 | P151: 1 | Q151: 2 | R151: 4 | S151: 0 | T151: 2 | U151: 0 | V151: 2 | W151: 0 | X151: 0 | Y151: No Info Available | Z151: No Info Available | AA151: No Info Available | AB151: No Info Available | AC151: 1 | AD151: 0 | AE151: 0 | AF151: 0 | AG151: N/A | AO151: 30-40 | AP151: =COUNTIFS(AE:AE,"1",$H:$H,">30",$H:$H,"<40") -> 114 | AQ151: =COUNTIFS(AC:AC,"1",$H:$H,">30",$H:$H,"<40") -> 8 | AR151: =COUNTIFS(AD:AD,"1",$H:$H,">30",$H:$H,"<40") -> 10 | AS151: =COUNTIFS(AF:AF,"1",$H:$H,">30",$H:$H,"<40") -> 19 | AU151: 112.1933842 | AV151: 11.52671756 | AW151: 7.108142494 | AX151: 20.17175573 | AZ151: 0.50249865
A152: P76536 | B152: yfeX | C152: ['cytosol'] | D152: Monomer | E152: ['a heme'] | F152: N | G152: 3527 | H152: 33.052 | I152: 0.193576349 | J152: 1 | K152: 1 | L152: 5.285 | M152: ['Ferredoxin-like'] | N152: ['1-296'] | O152: 1 | P152: 1 | Q152: 2 | R152: 11 | S152: 0 | T152: 2 | U152: 0 | V152: 13 | W152: 0 | X152: 0 | Y152: No Info Available | Z152: No Info Available | AA152: 4.45 | AB152: No Info Available | AC152: 1 | AD152: 0 | AE152: 0 | AF152: 0 | AG152: N/A | AO152: 40-50 | AP152: =COUNTIFS(AE:AE,"1",$H:$H,">40",$H:$H,"<50") -> 74 | AQ152: =COUNTIFS(AC:AC,"1",$H:$H,">40",$H:$H,"<50") -> 7 | AR152: =COUNTIFS(AD:AD,"1",$H:$H,">40",$H:$H,"<50") -> 7 | AS152: =COUNTIFS(AF:AF,"1",$H:$H,">40",$H:$H,"<50") -> 16 | AU152: 77.27226463 | AV152: 7.938931298 | AW152: 4.8956743 | AX152: 13.89312977 | AZ152: 0.6883694216
A153: P69503 | B153: apt | C153: ['cytosol'] | D153: ['Apt.2'] | E153: ['Mg2+'] | F153: N | G153: 15434 | H153: 19.859 | I153: 0.508961536 | J153: 2 | K153: 1 | L153: 5.139 | M153: ['PRTase-like'] | N153: ['12-180'] | O153: 1 | P153: 1 | Q153: 1 | R153: 15 | S153: 2 | T153: 3 | U153: 1 | V153: 19 | W153: 0 | X153: 1 | Y153: No Info Available | Z153: No Info Available | AA153: No Info Available | AB153: 55.45127001 | AC153: 1 | AD153: 0 | AE153: 0 | AF153: 0 | AG153: slow | AO153: 50-60 | AP153: =COUNTIFS(AE:AE,"1",$H:$H,">50",$H:$H,"<60") -> 38 | AQ153: =COUNTIFS(AC:AC,"1",$H:$H,">50",$H:$H,"<60") -> 6 | AR153: =COUNTIFS(AD:AD,"1",$H:$H,">50",$H:$H,"<60") -> 2 | AS153: =COUNTIFS(AF:AF,"1",$H:$H,">50",$H:$H,"<60") -> 9 | AU153: 40.86513995 | AV153: 4.198473282 | AW153: 2.589058524 | AX153: 7.347328244 | AZ153: 0.6869714915
A154: P0A8M0 | B154: asnS | C154: ['cytosol'] | D154: ['AsnS.2'] | E154: None | F154: Y | G154: 17436 | H154: 52.57 | I154: 1.522067553 | J154: 2 | K154: 1 | L154: 5.059 | M154: ['Class II aaRS and biotin synthetases', 'OB-fold'] | N154: ['98-464', '16-101'] | O154: 2 | P154: 2 | Q154: 4 | R154: 35 | S154: 1 | T154: 5 | U154: 0 | V154: 36 | W154: 0 | X154: 0 | Y154: I | Z154: No Info Available | AA154: 4.68 | AB154: 58.03017656 | AC154: 1 | AD154: 0 | AE154: 0 | AF154: 0 | AG154: slow | AO154: 60-80 | AP154: =COUNTIFS(AE:AE,"1",$H:$H,">60",$H:$H,"<80") -> 28 | AQ154: =COUNTIFS(AC:AC,"1",$H:$H,">60",$H:$H,"<80") -> 3 | AR154: =COUNTIFS(AD:AD,"1",$H:$H,">60",$H:$H,"<80") -> 3 | AS154: =COUNTIFS(AF:AF,"1",$H:$H,">60",$H:$H,"<80") -> 16 | AU154: 37.15012723 | AV154: 3.816793893 | AW154: 2.353689567 | AX154: 6.679389313 | AZ154: 0.001361634178
A155: P0AEP3 | B155: galU | C155: ['cytosol'] | D155: ['GalU.4'] | E155: ['Mg2+'] | F155: N | G155: 10550 | H155: 32.942 | I155: 0.577100583 | J155: 4 | K155: 1 | L155: 5.002 | M155: ['Nucleotide-diphospho-sugar transferases'] | N155: ['10-71+105-275'] | O155: 1 | P155: 1 | Q155: 1 | R155: 18 | S155: 2 | T155: 3 | U155: 0 | V155: 24 | W155: 0 | X155: 0 | Y155: No Info Available | Z155: No Info Available | AA155: 4.77 | AB155: 45.64779586 | AC155: 1 | AD155: 0 | AE155: 0 | AF155: 0 | AG155: slow | AO155: 80-100 | AP155: =COUNTIFS(AE:AE,"1",$H:$H,">80",$H:$H,"<100") -> 24 | AQ155: =COUNTIFS(AC:AC,"1",$H:$H,">80",$H:$H,"<100") -> 2 | AR155: =COUNTIFS(AD:AD,"1",$H:$H,">80",$H:$H,"<100") -> 0 | AS155: =COUNTIFS(AF:AF,"1",$H:$H,">80",$H:$H,"<100") -> 5 | AU155: 23.03307888 | AV155: 2.366412214 | AW155: 1.459287532 | AX155: 4.141221374 | AZ155: 0.6292467049
A156: P04079 | B156: guaA | C156: ['cytosol'] | D156: ['GuaA.2'] | E156: ['Mg2+'] | F156: N | G156: 21887 | H156: 58.679 | I156: 2.132642367 | J156: 2 | K156: 1 | L156: 5.14 | M156: ['Adenine nucleotide alpha hydrolase-like', 'Flavodoxin-like', 'Alpha-lytic protease prodomain-like'] | N156: ['208-404', '10-209', '405-525'] | O156: 3 | P156: 3 | Q156: 1 | R156: 29 | S156: 3 | T156: 4 | U156: 0 | V156: 32 | W156: 1 | X156: 1 | Y156: No Info Available | Z156: No Info Available | AA156: 5.69 | AB156: 57.13382361 | AC156: 1 | AD156: 0 | AE156: 0 | AF156: 0 | AG156: slow | AO156: >100 | AP156: =COUNTIFS(AE:AE,"1",$H:$H,">100") -> 16 | AQ156: =COUNTIFS(AC:AC,"1",$H:$H,">100") -> 3 | AR156: =COUNTIFS(AD:AD,"1",$H:$H,">100") -> 0 | AS156: =COUNTIFS(AF:AF,"1",$H:$H,">100") -> 3 | AU156: 16.34605598 | AV156: 1.679389313 | AW156: 1.03562341 | AX156: 2.938931298 | AZ156: 0.5554208344
A157: P0A6H5 | B157: hslU | C157: ['cytosol'] | D157: ['HslU.6.2', 'HslV.6.2'] | E157: None | F157: N | G157: 9329 | H157: 49.594 | I157: 0.768269021 | J157: 24 | K157: 2 | L157: 5.126 | M157: ['P-loop containing nucleoside triphosphate hydrolases'] | N157: ['3-441'] | O157: 1 | P157: 1 | Q157: 2 | R157: 33 | S157: 1 | T157: 3 | U157: 0 | V157: 50 | W157: 0 | X157: 0 | Y157: No Info Available | Z157: No Info Available | AA157: 5.38 | AB157: No Info Available | AC157: 1 | AD157: 0 | AE157: 0 | AF157: 0 | AG157: slow | AN157: Percent | AO157: <20 | AP157: =AP149/(AP149+AQ149+AR149+AS149) -> 0.7892156863 | AQ157: =AQ149/(AP149+AQ149+AR149+AS149) -> 0.08823529412 | AR157: =AR149/(AP149+AQ149+AR149+AS149) -> 0.03431372549 | AS157: =AS149/(AP149+AQ149+AR149+AS149) -> 0.08823529412
A158: P00959 | B158: metG | C158: ['cytosol'] | D158: ['MetG.2'] | E158: ['Mg2+', 'Zn2+'] | F158: Y | G158: 6555 | H158: 76.255 | I158: 0.830022972 | J158: 2 | K158: 1 | L158: 5.572 | M158: ['Adenine nucleotide alpha hydrolase-like', 'Anticodon-binding domain of a subclass of class I aminoacyl-tRNA synthetases', 'OB-fold', 'Rubredoxin-like'] | N158: ['6-141+176-388', '391-548', '570-676', '142-176'] | O158: 4 | P158: 4 | Q158: 5 | R158: 25 | S158: 1 | T158: 6 | U158: 0 | V158: 23 | W158: 0 | X158: 0 | Y158: No Info Available | Z158: No Info Available | AA158: No Info Available | AB158: 44.01156467 | AC158: 1 | AD158: 0 | AE158: 0 | AF158: 0 | AG158: slow | AO158: 20-30 | AP158: =AP150/(AP150+AQ150+AR150+AS150) -> 0.7604790419 | AQ158: =AQ150/(AP150+AQ150+AR150+AS150) -> 0.07784431138 | AR158: =AR150/(AP150+AQ150+AR150+AS150) -> 0.04790419162 | AS158: =AS150/(AP150+AQ150+AR150+AS150) -> 0.1137724551
A159: P0A817 | B159: metK | C159: ['cytosol'] | D159: ['MetK.4'] | E159: ['K+', 'Mg2+'] | F159: Y | G159: 22856 | H159: 41.952 | I159: 1.592216015 | J159: 4 | K159: 1 | L159: 4.987 | M159: ['S-adenosylmethionine synthetase', 'S-adenosylmethionine synthetase', 'S-adenosylmethionine synthetase'] | N159: ['233-382', '112-232', '3-109'] | O159: 3 | P159: 1 | Q159: 2 | R159: 31 | S159: 2 | T159: 4 | U159: 1 | V159: 40 | W159: 0 | X159: 1 | Y159: III | Z159: IV | AA159: 5.19 | AB159: 68.71797732 | AC159: 1 | AD159: 0 | AE159: 0 | AF159: 0 | AG159: slow | AO159: 30-40 | AP159: 0.7549668874 | AQ159: 0.05298013245 | AR159: 0.06622516556 | AS159: 0.1258278146
A160: P02925 | B160: rbsB | C160: ['periplasmic space'] | D160: ['RbsA.', 'RbsC.2', 'RbsB.'] | E160: None | F160: N | G160: 1714 | H160: 30.95 | I160: 0.088088773 | J160: 4 | K160: 3 | L160: 7.39 | M160: ['Periplasmic binding protein-like I'] | N160: ['26-295'] | O160: 1 | P160: 1 | Q160: 1 | R160: 15 | S160: 2 | T160: 3 | U160: 0 | V160: 17 | W160: 0 | X160: 0 | Y160: I | Z160: No Info Available | AA160: 4.3 | AB160: 60.4724159 | AC160: 1 | AD160: 0 | AE160: 0 | AF160: 0 | AG160: slow | AO160: 40-50 | AP160: 0.7115384615 | AQ160: 0.06730769231 | AR160: 0.06730769231 | AS160: 0.1538461538
A161: P0A7Z0 | B161: rpiA | C161: ['cytosol'] | D161: ['RpiA.2'] | E161: None | F161: N | G161: 8526 | H161: 22.86 | I161: 0.323646299 | J161: 2 | K161: 1 | L161: 5.109 | M161: ['NagB/RpiA/CoA transferase-like', 'Ferredoxin-like'] | N161: ['2-146', '127-198'] | O161: 2 | P161: 2 | Q161: 4 | R161: 7 | S161: 1 | T161: 5 | U161: 0 | V161: 5 | W161: 1 | X161: 1 | Y161: No Info Available | Z161: No Info Available | AA161: No Info Available | AB161: 51.29889403 | AC161: 1 | AD161: 0 | AE161: 0 | AF161: 0 | AG161: slow | AO161: 50-60 | AP161: 0.6909090909 | AQ161: 0.1090909091 | AR161: 0.03636363636 | AS161: 0.1636363636
A162: P0A790 | B162: panD | C162: ['cytosol'] | D162: Monomer | E162: None | F162: N | G162: 15147 | H162: 13.834 | I162: 0.347955325 | J162: 1 | K162: 1 | L162: 5.86 | M162: ['Double psi beta-barrel'] | N162: ['1-123'] | O162: 1 | P162: 1 | Q162: 3 | R162: 11 | S162: 0 | T162: 3 | U162: 1 | V162: 12 | W162: 0 | X162: 1 | Y162: No Info Available | Z162: No Info Available | AA162: 16.19 | AB162: No Info Available | AC162: 1 | AD162: 0 | AE162: 0 | AF162: 0 | AG162: slow | AO162: 60-80 | AP162: 0.56 | AQ162: 0.06 | AR162: 0.06 | AS162: 0.32
A163: P0A7I4 | B163: prfC | C163: ['cytosol'] | D163: Monomer | E163: None | F163: N | G163: 7808 | H163: 59.574 | I163: 0.772406031 | J163: 1 | K163: 1 | L163: 5.684 | M163: ['P-loop containing nucleoside triphosphate hydrolases', 'Reductase/isomerase/elongation factor common domain', 'Ferredoxin-like'] | N163: ['10-277', '262-393', '393-468'] | O163: 3 | P163: 3 | Q163: 2 | R163: 14 | S163: 1 | T163: 3 | U163: 0 | V163: 20 | W163: 1 | X163: 1 | Y163: No Info Available | Z163: No Info Available | AA163: No Info Available | AB163: 45.99234056 | AC163: 1 | AD163: 0 | AE163: 0 | AF163: 0 | AG163: slow | AO163: 80-100 | AP163: 0.7741935484 | AQ163: 0.06451612903 | AR163: 0 | AS163: 0.1612903226
A164: P45577 | B164: proQ | C164: ['cytosol'] | D164: Monomer | E164: None | F164: N | G164: 13828 | H164: 25.892 | I164: 0.594530391 | J164: 1 | K164: 1 | L164: 9.935 | M164: ['FinO-like'] | N164: ['5-119'] | O164: 1 | P164: 1 | Q164: 4 | R164: 17 | S164: 0 | T164: 4 | U164: 0 | V164: 20 | W164: 0 | X164: 0 | Y164: II | Z164: No Info Available | AA164: 4.52 | AB164: No Info Available | AC164: 1 | AD164: 0 | AE164: 0 | AF164: 0 | AG164: slow | AO164: >100 | AP164: 0.7272727273 | AQ164: 0.1363636364 | AR164: 0 | AS164: 0.1363636364
A165: P07118 | B165: valS | C165: ['cytosol'] | D165: Monomer | E165: ['Mg2+'] | F165: Y | G165: 8921 | H165: 108.19 | I165: 1.602690825 | J165: 1 | K165: 1 | L165: 5.086 | M165: ['Adenine nucleotide alpha hydrolase-like', 'Anticodon-binding domain of a subclass of class I aminoacyl-tRNA synthetases', 'ValRS/IleRS/LeuRS editing domain', 'Long alpha-hairpin'] | N165: ['1-192+364-571+609-641', '642-899', '191-365', '884-947'] | O165: 4 | P165: 4 | Q165: 2 | R165: 43 | S165: 1 | T165: 3 | U165: 1 | V165: 52 | W165: 0 | X165: 1 | Y165: No Info Available | Z165: No Info Available | AA165: 6.42 | AB165: 49.82887522 | AC165: 1 | AD165: 0 | AE165: 0 | AF165: 0 | AG165: slow
A166: P00957 | B166: alaS | C166: ['cytosol'] | D166: Monomer | E166: ['Zn2+'] | F166: Y | G166: 8493 | H166: 96.032 | I166: 1.354335269 | J166: 1 | K166: 1 | L166: 5.529 | M166: ['Class II aaRS and biotin synthetases', 'Putative anticodon-binding domain of alanyl-tRNA synthetase (AlaRS)', 'RRF/tRNA synthetase additional domain-like', 'Reductase/isomerase/elongation factor common domain'] | N166: ['4-255', '256-465', '552-708', '455-551'] | O166: 4 | P166: 4 | Q166: 4 | R166: 52 | S166: 1 | T166: 5 | U166: 1 | V166: 52 | W166: 0 | X166: 1 | Y166: No Info Available | Z166: No Info Available | AA166: 2.51 | AB166: 56.82230124 | AC166: 1 | AD166: 0 | AE166: 0 | AF166: 0 | AG166: slow | AO166: Chaperonin Class
A167: P0ACB2 | B167: hemB | C167: ['cytosol'] | D167: ['HemB.8'] | E167: ['Zn2+'] | F167: Y | G167: 3626 | H167: 35.625 | I167: 0.214502206 | J167: 8 | K167: 1 | L167: 5.146 | M167: ['TIM beta/alpha-barrel'] | N167: ['4-319'] | O167: 1 | P167: 1 | Q167: 0 | R167: 12 | S167: 0 | T167: 0 | U167: 2 | V167: 14 | W167: 0 | X167: 2 | Y167: III | Z167: IV | AA167: 10 | AB167: 63.55140967 | AC167: 0 | AD167: 1 | AE167: 0 | AF167: 0 | AG167: * | AH167: fast | AO167: I | AP167: =COUNTIFS(AE:AE,"1",$Y:$Y,AO167) -> 5 | AQ167: =COUNTIFS(AC:AC,"1",$Y:$Y,AO167) -> 5 | AR167: =COUNTIFS(AD:AD,"1",$Y:$Y,AO167) -> 3 | AS167: =COUNTIFS(AF:AF,"1",$Y:$Y,AO167) -> 17 | AU167: =SUM(AP167:AS167)*AP$6 -> 22.29007634 | AV167: =SUM(AP167:AS167)*AQ$6 -> 2.290076336 | AW167: =SUM(AP167:AS167)*AR$6 -> 1.41221374 | AX167: =SUM(AP167:AS167)*AS$6 -> 4.007633588 | AZ167: =_xlfn.CHISQ.TEST(AP167:AS167,AU167:AX167) -> 4.543350551e-13
A168: P0A8N3 | B168: lysS | C168: ['cytosol'] | D168: ['LysS.2'] | E168: None | F168: N | G168: 15890 | H168: 57.603 | I168: 1.519910762 | J168: 2 | K168: 1 | L168: 4.991 | M168: ['Class II aaRS and biotin synthetases', 'OB-fold'] | N168: ['162-502', '13-155'] | O168: 2 | P168: 2 | Q168: 0 | R168: 22 | S168: 0 | T168: 0 | U168: 2 | V168: 28 | W168: 1 | X168: 3 | Y168: No Info Available | Z168: No Info Available | AA168: 3.62 | AB168: 45.53726487 | AC168: 0 | AD168: 1 | AE168: 0 | AF168: 0 | AG168: * | AH168: fast | AO168: II | AP168: =COUNTIFS(AE:AE,"1",$Y:$Y,AO168) -> 46 | AQ168: =COUNTIFS(AC:AC,"1",$Y:$Y,AO168) -> 6 | AR168: =COUNTIFS(AD:AD,"1",$Y:$Y,AO168) -> 4 | AS168: =COUNTIFS(AF:AF,"1",$Y:$Y,AO168) -> 8 | AU168: =SUM(AP168:AS168)*AP$6 -> 47.55216285 | AV168: =SUM(AP168:AS168)*AQ$6 -> 4.885496183 | AW168: =SUM(AP168:AS168)*AR$6 -> 3.012722646 | AX168: =SUM(AP168:AS168)*AS$6 -> 8.549618321 | AZ168: =_xlfn.CHISQ.TEST(AP168:AS168,AU168:AX168) -> 0.8816890888
A169: P05020 | B169: pyrC | C169: ['cytosol'] | D169: ['PyrC.2'] | E169: ['Zn2+'] | F169: N | G169: 4309 | H169: 38.827 | I169: 0.277817386 | J169: 2 | K169: 1 | L169: 5.892 | M169: ['TIM beta/alpha-barrel'] | N169: ['8-347'] | O169: 1 | P169: 1 | Q169: 0 | R169: 9 | S169: 0 | T169: 0 | U169: 1 | V169: 11 | W169: 1 | X169: 2 | Y169: II | Z169: IV | AA169: 3.68 | AB169: 46.95748677 | AC169: 0 | AD169: 1 | AE169: 0 | AF169: 0 | AG169: * | AH169: fast | AO169: I or II | AP169: =COUNTIFS(AE:AE,"1",$Y:$Y,AO169) -> 0 | AQ169: =COUNTIFS(AC:AC,"1",$Y:$Y,AO169) -> 0 | AR169: =COUNTIFS(AD:AD,"1",$Y:$Y,AO169) -> 1 | AS169: =COUNTIFS(AF:AF,"1",$Y:$Y,AO169) -> 1 | AU169: =SUM(AP169:AS169)*AP$6 -> 1.486005089 | AV169: =SUM(AP169:AS169)*AQ$6 -> 0.1526717557 | AW169: =SUM(AP169:AS169)*AR$6 -> 0.0941475827 | AX169: =SUM(AP169:AS169)*AS$6 -> 0.2671755725 | AZ169: 0.006233408111
A170: P64624 | B170: yheO | C170: ['cytosol'] | D170: Monomer | E170: None | F170: N | G170: 676 | H170: 26.821 | I170: 0.030107227 | J170: 1 | K170: 1 | L170: 5.345 | M170: Unknown | O170: 0 | P170: 0 | Q170: 0 | R170: 3 | S170: 0 | T170: 0 | U170: 0 | V170: 6 | W170: 2 | X170: 2 | Y170: No Info Available | Z170: No Info Available | AA170: 19.17 | AB170: No Info Available | AC170: 0 | AD170: 1 | AE170: 0 | AF170: 0 | AG170: * | AH170: fast | AO170: III- | AP170: =COUNTIFS(AE:AE,"1",$Z:$Z,AO170) -> 12 | AQ170: =COUNTIFS(AC:AC,"1",$Z:$Z,AO170) -> 0 | AR170: =COUNTIFS(AD:AD,"1",$Z:$Z,AO170) -> 1 | AS170: =COUNTIFS(AF:AF,"1",$Z:$Z,AO170) -> 1 | AU170: =SUM(AP170:AS170)*AP$6 -> 10.40203562 | AV170: =SUM(AP170:AS170)*AQ$6 -> 1.06870229 | AW170: =SUM(AP170:AS170)*AR$6 -> 0.6590330789 | AX170: =SUM(AP170:AS170)*AS$6 -> 1.870229008 | AZ170: 0.5943740179
A171: P45565 | B171: ais | C171: ['periplasmic space'] | D171: Monomer | E171: None | F171: N | G171: 112 | H171: 22.257 | I171: 0.004139365 | J171: 1 | K171: 1 | L171: 9.171 | M171: ['Phosphoglycerate mutase-like'] | N171: ['56-180'] | O171: 1 | P171: 1 | Q171: 0 | R171: 10 | S171: 0 | T171: 0 | U171: 1 | V171: 7 | W171: 1 | X171: 2 | Y171: No Info Available | Z171: No Info Available | AA171: No Info Available | AB171: No Info Available | AC171: 0 | AD171: 1 | AE171: 0 | AF171: 0 | AG171: * | AH171: fast | AO171: IV | AP171: =COUNTIFS(AE:AE,"1",$Z:$Z,AO171) -> 15 | AQ171: =COUNTIFS(AC:AC,"1",$Z:$Z,AO171) -> 4 | AR171: =COUNTIFS(AD:AD,"1",$Z:$Z,AO171) -> 3 | AS171: =COUNTIFS(AF:AF,"1",$Z:$Z,AO171) -> 2 | AU171: =SUM(AP171:AS171)*AP$6 -> 17.83206107 | AV171: =SUM(AP171:AS171)*AQ$6 -> 1.832061069 | AW171: =SUM(AP171:AS171)*AR$6 -> 1.129770992 | AX171: =SUM(AP171:AS171)*AS$6 -> 3.20610687 | AZ171: 0.08713818634
A172: P0A8A0 | B172: yebC | C172: ['cytosol'] | D172: Monomer | E172: None | F172: N | G172: 13702 | H172: 26.423 | I172: 0.601194749 | J172: 1 | K172: 1 | L172: 4.573 | M172: ['YebC-like'] | N172: ['3-244'] | O172: 1 | P172: 1 | Q172: 0 | R172: 11 | S172: 0 | T172: 0 | U172: 1 | V172: 11 | W172: 1 | X172: 2 | Y172: No Info Available | Z172: No Info Available | AA172: No Info Available | AB172: 46.34389313 | AC172: 0 | AD172: 1 | AE172: 0 | AF172: 0 | AG172: * | AH172: fast | AO172: I | AP172: =AP167/(AP167+AQ167+AR167+AS167) -> 0.1666666667 | AQ172: =AQ167/(AP167+AQ167+AR167+AS167) -> 0.1666666667 | AR172: =AR167/(AP167+AQ167+AR167+AS167) -> 0.1 | AS172: =AS167/(AP167+AQ167+AR167+AS167) -> 0.5666666667
A173: P0AD59 | B173: ivy | C173: ['periplasmic space'] | D173: ['Ivy.2'] | E173: None | F173: N | G173: 1324 | H173: 16.872 | I173: 0.037093998 | J173: 2 | K173: 1 | L173: 6.454 | M173: ['Inhibitor of vertebrate lysozyme, Ivy'] | N173: ['31-156'] | O173: 1 | P173: 1 | Q173: 0 | R173: 7 | S173: 0 | T173: 0 | U173: 0 | V173: 10 | W173: 2 | X173: 2 | Y173: No Info Available | Z173: No Info Available | AA173: 3.46 | AB173: 50.47103239 | AC173: 0 | AD173: 1 | AE173: 0 | AF173: 0 | AG173: * | AH173: slow | AO173: II | AP173: =AP168/(AP168+AQ168+AR168+AS168) -> 0.71875 | AQ173: =AQ168/(AP168+AQ168+AR168+AS168) -> 0.09375 | AR173: =AR168/(AP168+AQ168+AR168+AS168) -> 0.0625 | AS173: =AS168/(AP168+AQ168+AR168+AS168) -> 0.125
A174: P0ABD5 | B174: accA | C174: ['cytosol'] | D174: ['AccA.2', 'AccD.2'] | E174: None | F174: Y | G174: 10155 | H174: 35.242 | I174: 0.59427788 | J174: 4 | K174: 2 | L174: 5.768 | M174: ['ClpP/crotonase'] | N174: ['5-318'] | O174: 1 | P174: 1 | Q174: 1 | R174: 20 | S174: 0 | T174: 1 | U174: 4 | V174: 18 | W174: 0 | X174: 4 | Y174: II | Z174: No Info Available | AA174: 6.72 | AB174: No Info Available | AC174: 0 | AD174: 1 | AE174: 0 | AF174: 0 | AH174: fast | AO174: I or II | AP174: 0 | AQ174: 0 | AR174: 0.5 | AS174: 0.5
A175: P04128 | B175: fimA | C175: ['extracellular space', 'pilus'] | D175: ['FimA.', 'FimF.', 'FimG.', 'FimH.'] | E175: None | F175: N | G175: 14269 | H175: 18.111 | I175: 0.429126228 | J175: 4 | K175: 4 | L175: 4.989 | M175: ['Common fold of diphtheria toxin/transcription factors/cytochrome f'] | N175: ['32-182'] | O175: 1 | P175: 1 | Q175: 1 | R175: 42 | S175: 0 | T175: 1 | U175: 3 | V175: 45 | W175: 2 | X175: 5 | Y175: No Info Available | Z175: No Info Available | AA175: No Info Available | AB175: No Info Available | AC175: 0 | AD175: 1 | AE175: 0 | AF175: 0 | AH175: fast | AO175: III- | AP175: 0.8571428571 | AQ175: 0 | AR175: 0.07142857143 | AS175: 0.07142857143
A176: P0A998 | B176: ftnA | C176: ['cytosol'] | D176: ['FtnA.24'] | E176: None | F176: N | G176: 6077 | H176: 19.424 | I176: 0.196009444 | J176: 24 | K176: 1 | L176: 4.637 | M176: ['Ferritin-like'] | N176: ['4-158'] | O176: 1 | P176: 1 | Q176: 0 | R176: 10 | S176: 0 | T176: 0 | U176: 2 | V176: 12 | W176: 0 | X176: 2 | Y176: No Info Available | Z176: No Info Available | AA176: No Info Available | AB176: No Info Available | AC176: 0 | AD176: 1 | AE176: 0 | AF176: 0 | AH176: fast | AO176: IV | AP176: 0.625 | AQ176: 0.1666666667 | AR176: 0.125 | AS176: 0.08333333333
A177: P0AET2 | B177: hdeB | C177: ['periplasmic space'] | D177: ['HdeB.2'] | E177: None | F177: N | G177: 191 | H177: 12.043 | I177: 0.003819593 | J177: 2 | K177: 1 | L177: 5.738 | M177: Unknown | O177: 0 | P177: 0 | Q177: 0 | R177: 4 | S177: 0 | T177: 0 | U177: 1 | V177: 6 | W177: 1 | X177: 2 | Y177: No Info Available | Z177: No Info Available | AA177: 10.44 | AB177: 56.82532444 | AC177: 0 | AD177: 1 | AE177: 0 | AF177: 0 | AH177: fast
A178: P18196 | B178: minC | C178: ['cytosol'] | D178: ['MinD.2', 'MinC.2'] | E178: None | F178: N | G178: 857 | H178: 24.775 | I178: 0.035256856 | J178: 4 | K178: 2 | L178: 6.551 | M178: ['Single-stranded right-handed beta-helix'] | N178: ['125-230'] | O178: 1 | P178: 1 | Q178: 0 | R178: 6 | S178: 0 | T178: 0 | U178: 2 | V178: 7 | W178: 0 | X178: 2 | Y178: No Info Available | Z178: No Info Available | AA178: 9.52 | AB178: No Info Available | AC178: 0 | AD178: 1 | AE178: 0 | AF178: 0 | AH178: fast | AO178: DnaK enrichment level
A179: P31057 | B179: panB | C179: ['cytosol'] | D179: ['PanB.10'] | E179: ['Mg2+'] | F179: N | G179: 7878 | H179: 28.237 | I179: 0.369388713 | J179: 10 | K179: 1 | L179: 5.05 | M179: ['TIM beta/alpha-barrel'] | N179: ['9-263'] | O179: 1 | P179: 1 | Q179: 0 | R179: 21 | S179: 0 | T179: 0 | U179: 2 | V179: 21 | W179: 1 | X179: 3 | Y179: I | Z179: No Info Available | AA179: No Info Available | AB179: No Info Available | AC179: 0 | AD179: 1 | AE179: 0 | AF179: 0 | AH179: fast | AO179: 2to3 | AP179: =COUNTIFS(AE:AE,"1",$AA:$AA,">2",$AA:$AA,"<3") -> 21 | AQ179: =COUNTIFS(AC:AC,"1",$AA:$AA,">2",$AA:$AA,"<3") -> 2 | AR179: =COUNTIFS(AD:AD,"1",$AA:$AA,">2",$AA:$AA,"<3") -> 1 | AS179: =COUNTIFS(AF:AF,"1",$AA:$AA,">2",$AA:$AA,"<3") -> 6 | AU179: =SUM(AP179:AS179)*AP$6 -> 22.29007634 | AV179: =SUM(AP179:AS179)*AQ$6 -> 2.290076336 | AW179: =SUM(AP179:AS179)*AR$6 -> 1.41221374 | AX179: =SUM(AP179:AS179)*AS$6 -> 4.007633588 | AZ179: =_xlfn.CHISQ.TEST(AP179:AS179,AU179:AX179) -> 0.7476798897
A180: P0A717 | B180: prs | C180: ['cytosol'] | D180: ['Prs.6'] | E180: None | F180: Y | G180: 19750 | H180: 34.218 | I180: 1.122201416 | J180: 6 | K180: 1 | L180: 5.116 | M180: ['PRTase-like'] | N180: ['69-306'] | O180: 1 | P180: 1 | Q180: 0 | R180: 16 | S180: 1 | T180: 1 | U180: 3 | V180: 20 | W180: 0 | X180: 3 | Y180: II | Z180: No Info Available | AA180: No Info Available | AB180: 43.85328594 | AC180: 0 | AD180: 1 | AE180: 0 | AF180: 0 | AH180: fast | AO180: 3to5 | AP180: =COUNTIFS(AE:AE,"1",$AA:$AA,">3",$AA:$AA,"<5") -> 73 | AQ180: =COUNTIFS(AC:AC,"1",$AA:$AA,">3",$AA:$AA,"<5") -> 11 | AR180: =COUNTIFS(AD:AD,"1",$AA:$AA,">3",$AA:$AA,"<5") -> 7 | AS180: =COUNTIFS(AF:AF,"1",$AA:$AA,">3",$AA:$AA,"<5") -> 26 | AU180: =SUM(AP180:AS180)*AP$6 -> 86.93129771 | AV180: =SUM(AP180:AS180)*AQ$6 -> 8.93129771 | AW180: =SUM(AP180:AS180)*AR$6 -> 5.507633588 | AX180: =SUM(AP180:AS180)*AS$6 -> 15.62977099 | AZ180: =_xlfn.CHISQ.TEST(AP180:AS180,AU180:AX180) -> 0.01859436205
A181: P0A7E5 | B181: pyrG | C181: ['cytosol'] | D181: ['PyrG.4'] | E181: ['Mg2+'] | F181: Y | G181: 14494 | H181: 60.374 | I181: 1.453072548 | J181: 4 | K181: 1 | L181: 5.668 | M181: ['P-loop containing nucleoside triphosphate hydrolases', 'Flavodoxin-like', ''] | N181: ['3-269', '291-385+435-538', '289-542'] | O181: 3 | P181: 3 | Q181: 0 | R181: 21 | S181: 0 | T181: 0 | U181: 3 | V181: 30 | W181: 1 | X181: 4 | Y181: No Info Available | Z181: No Info Available | AA181: 3.04 | AB181: 48.56250298 | AC181: 0 | AD181: 1 | AE181: 0 | AF181: 0 | AH181: fast | AO181: 5to10 | AP181: =COUNTIFS(AE:AE,"1",$AA:$AA,">5",$AA:$AA,"<10") -> 113 | AQ181: =COUNTIFS(AC:AC,"1",$AA:$AA,">5",$AA:$AA,"<10") -> 15 | AR181: =COUNTIFS(AD:AD,"1",$AA:$AA,">5",$AA:$AA,"<10") -> 8 | AS181: =COUNTIFS(AF:AF,"1",$AA:$AA,">5",$AA:$AA,"<10") -> 31 | AU181: =SUM(AP181:AS181)*AP$6 -> 124.0814249 | AV181: =SUM(AP181:AS181)*AQ$6 -> 12.7480916 | AW181: =SUM(AP181:AS181)*AR$6 -> 7.861323155 | AX181: =SUM(AP181:AS181)*AS$6 -> 22.30916031 | AZ181: 0.1889913538
A182: P0AA10 | B182: rplM | C182: ['cytosol', 'ribosome'] | D182: ['RrlA.', 'RrfA.', 'RplA.', 'RplB.', 'RplC.', 'RplD.', 'RplE.', 'RplF.', 'RplJ.', 'RplL.2.2.', 'RplI.', 'RplK.', 'RplM.', 'RplN.', 'RplO.', 'RplP.', 'RplQ.', 'RplR.', 'RplS.', 'RplT.', 'RplU.', 'RplV.', 'RplW.', 'RplX.', 'RplY.', 'RpmA.', 'RpmB.', 'RpmC.', 'RpmD.', 'RpmE.', 'RpmF.', 'RpmG.', 'RpmH.', 'RpmI.', 'RpmJ.'] | E182: None | F182: Y | G182: 119510 | H182: 16.019 | I182: 3.178986901 | J182: 38 | K182: 35 | L182: 10.158 | M182: ['Ribosomal protein L13'] | N182: ['1-140'] | O182: 1 | P182: 1 | Q182: 0 | R182: 15 | S182: 0 | T182: 0 | U182: 3 | V182: 19 | W182: 0 | X182: 3 | Y182: No Info Available | Z182: No Info Available | AA182: 4.14 | AB182: 55.40448375 | AC182: 0 | AD182: 1 | AE182: 0 | AF182: 0 | AH182: fast | AO182: >10 | AP182: =COUNTIFS(AE:AE,"1",$AA:$AA,">10") -> 22 | AQ182: =COUNTIFS(AC:AC,"1",$AA:$AA,">10") -> 5 | AR182: =COUNTIFS(AD:AD,"1",$AA:$AA,">10") -> 3 | AS182: =COUNTIFS(AF:AF,"1",$AA:$AA,">10") -> 4 | AU182: =SUM(AP182:AS182)*AP$6 -> 25.26208651 | AV182: =SUM(AP182:AS182)*AQ$6 -> 2.595419847 | AW182: =SUM(AP182:AS182)*AR$6 -> 1.600508906 | AX182: =SUM(AP182:AS182)*AS$6 -> 4.541984733 | AZ182: 0.2683036994
A183: P00448 | B183: sodA | C183: ['cytosol'] | D183: ['SodA.2'] | E183: ['Mn2+'] | F183: N | G183: 50220 | H183: 23.097 | I183: 1.926111274 | J183: 2 | K183: 1 | L183: 6.669 | M183: ['Fe,Mn superoxide dismutase (SOD), C-terminal domain', 'Long alpha-hairpin'] | N183: ['95-204', '1-90'] | O183: 2 | P183: 2 | Q183: 1 | R183: 15 | S183: 0 | T183: 1 | U183: 2 | V183: 17 | W183: 1 | X183: 3 | Y183: No Info Available | Z183: No Info Available | AA183: 4.38 | AB183: 66.59469534 | AC183: 0 | AD183: 1 | AE183: 0 | AF183: 0 | AH183: fast | AO183: No Info | AP183: =COUNTIFS(AE:AE,"1",$AA:$AA,"No Info Available") -> 353 | AQ183: =COUNTIFS(AC:AC,"1",$AA:$AA,"No Info Available") -> 27 | AR183: =COUNTIFS(AD:AD,"1",$AA:$AA,"No Info Available") -> 17 | AS183: =COUNTIFS(AF:AF,"1",$AA:$AA,"No Info Available") -> 38 | AU183: =SUM(AP183:AS183)*AP$6 -> 323.2061069 | AV183: =SUM(AP183:AS183)*AQ$6 -> 33.20610687 | AW183: =SUM(AP183:AS183)*AR$6 -> 20.47709924 | AX183: =SUM(AP183:AS183)*AS$6 -> 58.11068702 | AZ183: 0.009496477266
A184: P0A836 | B184: sucC | C184: ['cytosol'] | D184: ['SucD.2', 'SucC.2'] | E184: ['Mg2'] | F184: N | G184: 5335 | H184: 41.393 | I184: 0.366699584 | J184: 4 | K184: 2 | L184: 5.273 | M184: ['ATP-grasp', 'Flavodoxin-like'] | N184: ['1-238', '239-385'] | O184: 2 | P184: 2 | Q184: 0 | R184: 20 | S184: 1 | T184: 1 | U184: 3 | V184: 23 | W184: 0 | X184: 3 | Y184: No Info Available | Z184: No Info Available | AA184: 3.29 | AB184: 50.69302832 | AC184: 0 | AD184: 1 | AE184: 0 | AF184: 0 | AH184: fast | AO184: 2to3 | AP184: =AP179/(AP179+AQ179+AR179+AS179) -> 0.7 | AQ184: =AQ179/(AP179+AQ179+AR179+AS179) -> 0.06666666667 | AR184: =AR179/(AP179+AQ179+AR179+AS179) -> 0.03333333333 | AS184: =AS179/(AP179+AQ179+AR179+AS179) -> 0.2
A185: P0A870 | B185: talB | C185: ['cytosol'] | D185: ['TalB.2'] | E185: None | F185: N | G185: 19464 | H185: 35.219 | I185: 1.138303856 | J185: 2 | K185: 1 | L185: 4.972 | M185: ['TIM beta/alpha-barrel'] | N185: ['8-308'] | O185: 1 | P185: 1 | Q185: 0 | R185: 31 | S185: 0 | T185: 0 | U185: 5 | V185: 32 | W185: 1 | X185: 6 | Y185: No Info Available | Z185: No Info Available | AA185: 7.7 | AB185: 49.50186698 | AC185: 0 | AD185: 1 | AE185: 0 | AF185: 0 | AH185: fast | AO185: 3to5 | AP185: =AP180/(AP180+AQ180+AR180+AS180) -> 0.6239316239 | AQ185: =AQ180/(AP180+AQ180+AR180+AS180) -> 0.09401709402 | AR185: =AR180/(AP180+AQ180+AR180+AS180) -> 0.05982905983 | AS185: =AS180/(AP180+AQ180+AR180+AS180) -> 0.2222222222
A186: P00954 | B186: trpS | C186: ['cytosol'] | D186: ['TrpS.2'] | E186: ['Mg2+'] | F186: Y | G186: 7805 | H186: 37.438 | I186: 0.485215469 | J186: 2 | K186: 1 | L186: 6.416 | M186: ['Adenine nucleotide alpha hydrolase-like'] | N186: ['5-330'] | O186: 1 | P186: 1 | Q186: 1 | R186: 9 | S186: 0 | T186: 1 | U186: 2 | V186: 14 | W186: 1 | X186: 3 | Y186: No Info Available | Z186: No Info Available | AA186: 5.99 | AB186: 44.62947249 | AC186: 0 | AD186: 1 | AE186: 0 | AF186: 0 | AH186: fast | AO186: 5to10 | AP186: 0.6766467066 | AQ186: 0.08982035928 | AR186: 0.04790419162 | AS186: 0.1856287425
A187: P14900 | B187: murD | C187: ['cytosol'] | D187: Monomer | E187: ['K+', 'Mg2+'] | F187: Y | G187: 885 | H187: 46.974 | I187: 0.069031912 | J187: 1 | K187: 1 | L187: 5.056 | M187: ['Ribokinase-like', 'MurD-like peptide ligases, peptide-binding domain', 'MurCD N-terminal domain'] | N187: ['95-297', '299-437', '3-94'] | O187: 3 | P187: 3 | Q187: 0 | R187: 8 | S187: 0 | T187: 0 | U187: 1 | V187: 9 | W187: 1 | X187: 2 | Y187: No Info Available | Z187: No Info Available | AA187: No Info Available | AB187: 48.60396665 | AC187: 0 | AD187: 1 | AE187: 0 | AF187: 0 | AH187: fast | AO187: >10 | AP187: 0.6470588235 | AQ187: 0.1470588235 | AR187: 0.08823529412 | AS187: 0.1176470588
A188: P0AA43 | B188: rsuA | C188: ['cytosol'] | D188: Monomer | E188: None | F188: N | G188: 2485 | H188: 25.865 | I188: 0.106730358 | J188: 1 | K188: 1 | L188: 5.874 | M188: ['Pseudouridine synthase', 'Alpha-L RNA-binding motif'] | N188: ['61-227', '1-55'] | O188: 2 | P188: 2 | Q188: 0 | R188: 9 | S188: 0 | T188: 0 | U188: 2 | V188: 11 | W188: 0 | X188: 2 | Y188: No Info Available | Z188: No Info Available | AA188: No Info Available | AB188: 44.96898093 | AC188: 0 | AD188: 1 | AE188: 0 | AF188: 0 | AH188: fast | AO188: No Info | AP188: 0.8114942529 | AQ188: 0.06206896552 | AR188: 0.03908045977 | AS188: 0.08735632184
A189: P0AAX8 | B189: ybiS | C189: ['periplasmic space'] | D189: Monomer | E189: None | F189: N | G189: 4910 | H189: 33.325 | I189: 0.271706946 | J189: 1 | K189: 1 | L189: ? | M189: ['L,D-transpeptidase catalytic domain-like'] | N189: ['99-149+177-233'] | O189: 1 | P189: 1 | Q189: 0 | R189: 17 | S189: 0 | T189: 0 | U189: 1 | V189: 16 | W189: 2 | X189: 3 | Y189: No Info Available | Z189: No Info Available | AA189: 7.49 | AB189: 47.00897337 | AC189: 0 | AD189: 1 | AE189: 0 | AF189: 0 | AH189: fast
A190: P68066 | B190: grcA | C190: ['cytosol'] | D190: Monomer | E190: None | F190: N | G190: 7560 | H190: 14.284 | I190: 0.179316696 | J190: 1 | K190: 1 | L190: 4.964 | M190: ['PFL-like glycyl radical enzymes'] | N190: ['64-126'] | O190: 1 | P190: 1 | Q190: 0 | R190: 27 | S190: 0 | T190: 0 | U190: 2 | V190: 38 | W190: 0 | X190: 2 | Y190: No Info Available | Z190: No Info Available | AA190: No Info Available | AB190: No Info Available | AC190: 0 | AD190: 1 | AE190: 0 | AF190: 0 | AH190: fast
A191: P0A850 | B191: tig | C191: ['cytosol'] | D191: Monomer | E191: None | F191: N | G191: 69639 | H191: 48.193 | I191: 5.572955543 | J191: 1 | K191: 1 | L191: 4.685 | M191: ['Triger factor/SurA peptide-binding domain-like', 'Ribosome binding domain-like', 'FKBP-like'] | N191: ['248-429', '1-131', '97-241'] | O191: 3 | P191: 3 | Q191: 0 | R191: 65 | S191: 0 | T191: 0 | U191: 3 | V191: 76 | W191: 1 | X191: 4 | Y191: I | Z191: No Info Available | AA191: 5.41 | AB191: 45.71340568 | AC191: 0 | AD191: 1 | AE191: 0 | AF191: 0 | AH191: fast
A192: P18843 | B192: nadE | C192: ['cytosol'] | D192: ['NadE.2'] | E192: ['Mg2+'] | F192: Y | G192: 3352 | H192: 30.637 | I192: 0.170529429 | J192: 2 | K192: 1 | L192: 5.319 | M192: ['Adenine nucleotide alpha hydrolase-like'] | N192: ['3-273'] | O192: 1 | P192: 1 | Q192: 0 | R192: 10 | S192: 1 | T192: 1 | U192: 2 | V192: 12 | W192: 1 | X192: 3 | Y192: No Info Available | Z192: No Info Available | AA192: 2.96 | AB192: 45.09358488 | AC192: 0 | AD192: 1 | AE192: 0 | AF192: 0 | AH192: N/A
A193: P0A9P0 | B193: lpdA | C193: ['inner membrane', 'cytosol'] | D193: ['SucA.12.', 'SucB.24.', 'Lpd.2.'] | E193: ['FAD'] | F193: N | G193: 44872 | H193: 50.688 | I193: 3.776849446 | J193: 38 | K193: 3 | L193: 5.876 | M193: ['FAD/NAD(P)-binding domain', 'CO dehydrogenase flavoprotein C-domain-like'] | N193: ['2-338', '347-459'] | O193: 2 | P193: 2 | Q193: 1 | R193: 24 | S193: 0 | T193: 1 | U193: 3 | V193: 31 | W193: 2 | X193: 5 | Y193: I or II | Z193: No Info Available | AA193: No Info Available | AB193: No Info Available | AC193: 0 | AD193: 1 | AE193: 0 | AF193: 0 | AH193: N/A
A194: P0A910 | B194: ompA | C194: ['periplasmic space', 'outer membrane'] | D194: Monomer | E194: None | F194: N | G194: 207618 | H194: 37.201 | I194: 12.82533471 | J194: 1 | K194: 1 | L194: 6.115 | M194: ['Transmembrane beta-barrels', 'Bacillus chorismate mutase-like'] | N194: ['22-195', '211-334'] | O194: 2 | P194: 2 | Q194: 0 | R194: 38 | S194: 1 | T194: 1 | U194: 2 | V194: 39 | W194: 1 | X194: 3 | Y194: I | Z194: No Info Available | AA194: 9.18 | AB194: No Info Available | AC194: 0 | AD194: =IF(OR(AND(T194=0,R194>1,X194>2,V194>1),AND(T194=0,R194>1,X194=2,V194>1),AND(T194=1,R194>1,X194>2,V194>1)),1,0) -> 1 | AE194: =IF(AND(T194<2,R194>1,X194<2,V194>1),1,0) -> 0 | AF194: =IF(AND(T194>1,R194>1,X194>1,V194>1),1,0) -> 0 | AH194: N/A
A195: P00579 | B195: rpoD | C195: ['cytosol'] | D195: ['RpoA.2', 'RpoC.', 'RpoB.', 'RpoD.'] | E195: None | F195: Y | G195: 11809 | H195: 70.263 | I195: 1.377808634 | J195: 5 | K195: 4 | L195: 4.542 | M195: ['Sigma2 domain of RNA polymerase sigma factors', 'DNA/RNA-binding 3-helical bundle', 'DNA/RNA-binding 3-helical bundle', 'DNA/RNA-binding 3-helical bundle', '', ''] | N195: ['113-446', '545-601', '8-64', '452-525', '356-612', '5-165'] | O195: 6 | P195: 3 | Q195: 0 | R195: 17 | S195: 0 | T195: 0 | U195: 1 | V195: 38 | W195: 1 | X195: 2 | Y195: No Info Available | Z195: No Info Available | AA195: No Info Available | AB195: 42.56101383 | AC195: =IF(OR(AND(T195>2,R195>1,X195=0,V195>1),AND(T195>2,R195>1,X195=1,V195>1),AND(T195=2,R195>1,X195=0,V195>1)),1,0) -> 0 | AD195: 1 | AE195: 0 | AF195: 0 | AH195: slow
A196: P0A7V0 | B196: rpsB | C196: ['ribosome'] | D196: ['RrsA.', 'RpsA.', 'RpsB.', 'RpsC.', 'RpsD.', 'RpsE.', 'RpsF.', 'RpsG.', 'RpsH.', 'RpsI.', 'RpsJ.', 'RpsK.', 'RpsL.', 'RpsM.', 'RpsN.', 'RpsO.', 'RpsP.', 'RpsQ.', 'RpsR.', 'RpsS.', 'RpsT.', 'RpsU.', 'Sra.'] | E196: None | F196: Y | G196: 143643 | H196: 26.744 | I196: 6.379107502 | J196: 23 | K196: 23 | L196: 6.815 | M196: ['Flavodoxin-like'] | N196: ['6-235'] | O196: 1 | P196: 1 | Q196: 0 | R196: 30 | S196: 0 | T196: 0 | U196: 2 | V196: 33 | W196: 0 | X196: 2 | Y196: No Info Available | Z196: No Info Available | AA196: No Info Available | AB196: 53.49044875 | AC196: 0 | AD196: 1 | AE196: 0 | AF196: 0 | AH196: slow
A197: P0AG86 | B197: secB | C197: ['cytosol'] | D197: ['SecB.4'] | E197: None | F197: N | G197: 21205 | H197: 17.277 | I197: 0.608353065 | J197: 4 | K197: 1 | L197: 4.116 | M197: ['SecB-like'] | N197: ['2-141'] | O197: 1 | P197: 1 | Q197: 1 | R197: 15 | S197: 0 | T197: 1 | U197: 3 | V197: 18 | W197: 1 | X197: 4 | Y197: No Info Available | Z197: No Info Available | AA197: 14.37 | AB197: 58.68830861 | AC197: 0 | AD197: 1 | AE197: 0 | AF197: 0 | AH197: slow
A198: P23721 | B198: serC | C198: ['cytosol'] | D198: ['SerC.2'] | E198: ["pyridoxal 5'-phosphate"] | F198: N | G198: 3643 | H198: 39.783 | I198: 0.240661041 | J198: 2 | K198: 1 | L198: 5.297 | M198: ['PLP-dependent transferase-like'] | N198: ['4-362'] | O198: 1 | P198: 1 | Q198: 0 | R198: 18 | S198: 0 | T198: 0 | U198: 0 | V198: 20 | W198: 2 | X198: 2 | Y198: II | Z198: IV | AA198: 5.76 | AB198: 59.91849569 | AC198: 0 | AD198: 1 | AE198: 0 | AF198: 0 | AH198: slow
A199: P0A847 | B199: tgt | C199: ['cytosol'] | D199: ['Tgt.3'] | E199: ['Zn2+'] | F199: N | G199: 8185 | H199: 42.594 | I199: 0.578916864 | J199: 3 | K199: 1 | L199: 6.076 | M199: ['TIM beta/alpha-barrel'] | N199: ['1-364'] | O199: 1 | P199: 1 | Q199: 0 | R199: 18 | S199: 1 | T199: 1 | U199: 1 | V199: 24 | W199: 2 | X199: 3 | Y199: No Info Available | Z199: No Info Available | AA199: No Info Available | AB199: 46.33985102 | AC199: 0 | AD199: 1 | AE199: 0 | AF199: 0 | AH199: slow
A200: P76373 | B200: ugd | C200: ['cytosol'] | D200: ['Ugd.2'] | E200: None | F200: N | G200: 26 | H200: 43.657 | I200: 0.001884848 | J200: 2 | K200: 1 | L200: 6.146 | M200: ['NAD(P)-binding Rossmann-fold domains', '6-phosphogluconate dehydrogenase C-terminal domain-like', 'Adenine nucleotide alpha hydrolase-like'] | N200: ['1-194', '191-287', '283-387'] | O200: 3 | P200: 3 | Q200: 0 | R200: 12 | S200: 0 | T200: 0 | U200: 1 | V200: 27 | W200: 2 | X200: 3 | Y200: No Info Available | Z200: No Info Available | AA200: No Info Available | AB200: No Info Available | AC200: 0 | AD200: 1 | AE200: 0 | AF200: 0 | AH200: slow
... 1488 more rows

Sheet CD_vs_CG_R2h_LFQ
A1: Accession | B1: GeneName | C1: Location | D1: Composition | E1: Cofactors | F1: Essential? | G1: Copy Number | H1: Molecular Weight | I1: Amount (fg) | J1: Num Subunits | K1: Unique Subunits | L1: pI | M1: Folds | N1: Domain Ranges | O1: Num Domains | P1: Unique Domains | Q1: SigPeptides1 | R1: TotPeptides1 | S1: AonPeptides1 | T1: AllSigPeptides1 | U1: SigPeptides2 | V1: TotPeptides2 | W1: AonPeptides2 | X1: AllSigPeptides2 | Y1: Hartl class | Z1: Teguchi subclass | AA1: DnaK_Enrichment | AB1: Picotti Tm | AC1: GroEL_fastidious | AD1: DnaK_fastidious | AE1: Refoldable | AF1: Chaperone Non-Refolder | AN1: OverallTotal | AO1: =SUM(AO5:AR5) -> 747
A2: P31119 | B2: aas | C2: ['inner membrane'] | D2: Monomer | E2: ['Mg2+'] | F2: N | G2: 188 | H2: 80.7 | I2: 0.025193034 | J2: 1 | K2: 1 | L2: 9.443 | M2: ['Acetyl-CoA synthetase-like', 'Glycerol-3-phosphate (1)-acyltransferase'] | N2: ['219-712', '3-170'] | O2: 2 | P2: 2 | Q2: 0 | R2: 1 | S2: 0 | T2: 0 | U2: 0 | V2: 0 | W2: 0 | X2: 0 | Y2: No Info Available | Z2: No Info Available | AA2: No Info Available | AB2: No Info Available | AC2: =IF(OR(AND(T2>2,R2>1,X2=0,V2>1),AND(T2>2,R2>1,X2=1,V2>1),AND(T2=2,R2>1,X2=0,V2>1)),1,0) -> 0 | AD2: =IF(OR(AND(T2=0,R2>1,X2>2,V2>1),AND(T2=0,R2>1,X2=2,V2>1),AND(T2=1,R2>1,X2>2,V2>1)),1,0) -> 0 | AE2: =IF(AND(T2<2,R2>1,X2<2,V2>1),1,0) -> 0 | AF2: =IF(AND(T2>1,R2>1,X2>1,V2>1),1,0) -> 0 | AI2: 0 | AJ2: 1 | AK2: 2 | AL2: >2
A3: P77357 | B3: abgA | C3: ['cytosol'] | D3: ['AbgB.2', 'AbgA.2'] | E3: ['Mn2+'] | F3: N | G3: 9 | H3: 46.588 | I3: 0.000696251 | J3: 4 | K3: 2 | L3: 5.583 | M3: ['Phosphorylase/hydrolase-like', 'Ferredoxin-like'] | N3: ['2-54+94-242+341-430', '228-335'] | O3: 2 | P3: 2 | Q3: 0 | R3: 1 | S3: 0 | T3: 0 | U3: 0 | V3: 1 | W3: 0 | X3: 0 | Y3: No Info Available | Z3: No Info Available | AA3: No Info Available | AB3: No Info Available | AC3: =IF(OR(AND(T3>2,R3>1,X3=0,V3>1),AND(T3>2,R3>1,X3=1,V3>1),AND(T3=2,R3>1,X3=0,V3>1)),1,0) -> 0 | AD3: =IF(OR(AND(T3=0,R3>1,X3>2,V3>1),AND(T3=0,R3>1,X3=2,V3>1),AND(T3=1,R3>1,X3>2,V3>1)),1,0) -> 0 | AE3: =IF(AND(T3<2,R3>1,X3<2,V3>1),1,0) -> 0 | AF3: =IF(AND(T3>1,R3>1,X3>1,V3>1),1,0) -> 0 | AH3: 0 | AI3: =COUNTIFS(T:T,"0",R:R,">1",X:X,"0",V:V,">1") -> 276 | AJ3: =COUNTIFS(T:T,"0",R:R,">1",X:X,"1",V:V,">1") -> 130 | AK3: =COUNTIFS(T:T,"0",R:R,">1",X:X,"2",V:V,">1") -> 41 | AL3: =COUNTIFS(T:T,"0",R:R,">1",X:X,">2",V:V,">1") -> 27 | AO3: Refoldable | AP3: GroEL_fastidious | AQ3: DnaK_fastidious | AR3: Chaperone Non-Refolder
A4: P46133 | B4: abgT | C4: ['inner membrane'] | D4: Monomer | E4: None | F4: N | G4: ? | H4: 54.886 | I4: ? | J4: 1 | K4: 1 | L4: 9.329 | M4: Unknown | O4: 0 | P4: 0 | Q4: 0 | R4: 1 | S4: 0 | T4: 0 | U4: 0 | V4: 2 | W4: 0 | X4: 0 | Y4: No Info Available | Z4: No Info Available | AA4: No Info Available | AB4: No Info Available | AC4: 0 | AD4: 0 | AE4: 0 | AF4: 0 | AH4: 1 | AI4: =COUNTIFS(T:T,"1",R:R,">1",X:X,"0",V:V,">1") -> 61 | AJ4: =COUNTIFS(T:T,"1",R:R,">1",X:X,"1",V:V,">1") -> 38 | AK4: =COUNTIFS(T:T,"1",R:R,">1",X:X,"2",V:V,">1") -> 36 | AL4: =COUNTIFS(T:T,"1",R:R,">1",X:X,">2",V:V,">1") -> 37 | AN4: Overall
A5: P0ABD5 | B5: accA | C5: ['cytosol'] | D5: ['AccA.2', 'AccD.2'] | E5: None | F5: Y | G5: 10155 | H5: 35.242 | I5: 0.59427788 | J5: 4 | K5: 2 | L5: 5.768 | M5: ['ClpP/crotonase'] | N5: ['5-318'] | O5: 1 | P5: 1 | Q5: 0 | R5: 16 | S5: 1 | T5: 1 | U5: 2 | V5: 16 | W5: 0 | X5: 2 | Y5: II | Z5: No Info Available | AA5: 6.72 | AB5: No Info Available | AC5: 0 | AD5: 0 | AE5: 0 | AF5: 0 | AH5: 2 | AI5: =COUNTIFS(T:T,"2",R:R,">1",X:X,"0",V:V,">1") -> 11 | AJ5: =COUNTIFS(T:T,"2",R:R,">1",X:X,"1",V:V,">1") -> 22 | AK5: =COUNTIFS(T:T,"2",R:R,">1",X:X,"2",V:V,">1") -> 10 | AL5: =COUNTIFS(T:T,"2",R:R,">1",X:X,">2",V:V,">1") -> 31 | AM5: Total | AO5: =COUNTIFS(AE:AE,"1") -> 505 | AP5: =COUNTIFS(AC:AC,"1") -> 25 | AQ5: =COUNTIFS(AD:AD,"1") -> 105 | AR5: =COUNTIFS(AF:AF,"1") -> 112
A6: P0ABD8 | B6: accB | C6: ['cytosol'] | D6: Monomer | E6: None | F6: Y | G6: 34495 | H6: 16.687 | I6: 0.955836269 | J6: 1 | K6: 1 | L6: 4.474 | M6: ['Barrel-sandwich hybrid'] | N6: ['81-156'] | O6: 1 | P6: 1 | Q6: 2 | R6: 15 | S6: 0 | T6: 2 | U6: 0 | V6: 17 | W6: 1 | X6: 1 | Y6: No Info Available | Z6: No Info Available | AA6: 10.06 | AB6: No Info Available | AC6: 0 | AD6: 0 | AE6: 0 | AF6: 0 | AH6: >2 | AI6: =COUNTIFS(T:T,">2",R:R,">1",X:X,"0",V:V,">1") -> 4 | AJ6: =COUNTIFS(T:T,">2",R:R,">1",X:X,"1",V:V,">1") -> 10 | AK6: =COUNTIFS(T:T,">2",R:R,">1",X:X,"2",V:V,">1") -> 7 | AL6: =COUNTIFS(T:T,">2",R:R,">1",X:X,">2",V:V,">1") -> 64 | AM6: Percent | AO6: =AO5/$AO$1 -> 0.6760374833 | AP6: =AP5/$AO$1 -> 0.03346720214 | AQ6: =AQ5/$AO$1 -> 0.140562249 | AR6: =AR5/$AO$1 -> 0.1499330656
A7: P24182 | B7: accC | C7: ['cytosol'] | D7: ['AccA.2', 'AccD.2.', 'AccC.2.'] | E7: None | F7: Y | G7: 13890 | H7: 49.321 | I7: 1.137583305 | J7: 8 | K7: 3 | L7: 6.784 | M7: ['PreATP-grasp domain', 'Barrel-sandwich hybrid', 'ATP-grasp'] | N7: ['1-114', '331-443', '83-347'] | O7: 3 | P7: 3 | Q7: 1 | R7: 16 | S7: 0 | T7: 1 | U7: 1 | V7: 21 | W7: 1 | X7: 2 | Y7: II | Z7: No Info Available | AA7: No Info Available | AB7: 45.90384771 | AC7: 0 | AD7: 0 | AE7: 0 | AF7: 0
A8: P0A9Q5 | B8: accD | C8: ['cytosol'] | D8: ['AccA.2', 'AccD.2'] | E8: None | F8: Y | G8: 8774 | H8: 33.322 | I8: 0.485487196 | J8: 4 | K8: 2 | L8: 7.481 | M8: ['ClpP/crotonase'] | N8: ['23-284'] | O8: 1 | P8: 1 | Q8: 0 | R8: 13 | S8: 0 | T8: 0 | U8: 0 | V8: 12 | W8: 0 | X8: 0 | Y8: No Info Available | Z8: No Info Available | AA8: 5.53 | AB8: No Info Available | AC8: 0 | AD8: 0 | AE8: =IF(AND(T8<2,R8>1,X8<2,V8>1),1,0) -> 1 | AF8: 0 | AM8: Total | AN8: Composition by Subunits | AT8: Expected Couunts | AY8: Chi-Sq
A9: P0A9G6 | B9: aceA | C9: Unknown | D9: ['AceA.4'] | E9: ['Mg2+'] | F9: N | G9: 1483 | H9: 47.522 | I9: 0.117026698 | J9: 4 | K9: 1 | L9: 5.054 | M9: ['TIM beta/alpha-barrel'] | N9: ['4-417'] | O9: 1 | P9: 1 | Q9: 0 | R9: 2 | S9: 0 | T9: 0 | U9: 0 | V9: 7 | W9: 0 | X9: 0 | Y9: No Info Available | Z9: No Info Available | AA9: No Info Available | AB9: 46.98637598 | AC9: 0 | AD9: 0 | AE9: 1 | AF9: 0 | AN9: 1 subunit | AO9: =COUNTIFS(AE:AE,"1",$J:$J,"=1") -> 248 | AP9: =COUNTIFS(AC:AC,"1",$J:$J,"=1") -> 13 | AQ9: =COUNTIFS(AD:AD,"1",$J:$J,"=1") -> 34 | AR9: =COUNTIFS(AF:AF,"1",$J:$J,"=1") -> 30 | AT9: =SUM(AO9:AR9)*AO$6 -> 219.7121821 | AU9: =SUM(AO9:AR9)*AP$6 -> 10.8768407 | AV9: =SUM(AO9:AR9)*AQ$6 -> 45.68273092 | AW9: =SUM(AO9:AR9)*AR$6 -> 48.72824632 | AY9: =_xlfn.CHISQ.TEST(AO9:AR9,AT9:AW9) -> 0.002593338156
A10: P08997 | B10: aceB | C10: ['cytosol'] | D10: Monomer | E10: ['Mg2+'] | F10: N | G10: 591 | H10: 60.274 | I10: 0.059151612 | J10: 1 | K10: 1 | L10: 5.328 | M10: ['TIM beta/alpha-barrel'] | N10: ['9-532'] | O10: 1 | P10: 1 | Q10: 0 | R10: 2 | S10: 0 | T10: 0 | U10: 0 | V10: 3 | W10: 0 | X10: 0 | Y10: No Info Available | Z10: No Info Available | AA10: No Info Available | AB10: 54.57089578 | AC10: 0 | AD10: =IF(OR(AND(T10=0,R10>1,X10>2,V10>1),AND(T10=0,R10>1,X10=2,V10>1),AND(T10=1,R10>1,X10>2,V10>1)),1,0) -> 0 | AE10: 1 | AF10: 0 | AN10: 2 subunits | AO10: =COUNTIFS(AE:AE,"1",$J:$J,"=2") -> 100 | AP10: =COUNTIFS(AC:AC,"1",$J:$J,"=2") -> 6 | AQ10: =COUNTIFS(AD:AD,"1",$J:$J,"=2") -> 29 | AR10: =COUNTIFS(AF:AF,"1",$J:$J,"=2") -> 35 | AT10: =SUM(AO10:AR10)*AO$6 -> 114.9263722 | AU10: =SUM(AO10:AR10)*AP$6 -> 5.689424364 | AV10: =SUM(AO10:AR10)*AQ$6 -> 23.89558233 | AW10: =SUM(AO10:AR10)*AR$6 -> 25.48862115 | AY10: =_xlfn.CHISQ.TEST(AO10:AR10,AT10:AW10) -> 0.08598227576
A11: P0AFG8 | B11: aceE | C11: ['cytosol'] | D11: ['AceE.2.12', 'AceF.24', 'Lpd.2.6'] | E11: ['thiamine diphosphate', 'FAD', 'Mg2+'] | F11: N | G11: 66813 | H11: 99.668 | I11: 11.05772555 | J11: 60 | K11: 3 | L11: 5.429 | M11: ['Thiamin diphosphate-binding fold (THDP-binding)', 'Thiamin diphosphate-binding fold (THDP-binding)', 'TK C-terminal domain-like'] | N11: ['58-469', '474-701', '702-885'] | O11: 3 | P11: 2 | Q11: 0 | R11: 42 | S11: 0 | T11: 0 | U11: 4 | V11: 67 | W11: 1 | X11: 5 | Y11: I | Z11: No Info Available | AA11: 6.33 | AB11: 43.51088266 | AC11: 0 | AD11: 1 | AE11: 0 | AF11: 0 | AN11: 3 subunits | AO11: =COUNTIFS(AE:AE,"1",$J:$J,"=3") -> 14 | AP11: =COUNTIFS(AC:AC,"1",$J:$J,"=3") -> 1 | AQ11: =COUNTIFS(AD:AD,"1",$J:$J,"=3") -> 3 | AR11: =COUNTIFS(AF:AF,"1",$J:$J,"=3") -> 3 | AT11: 14.19678715 | AU11: 0.702811245 | AV11: 2.951807229 | AW11: 3.148594378 | AY11: 0.9871652221
A12: P06959 | B12: aceF | C12: ['cytosol'] | D12: ['AceE.2.12', 'AceF.24', 'Lpd.2.6'] | E12: ['thiamine diphosphate', 'FAD', 'Mg2+'] | F12: N | G12: 60155 | H12: 66.096 | I12: 6.602311328 | J12: 60 | K12: 3 | L12: 4.96 | M12: ['CoA-dependent acyltransferases', 'Barrel-sandwich hybrid', 'Barrel-sandwich hybrid', 'Barrel-sandwich hybrid', 'Peripheral subunit-binding domain of 2-oxo acid dehydrogenase complex'] | N12: ['388-629', '105-197', '206-298', '1-93', '321-366'] | O12: 5 | P12: 3 | Q12: 0 | R12: 29 | S12: 0 | T12: 0 | U12: 1 | V12: 54 | W12: 0 | X12: 1 | Y12: I | Z12: No Info Available | AA12: 3.29 | AB12: 58.43919164 | AC12: 0 | AD12: 0 | AE12: 1 | AF12: 0 | AN12: 4 subunits | AO12: =COUNTIFS(AE:AE,"1",$J:$J,"=4") -> 51 | AP12: =COUNTIFS(AC:AC,"1",$J:$J,"=4") -> 1 | AQ12: =COUNTIFS(AD:AD,"1",$J:$J,"=4") -> 14 | AR12: =COUNTIFS(AF:AF,"1",$J:$J,"=4") -> 17 | AT12: 56.11111111 | AU12: 2.777777778 | AV12: 11.66666667 | AW12: 12.44444444 | AY12: 0.291219905
A13: P0A6A3 | B13: ackA | C13: ['cytosol'] | D13: Monomer | E13: ['Mg2+'] | F13: N | G13: 35607 | H13: 43.29 | I13: 2.559599761 | J13: 1 | K13: 1 | L13: 5.973 | M13: ['Ribonuclease H-like motif', 'Ribonuclease H-like motif'] | N13: ['160-398', '4-199'] | O13: 2 | P13: 1 | Q13: 2 | R13: 21 | S13: 0 | T13: 2 | U13: 4 | V13: 30 | W13: 2 | X13: 6 | Y13: I | Z13: No Info Available | AA13: No Info Available | AB13: 41.60227949 | AC13: 0 | AD13: 0 | AE13: 0 | AF13: 1 | AN13: 5 subunits | AO13: =COUNTIFS(AE:AE,"1",$J:$J,"=5") -> 25 | AP13: =COUNTIFS(AC:AC,"1",$J:$J,"=5") -> 1 | AQ13: =COUNTIFS(AD:AD,"1",$J:$J,"=5") -> 1 | AR13: =COUNTIFS(AF:AF,"1",$J:$J,"=5") -> 5 | AT13: 21.63319946 | AU13: 1.070950469 | AV13: 4.497991968 | AW13: 4.797858099 | AY13: 0.3536004332
A14: P25516 | B14: acnA | C14: ['cytosol'] | D14: ['AcnA.2'] | E14: ['a [4Fe-4S] iron-sulfur cluster'] | F14: N | G14: 238 | H14: 97.677 | I14: 0.03860276 | J14: 2 | K14: 1 | L14: 5.602 | M14: ['Aconitase iron-sulfur domain', 'The "swivelling" beta/beta/alpha domain'] | N14: ['10-625', '630-890'] | O14: 2 | P14: 2 | Q14: 0 | R14: 0 | S14: 0 | T14: 0 | U14: 0 | V14: 10 | W14: 0 | X14: 0 | Y14: No Info Available | Z14: No Info Available | AA14: No Info Available | AB14: 49.0188317 | AC14: 0 | AD14: 0 | AE14: 0 | AF14: 0 | AN14: 6 subunits | AO14: =COUNTIFS(AE:AE,"1",$J:$J,"=6") -> 13 | AP14: =COUNTIFS(AC:AC,"1",$J:$J,"=6") -> 0 | AQ14: =COUNTIFS(AD:AD,"1",$J:$J,"=6") -> 6 | AR14: =COUNTIFS(AF:AF,"1",$J:$J,"=6") -> 8 | AT14: 18.25301205 | AU14: 0.9036144578 | AV14: 3.795180723 | AW14: 4.048192771 | AY14: 0.05618747703
A15: P36683 | B15: acnB | C15: ['cytosol'] | D15: ['AcnB.2'] | E15: ['a [4Fe-4S] iron-sulfur cluster'] | F15: N | G15: 7764 | H15: 93.498 | I15: 1.205415963 | J15: 2 | K15: 1 | L15: 5.138 | M15: ['Aconitase iron-sulfur domain', 'The "swivelling" beta/beta/alpha domain', 'alpha-alpha superhelix'] | N15: ['380-859', '163-371', '1-160'] | O15: 3 | P15: 3 | Q15: 3 | R15: 64 | S15: 0 | T15: 3 | U15: 0 | V15: 72 | W15: 1 | X15: 1 | Y15: No Info Available | Z15: No Info Available | AA15: 7.26 | AB15: 45.79895276 | AC15: 1 | AD15: 0 | AE15: 0 | AF15: 0 | AN15: >6 subunits | AO15: =COUNTIFS(AE:AE,"1",$J:$J,">6") -> 54 | AP15: =COUNTIFS(AC:AC,"1",$J:$J,">6") -> 3 | AQ15: =COUNTIFS(AD:AD,"1",$J:$J,">6") -> 18 | AR15: =COUNTIFS(AF:AF,"1",$J:$J,">6") -> 14 | AT15: 60.16733601 | AU15: 2.978580991 | AV15: 12.51004016 | AW15: 13.34404284 | AY15: 0.3803849098
A16: P21515 | B16: acpH | C16: ['cytosol'] | D16: Monomer | E16: ['Zn2+', 'Fe2+', 'Co2+', 'Mg2+', 'Mn2+'] | F16: N | G16: 190 | H16: 22.961 | I16: 0.007244251 | J16: 1 | K16: 1 | L16: 6.034 | M16: Unknown | O16: 0 | P16: 0 | Q16: 0 | R16: 1 | S16: 0 | T16: 0 | U16: 0 | V16: 2 | W16: 0 | X16: 0 | Y16: III | Z16: IV | AA16: No Info Available | AB16: No Info Available | AC16: 0 | AD16: 0 | AE16: 0 | AF16: 0 | AM16: Percent | AN16: 1 subunit | AO16: =AO9/(AO9+AP9+AQ9+AR9) -> 0.7630769231 | AP16: =AP9/(AO9+AP9+AQ9+AR9) -> 0.04 | AQ16: =AQ9/(AO9+AP9+AQ9+AR9) -> 0.1046153846 | AR16: =AR9/(AO9+AP9+AQ9+AR9) -> 0.09230769231
A17: P0A6A8 | B17: acpP | C17: ['cytosol'] | D17: Monomer | E17: None | F17: Y | G17: 357865 | H17: 8.64 | I17: 5.134309664 | J17: 1 | K17: 1 | L17: 3.822 | M17: ['Acyl carrier protein-like'] | N17: ['3-74'] | O17: 1 | P17: 1 | Q17: 0 | R17: 21 | S17: 0 | T17: 0 | U17: 0 | V17: 24 | W17: 0 | X17: 0 | Y17: No Info Available | Z17: No Info Available | AA17: 12.82 | AB17: 43.18424023 | AC17: 0 | AD17: 0 | AE17: 1 | AF17: 0 | AN17: 2 subunits | AO17: =AO10/(AO10+AP10+AQ10+AR10) -> 0.5882352941 | AP17: =AP10/(AO10+AP10+AQ10+AR10) -> 0.03529411765 | AQ17: =AQ10/(AO10+AP10+AQ10+AR10) -> 0.1705882353 | AR17: =AR10/(AO10+AP10+AQ10+AR10) -> 0.2058823529
A18: P37623 | B18: acpT | C18: ['cytosol'] | D18: Monomer | E18: None | F18: N | G18: 474 | H18: 21.768 | I18: 0.017133495 | J18: 1 | K18: 1 | L18: 5.492 | M18: ["4'-phosphopantetheinyl transferase", "4'-phosphopantetheinyl transferase"] | N18: ['87-180', '29-79'] | O18: 2 | P18: 1 | Q18: 0 | R18: 1 | S18: 0 | T18: 0 | U18: 0 | V18: 1 | W18: 0 | X18: 0 | Y18: No Info Available | Z18: No Info Available | AA18: 7.38 | AB18: No Info Available | AC18: 0 | AD18: 0 | AE18: 0 | AF18: 0 | AN18: 3 subunits | AO18: 0.6666666667 | AP18: 0.04761904762 | AQ18: 0.1428571429 | AR18: 0.1428571429
A19: P0AE06 | B19: acrA | C19: ['inner membrane', 'periplasmic space'] | D19: ['TolC.3.', 'AcrD.3', 'AcrA.6'] | E19: None | F19: N | G19: 3861 | H19: 42.197 | I19: 0.270539366 | J19: 12 | K19: 3 | L19: 7.983 | M19: ['HlyD-like secretion proteins'] | N19: ['52-300'] | O19: 1 | P19: 1 | Q19: 0 | R19: 1 | S19: 0 | T19: 0 | U19: 0 | V19: 4 | W19: 0 | X19: 0 | Y19: No Info Available | Z19: No Info Available | AA19: No Info Available | AB19: 45.73072698 | AC19: 0 | AD19: 0 | AE19: 0 | AF19: 0 | AN19: 4 subunits | AO19: 0.6144578313 | AP19: 0.01204819277 | AQ19: 0.1686746988 | AR19: 0.2048192771
A20: P24177 | B20: acrD | C20: ['periplasmic space', 'inner membrane'] | D20: ['TolC.3.', 'AcrD.3', 'AcrA.6'] | E20: None | F20: N | G20: 56 | H20: 113.05 | I20: 0.010512541 | J20: 12 | K20: 3 | L20: 5.587 | M20: ['Multidrug efflux transporter AcrB transmembrane domain', 'Multidrug efflux transporter AcrB transmembrane domain', 'Ferredoxin-like', 'Ferredoxin-like', 'Ferredoxin-like', 'Multidrug efflux transporter AcrB TolC docking domain; DN and DC subdomains', 'Multidrug efflux transporter AcrB TolC docking domain; DN and DC subdomains'] | N20: ['296-497', '807-1030', '566-672', '39-132', '138-182+274-330', '723-809', '182-272'] | O20: 7 | P20: 3 | Q20: 0 | R20: 1 | S20: 0 | T20: 0 | U20: 0 | V20: 1 | W20: 0 | X20: 0 | Y20: No Info Available | Z20: No Info Available | AA20: No Info Available | AB20: No Info Available | AC20: 0 | AD20: 0 | AE20: 0 | AF20: 0 | AN20: 5 subunits | AO20: 0.78125 | AP20: 0.03125 | AQ20: 0.03125 | AR20: 0.15625
A21: P0ACS9 | B21: acrR | C21: ['cytosol'] | D21: Monomer | E21: None | F21: N | G21: 240 | H21: 24.767 | I21: 0.009870377 | J21: 1 | K21: 1 | L21: 5.633 | M21: ['DNA/RNA-binding 3-helical bundle', 'Tetracyclin repressor-like, C-terminal domain'] | N21: ['11-63', '84-200'] | O21: 2 | P21: 2 | Q21: 0 | R21: 1 | S21: 0 | T21: 0 | U21: 0 | V21: 0 | W21: 0 | X21: 0 | Y21: No Info Available | Z21: No Info Available | AA21: No Info Available | AB21: No Info Available | AC21: 0 | AD21: 0 | AE21: 0 | AF21: 0 | AN21: 6 subunits | AO21: 0.4814814815 | AP21: 0 | AQ21: 0.2222222222 | AR21: 0.2962962963
A22: P27550 | B22: acs | C22: ['cytosol'] | D22: Monomer | E22: ['Mg2+'] | F22: N | G22: 150 | H22: 72.094 | I22: 0.017957235 | J22: 1 | K22: 1 | L22: 5.513 | M22: ['Acetyl-CoA synthetase-like'] | N22: ['11-643'] | O22: 1 | P22: 1 | Q22: 0 | R22: 4 | S22: 0 | T22: 0 | U22: 1 | V22: 16 | W22: 1 | X22: 2 | Y22: No Info Available | Z22: No Info Available | AA22: No Info Available | AB22: 48.47614913 | AC22: 0 | AD22: 1 | AE22: 0 | AF22: 0 | AN22: >6 subunits | AO22: 0.606741573 | AP22: 0.03370786517 | AQ22: 0.202247191 | AR22: 0.1573033708
A23: P26646 | B23: acuI | C23: ['cytosol'] | D23: ['YhdH.2'] | E23: None | F23: N | G23: 756 | H23: 34.724 | I23: 0.043591382 | J23: 2 | K23: 1 | L23: ? | M23: ['GroES-like', 'NAD(P)-binding Rossmann-fold domains'] | N23: ['1-144', '116-284'] | O23: 2 | P23: 2 | Q23: 0 | R23: 1 | S23: 0 | T23: 0 | U23: 0 | V23: 2 | W23: 0 | X23: 0 | Y23: No Info Available | Z23: No Info Available | AA23: No Info Available | AB23: 47.00948137 | AC23: 0 | AD23: 0 | AE23: 0 | AF23: 0
A24: P22333 | B24: add | C24: ['cytosol'] | D24: Monomer | E24: None | F24: N | G24: 724 | H24: 36.397 | I24: 0.043757575 | J24: 1 | K24: 1 | L24: 5.351 | M24: ['TIM beta/alpha-barrel'] | N24: ['5-326'] | O24: 1 | P24: 1 | Q24: 0 | R24: 4 | S24: 0 | T24: 0 | U24: 0 | V24: 8 | W24: 0 | X24: 0 | Y24: III | Z24: IV | AA24: No Info Available | AB24: No Info Available | AC24: 0 | AD24: 0 | AE24: 1 | AF24: 0 | AM24: Total | AN24: Composition by Unique Subunits
